{"text_format":"3","workbook":"xlsx","n_sheets":10,"sheets":["Índice","Mapas","KM1","OV1","MR1","CCA ","CC1","CC2","CR1","CR2"],"not_rendered":{"images":2,"macros":1,"external_links":5,"defined_names":639},"read":"whole","date_system":"1900"}

{"sheet":"Índice","index":0,"n_rows":22,"n_cols":3,"rows_kept":22,"merged":[[2,1,2,3]]}
[]
[]
[null,"BRB - Banco de Brasília S.A "]
[]
[]
[null,null,"Clique no título da tabela para visualização das informações"]
[]
[null,null,"2T2025"]
[]
[]
[null,null,"KM1 - Informações Quantitativas sobre os Requerimentos Prudenciais"]
[]
[null,null,"OV1 - Visão Geral dos Ativos Ponderados pelo Risco – RWA"]
[]
[null,null,"CCA - Principais Características dos Instrumentos que compõe o Patrimônio de Referência (PR)"]
[]
[null,null,"CC1 - Composição do Patrimônio de Referência (PR)"]
[]
[null,null,"CC2 - Conciliação do Patrimônio de Referência (PR) com o balanço patrimonial"]
[null,null,"MR1 - Abordagem Padronizada - Fatores de Risco Associados ao Risco de Mercado "]
[null,null,"CR1 - Qualidade creditícia das exposições"]
[null,null,"CR2 - Mudanças no estoque de operações em curso anormal"]

{"sheet":"Mapas","index":1,"n_rows":230,"n_cols":10,"rows_kept":230,"hidden":true,"merged":[[0,0,0,3],[0,5,0,9],[46,5,46,9],[122,0,122,3],[180,0,180,3],[196,0,196,3]]}
["Tabela KM1",{"$nulls":4},"Tabela CCA"]
["CAMPO","TIPO","TAMANHO","Inf",null,"CAMPO","DESCRIÇÃO","TIPO","TAMANHO","Inf"]
["COD_REFERENCIA","Texto",6,"Chave única",null,"COD_REFERENCIA","Descrição","Texto",6]
["COD_TABELA","Texto",8,null,null,"COD_TABELA",null,"Texto",8]
["DT_REFERENCIA_ARQ","Data","dd/mm/aaaa",null,null,"DT_REFERENCIA_ARQ",null,"Data","dd/mm/aaaa"]
["DT_REFERENCIA_A","Data","dd/mm/aaaa",null,null,"CAMPO_1","Emissor","Texto",4000]
["DT_REFERENCIA_B","Data","dd/mm/aaaa",null,null,"CAMPO_2","Identificador único","Texto",4000,"Chave única"]
["DT_REFERENCIA_C","Data","dd/mm/aaaa",null,null,"CAMPO_3","Lei aplicável ao instrumento","Texto",4000]
["DT_REFERENCIA_D","Data","dd/mm/aaaa",null,null,"CAMPO_4","Classificação do instrumento como componente do PR durante o tratamento temporário de que trata o art. 28 da Resolução nº 4.192, de 2013.","Texto",4000]
["DT_REFERENCIA_E","Data","dd/mm/aaaa",null,null,"CAMPO_5","Classificação do instrumento como componente do PR após o tratamento temporário de que trata a linha anterior","Texto",4000]
["VL_CAPITAL_PRINCIPAL_A","Número","12 int 4 dec",null,null,"CAMPO_6","Escopo da elegibilidade do instrumento","Texto",4000]
["VL_CAPITAL_PRINCIPAL_B","Número","12 int 4 dec",null,null,"CAMPO_7","Tipo de instrumento","Texto",4000]
["VL_CAPITAL_PRINCIPAL_C","Número","12 int 4 dec",null,null,"CAMPO_8","Valor reconhecido no PR","Número","12 int 4 dec"]
["VL_CAPITAL_PRINCIPAL_D","Número","12 int 4 dec",null,null,"CAMPO_9","Valor de face do instrumento","Número","12 int 4 dec"]
["VL_CAPITAL_PRINCIPAL_E","Número","12 int 4 dec",null,null,"CAMPO_10","Classificação contábil","Texto",4000]
["VL_NIVEL1_A","Número","12 int 4 dec",null,null,"CAMPO_11","Data original de emissão","Data","dd/mm/aaaa"]
["VL_NIVEL1_B","Número","12 int 4 dec",null,null,"CAMPO_12","Perpétuo ou com vencimento","Texto",4000]
["VL_NIVEL1_C","Número","12 int 4 dec",null,null,"CAMPO_13","Data original de vencimento","Data","dd/mm/aaaa"]
["VL_NIVEL1_D","Número","12 int 4 dec",null,null,"CAMPO_14","Opção de resgate ou recompra","Texto",4000]
["VL_NIVEL1_E","Número","12 int 4 dec",null,null,"CAMPO_15_1","Data de resgate ou de recompra","Texto",4000]
["VL_PATRIMONIO_REFERENCIA_A","Número","12 int 4 dec",null,null,"CAMPO_15_2","Datas de resgate ou de recompra condicionadas","Texto",4000]
["VL_PATRIMONIO_REFERENCIA_B","Número","12 int 4 dec",null,null,"CAMPO_15_3","Valor de resgate ou de recompra","Texto",4000]
["VL_PATRIMONIO_REFERENCIA_C","Número","12 int 4 dec",null,null,"CAMPO_16","Datas de resgate ou de recompra subsequentes, se aplicável","Texto",4000]
["VL_PATRIMONIO_REFERENCIA_D","Número","12 int 4 dec",null,null,"CAMPO_17","Remuneração ou dividendos fixos ou variáveis","Texto",4000]
["VL_PATRIMONIO_REFERENCIA_E","Número","12 int 4 dec",null,null,"CAMPO_18","Taxa de remuneração e índice referenciado","Texto",4000]
["VL_EXCESSO_REC_APL_AP_A","Número","12 int 4 dec",null,null,"CAMPO_19","Possibilidade de suspensão de pagamento de dividendos","Texto",4000]
["VL_EXCESSO_REC_APL_AP_B","Número","12 int 4 dec",null,null,"CAMPO_20","Completa discricionariedade, discricionariedade parcial ou mandatória","Texto",4000]
["VL_EXCESSO_REC_APL_AP_C","Número","12 int 4 dec",null,null,"CAMPO_21","Existência de cláusulas que alterem prazos ou condições de remuneração pactuados ou outro incentivo para resgate","Texto",4000]
["VL_EXCESSO_REC_APL_AP_D","Número","12 int 4 dec",null,null,"CAMPO_22","Cumulativo ou não cumulativo","Texto",4000]
["VL_EXCESSO_REC_APL_AP_E","Número","12 int 4 dec",null,null,"CAMPO_23","Conversível ou não conversível","Texto",4000]
["DESTAQUE_PR_A","Número","12 int 4 dec",null,null,"CAMPO_24","Se conversível, em quais situações","Texto",4000]
["DESTAQUE_PR_B","Número","12 int 4 dec",null,null,"CAMPO_25","Se conversível, totalmente ou parcialmente","Texto",4000]
["DESTAQUE_PR_C","Número","12 int 4 dec",null,null,"CAMPO_26","Se conversível, taxa de conversão","Texto",4000]
["DESTAQUE_PR_D","Número","12 int 4 dec",null,null,"CAMPO_27","Se conversível, conversão obrigatória ou opcional","Texto",4000]
["DESTAQUE_PR_E","Número","12 int 4 dec",null,null,"CAMPO_28","Se conversível, especificar para qual tipo de instrumento","Texto",4000]
["VL_RWA_TOTAL_A","Número","12 int 4 dec",null,null,"CAMPO_29","Se conversível, especificar o emissor do instrumento para o qual pode ser convertido","Texto",4000]
["VL_RWA_TOTAL_B","Número","12 int 4 dec",null,null,"CAMPO_30","Características para a extinção do instrumento","Texto",4000]
["VL_RWA_TOTAL_C","Número","12 int 4 dec",null,null,"CAMPO_31","Se extinguível, em quais situações","Texto",4000]
["VL_RWA_TOTAL_D","Número","12 int 4 dec",null,null,"CAMPO_32","Se extinguível, totalmente ou parcialmente","Texto",4000]
["VL_RWA_TOTAL_E","Número","12 int 4 dec",null,null,"CAMPO_33","Se extinguível, permanentemente ou temporariamente","Texto",4000]
["VL_ICP_A","Número","12 int 4 dec",null,null,"CAMPO_34a","Tipo de subordinação","Texto",4000]
["VL_ICP_B","Número","12 int 4 dec",null,null,"CAMPO_35","Posição na hierarquia de subordinação em caso de liquidação","Texto",4000]
["VL_ICP_C","Número","12 int 4 dec",null,null,"CAMPO_36","Possui características que não serão aceitas após o tratamento temporário de que trata o art. 28 da Resolução nº 4.192, de 2013","Texto",4000]
["VL_ICP_D","Número","12 int 4 dec",null,null,"CAMPO_37","Se sim, especificar as características de que trata a linha anterior","Texto",4000]
["VL_ICP_E","Número","12 int 4 dec",null,null,"CAMPO_37","Se sim, especificar as características de que trata a linha anterior","Texto",4000]
["VL_INDICE_NIVEL1_A","Número","12 int 4 dec"]
["VL_INDICE_NIVEL1_B","Número","12 int 4 dec",null,null,"Tabela CC1"]
["VL_INDICE_NIVEL1_C","Número","12 int 4 dec",null,null,"CAMPO","DESCRIÇÃO","TIPO","TAMANHO","Inf"]
["VL_INDICE_NIVEL1_D","Número","12 int 4 dec",null,null,"COD_REFERENCIA",null,"Texto",6]
["VL_INDICE_NIVEL1_E","Número","12 int 4 dec",null,null,"COD_TABELA",null,"Texto",8]
["VL_INDICE_BASILEIA_A","Número","12 int 4 dec",null,null,"DT_REFERENCIA_ARQ",null,"Data","dd/mm/aaaa"]
["VL_INDICE_BASILEIA_B","Número","12 int 4 dec",null,null,"Vl_1",null,"Número","12 int 4 dec"]
["VL_INDICE_BASILEIA_C","Número","12 int 4 dec",null,null,"Vl_2",null,"Número","12 int 4 dec"]
["VL_INDICE_BASILEIA_D","Número","12 int 4 dec",null,null,"Vl_3",null,"Número","12 int 4 dec"]
["VL_INDICE_BASILEIA_E","Número","12 int 4 dec",null,null,"Vl_5",null,"Número","12 int 4 dec"]
["VL_ACP_CONSEVACAO_A","Número","12 int 4 dec",null,null,"Vl_6",null,"Número","12 int 4 dec"]
["VL_ACP_CONSEVACAO_B","Número","12 int 4 dec",null,null,"Vl_7",null,"Número","12 int 4 dec"]
["VL_ACP_CONSEVACAO_C","Número","12 int 4 dec",null,null,"Vl_8",null,"Número","12 int 4 dec"]
["VL_ACP_CONSEVACAO_D","Número","12 int 4 dec",null,null,"Vl_9",null,"Número","12 int 4 dec"]
["VL_ACP_CONSEVACAO_E","Número","12 int 4 dec",null,null,"Vl_10",null,"Número","12 int 4 dec"]
["VL_ACP_CONTRACICLICO_A","Número","12 int 4 dec",null,null,"Vl_11",null,"Número","12 int 4 dec"]
["VL_ACP_CONTRACICLICO_B","Número","12 int 4 dec",null,null,"Vl_15",null,"Número","12 int 4 dec"]
["VL_ACP_CONTRACICLICO_C","Número","12 int 4 dec",null,null,"Vl_16",null,"Número","12 int 4 dec"]
["VL_ACP_CONTRACICLICO_D","Número","12 int 4 dec",null,null,"Vl_17",null,"Número","12 int 4 dec"]
["VL_ACP_CONTRACICLICO_E","Número","12 int 4 dec",null,null,"Vl_18",null,"Número","12 int 4 dec"]
["VL_ACP_SISTEMICO_A","Número","12 int 4 dec",null,null,"Vl_19",null,"Número","12 int 4 dec"]
["VL_ACP_SISTEMICO_B","Número","12 int 4 dec",null,null,"Vl_21",null,"Número","12 int 4 dec"]
["VL_ACP_SISTEMICO_C","Número","12 int 4 dec",null,null,"Vl_22",null,"Número","12 int 4 dec"]
["VL_ACP_SISTEMICO_D","Número","12 int 4 dec",null,null,"Vl_23",null,"Número","12 int 4 dec"]
["VL_ACP_SISTEMICO_E","Número","12 int 4 dec",null,null,"Vl_25",null,"Número","12 int 4 dec"]
["VL_ACP_TOTAL_A","Número","12 int 4 dec",null,null,"Vl_26",null,"Número","12 int 4 dec"]
["VL_ACP_TOTAL_B","Número","12 int 4 dec",null,null,"Vl_26a",null,"Número","12 int 4 dec"]
["VL_ACP_TOTAL_C","Número","12 int 4 dec",null,null,"Vl_26b",null,"Número","12 int 4 dec"]
["VL_ACP_TOTAL_D","Número","12 int 4 dec",null,null,"Vl_26d",null,"Número","12 int 4 dec"]
["VL_ACP_TOTAL_E","Número","12 int 4 dec",null,null,"Vl_26e",null,"Número","12 int 4 dec"]
["VL_MARGEM_EXCEDENTE_CP_A","Número","12 int 4 dec",null,null,"Vl_26f",null,"Número","12 int 4 dec"]
["VL_MARGEM_EXCEDENTE_CP_B","Número","12 int 4 dec",null,null,"Vl_26g",null,"Número","12 int 4 dec"]
["VL_MARGEM_EXCEDENTE_CP_C","Número","12 int 4 dec",null,null,"Vl_26h",null,"Número","12 int 4 dec"]
["VL_MARGEM_EXCEDENTE_CP_D","Número","12 int 4 dec",null,null,"Vl_26i",null,"Número","12 int 4 dec"]
["VL_MARGEM_EXCEDENTE_CP_E","Número","12 int 4 dec",null,null,"Vl_26j",null,"Número","12 int 4 dec"]
["VL_EXPOSICAO_TOTAL_A","Número","12 int 4 dec",null,null,"Vl_27",null,"Número","12 int 4 dec"]
["VL_EXPOSICAO_TOTAL_B","Número","12 int 4 dec",null,null,"Vl_28",null,"Número","12 int 4 dec"]
["VL_EXPOSICAO_TOTAL_C","Número","12 int 4 dec",null,null,"Vl_29",null,"Número","12 int 4 dec"]
["VL_EXPOSICAO_TOTAL_D","Número","12 int 4 dec",null,null,"Vl_30",null,"Número","12 int 4 dec"]
["VL_EXPOSICAO_TOTAL_E","Número","12 int 4 dec",null,null,"Vl_31",null,"Número","12 int 4 dec"]
["VL_RA_A","Número","12 int 4 dec",null,null,"Vl_32",null,"Número","12 int 4 dec"]
["VL_RA_B","Número","12 int 4 dec",null,null,"Vl_33",null,"Número","12 int 4 dec"]
["VL_RA_C","Número","12 int 4 dec",null,null,"Vl_34",null,"Número","12 int 4 dec"]
["VL_RA_D","Número","12 int 4 dec",null,null,"Vl_35",null,"Número","12 int 4 dec"]
["VL_RA_E","Número","12 int 4 dec",null,null,"Vl_36",null,"Número","12 int 4 dec"]
["VL_HQLA_A","Número","12 int 4 dec",null,null,"Vl_37",null,"Número","12 int 4 dec"]
["VL_HQLA_B","Número","12 int 4 dec",null,null,"Vl_38",null,"Número","12 int 4 dec"]
["VL_HQLA_C","Número","12 int 4 dec",null,null,"Vl_39",null,"Número","12 int 4 dec"]
["VL_HQLA_D","Número","12 int 4 dec",null,null,"Vl_40",null,"Número","12 int 4 dec"]
["VL_HQLA_E","Número","12 int 4 dec",null,null,"Vl_41",null,"Número","12 int 4 dec"]
["VL_TOTAL_SAIDAS_LIQ_CAIXA_A","Número","12 int 4 dec",null,null,"Vl_41b",null,"Número","12 int 4 dec"]
["VL_TOTAL_SAIDAS_LIQ_CAIXA_B","Número","12 int 4 dec",null,null,"Vl_41c",null,"Número","12 int 4 dec"]
["VL_TOTAL_SAIDAS_LIQ_CAIXA_C","Número","12 int 4 dec",null,null,"Vl_42",null,"Número","12 int 4 dec"]
["VL_TOTAL_SAIDAS_LIQ_CAIXA_D","Número","12 int 4 dec",null,null,"Vl_43",null,"Número","12 int 4 dec"]
["VL_TOTAL_SAIDAS_LIQ_CAIXA_E","Número","12 int 4 dec",null,null,"Vl_44",null,"Número","12 int 4 dec"]
["VL_LCR_A","Número","12 int 4 dec",null,null,"Vl_45",null,"Número","12 int 4 dec"]
["VL_LCR_B","Número","12 int 4 dec",null,null,"Vl_46",null,"Número","12 int 4 dec"]
["VL_LCR_C","Número","12 int 4 dec",null,null,"Vl_47",null,"Número","12 int 4 dec"]
["VL_LCR_D","Número","12 int 4 dec",null,null,"Vl_48",null,"Número","12 int 4 dec"]
["VL_LCR_E","Número","12 int 4 dec",null,null,"Vl_49",null,"Número","12 int 4 dec"]
["VL_ASF_A","Número","12 int 4 dec",null,null,"Vl_51",null,"Número","12 int 4 dec"]
["VL_ASF_B","Número","12 int 4 dec",null,null,"Vl_52",null,"Número","12 int 4 dec"]
["VL_ASF_C","Número","12 int 4 dec",null,null,"Vl_53",null,"Número","12 int 4 dec"]
["VL_ASF_D","Número","12 int 4 dec",null,null,"Vl_54",null,"Número","12 int 4 dec"]
["VL_ASF_E","Número","12 int 4 dec",null,null,"Vl_55",null,"Número","12 int 4 dec"]
["VL_RSF_A","Número","12 int 4 dec",null,null,"Vl_56",null,"Número","12 int 4 dec"]
["VL_RSF_B","Número","12 int 4 dec",null,null,"Vl_56b",null,"Número","12 int 4 dec"]
["VL_RSF_C","Número","12 int 4 dec",null,null,"Vl_56c",null,"Número","12 int 4 dec"]
["VL_RSF_D","Número","12 int 4 dec",null,null,"Vl_57",null,"Número","12 int 4 dec"]
["VL_RSF_E","Número","12 int 4 dec",null,null,"Vl_58",null,"Número","12 int 4 dec"]
["VL_NSFR_A","Número","12 int 4 dec",null,null,"Vl_59",null,"Número","12 int 4 dec"]
["VL_NSFR_B","Número","12 int 4 dec",null,null,"Vl_60",null,"Número","12 int 4 dec"]
["VL_NSFR_C","Número","12 int 4 dec",null,null,"Vl_61",null,"Número","12 int 4 dec"]
["VL_NSFR_D","Número","12 int 4 dec",null,null,"Vl_62",null,"Número","12 int 4 dec"]
["VL_NSFR_E","Número","12 int 4 dec",null,null,"Vl_63",null,"Número","12 int 4 dec"]
["DS_COMENTÁRIO","texto",4000,null,null,"Vl_64",null,"Número","12 int 4 dec"]
[{"$nulls":5},"Vl_65",null,"Número","12 int 4 dec"]
["Tabela OV1",{"$nulls":4},"Vl_66",null,"Número","12 int 4 dec"]
["CAMPO","TIPO","TAMANHO","Inf",null,"Vl_67",null,"Número","12 int 4 dec"]
["COD_REFERENCIA","Texto",6,"Chave única",null,"Vl_68",null,"Número","12 int 4 dec"]
["COD_TABELA","Texto",8,null,null,"Vl_72",null,"Número","12 int 4 dec"]
["DT_REFERENCIA_ARQ","Data","dd/mm/aaaa",null,null,"Vl_73",null,"Número","12 int 4 dec"]
["VL_RISCO_CRED_RWA","Número","12 int 4 dec",null,null,"Vl_75",null,"Número","12 int 4 dec"]
["VL_RISCO_CRED_RWA_ANTERIOR","Número","12 int 4 dec",null,null,"Vl_82",null,"Número","12 int 4 dec"]
["VL_RISCO_CRED_PR","Número","12 int 4 dec",null,null,"Vl_83",null,"Número","12 int 4 dec"]
["VL_RISCO_CRED_ESTRITO_RWA","Número","12 int 4 dec",null,null,"Vl_84",null,"Número","12 int 4 dec"]
["VL_RISCO_CRED_ESTRITO_RWA_ANT","Número","12 int 4 dec",null,null,"Vl_85",null,"Número","12 int 4 dec"]
["VL_RISCO_CRED_ESTRITO_PR","Número","12 int 4 dec",null,null,"Ref_Balanco_1",null,"Texto",4000]
["VL_CCR_RWA","Número","12 int 4 dec",null,null,"Ref_Balanco_2",null,"Texto",4000]
["VL_CCR_RWA_ANT","Número","12 int 4 dec",null,null,"Ref_Balanco_3",null,"Texto",4000]
["VL_CCR_PR","Número","12 int 4 dec",null,null,"Ref_Balanco_5",null,"Texto",4000]
["VL_SA_CCR_RWA","Número","12 int 4 dec",null,null,"Ref_Balanco_6",null,"Texto",4000]
["VL_SA_CCR_RWA_ANT","Número","12 int 4 dec",null,null,"Ref_Balanco_7",null,"Texto",4000]
["VL_SA_CCR_PR","Número","12 int 4 dec",null,null,"Ref_Balanco_8",null,"Texto",4000]
["VL_CEM_RWA","Número","12 int 4 dec",null,null,"Ref_Balanco_9",null,"Texto",4000]
["VL_CEM_RWA_ANT","Número","12 int 4 dec",null,null,"Ref_Balanco_10",null,"Texto",4000]
["VL_CEM_PR","Número","12 int 4 dec",null,null,"Ref_Balanco_11",null,"Texto",4000]
["VL_OUTROS_RWA","Número","12 int 4 dec",null,null,"Ref_Balanco_15",null,"Texto",4000]
["VL_OUTROS_RWA_ANT","Número","12 int 4 dec",null,null,"Ref_Balanco_16",null,"Texto",4000]
["VL_OUTROS_PR","Número","12 int 4 dec",null,null,"Ref_Balanco_17",null,"Texto",4000]
["VL_CVA_RWA","Número","12 int 4 dec",null,null,"Ref_Balanco_18",null,"Texto",4000]
["VL_CVA_RWA_ANT","Número","12 int 4 dec",null,null,"Ref_Balanco_19",null,"Texto",4000]
["VL_CVA_PR","Número","12 int 4 dec",null,null,"Ref_Balanco_21",null,"Texto",4000]
["VL_CFNCASID_RWA","Número","12 int 4 dec",null,null,"Ref_Balanco_22",null,"Texto",4000]
["VL_CFNCASID_RWA_ANT","Número","12 int 4 dec",null,null,"Ref_Balanco_23",null,"Texto",4000]
["VL_CFNCASID_PR","Número","12 int 4 dec",null,null,"Ref_Balanco_25",null,"Texto",4000]
["VL_CFNCASIN_RWA","Número","12 int 4 dec",null,null,"Ref_Balanco_26",null,"Texto",4000]
["VL_CFNCASIN_RWA_ANT","Número","12 int 4 dec",null,null,"Ref_Balanco_26a",null,"Texto",4000]
["VL_CFNCASIN_PR","Número","12 int 4 dec",null,null,"Ref_Balanco_26b",null,"Texto",4000]
["VL_CFNCASNID_RWA","Número","12 int 4 dec",null,null,"Ref_Balanco_26d",null,"Texto",4000]
["VL_CFNCASNID_RWA_ANT","Número","12 int 4 dec",null,null,"Ref_Balanco_26e",null,"Texto",4000]
["VL_CFNCASNID_PR","Número","12 int 4 dec",null,null,"Ref_Balanco_26f",null,"Texto",4000]
["VL_EXP_SEC_AP_RWA","Número","12 int 4 dec",null,null,"Ref_Balanco_26g",null,"Texto",4000]
["VL_EXP_SEC_AP_RWA_ANT","Número","12 int 4 dec",null,null,"Ref_Balanco_26h",null,"Texto",4000]
["VL_EXP_SEC_AP_PR","Número","12 int 4 dec",null,null,"Ref_Balanco_26i",null,"Texto",4000]
["VL_EXP_NDED_PR_RWA","Número","12 int 4 dec",null,null,"Ref_Balanco_26j",null,"Texto",4000]
["VL_EXP_NDED_PR_RWA_ANT","Número","12 int 4 dec",null,null,"Ref_Balanco_27",null,"Texto",4000]
["VL_EXP_NDED_PR_PR","Número","12 int 4 dec",null,null,"Ref_Balanco_28",null,"Texto",4000]
["VL_RISCO_MERCADO_RWA","Número","12 int 4 dec",null,null,"Ref_Balanco_29",null,"Texto",4000]
["VL_RISCO_MERCADO_RWA_ANT","Número","12 int 4 dec",null,null,"Ref_Balanco_30",null,"Texto",4000]
["VL_RISCO_MERCADO_PR","Número","12 int 4 dec",null,null,"Ref_Balanco_31",null,"Texto",4000]
["VL_RWAMPAD_RWA","Número","12 int 4 dec",null,null,"Ref_Balanco_32",null,"Texto",4000]
["VL_RWAMPAD_RWA_ANT","Número","12 int 4 dec",null,null,"Ref_Balanco_33",null,"Texto",4000]
["VL_RWAMPAD_PR","Número","12 int 4 dec",null,null,"Ref_Balanco_34",null,"Texto",4000]
["VL_RWAMINT_RWA","Número","12 int 4 dec",null,null,"Ref_Balanco_35",null,"Texto",4000]
["VL_RWAMINT_RWA_ANT","Número","12 int 4 dec",null,null,"Ref_Balanco_36",null,"Texto",4000]
["VL_RWAMINT_PR","Número","12 int 4 dec",null,null,"Ref_Balanco_37",null,"Texto",4000]
["VL_RISCO_OPERACIONAL_RWA","Número","12 int 4 dec",null,null,"Ref_Balanco_38",null,"Texto",4000]
["VL_RISCO_OPERACIONAL_RWA_ANT","Número","12 int 4 dec",null,null,"Ref_Balanco_39",null,"Texto",4000]
["VL_RISCO_OPERACIONAL_PR","Número","12 int 4 dec",null,null,"Ref_Balanco_40",null,"Texto",4000]
["VL_TOTAL_RWA","Número","12 int 4 dec",null,null,"Ref_Balanco_41",null,"Texto",4000]
["VL_TOTAL_RWA_ANT","Número","12 int 4 dec",null,null,"Ref_Balanco_41b",null,"Texto",4000]
["VL_TOTAL_PR","Número","12 int 4 dec",null,null,"Ref_Balanco_41c",null,"Texto",4000]
["DS_COMENTARIO_TABELA","Texto",4000,null,null,"Ref_Balanco_42",null,"Texto",4000]
[{"$nulls":5},"Ref_Balanco_43",null,"Texto",4000]
["Tabela OVA",{"$nulls":4},"Ref_Balanco_44",null,"Texto",4000]
["CAMPO","TIPO","TAMANHO","Inf",null,"Ref_Balanco_45",null,"Texto",4000]
["COD_REFERENCIA","Texto",6,"Chave única",null,"Ref_Balanco_46",null,"Texto",4000]
["COD_TABELA","Texto",8,null,null,"Ref_Balanco_47",null,"Texto",4000]
["DT_REFERENCIA_ARQ","Data","dd/mm/aaaa",null,null,"Ref_Balanco_48",null,"Texto",4000]
["CAMPO_A","Texto",4000,null,null,"Ref_Balanco_49",null,"Texto",4000]
["CAMPO_B","Texto",4000,null,null,"Ref_Balanco_51",null,"Texto",4000]
["CAMPO_C","Texto",4000,null,null,"Ref_Balanco_52",null,"Texto",4000]
["CAMPO_D","Texto",4000,null,null,"Ref_Balanco_53",null,"Texto",4000]
["CAMPO_E","Texto",4000,null,null,"Ref_Balanco_54",null,"Texto",4000]
["CAMPO_F","Texto",4000,null,null,"Ref_Balanco_55",null,"Texto",4000]
["CAMPO_G","Texto",4000,null,null,"Ref_Balanco_56",null,"Texto",4000]
["CAMPO_H","Texto",4000,null,null,"Ref_Balanco_56b",null,"Texto",4000]
["DS_COMENTÁRIO","Texto",4000,null,null,"Ref_Balanco_56c",null,"Texto",4000]
[{"$nulls":5},"Ref_Balanco_57",null,"Texto",4000]
[{"$nulls":5},"Ref_Balanco_58",null,"Texto",4000]
["Tabela MR1",{"$nulls":4},"Ref_Balanco_59",null,"Texto",4000]
["CAMPO","TIPO","TAMANHO","Inf",null,"Ref_Balanco_60",null,"Texto",4000]
["COD_REFERENCIA","Texto",6,"Chave única",null,"Ref_Balanco_61",null,"Texto",4000]
["COD_TABELA","Texto",8,null,null,"Ref_Balanco_62",null,"Texto",4000]
["DT_REFERENCIA_ARQ","Data","dd/mm/aaaa",null,null,"Ref_Balanco_63",null,"Texto",4000]
["VL_TX_JUROS","Número","12 int 4 dec",null,null,"Ref_Balanco_64",null,"Texto",4000]
["VL_TX_JUROS_PREFIXADA","Número","12 int 4 dec",null,null,"Ref_Balanco_65",null,"Texto",4000]
["VL_TX_CUPON_MOEDA","Número","12 int 4 dec",null,null,"Ref_Balanco_66",null,"Texto",4000]
["VL_TX_INDICE_PRECO","Número","12 int 4 dec",null,null,"Ref_Balanco_67",null,"Texto",4000]
["VL_TX_CUPON_JURO","Número","12 int 4 dec",null,null,"Ref_Balanco_68",null,"Texto",4000]
["VL_ACOES","Número","12 int 4 dec",null,null,"Ref_Balanco_72",null,"Texto",4000]
["VL_TX_CAMBIO","Número","12 int 4 dec",null,null,"Ref_Balanco_73",null,"Texto",4000]
["VL_MERCADORIA","Número","12 int 4 dec",null,null,"Ref_Balanco_75",null,"Texto",4000]
["VL_TOTAL","Número","12 int 4 dec",null,null,"Ref_Balanco_82",null,"Texto",4000]
["DS_COMENTARIO_TABELA","Texto",4000,null,null,"Ref_Balanco_83",null,"Texto",4000]
[{"$nulls":5},"Ref_Balanco_84",null,"Texto",4000]
[{"$nulls":5},"Ref_Balanco_85",null,"Texto",4000]
[]
[]
["CAMPO","TIPO","TAMANHO","Inf"]
["COD_REFERENCIA","Texto",6,"Chave única"]
["COD_TABELA","Texto",8]
["DT_REFERENCIA_ARQ","Data","dd/mm/aaaa"]
["Vlr_Bruto_ate_6_meses","valor","12-4 (int - decimal)"]
["Vlr_Bruto_de_6_meses_a_1_ano","valor","12-4 (int - decimal)"]
["Vlr_Bruto_de_1_a_5_anos","valor","12-4 (int - decimal)"]
["Vlr_Bruto_acima_de_5_anos","valor","12-4 (int - decimal)"]
["Vlr_Bruto_Total","valor","12-4 (int - decimal)"]
["Vlr_liquid_ate_6_meses","valor","12-4 (int - decimal)"]
["Vlr_liquid_de_6_meses_a_1_ano","valor","12-4 (int - decimal)"]
["Vlr_liquid_de_1_a_5_anos","valor","12-4 (int - decimal)"]
["Vlr_liquid_acima_de_5_anos","valor","12-4 (int - decimal)"]
["Vlr_liquid_Total","valor","12-4 (int - decimal)"]
["Comentário","texto",4000,"texto aqui"]

{"sheet":"KM1","index":2,"n_rows":48,"n_cols":8,"rows_kept":48,"merged":[[4,1,4,7],[6,1,6,2]]}
[]
[]
[]
[]
[null,"Informações Quantitativas sobre os Requerimentos Prudenciais - (KM1)"]
[{"$nulls":3},"a","b","c","d","e"]
[null,"Em R$ milhões",null,{"$f":"[1]Arquivos!A14","v":"2025-06-01"},{"$f":"EDATE(D7,-3)","v":"2025-03-01"},{"$f":"EDATE(E7,-3)","v":"2024-12-01"},{"$f":"EDATE(F7,-3)","v":"2024-09-01"},{"$f":"EDATE(G7,-3)","v":"2024-06-01"}]
[null,null,"Capital Regulamentar – valores"]
[null,1,"Capital Principal",{"$f":"(SUMIFS([1]!Tb_DLO[valorConta],[1]!Tb_DLO[dataBase],D$7,[1]!Tb_DLO[codigoConta],111)/10^6)","v":{"v":3561.09796508,"d":"3,561"}},{"$f":"(SUMIFS([1]!Tb_DLO[valorConta],[1]!Tb_DLO[dataBase],E$7,[1]!Tb_DLO[codigoConta],111)/10^6)","v":{"v":2890.34777589,"d":"2,890"}},{"$f":"(SUMIFS([1]!Tb_DLO[valorConta],[1]!Tb_DLO[dataBase],F$7,[1]!Tb_DLO[codigoConta],111)/10^6)","v":{"v":2506.63871354,"d":"2,507"}},{"$f":"(SUMIFS([1]!Tb_DLO[valorConta],[1]!Tb_DLO[dataBase],G$7,[1]!Tb_DLO[codigoConta],111)/10^6)","v":{"v":2459.11145471,"d":"2,459"}},{"$f":"(SUMIFS([1]!Tb_DLO[valorConta],[1]!Tb_DLO[dataBase],H$7,[1]!Tb_DLO[codigoConta],111)/10^6)","v":{"v":2085.8943699,"d":"2,086"}}]
[null,"1a","Capital Principal corresponde à linha 1 deduzindo, conforme aplicável, o valor estabelecido pelo:\n- art. 4º, caput, inciso I, alínea “i”, e §§ 8º e 9º, da Resolução CMN nº 4.955, de 21 de outubro de 2021; ou\n- art. 3º, caput, inciso I, alínea “i”, §§ 8º e 9º, da Resolução BCB nº 199, de 11 de março de 2022.",{"$f":"(((SUMIFS([1]!Tb_DLO[valorConta],[1]!Tb_DLO[dataBase],D$7,[1]!Tb_DLO[codigoConta],111)))-((SUMIFS([1]!Tb_DLO[valorConta],[1]!Tb_DLO[dataBase],D$7,[1]!Tb_DLO[codigoConta],\"111.10\"))))/10^6","v":{"v":3424.5683802,"d":"3,425"}},{"$f":"(((SUMIFS([1]!Tb_DLO[valorConta],[1]!Tb_DLO[dataBase],E$7,[1]!Tb_DLO[codigoConta],111)))-((SUMIFS([1]!Tb_DLO[valorConta],[1]!Tb_DLO[dataBase],E$7,[1]!Tb_DLO[codigoConta],\"111.10\"))))/10^6","v":{"v":2753.8181910099997,"d":"2,754"}},{"$f":"(((SUMIFS([1]!Tb_DLO[valorConta],[1]!Tb_DLO[dataBase],F$7,[1]!Tb_DLO[codigoConta],111)))-((SUMIFS([1]!Tb_DLO[valorConta],[1]!Tb_DLO[dataBase],F$7,[1]!Tb_DLO[codigoConta],\"111.10\"))))/10^6","v":{"v":2506.63871354,"d":"2,507"}},{"$f":"(((SUMIFS([1]!Tb_DLO[valorConta],[1]!Tb_DLO[dataBase],G$7,[1]!Tb_DLO[codigoConta],111)))-((SUMIFS([1]!Tb_DLO[valorConta],[1]!Tb_DLO[dataBase],G$7,[1]!Tb_DLO[codigoConta],\"111.10\"))))/10^6","v":{"v":2459.11145471,"d":"2,459"}},{"$f":"(((SUMIFS([1]!Tb_DLO[valorConta],[1]!Tb_DLO[dataBase],H$7,[1]!Tb_DLO[codigoConta],111)))-((SUMIFS([1]!Tb_DLO[valorConta],[1]!Tb_DLO[dataBase],H$7,[1]!Tb_DLO[codigoConta],\"111.10\"))))/10^6","v":{"v":2085.8943699,"d":"2,086"}}]
[null,2,"Nível I",{"$f":"(SUMIFS([1]!Tb_DLO[valorConta],[1]!Tb_DLO[dataBase],D$7,[1]!Tb_DLO[codigoConta],110)/10^6)","v":{"v":4164.61299957,"d":"4,165"}},{"$f":"(SUMIFS([1]!Tb_DLO[valorConta],[1]!Tb_DLO[dataBase],E$7,[1]!Tb_DLO[codigoConta],110)/10^6)","v":{"v":3469.14420701,"d":"3,469"}},{"$f":"(SUMIFS([1]!Tb_DLO[valorConta],[1]!Tb_DLO[dataBase],F$7,[1]!Tb_DLO[codigoConta],110)/10^6)","v":{"v":3012.6009277,"d":"3,013"}},{"$f":"(SUMIFS([1]!Tb_DLO[valorConta],[1]!Tb_DLO[dataBase],G$7,[1]!Tb_DLO[codigoConta],110)/10^6)","v":{"v":2945.23099073,"d":"2,945"}},{"$f":"(SUMIFS([1]!Tb_DLO[valorConta],[1]!Tb_DLO[dataBase],H$7,[1]!Tb_DLO[codigoConta],110)/10^6)","v":{"v":2554.7145318400003,"d":"2,555"}}]
[null,"2a","Nível I considerando a apuração do Capital Principal conforme linha 1a",{"$f":"(((SUMIFS([1]!Tb_DLO[valorConta],[1]!Tb_DLO[dataBase],D$7,[1]!Tb_DLO[codigoConta],110)))-((SUMIFS([1]!Tb_DLO[valorConta],[1]!Tb_DLO[dataBase],D$7,[1]!Tb_DLO[codigoConta],\"111.10\"))))/10^6","v":{"v":4028.08341469,"d":"4,028"}},{"$f":"(((SUMIFS([1]!Tb_DLO[valorConta],[1]!Tb_DLO[dataBase],E$7,[1]!Tb_DLO[codigoConta],110)))-((SUMIFS([1]!Tb_DLO[valorConta],[1]!Tb_DLO[dataBase],E$7,[1]!Tb_DLO[codigoConta],\"111.10\"))))/10^6","v":{"v":3332.61462213,"d":"3,333"}},{"$f":"(((SUMIFS([1]!Tb_DLO[valorConta],[1]!Tb_DLO[dataBase],F$7,[1]!Tb_DLO[codigoConta],110)))-((SUMIFS([1]!Tb_DLO[valorConta],[1]!Tb_DLO[dataBase],F$7,[1]!Tb_DLO[codigoConta],\"111.10\"))))/10^6","v":{"v":3012.6009277,"d":"3,013"}},{"$f":"(((SUMIFS([1]!Tb_DLO[valorConta],[1]!Tb_DLO[dataBase],G$7,[1]!Tb_DLO[codigoConta],110)))-((SUMIFS([1]!Tb_DLO[valorConta],[1]!Tb_DLO[dataBase],G$7,[1]!Tb_DLO[codigoConta],\"111.10\"))))/10^6","v":{"v":2945.23099073,"d":"2,945"}},{"$f":"(((SUMIFS([1]!Tb_DLO[valorConta],[1]!Tb_DLO[dataBase],H$7,[1]!Tb_DLO[codigoConta],110)))-((SUMIFS([1]!Tb_DLO[valorConta],[1]!Tb_DLO[dataBase],H$7,[1]!Tb_DLO[codigoConta],\"111.10\"))))/10^6","v":{"v":2554.7145318400003,"d":"2,555"}}]
[null,3,"Patrimônio de Referência (PR)",{"$f":"(SUMIFS([1]!Tb_DLO[valorConta],[1]!Tb_DLO[dataBase],D$7,[1]!Tb_DLO[codigoConta],100)/10^6)","v":{"v":6139.75480435,"d":"6,140"}},{"$f":"(SUMIFS([1]!Tb_DLO[valorConta],[1]!Tb_DLO[dataBase],E$7,[1]!Tb_DLO[codigoConta],100)/10^6)","v":{"v":5495.1026835,"d":"5,495"}},{"$f":"(SUMIFS([1]!Tb_DLO[valorConta],[1]!Tb_DLO[dataBase],F$7,[1]!Tb_DLO[codigoConta],100)/10^6)","v":{"v":4552.862858189999,"d":"4,553"}},{"$f":"(SUMIFS([1]!Tb_DLO[valorConta],[1]!Tb_DLO[dataBase],G$7,[1]!Tb_DLO[codigoConta],100)/10^6)","v":{"v":4276.64056327,"d":"4,277"}},{"$f":"(SUMIFS([1]!Tb_DLO[valorConta],[1]!Tb_DLO[dataBase],H$7,[1]!Tb_DLO[codigoConta],100)/10^6)","v":{"v":3987.35973109,"d":"3,987"}}]
[null,"3a","Patrimônio de Referência (PR) considerando a apuração do Capital Principal conforme linha 1a",{"$f":"(((SUMIFS([1]!Tb_DLO[valorConta],[1]!Tb_DLO[dataBase],D$7,[1]!Tb_DLO[codigoConta],100)))-((SUMIFS([1]!Tb_DLO[valorConta],[1]!Tb_DLO[dataBase],D$7,[1]!Tb_DLO[codigoConta],\"111.10\"))))/10^6","v":{"v":6003.22521947,"d":"6,003"}},{"$f":"(((SUMIFS([1]!Tb_DLO[valorConta],[1]!Tb_DLO[dataBase],E$7,[1]!Tb_DLO[codigoConta],100)))-((SUMIFS([1]!Tb_DLO[valorConta],[1]!Tb_DLO[dataBase],E$7,[1]!Tb_DLO[codigoConta],\"111.10\"))))/10^6","v":{"v":5358.57309862,"d":"5,359"}},{"$f":"(((SUMIFS([1]!Tb_DLO[valorConta],[1]!Tb_DLO[dataBase],F$7,[1]!Tb_DLO[codigoConta],100)))-((SUMIFS([1]!Tb_DLO[valorConta],[1]!Tb_DLO[dataBase],F$7,[1]!Tb_DLO[codigoConta],\"111.10\"))))/10^6","v":{"v":4552.862858189999,"d":"4,553"}},{"$f":"(((SUMIFS([1]!Tb_DLO[valorConta],[1]!Tb_DLO[dataBase],G$7,[1]!Tb_DLO[codigoConta],100)))-((SUMIFS([1]!Tb_DLO[valorConta],[1]!Tb_DLO[dataBase],G$7,[1]!Tb_DLO[codigoConta],\"111.10\"))))/10^6","v":{"v":4276.64056327,"d":"4,277"}},{"$f":"(((SUMIFS([1]!Tb_DLO[valorConta],[1]!Tb_DLO[dataBase],H$7,[1]!Tb_DLO[codigoConta],100)))-((SUMIFS([1]!Tb_DLO[valorConta],[1]!Tb_DLO[dataBase],H$7,[1]!Tb_DLO[codigoConta],\"111.10\"))))/10^6","v":{"v":3987.35973109,"d":"3,987"}}]
[null,"3b","Excesso dos recursos aplicados no ativo permanente",0,0,0,0,0]
[null,"3b1","Excesso dos recursos aplicados no ativo permanente considerando o PR conforme linha 3a",0,0,0,0,0]
[null,"3c","Destaque do PR",0,0,0,0,0]
[null,null,"Ativos ponderados pelo risco (RWA) – valores"]
[null,4,"RWA total",{"$f":"(SUMIFS([1]!Tb_DLO[valorConta],[1]!Tb_DLO[dataBase],D$7,[1]!Tb_DLO[codigoConta],900)/10^6)","v":{"v":44123.408209040004,"d":"44,123"}},{"$f":"(SUMIFS([1]!Tb_DLO[valorConta],[1]!Tb_DLO[dataBase],E$7,[1]!Tb_DLO[codigoConta],900)/10^6)","v":{"v":40738.709201690006,"d":"40,739"}},{"$f":"(SUMIFS([1]!Tb_DLO[valorConta],[1]!Tb_DLO[dataBase],F$7,[1]!Tb_DLO[codigoConta],900)/10^6)","v":{"v":35183.57439576,"d":"35,184"}},{"$f":"(SUMIFS([1]!Tb_DLO[valorConta],[1]!Tb_DLO[dataBase],G$7,[1]!Tb_DLO[codigoConta],900)/10^6)","v":{"v":31926.228816900002,"d":"31,926"}},{"$f":"(SUMIFS([1]!Tb_DLO[valorConta],[1]!Tb_DLO[dataBase],H$7,[1]!Tb_DLO[codigoConta],900)/10^6)","v":{"v":28904.02415221,"d":"28,904"}}]
[null,"4b","RWA corresponde à linha 4 deduzindo, conforme aplicável, o valor referente ao inciso XII do caput do art. 4º ponderado pelo Fator de Ponderação de Risco (FPR) estabelecido no art. 82-A, ambos os comandos da Resolução 229, de 12 de maio de 2022.",{"$f":"(((SUMIFS([1]!Tb_DLO[valorConta],[1]!Tb_DLO[dataBase],D$7,[1]!Tb_DLO[codigoConta],900)))-((SUMIFS([1]!Tb_DLO[valorConta],[1]!Tb_DLO[dataBase],D$7,[1]!Tb_DLO[codigoConta],\"111.10\"))))/10^6","v":{"v":43986.87862416,"d":"43,987"}},{"$f":"(((SUMIFS([1]!Tb_DLO[valorConta],[1]!Tb_DLO[dataBase],E$7,[1]!Tb_DLO[codigoConta],900)))-((SUMIFS([1]!Tb_DLO[valorConta],[1]!Tb_DLO[dataBase],E$7,[1]!Tb_DLO[codigoConta],\"111.10\"))))/10^6","v":{"v":40602.179616810005,"d":"40,602"}},{"$f":"(((SUMIFS([1]!Tb_DLO[valorConta],[1]!Tb_DLO[dataBase],F$7,[1]!Tb_DLO[codigoConta],900)))-((SUMIFS([1]!Tb_DLO[valorConta],[1]!Tb_DLO[dataBase],F$7,[1]!Tb_DLO[codigoConta],\"111.10\"))))/10^6","v":{"v":35183.57439576,"d":"35,184"}},{"$f":"(((SUMIFS([1]!Tb_DLO[valorConta],[1]!Tb_DLO[dataBase],G$7,[1]!Tb_DLO[codigoConta],900)))-((SUMIFS([1]!Tb_DLO[valorConta],[1]!Tb_DLO[dataBase],G$7,[1]!Tb_DLO[codigoConta],\"111.10\"))))/10^6","v":{"v":31926.228816900002,"d":"31,926"}},{"$f":"(((SUMIFS([1]!Tb_DLO[valorConta],[1]!Tb_DLO[dataBase],H$7,[1]!Tb_DLO[codigoConta],900)))-((SUMIFS([1]!Tb_DLO[valorConta],[1]!Tb_DLO[dataBase],H$7,[1]!Tb_DLO[codigoConta],\"111.10\"))))/10^6","v":{"v":28904.02415221,"d":"28,904"}}]
[null,null,"Capital regulamentar como proporção do RWA"]
[null,5,"Índice de Capital Principal (ICP)",{"$f":"D9/D19","v":{"v":0.08070768124277404,"d":"8.07%"}},{"$f":"E9/E19","v":{"v":0.07094843780102136,"d":"7.09%"}},{"$f":"F9/F19","v":{"v":0.07124457240598264,"d":"7.12%"}},{"$f":"G9/G19","v":{"v":0.07702480204640645,"d":"7.70%"}},{"$f":"H9/H19","v":{"v":0.07216622705944262,"d":"7.22%"}}]
[null,"5a","Índice de Capital Principal (ICP) considerando:\n- Numerador: corresponde à linha 1a\n- Denominador: corresponde à linha 4b",{"$f":"D10/D20","v":{"v":0.07785431672614841,"d":"7.79%"}},{"$f":"E10/E20","v":{"v":0.0678243930990806,"d":"6.78%"}},{"$f":"F10/F20","v":{"v":0.07124457240598264,"d":"7.12%"}},{"$f":"G10/G20","v":{"v":0.07702480204640645,"d":"7.70%"}},{"$f":"H10/H20","v":{"v":0.07216622705944262,"d":"7.22%"}}]
[null,6,"Índice de Nível I (%)",{"$f":"D11/D19","v":{"v":0.09438556921622283,"d":"9.44%"}},{"$f":"E11/E19","v":{"v":0.08515596775133184,"d":"8.52%"}},{"$f":"F11/F19","v":{"v":0.08562520947453965,"d":"8.56%"}},{"$f":"G11/G19","v":{"v":0.09225113957621439,"d":"9.23%"}},{"v":0.08838611946858158,"d":"8.84%"}]
[null,"6a","Índice de Nível 1, considerando:\n- Numerador: corresponde à linha 2a\n- Denominador: corresponde à linha 4b",{"$f":"D12/D20","v":{"v":0.0915746590956685,"d":"9.16%"}},{"$f":"E12/E20","v":{"v":0.0820796975330418,"d":"8.21%"}},{"v":0.08562520947453965,"d":"8.56%"},{"v":0.09225113957621439,"d":"9.23%"},{"v":0.08838611946858158,"d":"8.84%"}]
[null,7,"Índice de Basileia",{"$f":"D13/D19","v":{"v":0.13914960456504552,"d":"13.91%"}},{"$f":"E13/E19","v":{"v":0.13488651926340467,"d":"13.49%"}},{"$f":"F13/F19","v":{"v":0.12940307903277357,"d":"12.94%"}},{"v":0.1339538279887971,"d":"13.40%"},{"v":0.13795171599955663,"d":"13.80%"}]
[null,"7a","Índice de Basileia, considerando:\n- Numerador: corresponde à linha 3a\n- Denominador: corresponde à linha 4b",{"$f":"D14/D20","v":{"v":0.13647763622337822,"d":"13.65%"}},{"$f":"E14/E20","v":{"v":0.13197747384974026,"d":"13.20%"}},{"v":0.12940307903277357,"d":"12.94%"},{"v":0.1339538279887971,"d":"13.40%"},{"v":0.13795171599955663,"d":"13.80%"}]
[null,null,"Adicional de Capital Principal (ACP) como proporção do RWA"]
[null,8,"Adicional de Conservação de Capital Principal - ACPConservação (%)",{"$f":"SUMIFS(ACP_Conserv,ACP_DT_REF,D$7)","v":{"v":0.02500000000000001,"d":"2.50%"}},{"$f":"SUMIFS(ACP_Conserv,ACP_DT_REF,E$7)","v":{"v":0.02500000000000001,"d":"2.50%"}},{"$f":"SUMIFS(ACP_Conserv,ACP_DT_REF,F$7)","v":{"v":0.02500000000000001,"d":"2.50%"}},{"$f":"SUMIFS(ACP_Conserv,ACP_DT_REF,G$7)","v":{"v":0.02500000000000001,"d":"2.50%"}},{"$f":"SUMIFS(ACP_Conserv,ACP_DT_REF,H$7)","v":{"v":0.02500000000000001,"d":"2.50%"}}]
[null,9,"Adicional Contracíclico de Capital Principal - ACPContracíclico (%)",{"$f":"SUMIFS(ACP_CONTRAC,ACP_DT_REF,D$7)","v":{"v":0,"d":"0.00%"}},{"$f":"SUMIFS(ACP_CONTRAC,ACP_DT_REF,E$7)","v":{"v":0,"d":"0.00%"}},{"$f":"SUMIFS(ACP_CONTRAC,ACP_DT_REF,F$7)","v":{"v":0,"d":"0.00%"}},{"$f":"SUMIFS(ACP_CONTRAC,ACP_DT_REF,G$7)","v":{"v":0,"d":"0.00%"}},{"$f":"SUMIFS(ACP_CONTRAC,ACP_DT_REF,H$7)","v":{"v":0,"d":"0.00%"}}]
[null,10,"Adicional de Importância Sistêmica de Capital Principal - ACPSistêmico (%)",{"$f":"SUMIFS(ACP_SISTEM,ACP_DT_REF,D$7)","v":{"v":0,"d":"0.00%"}},{"$f":"SUMIFS(ACP_SISTEM,ACP_DT_REF,E$7)","v":{"v":0,"d":"0.00%"}},{"$f":"SUMIFS(ACP_SISTEM,ACP_DT_REF,F$7)","v":{"v":0,"d":"0.00%"}},{"$f":"SUMIFS(ACP_SISTEM,ACP_DT_REF,G$7)","v":{"v":0,"d":"0.00%"}},{"$f":"SUMIFS(ACP_SISTEM,ACP_DT_REF,H$7)","v":{"v":0,"d":"0.00%"}}]
[null,11,"ACP total (%)",{"$f":"SUM(D29:D31)","v":{"v":0.02500000000000001,"d":"2.50%"}},{"$f":"SUM(E29:E31)","v":{"v":0.02500000000000001,"d":"2.50%"}},{"$f":"SUM(F29:F31)","v":{"v":0.02500000000000001,"d":"2.50%"}},{"$f":"SUM(G29:G31)","v":{"v":0.02500000000000001,"d":"2.50%"}},{"$f":"SUM(H29:H31)","v":{"v":0.02500000000000001,"d":"2.50%"}}]
[null,12,"Margem excedente de Capital Principal (%)",{"$f":"D22-D32-SUMIFS(ICP_min,ACP_DT_REF,D$7)","v":{"v":0.010707681242774034,"d":"1.07%"}},{"$f":"E22-E32-SUMIFS(ICP_min,ACP_DT_REF,E$7)","v":{"v":9.4843780102135677E-4,"d":"0.09%"}},{"$f":"F22-F32-SUMIFS(ICP_min,ACP_DT_REF,F$7)","v":{"v":1.2445724059826357E-3,"d":"0.12%"}},{"$f":"G22-G32-SUMIFS(ICP_min,ACP_DT_REF,G$7)","v":{"v":0.007024802046406445,"d":"0.70%"}},{"$f":"H22-H32-SUMIFS(ICP_min,ACP_DT_REF,H$7)","v":{"v":2.1662270594426103E-3,"d":"0.22%"}}]
[null,"12a","Margem excedente de Capital Principal (%) considerando o Capital Principal conforme linha 1a",{"$f":"D23-D32-SUMIFS(ICP_min,ACP_DT_REF,D$7)","v":{"v":0.007854316726148405,"d":"0.79%"}},{"$f":"E23-E32-SUMIFS(ICP_min,ACP_DT_REF,E$7)","v":{"v":-0.002175606900919405,"d":"-0.22%"}},{"$f":"F23-F32-SUMIFS(ICP_min,ACP_DT_REF,F$7)","v":{"v":1.2445724059826357E-3,"d":"0.12%"}},{"$f":"G23-G32-SUMIFS(ICP_min,ACP_DT_REF,G$7)","v":{"v":0.007024802046406445,"d":"0.70%"}},{"$f":"H23-H32-SUMIFS(ICP_min,ACP_DT_REF,H$7)","v":{"v":2.1662270594426103E-3,"d":"0.22%"}}]
[null,null,"Razão de Alavancagem (RA)"]
[null,13,"Exposição total",{"$f":"(SUMIFS([1]!Tb_DLO[valorConta],[1]!Tb_DLO[dataBase],D$7,[1]!Tb_DLO[codigoConta],141)/10^6)","v":{"v":78846.42371229,"d":"78,846"}},{"$f":"(SUMIFS([1]!Tb_DLO[valorConta],[1]!Tb_DLO[dataBase],E$7,[1]!Tb_DLO[codigoConta],141)/10^6)","v":{"v":74194.64190103,"d":"74,195"}},{"$f":"(SUMIFS([1]!Tb_DLO[valorConta],[1]!Tb_DLO[dataBase],F$7,[1]!Tb_DLO[codigoConta],141)/10^6)","v":{"v":65432.94241463,"d":"65,433"}},{"$f":"(SUMIFS([1]!Tb_DLO[valorConta],[1]!Tb_DLO[dataBase],G$7,[1]!Tb_DLO[codigoConta],141)/10^6)","v":{"v":59519.94196038,"d":"59,520"}},{"$f":"(SUMIFS([1]!Tb_DLO[valorConta],[1]!Tb_DLO[dataBase],H$7,[1]!Tb_DLO[codigoConta],141)/10^6)","v":{"v":56647.694626309996,"d":"56,648"}}]
[null,"13a","Exposição total corresponde à linha 13 deduzindo, conforme aplicável, o valor referente ao inciso XII do caput do art. 4º da Resolução 229, de 12 de maio de 2022.",{"$f":"(((SUMIFS([1]!Tb_DLO[valorConta],[1]!Tb_DLO[dataBase],D$7,[1]!Tb_DLO[codigoConta],141)))-((SUMIFS([1]!Tb_DLO[valorConta],[1]!Tb_DLO[dataBase],D$7,[1]!Tb_DLO[codigoConta],\"111.10\"))))/10^6","v":{"v":78709.89412740999,"d":"78,710"}},{"$f":"(((SUMIFS([1]!Tb_DLO[valorConta],[1]!Tb_DLO[dataBase],E$7,[1]!Tb_DLO[codigoConta],141)))-((SUMIFS([1]!Tb_DLO[valorConta],[1]!Tb_DLO[dataBase],E$7,[1]!Tb_DLO[codigoConta],\"111.10\"))))/10^6","v":{"v":74058.11231615,"d":"74,058"}},{"$f":"(((SUMIFS([1]!Tb_DLO[valorConta],[1]!Tb_DLO[dataBase],F$7,[1]!Tb_DLO[codigoConta],141)))-((SUMIFS([1]!Tb_DLO[valorConta],[1]!Tb_DLO[dataBase],F$7,[1]!Tb_DLO[codigoConta],\"111.10\"))))/10^6","v":{"v":65432.94241463,"d":"65,433"}},{"$f":"(((SUMIFS([1]!Tb_DLO[valorConta],[1]!Tb_DLO[dataBase],G$7,[1]!Tb_DLO[codigoConta],141)))-((SUMIFS([1]!Tb_DLO[valorConta],[1]!Tb_DLO[dataBase],G$7,[1]!Tb_DLO[codigoConta],\"111.10\"))))/10^6","v":{"v":59519.94196038,"d":"59,520"}},{"$f":"(((SUMIFS([1]!Tb_DLO[valorConta],[1]!Tb_DLO[dataBase],H$7,[1]!Tb_DLO[codigoConta],141)))-((SUMIFS([1]!Tb_DLO[valorConta],[1]!Tb_DLO[dataBase],H$7,[1]!Tb_DLO[codigoConta],\"111.10\"))))/10^6","v":{"v":56647.694626309996,"d":"56,648"}}]
[null,14,"RA (%)",{"$f":"(SUMIFS([1]!Tb_DLO[valorConta],[1]!Tb_DLO[dataBase],D$7,[1]!Tb_DLO[codigoConta],108)/10^6)/D36","v":{"v":0.05281930116154211,"d":"5.28%"}},{"$f":"(SUMIFS([1]!Tb_DLO[valorConta],[1]!Tb_DLO[dataBase],E$7,[1]!Tb_DLO[codigoConta],108)/10^6)/E36","v":{"v":0.04675734147538004,"d":"4.68%"}},{"$f":"(SUMIFS([1]!Tb_DLO[valorConta],[1]!Tb_DLO[dataBase],F$7,[1]!Tb_DLO[codigoConta],108)/10^6)/F36","v":{"v":0.04604104318907137,"d":"4.60%"}},{"$f":"(SUMIFS([1]!Tb_DLO[valorConta],[1]!Tb_DLO[dataBase],G$7,[1]!Tb_DLO[codigoConta],108)/10^6)/G36","v":{"v":0.04948309581166125,"d":"4.95%"}},{"$f":"(SUMIFS([1]!Tb_DLO[valorConta],[1]!Tb_DLO[dataBase],H$7,[1]!Tb_DLO[codigoConta],108)/10^6)/H36","v":{"v":0.04509829656251296,"d":"4.51%"}}]
[null,"14a","RA considerando:\ni. Numerador: corresponde à linha 2a\nii. Denominador: corresponde à linha 13a",{"$f":"D12/D37","v":{"v":0.05117632871122434,"d":"5.12%"}},{"$f":"E12/E37","v":{"v":0.044999994165436624,"d":"4.50%"}},{"v":0.04604104318907137,"d":"4.60%"},{"v":0.04948309581166125,"d":"4.95%"},{"v":0.04509829656251296,"d":"4.51%"}]
[null,null,"Indicador Liquidez de Curto Prazo (LCR)"]
[null,15,"Total de Ativos de Alta Liquidez (HQLA)","NA","NA","NA","NA","NA"]
[null,16,"Total de saídas líquidas de caixa","NA","NA","NA","NA","NA"]
[null,17,"LCR (%)","NA","NA","NA","NA","NA"]
[null,null,"Indicador de Liquidez de Longo Prazo (NSFR)"]
[null,18,"Recursos estáveis disponíveis (ASF)","NA","NA","NA","NA","NA"]
[null,19,"Recursos estáveis requeridos (RSF)","NA","NA","NA","NA","NA"]
[null,20,"NSFR (%)","NA","NA","NA","NA","NA"]
[null,"NA: não aplicável para instituições não sujeitas a esse cálculo ou requerimento. "]

{"sheet":"OV1","index":3,"n_rows":26,"n_cols":7,"rows_kept":26,"merged":[[4,2,4,3],[5,4,6,5],[8,2,8,3]]}
[]
[]
[]
[]
[null,null,"Visão geral dos ativos ponderados pelo risco RWA - (OV1)"]
[{"$nulls":4},"RWA",null,"Requerimento"]
[{"$nulls":6},"mínimo de PR"]
[{"$nulls":4},"a","b","c"]
[null,null,"Em R$ milhões",null,{"$f":"[1]Arquivos!A14","v":"2025-06-01"},{"$f":"EDATE(E9,-3)","v":"2025-03-01"},{"$f":"E9","v":"2025-06-01"}]
[null,null,1,"Risco de crédito em sentido estrito",{"$f":"E11-SUM(E12,E16,E17,E18,E19,E25)","v":{"v":41252.706838695005,"d":"41,253"}},{"$f":"F11-SUM(F12,F16,F17,F18,F19,F25)","v":{"v":37828.834069865,"d":"37,829"}},{"$f":"G11-SUM(G12,G16,G17,G18,G19,G25)","v":{"v":3300.2165470956,"d":"3,300"}}]
[null,null,2,"Risco de Crédito - tratamento mediante abordagem padronizada",{"$f":"SUMIFS([1]!Tb_DLO[valorConta],[1]!Tb_DLO[dataBase],E$9,[1]!Tb_DLO[codigoConta],700)/10^6","v":{"v":41542.12111346,"d":"41,542"}},{"$f":"SUMIFS([1]!Tb_DLO[valorConta],[1]!Tb_DLO[dataBase],F$9,[1]!Tb_DLO[codigoConta],700)/10^6","v":{"v":38153.17812092,"d":"38,153"}},{"$f":"IFERROR(E11*SUMIFS(Fator_F,ACP_DT_REF,G$9),0)","v":{"v":3323.3696890768,"d":"3,323"}}]
[null,null,6,"Risco de crédito de contraparte (CCR)",{"$f":"SUM(E13:E15)","v":{"v":3.05837411,"d":"3"}},{"$f":"SUM(F13:F15)","v":{"v":3.08714733,"d":"3"}},{"$f":"IFERROR(E12*SUMIFS(Fator_F,ACP_DT_REF,G$9),0)","v":{"v":0.2446699288,"d":"0"}}]
[null,null,7,"Do qual: mediante abordagem padronizada para risco de crédito de contraparte (SA-CCR)",0,0,0]
[null,null,"7a","Do qual: mediante uso da abordagem CEM",0,0,0]
[null,null,9,"Do qual: mediante demais abordagens",{"$f":"(SUMIFS([1]!Tb_DLO[valorDetalhe],[1]!Tb_DLO[dataBase],E$9,[1]!Tb_DLO[codigoConta],\"520.03\",[1]!Tb_DLO[codigoElemento],2)/10^6)+\n(SUMIFS([1]!Tb_DLO[valorDetalhe],[1]!Tb_DLO[dataBase],E$9,[1]!Tb_DLO[codigoConta],\"520.02\",[1]!Tb_DLO[codigoElemento],2)/10^6)","v":{"v":3.05837411,"d":"3"}},{"$f":"(SUMIFS([1]!Tb_DLO[valorDetalhe],[1]!Tb_DLO[dataBase],F$9,[1]!Tb_DLO[codigoConta],\"520.03\",[1]!Tb_DLO[codigoElemento],2)/10^6)+\n(SUMIFS([1]!Tb_DLO[valorDetalhe],[1]!Tb_DLO[dataBase],F$9,[1]!Tb_DLO[codigoConta],\"520.02\",[1]!Tb_DLO[codigoElemento],2)/10^6)","v":{"v":3.08714733,"d":"3"}},{"v":0.2446699288,"d":"0"}]
[null,null,12,"Cotas de fundos não consolidados - ativos subjacentes identificados",{"$f":"(SUMIFS([1]!Tb_DLO[valorDetalhe],[1]!Tb_DLO[codigoElemento],41,[1]!Tb_DLO[valorElemento],102,[1]!Tb_DLO[dataBase],E$9,[1]!Tb_DLO[codigoConta],\"530.13\")/10^6)","v":0},{"$f":"(SUMIFS([1]!Tb_DLO[valorDetalhe],[1]!Tb_DLO[codigoElemento],41,[1]!Tb_DLO[valorElemento],102,[1]!Tb_DLO[dataBase],F$9,[1]!Tb_DLO[codigoConta],\"530.13\")/10^6)","v":0},0]
[null,null,13,"Cotas de fundos não consolidados - ativos subjacentes inferidos conforme regulamento do fundo",0,0,0]
[null,null,14,"Cotas de fundos não consolidados - ativos subjacentes não identificados",{"$f":"(SUMIFS([1]!Tb_DLO[valorDetalhe],[1]!Tb_DLO[codigoElemento],41,[1]!Tb_DLO[valorElemento],73001250,[1]!Tb_DLO[dataBase],E$9,[1]!Tb_DLO[codigoConta],\"530.50\")/10^6)","v":{"v":11.89892288,"d":"12"}},{"$f":"(SUMIFS([1]!Tb_DLO[valorDetalhe],[1]!Tb_DLO[codigoElemento],41,[1]!Tb_DLO[valorElemento],73001250,[1]!Tb_DLO[dataBase],F$9,[1]!Tb_DLO[codigoConta],\"530.50\")/10^6)","v":{"v":7.84061675,"d":"8"}},{"v":0.9519138304000001,"d":"1"}]
[null,null,16,"Exposições de securitização - requerimento calculado mediante abordagem padronizada ",0,0,0]
[null,null,20,"Risco de Mercado",{"$f":"SUM(E21:E22)","v":{"v":20.67874145,"d":"21"}},{"$f":"SUM(F21:F22)","v":{"v":18.304841030000002,"d":"18"}},{"v":1.6542993160000001,"d":"2"}]
[null,null,21,"Do qual: requerimento calculado mediante abordagem padronizada (RWAMPAD)",{"$f":"(SUMIFS([1]!Tb_DLO[valorConta],[1]!Tb_DLO[dataBase],E$9,[1]!Tb_DLO[codigoConta],770)/10^6)","v":{"v":20.67874145,"d":"21"}},{"$f":"(SUMIFS([1]!Tb_DLO[valorConta],[1]!Tb_DLO[dataBase],F$9,[1]!Tb_DLO[codigoConta],770)/10^6)","v":{"v":18.304841030000002,"d":"18"}},{"v":1.6542993160000001,"d":"2"}]
[null,null,22,"Do qual: requerimento calculado mediante modelo interno (RWAMINT)",{"$f":"(SUMIFS([1]!Tb_DLO[valorConta],[1]!Tb_DLO[dataBase],E$9,[1]!Tb_DLO[codigoConta],865)/10^6)","v":0},{"$f":"(SUMIFS([1]!Tb_DLO[valorConta],[1]!Tb_DLO[dataBase],F$9,[1]!Tb_DLO[codigoConta],865)/10^6)","v":0},0]
[null,null,24,"Risco Operacional",{"$f":"(SUMIFS([1]!Tb_DLO[valorConta],[1]!Tb_DLO[dataBase],E$9,[1]!Tb_DLO[codigoConta],870)/10^6)","v":{"v":2558.40146602,"d":"2,558"}},{"$f":"(SUMIFS([1]!Tb_DLO[valorConta],[1]!Tb_DLO[dataBase],F$9,[1]!Tb_DLO[codigoConta],870)/10^6)","v":{"v":2558.40146602,"d":"2,558"}},{"v":204.6721172816,"d":"205"}]
[null,null,"I","Risco de Serviços de Pagamento",{"$f":"(SUMIFS([1]!Tb_DLO[valorConta],[1]!Tb_DLO[dataBase],E$9,[1]!Tb_DLO[codigoConta],750)/10^6)","v":{"v":2.20688812,"d":"2"}},{"$f":"(SUMIFS([1]!Tb_DLO[valorConta],[1]!Tb_DLO[dataBase],F$9,[1]!Tb_DLO[codigoConta],750)/10^6)","v":{"v":8.824773720000001,"d":"9"}},{"v":0.17655104959999998,"d":"0"}]
[null,null,25,"Valores referentes às exposições não deduzidas no cálculo do PR",{"$f":"(SUMIFS([1]!Tb_DLO[valorConta],[1]!Tb_DLO[dataBase],E$9,[1]!Tb_DLO[codigoConta],\"111.94.08.03\")/10^6)*2.5","v":{"v":274.45697777500004,"d":"274"}},{"$f":"(SUMIFS([1]!Tb_DLO[valorConta],[1]!Tb_DLO[dataBase],F$9,[1]!Tb_DLO[codigoConta],\"111.94.08.03\")/10^6)*2.5","v":{"v":313.41628697500005,"d":"313"}},{"$f":"IFERROR(E25*SUMIFS(Fator_F,ACP_DT_REF,G$9),0)","v":{"v":21.956558222000005,"d":"22"}}]
[null,null,29,"Total (1+6+12+13+14+16+20+24+I+25)",{"$f":"SUM(E23,E20,E11,E24)","v":{"v":44123.40820905,"d":"44,123"}},{"$f":"SUM(F23,F20,F11,F24)","v":{"v":40738.70920169,"d":"40,739"}},{"$f":"SUM(G23,G20,G11,G24)","v":{"v":3529.8726567240005,"d":"3,530"}}]

{"sheet":"MR1","index":4,"n_rows":18,"n_cols":5,"rows_kept":18,"merged":[[0,0,1,0],[5,2,5,4],[7,2,7,3],[18,2,18,4]]}
[]
[]
[]
[]
[]
[null,null,"Abordagem padronizada - fatores de risco associados ao risco de mercado - (MR1)"]
[{"$nulls":4},"a"]
[null,null,"em milhões",null,{"$f":"[1]Arquivos!A14","v":"2025-06-01"}]
[{"$nulls":3},"Fatores de Risco","RWAMPAD"]
[null,null,1,"Taxas de juros",0]
[null,null,"1a","Taxas de juros prefixada denominadas em Real (RWAJUR1)",0]
[null,null,"1b","Taxas dos cupons de moeda estrangeira (RWAJUR2)",0]
[null,null,"1c","Taxas dos cupons de índices de preço (RWAJUR3)",0]
[null,null,"1d","Taxas dos cupons de taxas de juros (RWAJUR4)",0]
[null,null,2,"Preços de ações (RWAACS)",{"$f":"SUMIFS([1]!Tb_DLO[valorConta],[1]!Tb_DLO[dataBase],E$8,[1]!Tb_DLO[codigoConta],860)/10^6","v":{"v":0,"d":"0.0"}}]
[null,null,3,"Taxas de câmbio (RWACAM)",{"$f":"SUMIFS([1]!Tb_DLO[valorConta],[1]!Tb_DLO[dataBase],E$8,[1]!Tb_DLO[codigoConta],800)/10^6","v":{"v":20.67874145,"d":"20.7"}}]
[null,null,4,"Preços de mercadorias (commodities) (RWACOM)",{"$f":"SUMIFS([1]!Tb_DLO[valorConta],[1]!Tb_DLO[dataBase],E$8,[1]!Tb_DLO[codigoConta],850)/10^6","v":{"v":0,"d":"0.0"}}]
[null,null,9,"Total",{"$f":"SUM(E10,E15,E16,E17)","v":{"v":20.67874145,"d":"20.7"}}]

{"sheet":"CCA ","index":5,"n_rows":197,"n_cols":96,"rows_kept":197}
[]
[]
[]
[null,null,{"$f":"[1]Arquivos!A14","v":"2025-06-01"}]
[null,null,"ANEXO - I "]
[null,null,"Principais características dos instrumentos que Compõem o Patrimônio de Referência - (CCA)"]
[null,null,"Em R$ milhões"]
[null,null,1,2,3,4,5,6,7,8,9,10,11,12,13,14,"15 (1)","15 (2)","15 (3)",16,17,18,19,20,21,22,23,24,25,26,27,28,29,30,31,32,33,"34a",35,36,37]
[null,null,"Emissor","Identificador único","Lei aplicável ao instrumento","Classificação do instrumento como componente do PR durante o tratamento temporário de que trata o art. 28 da Resolução nº 4.192, de 2013.","Classificação do instrumento como componente do PR após o tratamento temporário de que trata a linha anterior","Escopo da elegibilidade do instrumento","Tipo de instrumento","Valor reconhecido no PR","Valor de face do instrumento","Classificação contábil","Data original de emissão","Perpétuo ou com vencimento","Data original de vencimento","Opção de resgate ou recompra","Data de resgate ou de recompra","Datas de resgate ou de recompra condicionadas","Valor de resgate ou de recompra","Datas de resgate ou de recompra subsequentes, se aplicável","Remuneração ou dividendos fixos ou variáveis","Taxa de remuneração e índice referenciado","Possibilidade de suspensão de pagamento de dividendos","Completa discricionariedade, discricionariedade parcial ou mandatória","Existência de cláusulas que alterem prazos ou condições de remuneração pactuados ou outro incentivo para resgate","Cumulativo ou não cumulativo","Conversível ou não conversível","Se conversível, em quais situações","Se conversível, totalmente ou parcialmente","Se conversível, taxa de conversão","Se conversível, conversão obrigatória ou opcional","Se conversível, especificar para qual tipo de instrumento","Se conversível, especificar o emissor do instrumento para o qual pode ser convertido","Características para a extinção do instrumento","Se extinguível, em quais situações","Se extinguível, totalmente ou parcialmente","Se extinguível, permanentemente ou temporariamente","Tipo de subordinação","Posição na hierarquia de subordinação em caso de liquidação","Possui características que não serão aceitas após o tratamento temporário de que trata o art. 28 da Resolução nº 4.192, de 2013","Se sim, especificar as características de que trata a linha anterior"]
[null,1,"BRB - BANCO DE BRASILIA S/A","LFSC20001P5","Lei 12.249/2010 - Resolução 4.955/2021 do CMN","Capital Complementar","Capital Complementar","Conglomerado","Letra financeira",{"v":3637272.66,"d":"R$ 3,637,272.66"},{"v":1930000,"d":"R$ 1,930,000.00"},"passivo - custo amortizado","2020-09-16","Perpétuo","2050-09-16","Sim","Anual, a partir de 17/09/2025","(1) Não há vinculação regulatória ou fiscal para resgate ou recompra","(2) Em parcela única na data da recompra","Não se aplica","Fixo","IPCA + 7,05%","Não","Mandatório","Não","Cumulativo","Não conversível","Não se aplica","Não se aplica","Não se aplica","Não se aplica","Não se aplica","Não se aplica","Sim","Os títulos serão extintos, permanente e em valor no mínimo correspondente ao saldo computado no Nível I do Patrimônio de Referência do BRB – Banco de Brasília S.A nas seguintes condições:         1. seja verificada a divulgação pelo BRB – Banco de Brasília S.A. de que seu Capital Principal está em patamar inferior a 5,125% (cinco inteiros e cento e vinte e cinco milésimos por cento) do montante RWA, estabelecida pela Resolução 4.193, de 2013; ou\n2. assinatura de compromisso de aporte para a instituição emitente, caso se configure a exceção prevista no caput do art. 28 da Lei Complementar no 101, de 4 de maio de 2000; ou\n3. seja decretado pelo BACEN o regime de administração especial temporária ou intervenção do BRB – Banco de Brasília S.A.; ou\n4. seja determinado pelo BACEN, segundo critérios estabelecidos em regulamento específico editado pelo Conselho Monetário Nacional,a extinção do instrumento.","Totalmente","Permanente","Contratual","Não","Não","Não se aplica"]
[null,{"$f":"B10+1","v":2},"BRB - BANCO DE BRASILIA S/A","LFSC20001UP","Lei 12.249/2010 - Resolução 4.955/2021 do CMN","Capital Complementar","Capital Complementar","Conglomerado","Letra financeira",{"v":4824671.25,"d":"R$ 4,824,671.25"},{"v":2563000,"d":"R$ 2,563,000.00"},"passivo - custo amortizado","2020-09-21","Perpétuo","2050-09-21","Sim","Anual, a partir de 22/09/2025","(1) Não há vinculação regulatória ou fiscal para resgate ou recompra","(2) Em parcela única na data da recompra","Não se aplica","Fixo","IPCA + 7,05%","Não","Mandatório","Não","Cumulativo","Não conversível","Não se aplica","Não se aplica","Não se aplica","Não se aplica","Não se aplica","Não se aplica","Sim","Os títulos serão extintos, permanente e em valor no mínimo correspondente ao saldo computado no Nível I do Patrimônio de Referência do BRB – Banco de Brasília S.A nas seguintes condições:         1. seja verificada a divulgação pelo BRB – Banco de Brasília S.A. de que seu Capital Principal está em patamar inferior a 5,125% (cinco inteiros e cento e vinte e cinco milésimos por cento) do montante RWA, estabelecida pela Resolução 4.193, de 2013; ou\n2. assinatura de compromisso de aporte para a instituição emitente, caso se configure a exceção prevista no caput do art. 28 da Lei Complementar no 101, de 4 de maio de 2000; ou\n3. seja decretado pelo BACEN o regime de administração especial temporária ou intervenção do BRB – Banco de Brasília S.A.; ou\n4. seja determinado pelo BACEN, segundo critérios estabelecidos em regulamento específico editado pelo Conselho Monetário Nacional,a extinção do instrumento.","Totalmente","Permanente","Contratual","Não","Não","Não se aplica"]
[null,{"$f":"B11+1","v":3},"BRB - BANCO DE BRASILIA S/A","LFSC20001UQ","Lei 12.249/2010 - Resolução 4.955/2021 do CMN","Capital Complementar","Capital Complementar","Conglomerado","Letra financeira",{"v":3776932.9,"d":"R$ 3,776,932.90"},{"v":2007000,"d":"R$ 2,007,000.00"},"passivo - custo amortizado","2020-09-22","Perpétuo","2050-09-22","Sim","Anual, a partir de 23/09/2025","(1) Não há vinculação regulatória ou fiscal para resgate ou recompra","(2) Em parcela única na data da recompra","Não se aplica","Fixo","IPCA + 7,05%","Não","Mandatório","Não","Cumulativo","Não conversível","Não se aplica","Não se aplica","Não se aplica","Não se aplica","Não se aplica","Não se aplica","Sim","Os títulos serão extintos, permanente e em valor no mínimo correspondente ao saldo computado no Nível I do Patrimônio de Referência do BRB – Banco de Brasília S.A nas seguintes condições:         1. seja verificada a divulgação pelo BRB – Banco de Brasília S.A. de que seu Capital Principal está em patamar inferior a 5,125% (cinco inteiros e cento e vinte e cinco milésimos por cento) do montante RWA, estabelecida pela Resolução 4.193, de 2013; ou\n2. assinatura de compromisso de aporte para a instituição emitente, caso se configure a exceção prevista no caput do art. 28 da Lei Complementar no 101, de 4 de maio de 2000; ou\n3. seja decretado pelo BACEN o regime de administração especial temporária ou intervenção do BRB – Banco de Brasília S.A.; ou\n4. seja determinado pelo BACEN, segundo critérios estabelecidos em regulamento específico editado pelo Conselho Monetário Nacional,a extinção do instrumento.","Totalmente","Permanente","Contratual","Não","Não","Não se aplica"]
[null,4,"BRB - BANCO DE BRASILIA S/A","LFSC20001UR","Lei 12.249/2010 - Resolução 4.955/2021 do CMN","Capital Complementar","Capital Complementar","Conglomerado","Letra financeira",{"v":1881879.87,"d":"R$ 1,881,879.87"},{"v":1000000,"d":"R$ 1,000,000.00"},"passivo - custo amortizado","2020-09-22","Perpétuo","2050-09-22","Sim","Anual, a partir de 23/09/2025","(1) Não há vinculação regulatória ou fiscal para resgate ou recompra","(2) Em parcela única na data da recompra","Não se aplica","Fixo","IPCA + 7,05%","Não","Mandatório","Não","Cumulativo","Não conversível","Não se aplica","Não se aplica","Não se aplica","Não se aplica","Não se aplica","Não se aplica","Sim","Os títulos serão extintos, permanente e em valor no mínimo correspondente ao saldo computado no Nível I do Patrimônio de Referência do BRB – Banco de Brasília S.A nas seguintes condições:         1. seja verificada a divulgação pelo BRB – Banco de Brasília S.A. de que seu Capital Principal está em patamar inferior a 5,125% (cinco inteiros e cento e vinte e cinco milésimos por cento) do montante RWA, estabelecida pela Resolução 4.193, de 2013; ou\n2. assinatura de compromisso de aporte para a instituição emitente, caso se configure a exceção prevista no caput do art. 28 da Lei Complementar no 101, de 4 de maio de 2000; ou\n3. seja decretado pelo BACEN o regime de administração especial temporária ou intervenção do BRB – Banco de Brasília S.A.; ou\n4. seja determinado pelo BACEN, segundo critérios estabelecidos em regulamento específico editado pelo Conselho Monetário Nacional,a extinção do instrumento.","Totalmente","Permanente","Contratual","Não","Não","Não se aplica"]
[null,5,"BRB - BANCO DE BRASILIA S/A","LFSC2000209","Lei 12.249/2010 - Resolução 4.955/2021 do CMN","Capital Complementar","Capital Complementar","Conglomerado","Letra financeira",{"v":4580687.14,"d":"R$ 4,580,687.14"},{"v":2445000,"d":"R$ 2,445,000.00"},"passivo - custo amortizado","2020-10-08","Perpétuo","2050-10-10","Sim","Anual, a partir de 09/10/2025","(1) Não há vinculação regulatória ou fiscal para resgate ou recompra","(2) Em parcela única na data da recompra","Não se aplica","Fixo","IPCA + 7,05%","Não","Mandatório","Não","Cumulativo","Não conversível","Não se aplica","Não se aplica","Não se aplica","Não se aplica","Não se aplica","Não se aplica","Sim","Os títulos serão extintos, permanente e em valor no mínimo correspondente ao saldo computado no Nível I do Patrimônio de Referência do BRB – Banco de Brasília S.A nas seguintes condições:         1. seja verificada a divulgação pelo BRB – Banco de Brasília S.A. de que seu Capital Principal está em patamar inferior a 5,125% (cinco inteiros e cento e vinte e cinco milésimos por cento) do montante RWA, estabelecida pela Resolução 4.193, de 2013; ou\n2. assinatura de compromisso de aporte para a instituição emitente, caso se configure a exceção prevista no caput do art. 28 da Lei Complementar no 101, de 4 de maio de 2000; ou\n3. seja decretado pelo BACEN o regime de administração especial temporária ou intervenção do BRB – Banco de Brasília S.A.; ou\n4. seja determinado pelo BACEN, segundo critérios estabelecidos em regulamento específico editado pelo Conselho Monetário Nacional,a extinção do instrumento.","Totalmente","Permanente","Contratual","Não","Não","Não se aplica"]
[null,6,"BRB - BANCO DE BRASILIA S/A","LFSC200020A","Lei 12.249/2010 - Resolução 4.955/2021 do CMN","Capital Complementar","Capital Complementar","Conglomerado","Letra financeira",{"v":3902773.58,"d":"R$ 3,902,773.58"},{"v":2086000,"d":"R$ 2,086,000.00"},"passivo - custo amortizado","2020-10-14","Perpétuo","2050-10-10","Sim","Anual, a partir de 15/10/2025","(1) Não há vinculação regulatória ou fiscal para resgate ou recompra","(2) Em parcela única na data da recompra","Não se aplica","Fixo","IPCA + 7,05%","Não","Mandatório","Não","Cumulativo","Não conversível","Não se aplica","Não se aplica","Não se aplica","Não se aplica","Não se aplica","Não se aplica","Sim","Os títulos serão extintos, permanente e em valor no mínimo correspondente ao saldo computado no Nível I do Patrimônio de Referência do BRB – Banco de Brasília S.A nas seguintes condições:         1. seja verificada a divulgação pelo BRB – Banco de Brasília S.A. de que seu Capital Principal está em patamar inferior a 5,125% (cinco inteiros e cento e vinte e cinco milésimos por cento) do montante RWA, estabelecida pela Resolução 4.193, de 2013; ou\n2. assinatura de compromisso de aporte para a instituição emitente, caso se configure a exceção prevista no caput do art. 28 da Lei Complementar no 101, de 4 de maio de 2000; ou\n3. seja decretado pelo BACEN o regime de administração especial temporária ou intervenção do BRB – Banco de Brasília S.A.; ou\n4. seja determinado pelo BACEN, segundo critérios estabelecidos em regulamento específico editado pelo Conselho Monetário Nacional,a extinção do instrumento.","Totalmente","Permanente","Contratual","Não","Não","Não se aplica"]
[null,7,"BRB - BANCO DE BRASILIA S/A","LFSC200020B","Lei 12.249/2010 - Resolução 4.955/2021 do CMN","Capital Complementar","Capital Complementar","Conglomerado","Letra financeira",{"v":2562261.45,"d":"R$ 2,562,261.45"},{"v":1372000,"d":"R$ 1,372,000.00"},"passivo - custo amortizado","2020-10-19","Perpétuo","2050-10-10","Sim","Anual, a partir de 20/10/2025","(1) Não há vinculação regulatória ou fiscal para resgate ou recompra","(2) Em parcela única na data da recompra","Não se aplica","Fixo","IPCA + 7,05%","Não","Mandatório","Não","Cumulativo","Não conversível","Não se aplica","Não se aplica","Não se aplica","Não se aplica","Não se aplica","Não se aplica","Sim","Os títulos serão extintos, permanente e em valor no mínimo correspondente ao saldo computado no Nível I do Patrimônio de Referência do BRB – Banco de Brasília S.A nas seguintes condições:         1. seja verificada a divulgação pelo BRB – Banco de Brasília S.A. de que seu Capital Principal está em patamar inferior a 5,125% (cinco inteiros e cento e vinte e cinco milésimos por cento) do montante RWA, estabelecida pela Resolução 4.193, de 2013; ou\n2. assinatura de compromisso de aporte para a instituição emitente, caso se configure a exceção prevista no caput do art. 28 da Lei Complementar no 101, de 4 de maio de 2000; ou\n3. seja decretado pelo BACEN o regime de administração especial temporária ou intervenção do BRB – Banco de Brasília S.A.; ou\n4. seja determinado pelo BACEN, segundo critérios estabelecidos em regulamento específico editado pelo Conselho Monetário Nacional,a extinção do instrumento.","Totalmente","Permanente","Contratual","Não","Não","Não se aplica"]
[null,8,"BRB - BANCO DE BRASILIA S/A","LFSC200020E","Lei 12.249/2010 - Resolução 4.955/2021 do CMN","Capital Complementar","Capital Complementar","Conglomerado","Letra financeira",{"v":3466832.12,"d":"R$ 3,466,832.12"},{"v":1862000,"d":"R$ 1,862,000.00"},"passivo - custo amortizado","2020-10-26","Perpétuo","2050-10-10","Sim","Anual, a partir de 27/10/2025","(1) Não há vinculação regulatória ou fiscal para resgate ou recompra","(2) Em parcela única na data da recompra","Não se aplica","Fixo","IPCA + 7,05%","Não","Mandatório","Não","Cumulativo","Não conversível","Não se aplica","Não se aplica","Não se aplica","Não se aplica","Não se aplica","Não se aplica","Sim","Os títulos serão extintos, permanente e em valor no mínimo correspondente ao saldo computado no Nível I do Patrimônio de Referência do BRB – Banco de Brasília S.A nas seguintes condições:         1. seja verificada a divulgação pelo BRB – Banco de Brasília S.A. de que seu Capital Principal está em patamar inferior a 5,125% (cinco inteiros e cento e vinte e cinco milésimos por cento) do montante RWA, estabelecida pela Resolução 4.193, de 2013; ou\n2. assinatura de compromisso de aporte para a instituição emitente, caso se configure a exceção prevista no caput do art. 28 da Lei Complementar no 101, de 4 de maio de 2000; ou\n3. seja decretado pelo BACEN o regime de administração especial temporária ou intervenção do BRB – Banco de Brasília S.A.; ou\n4. seja determinado pelo BACEN, segundo critérios estabelecidos em regulamento específico editado pelo Conselho Monetário Nacional,a extinção do instrumento.","Totalmente","Permanente","Contratual","Não","Não","Não se aplica"]
[null,9,"BRB - BANCO DE BRASILIA S/A","LFSC200025Y","Lei 12.249/2010 - Resolução 4.955/2021 do CMN","Capital Complementar","Capital Complementar","Conglomerado","Letra financeira",{"v":3429583.8,"d":"R$ 3,429,583.80"},{"v":1850000,"d":"R$ 1,850,000.00"},"passivo - custo amortizado","2020-11-05","Perpétuo","2050-11-07","Sim","Anual, a partir de 06/11/2025","(1) Não há vinculação regulatória ou fiscal para resgate ou recompra","(2) Em parcela única na data da recompra","Não se aplica","Fixo","IPCA + 7,05%","Não","Mandatório","Não","Cumulativo","Não conversível","Não se aplica","Não se aplica","Não se aplica","Não se aplica","Não se aplica","Não se aplica","Sim","Os títulos serão extintos, permanente e em valor no mínimo correspondente ao saldo computado no Nível I do Patrimônio de Referência do BRB – Banco de Brasília S.A nas seguintes condições:         1. seja verificada a divulgação pelo BRB – Banco de Brasília S.A. de que seu Capital Principal está em patamar inferior a 5,125% (cinco inteiros e cento e vinte e cinco milésimos por cento) do montante RWA, estabelecida pela Resolução 4.193, de 2013; ou\n2. assinatura de compromisso de aporte para a instituição emitente, caso se configure a exceção prevista no caput do art. 28 da Lei Complementar no 101, de 4 de maio de 2000; ou\n3. seja decretado pelo BACEN o regime de administração especial temporária ou intervenção do BRB – Banco de Brasília S.A.; ou\n4. seja determinado pelo BACEN, segundo critérios estabelecidos em regulamento específico editado pelo Conselho Monetário Nacional,a extinção do instrumento.","Totalmente","Permanente","Contratual","Não","Não","Não se aplica"]
[null,10,"BRB - BANCO DE BRASILIA S/A","LFSC200025Z","Lei 12.249/2010 - Resolução 4.955/2021 do CMN","Capital Complementar","Capital Complementar","Conglomerado","Letra financeira",{"v":18371446.2,"d":"R$ 18,371,446.20"},{"v":9910000,"d":"R$ 9,910,000.00"},"passivo - custo amortizado","2020-11-05","Perpétuo","2050-11-07","Sim","Anual, a partir de 06/11/2025","(1) Não há vinculação regulatória ou fiscal para resgate ou recompra","(2) Em parcela única na data da recompra","Não se aplica","Fixo","IPCA + 7,05%","Não","Mandatório","Não","Cumulativo","Não conversível","Não se aplica","Não se aplica","Não se aplica","Não se aplica","Não se aplica","Não se aplica","Sim","Os títulos serão extintos, permanente e em valor no mínimo correspondente ao saldo computado no Nível I do Patrimônio de Referência do BRB – Banco de Brasília S.A nas seguintes condições:         1. seja verificada a divulgação pelo BRB – Banco de Brasília S.A. de que seu Capital Principal está em patamar inferior a 5,125% (cinco inteiros e cento e vinte e cinco milésimos por cento) do montante RWA, estabelecida pela Resolução 4.193, de 2013; ou\n2. assinatura de compromisso de aporte para a instituição emitente, caso se configure a exceção prevista no caput do art. 28 da Lei Complementar no 101, de 4 de maio de 2000; ou\n3. seja decretado pelo BACEN o regime de administração especial temporária ou intervenção do BRB – Banco de Brasília S.A.; ou\n4. seja determinado pelo BACEN, segundo critérios estabelecidos em regulamento específico editado pelo Conselho Monetário Nacional,a extinção do instrumento.","Totalmente","Permanente","Contratual","Não","Não","Não se aplica"]
[null,11,"BRB - BANCO DE BRASILIA S/A","LFSC20002C8","Lei 12.249/2010 - Resolução 4.955/2021 do CMN","Capital Complementar","Capital Complementar","Conglomerado","Letra financeira",{"v":6802333.42,"d":"R$ 6,802,333.42"},{"v":3700000,"d":"R$ 3,700,000.00"},"passivo - custo amortizado","2020-11-24","Perpétuo","2050-10-10","Sim","Anual, a partir de 25/11/2025","(1) Não há vinculação regulatória ou fiscal para resgate ou recompra","(2) Em parcela única na data da recompra","Não se aplica","Fixo","IPCA + 7,05%","Não","Mandatório","Não","Cumulativo","Não conversível","Não se aplica","Não se aplica","Não se aplica","Não se aplica","Não se aplica","Não se aplica","Sim","Os títulos serão extintos, permanente e em valor no mínimo correspondente ao saldo computado no Nível I do Patrimônio de Referência do BRB – Banco de Brasília S.A nas seguintes condições:         1. seja verificada a divulgação pelo BRB – Banco de Brasília S.A. de que seu Capital Principal está em patamar inferior a 5,125% (cinco inteiros e cento e vinte e cinco milésimos por cento) do montante RWA, estabelecida pela Resolução 4.193, de 2013; ou\n2. assinatura de compromisso de aporte para a instituição emitente, caso se configure a exceção prevista no caput do art. 28 da Lei Complementar no 101, de 4 de maio de 2000; ou\n3. seja decretado pelo BACEN o regime de administração especial temporária ou intervenção do BRB – Banco de Brasília S.A.; ou\n4. seja determinado pelo BACEN, segundo critérios estabelecidos em regulamento específico editado pelo Conselho Monetário Nacional,a extinção do instrumento.","Totalmente","Permanente","Contratual","Não","Não","Não se aplica"]
[null,12,"BRB - BANCO DE BRASILIA S/A","LFSC20002C9","Lei 12.249/2010 - Resolução 4.955/2021 do CMN","Capital Complementar","Capital Complementar","Conglomerado","Letra financeira",{"v":2154685.07,"d":"R$ 2,154,685.07"},{"v":1172000,"d":"R$ 1,172,000.00"},"passivo - custo amortizado","2020-11-24","Perpétuo","2050-10-10","Sim","Anual, a partir de 25/11/2025","(1) Não há vinculação regulatória ou fiscal para resgate ou recompra","(2) Em parcela única na data da recompra","Não se aplica","Fixo","IPCA + 7,05%","Não","Mandatório","Não","Cumulativo","Não conversível","Não se aplica","Não se aplica","Não se aplica","Não se aplica","Não se aplica","Não se aplica","Sim","Os títulos serão extintos, permanente e em valor no mínimo correspondente ao saldo computado no Nível I do Patrimônio de Referência do BRB – Banco de Brasília S.A nas seguintes condições:         1. seja verificada a divulgação pelo BRB – Banco de Brasília S.A. de que seu Capital Principal está em patamar inferior a 5,125% (cinco inteiros e cento e vinte e cinco milésimos por cento) do montante RWA, estabelecida pela Resolução 4.193, de 2013; ou\n2. assinatura de compromisso de aporte para a instituição emitente, caso se configure a exceção prevista no caput do art. 28 da Lei Complementar no 101, de 4 de maio de 2000; ou\n3. seja decretado pelo BACEN o regime de administração especial temporária ou intervenção do BRB – Banco de Brasília S.A.; ou\n4. seja determinado pelo BACEN, segundo critérios estabelecidos em regulamento específico editado pelo Conselho Monetário Nacional,a extinção do instrumento.","Totalmente","Permanente","Contratual","Não","Não","Não se aplica"]
[null,13,"BRB - BANCO DE BRASILIA S/A","LFSC20002H2","Lei 12.249/2010 - Resolução 4.955/2021 do CMN","Capital Complementar","Capital Complementar","Conglomerado","Letra financeira",{"v":6719726.86,"d":"R$ 6,719,726.86"},{"v":3680000,"d":"R$ 3,680,000.00"},"passivo - custo amortizado","2020-12-07","Perpétuo","2050-12-07","Sim","Anual, a partir de 08/12/2025","(1) Não há vinculação regulatória ou fiscal para resgate ou recompra","(2) Em parcela única na data da recompra","Não se aplica","Fixo","IPCA + 7,05%","Não","Mandatório","Não","Cumulativo","Não conversível","Não se aplica","Não se aplica","Não se aplica","Não se aplica","Não se aplica","Não se aplica","Sim","Os títulos serão extintos, permanente e em valor no mínimo correspondente ao saldo computado no Nível I do Patrimônio de Referência do BRB – Banco de Brasília S.A nas seguintes condições:         1. seja verificada a divulgação pelo BRB – Banco de Brasília S.A. de que seu Capital Principal está em patamar inferior a 5,125% (cinco inteiros e cento e vinte e cinco milésimos por cento) do montante RWA, estabelecida pela Resolução 4.193, de 2013; ou\n2. assinatura de compromisso de aporte para a instituição emitente, caso se configure a exceção prevista no caput do art. 28 da Lei Complementar no 101, de 4 de maio de 2000; ou\n3. seja decretado pelo BACEN o regime de administração especial temporária ou intervenção do BRB – Banco de Brasília S.A.; ou\n4. seja determinado pelo BACEN, segundo critérios estabelecidos em regulamento específico editado pelo Conselho Monetário Nacional,a extinção do instrumento.","Totalmente","Permanente","Contratual","Não","Não","Não se aplica"]
[null,14,"BRB - BANCO DE BRASILIA S/A","LFSC20002MM","Lei 12.249/2010 - Resolução 4.955/2021 do CMN","Capital Complementar","Capital Complementar","Conglomerado","Letra financeira",{"v":2755286.68,"d":"R$ 2,755,286.68"},{"v":1510000,"d":"R$ 1,510,000.00"},"passivo - custo amortizado","2020-12-09","Perpétuo","2050-12-09","Sim","Anual, a partir de 10/12/2025","(1) Não há vinculação regulatória ou fiscal para resgate ou recompra","(2) Em parcela única na data da recompra","Não se aplica","Fixo","IPCA + 7,05%","Não","Mandatório","Não","Cumulativo","Não conversível","Não se aplica","Não se aplica","Não se aplica","Não se aplica","Não se aplica","Não se aplica","Sim","Os títulos serão extintos, permanente e em valor no mínimo correspondente ao saldo computado no Nível I do Patrimônio de Referência do BRB – Banco de Brasília S.A nas seguintes condições:         1. seja verificada a divulgação pelo BRB – Banco de Brasília S.A. de que seu Capital Principal está em patamar inferior a 5,125% (cinco inteiros e cento e vinte e cinco milésimos por cento) do montante RWA, estabelecida pela Resolução 4.193, de 2013; ou\n2. assinatura de compromisso de aporte para a instituição emitente, caso se configure a exceção prevista no caput do art. 28 da Lei Complementar no 101, de 4 de maio de 2000; ou\n3. seja decretado pelo BACEN o regime de administração especial temporária ou intervenção do BRB – Banco de Brasília S.A.; ou\n4. seja determinado pelo BACEN, segundo critérios estabelecidos em regulamento específico editado pelo Conselho Monetário Nacional,a extinção do instrumento.","Totalmente","Permanente","Contratual","Não","Não","Não se aplica"]
[null,15,"BRB - BANCO DE BRASILIA S/A","LFSC20002MN","Lei 12.249/2010 - Resolução 4.955/2021 do CMN","Capital Complementar","Capital Complementar","Conglomerado","Letra financeira",{"v":4835436.89,"d":"R$ 4,835,436.89"},{"v":2650000,"d":"R$ 2,650,000.00"},"passivo - custo amortizado","2020-12-09","Perpétuo","2050-12-09","Sim","Anual, a partir de 10/12/2025","(1) Não há vinculação regulatória ou fiscal para resgate ou recompra","(2) Em parcela única na data da recompra","Não se aplica","Fixo","IPCA + 7,05%","Não","Mandatório","Não","Cumulativo","Não conversível","Não se aplica","Não se aplica","Não se aplica","Não se aplica","Não se aplica","Não se aplica","Sim","Os títulos serão extintos, permanente e em valor no mínimo correspondente ao saldo computado no Nível I do Patrimônio de Referência do BRB – Banco de Brasília S.A nas seguintes condições:         1. seja verificada a divulgação pelo BRB – Banco de Brasília S.A. de que seu Capital Principal está em patamar inferior a 5,125% (cinco inteiros e cento e vinte e cinco milésimos por cento) do montante RWA, estabelecida pela Resolução 4.193, de 2013; ou\n2. assinatura de compromisso de aporte para a instituição emitente, caso se configure a exceção prevista no caput do art. 28 da Lei Complementar no 101, de 4 de maio de 2000; ou\n3. seja decretado pelo BACEN o regime de administração especial temporária ou intervenção do BRB – Banco de Brasília S.A.; ou\n4. seja determinado pelo BACEN, segundo critérios estabelecidos em regulamento específico editado pelo Conselho Monetário Nacional,a extinção do instrumento.","Totalmente","Permanente","Contratual","Não","Não","Não se aplica"]
[null,16,"BRB - BANCO DE BRASILIA S/A","LFSC20002MO","Lei 12.249/2010 - Resolução 4.955/2021 do CMN","Capital Complementar","Capital Complementar","Conglomerado","Letra financeira",{"v":6782225.06,"d":"R$ 6,782,225.06"},{"v":3750300,"d":"R$ 3,750,300.00"},"passivo - custo amortizado","2020-12-18","Perpétuo","2050-12-19","Sim","Anual, a partir de 19/12/2025","(1) Não há vinculação regulatória ou fiscal para resgate ou recompra","(2) Em parcela única na data da recompra","Não se aplica","Fixo","IPCA + 7,05%","Não","Mandatório","Não","Cumulativo","Não conversível","Não se aplica","Não se aplica","Não se aplica","Não se aplica","Não se aplica","Não se aplica","Sim","Os títulos serão extintos, permanente e em valor no mínimo correspondente ao saldo computado no Nível I do Patrimônio de Referência do BRB – Banco de Brasília S.A nas seguintes condições:         1. seja verificada a divulgação pelo BRB – Banco de Brasília S.A. de que seu Capital Principal está em patamar inferior a 5,125% (cinco inteiros e cento e vinte e cinco milésimos por cento) do montante RWA, estabelecida pela Resolução 4.193, de 2013; ou\n2. assinatura de compromisso de aporte para a instituição emitente, caso se configure a exceção prevista no caput do art. 28 da Lei Complementar no 101, de 4 de maio de 2000; ou\n3. seja decretado pelo BACEN o regime de administração especial temporária ou intervenção do BRB – Banco de Brasília S.A.; ou\n4. seja determinado pelo BACEN, segundo critérios estabelecidos em regulamento específico editado pelo Conselho Monetário Nacional,a extinção do instrumento.","Totalmente","Permanente","Contratual","Não","Não","Não se aplica"]
[null,17,"BRB - BANCO DE BRASILIA S/A","LFSC20002MP","Lei 12.249/2010 - Resolução 4.955/2021 do CMN","Capital Complementar","Capital Complementar","Conglomerado","Letra financeira",{"v":4992500.87,"d":"R$ 4,992,500.87"},{"v":2762700,"d":"R$ 2,762,700.00"},"passivo - custo amortizado","2020-12-21","Perpétuo","2050-12-21","Sim","Anual, a partir de 22/12/2025","(1) Não há vinculação regulatória ou fiscal para resgate ou recompra","(2) Em parcela única na data da recompra","Não se aplica","Fixo","IPCA + 7,05%","Não","Mandatório","Não","Cumulativo","Não conversível","Não se aplica","Não se aplica","Não se aplica","Não se aplica","Não se aplica","Não se aplica","Sim","Os títulos serão extintos, permanente e em valor no mínimo correspondente ao saldo computado no Nível I do Patrimônio de Referência do BRB – Banco de Brasília S.A nas seguintes condições:         1. seja verificada a divulgação pelo BRB – Banco de Brasília S.A. de que seu Capital Principal está em patamar inferior a 5,125% (cinco inteiros e cento e vinte e cinco milésimos por cento) do montante RWA, estabelecida pela Resolução 4.193, de 2013; ou\n2. assinatura de compromisso de aporte para a instituição emitente, caso se configure a exceção prevista no caput do art. 28 da Lei Complementar no 101, de 4 de maio de 2000; ou\n3. seja decretado pelo BACEN o regime de administração especial temporária ou intervenção do BRB – Banco de Brasília S.A.; ou\n4. seja determinado pelo BACEN, segundo critérios estabelecidos em regulamento específico editado pelo Conselho Monetário Nacional,a extinção do instrumento.","Totalmente","Permanente","Contratual","Não","Não","Não se aplica"]
[null,18,"BRB - BANCO DE BRASILIA S/A","LFSC20002MQ","Lei 12.249/2010 - Resolução 4.955/2021 do CMN","Capital Complementar","Capital Complementar","Conglomerado","Letra financeira",{"v":13616568.61,"d":"R$ 13,616,568.61"},{"v":7535000,"d":"R$ 7,535,000.00"},"passivo - custo amortizado","2020-12-21","Perpétuo","2050-12-21","Sim","Anual, a partir de 22/12/2025","(1) Não há vinculação regulatória ou fiscal para resgate ou recompra","(2) Em parcela única na data da recompra","Não se aplica","Fixo","IPCA + 7,05%","Não","Mandatório","Não","Cumulativo","Não conversível","Não se aplica","Não se aplica","Não se aplica","Não se aplica","Não se aplica","Não se aplica","Sim","Os títulos serão extintos, permanente e em valor no mínimo correspondente ao saldo computado no Nível I do Patrimônio de Referência do BRB – Banco de Brasília S.A nas seguintes condições:         1. seja verificada a divulgação pelo BRB – Banco de Brasília S.A. de que seu Capital Principal está em patamar inferior a 5,125% (cinco inteiros e cento e vinte e cinco milésimos por cento) do montante RWA, estabelecida pela Resolução 4.193, de 2013; ou\n2. assinatura de compromisso de aporte para a instituição emitente, caso se configure a exceção prevista no caput do art. 28 da Lei Complementar no 101, de 4 de maio de 2000; ou\n3. seja decretado pelo BACEN o regime de administração especial temporária ou intervenção do BRB – Banco de Brasília S.A.; ou\n4. seja determinado pelo BACEN, segundo critérios estabelecidos em regulamento específico editado pelo Conselho Monetário Nacional,a extinção do instrumento.","Totalmente","Permanente","Contratual","Não","Não","Não se aplica"]
[null,19,"BRB - BANCO DE BRASILIA S/A","LFSC2100001","Lei 12.249/2010 - Resolução 4.955/2021 do CMN","Capital Complementar","Capital Complementar","Conglomerado","Letra financeira",{"v":1802776.73,"d":"R$ 1,802,776.73"},{"v":1000000,"d":"R$ 1,000,000.00"},"passivo - custo amortizado","2021-01-04","Perpétuo","2031-01-06","Sim","Anual, a partir de 05/01/2026","(1) Não há vinculação regulatória ou fiscal para resgate ou recompra","(2) Em parcela única na data da recompra","Não se aplica","Fixo","IPCA + 7,05%","Não","Mandatório","Não","Cumulativo","Não conversível","Não se aplica","Não se aplica","Não se aplica","Não se aplica","Não se aplica","Não se aplica","Sim","Os títulos serão extintos, permanente e em valor no mínimo correspondente ao saldo computado no Nível I do Patrimônio de Referência do BRB – Banco de Brasília S.A nas seguintes condições:         1. seja verificada a divulgação pelo BRB – Banco de Brasília S.A. de que seu Capital Principal está em patamar inferior a 5,125% (cinco inteiros e cento e vinte e cinco milésimos por cento) do montante RWA, estabelecida pela Resolução 4.193, de 2013; ou\n2. assinatura de compromisso de aporte para a instituição emitente, caso se configure a exceção prevista no caput do art. 28 da Lei Complementar no 101, de 4 de maio de 2000; ou\n3. seja decretado pelo BACEN o regime de administração especial temporária ou intervenção do BRB – Banco de Brasília S.A.; ou\n4. seja determinado pelo BACEN, segundo critérios estabelecidos em regulamento específico editado pelo Conselho Monetário Nacional,a extinção do instrumento.","Totalmente","Permanente","Contratual","Não","Não","Não se aplica"]
[null,20,"BRB - BANCO DE BRASILIA S/A","LFSC2100002","Lei 12.249/2010 - Resolução 4.955/2021 do CMN","Capital Complementar","Capital Complementar","Conglomerado","Letra financeira",{"v":3511656.53,"d":"R$ 3,511,656.53"},{"v":1950000,"d":"R$ 1,950,000.00"},"passivo - custo amortizado","2021-01-07","Perpétuo","2051-01-09","Sim","Anual, a partir de 08/01/2026","(1) Não há vinculação regulatória ou fiscal para resgate ou recompra","(2) Em parcela única na data da recompra","Não se aplica","Fixo","IPCA + 7,05%","Não","Mandatório","Não","Cumulativo","Não conversível","Não se aplica","Não se aplica","Não se aplica","Não se aplica","Não se aplica","Não se aplica","Sim","Os títulos serão extintos, permanente e em valor no mínimo correspondente ao saldo computado no Nível I do Patrimônio de Referência do BRB – Banco de Brasília S.A nas seguintes condições:         1. seja verificada a divulgação pelo BRB – Banco de Brasília S.A. de que seu Capital Principal está em patamar inferior a 5,125% (cinco inteiros e cento e vinte e cinco milésimos por cento) do montante RWA, estabelecida pela Resolução 4.193, de 2013; ou\n2. assinatura de compromisso de aporte para a instituição emitente, caso se configure a exceção prevista no caput do art. 28 da Lei Complementar no 101, de 4 de maio de 2000; ou\n3. seja decretado pelo BACEN o regime de administração especial temporária ou intervenção do BRB – Banco de Brasília S.A.; ou\n4. seja determinado pelo BACEN, segundo critérios estabelecidos em regulamento específico editado pelo Conselho Monetário Nacional,a extinção do instrumento.","Totalmente","Permanente","Contratual","Não","Não","Não se aplica"]
[null,21,"BRB - BANCO DE BRASILIA S/A","LFSC21000B5","Lei 12.249/2010 - Resolução 4.955/2021 do CMN","Capital Complementar","Capital Complementar","Conglomerado","Letra financeira",{"v":2651755.38,"d":"R$ 2,651,755.38"},{"v":1500000,"d":"R$ 1,500,000.00"},"passivo - custo amortizado","2021-02-02","Perpétuo","2050-02-02","Sim","Anual, a partir de 03/02/2026","(1) Não há vinculação regulatória ou fiscal para resgate ou recompra","(2) Em parcela única na data da recompra","Não se aplica","Fixo","IPCA + 7,05%","Não","Mandatório","Não","Cumulativo","Não conversível","Não se aplica","Não se aplica","Não se aplica","Não se aplica","Não se aplica","Não se aplica","Sim","Os títulos serão extintos, permanente e em valor no mínimo correspondente ao saldo computado no Nível I do Patrimônio de Referência do BRB – Banco de Brasília S.A nas seguintes condições:         1. seja verificada a divulgação pelo BRB – Banco de Brasília S.A. de que seu Capital Principal está em patamar inferior a 5,125% (cinco inteiros e cento e vinte e cinco milésimos por cento) do montante RWA, estabelecida pela Resolução 4.193, de 2013; ou\n2. assinatura de compromisso de aporte para a instituição emitente, caso se configure a exceção prevista no caput do art. 28 da Lei Complementar no 101, de 4 de maio de 2000; ou\n3. seja decretado pelo BACEN o regime de administração especial temporária ou intervenção do BRB – Banco de Brasília S.A.; ou\n4. seja determinado pelo BACEN, segundo critérios estabelecidos em regulamento específico editado pelo Conselho Monetário Nacional,a extinção do instrumento.","Totalmente","Permanente","Contratual","Não","Não","Não se aplica"]
[null,22,"BRB - BANCO DE BRASILIA S/A","LFSC21000MH","Lei 12.249/2010 - Resolução 4.955/2021 do CMN","Capital Complementar","Capital Complementar","Conglomerado","Letra financeira",{"v":52873611.12,"d":"R$ 52,873,611.12"},{"v":30000000,"d":"R$ 30,000,000.00"},"passivo - custo amortizado","2021-02-11","Perpétuo","2051-02-15","Sim","Anual, a partir de 12/02/2026","(1) Não há vinculação regulatória ou fiscal para resgate ou recompra","(2) Em parcela única na data da recompra","Não se aplica","Fixo","IPCA + 7,05%","Não","Mandatório","Não","Cumulativo","Não conversível","Não se aplica","Não se aplica","Não se aplica","Não se aplica","Não se aplica","Não se aplica","Sim","Os títulos serão extintos, permanente e em valor no mínimo correspondente ao saldo computado no Nível I do Patrimônio de Referência do BRB – Banco de Brasília S.A nas seguintes condições:         1. seja verificada a divulgação pelo BRB – Banco de Brasília S.A. de que seu Capital Principal está em patamar inferior a 5,125% (cinco inteiros e cento e vinte e cinco milésimos por cento) do montante RWA, estabelecida pela Resolução 4.193, de 2013; ou\n2. assinatura de compromisso de aporte para a instituição emitente, caso se configure a exceção prevista no caput do art. 28 da Lei Complementar no 101, de 4 de maio de 2000; ou\n3. seja decretado pelo BACEN o regime de administração especial temporária ou intervenção do BRB – Banco de Brasília S.A.; ou\n4. seja determinado pelo BACEN, segundo critérios estabelecidos em regulamento específico editado pelo Conselho Monetário Nacional,a extinção do instrumento.","Totalmente","Permanente","Contratual","Não","Não","Não se aplica"]
[null,23,"BRB - BANCO DE BRASILIA S/A","LFSC21000MI","Lei 12.249/2010 - Resolução 4.955/2021 do CMN","Capital Complementar","Capital Complementar","Conglomerado","Letra financeira",{"v":3185991.62,"d":"R$ 3,185,991.62"},{"v":1810000,"d":"R$ 1,810,000.00"},"passivo - custo amortizado","2021-02-18","Perpétuo","2050-02-18","Sim","Anual, a partir de 19/02/2026","(1) Não há vinculação regulatória ou fiscal para resgate ou recompra","(2) Em parcela única na data da recompra","Não se aplica","Fixo","IPCA + 7,05%","Não","Mandatório","Não","Cumulativo","Não conversível","Não se aplica","Não se aplica","Não se aplica","Não se aplica","Não se aplica","Não se aplica","Sim","Os títulos serão extintos, permanente e em valor no mínimo correspondente ao saldo computado no Nível I do Patrimônio de Referência do BRB – Banco de Brasília S.A nas seguintes condições:         1. seja verificada a divulgação pelo BRB – Banco de Brasília S.A. de que seu Capital Principal está em patamar inferior a 5,125% (cinco inteiros e cento e vinte e cinco milésimos por cento) do montante RWA, estabelecida pela Resolução 4.193, de 2013; ou\n2. assinatura de compromisso de aporte para a instituição emitente, caso se configure a exceção prevista no caput do art. 28 da Lei Complementar no 101, de 4 de maio de 2000; ou\n3. seja decretado pelo BACEN o regime de administração especial temporária ou intervenção do BRB – Banco de Brasília S.A.; ou\n4. seja determinado pelo BACEN, segundo critérios estabelecidos em regulamento específico editado pelo Conselho Monetário Nacional,a extinção do instrumento.","Totalmente","Permanente","Contratual","Não","Não","Não se aplica"]
[null,24,"BRB - BANCO DE BRASILIA S/A","LFSC21000RT","Lei 12.249/2010 - Resolução 4.955/2021 do CMN","Capital Complementar","Capital Complementar","Conglomerado","Letra financeira",{"v":1749480.48,"d":"R$ 1,749,480.48"},{"v":1000000,"d":"R$ 1,000,000.00"},"passivo - custo amortizado","2021-03-12","Perpétuo","2051-03-13","Sim","Anual, a partir de 13/03/2026","(1) Não há vinculação regulatória ou fiscal para resgate ou recompra","(2) Em parcela única na data da recompra","Não se aplica","Fixo","IPCA + 7,05%","Não","Mandatório","Não","Cumulativo","Não conversível","Não se aplica","Não se aplica","Não se aplica","Não se aplica","Não se aplica","Não se aplica","Sim","Os títulos serão extintos, permanente e em valor no mínimo correspondente ao saldo computado no Nível I do Patrimônio de Referência do BRB – Banco de Brasília S.A nas seguintes condições:         1. seja verificada a divulgação pelo BRB – Banco de Brasília S.A. de que seu Capital Principal está em patamar inferior a 5,125% (cinco inteiros e cento e vinte e cinco milésimos por cento) do montante RWA, estabelecida pela Resolução 4.193, de 2013; ou\n2. assinatura de compromisso de aporte para a instituição emitente, caso se configure a exceção prevista no caput do art. 28 da Lei Complementar no 101, de 4 de maio de 2000; ou\n3. seja decretado pelo BACEN o regime de administração especial temporária ou intervenção do BRB – Banco de Brasília S.A.; ou\n4. seja determinado pelo BACEN, segundo critérios estabelecidos em regulamento específico editado pelo Conselho Monetário Nacional,a extinção do instrumento.","Totalmente","Permanente","Contratual","Não","Não","Não se aplica"]
[null,25,"BRB - BANCO DE BRASILIA S/A","LFSC21001EF","Lei 12.249/2010 - Resolução 4.955/2021 do CMN","Capital Complementar","Capital Complementar","Conglomerado","Letra financeira",{"v":2553145.41,"d":"R$ 2,553,145.41"},{"v":1510000,"d":"R$ 1,510,000.00"},"passivo - custo amortizado","2021-07-08","Perpétuo","2031-07-08","Sim","Anual, a partir de 09/07/2026","(1) Não há vinculação regulatória ou fiscal para resgate ou recompra","(2) Em parcela única na data da recompra","Não se aplica","Fixo","IPCA + 7,5%","Não","Mandatório","Não","Cumulativo","Não conversível","Não se aplica","Não se aplica","Não se aplica","Não se aplica","Não se aplica","Não se aplica","Sim","Os títulos serão extintos, permanente e em valor no mínimo correspondente ao saldo computado no Nível I do Patrimônio de Referência do BRB – Banco de Brasília S.A nas seguintes condições:         1. seja verificada a divulgação pelo BRB – Banco de Brasília S.A. de que seu Capital Principal está em patamar inferior a 5,125% (cinco inteiros e cento e vinte e cinco milésimos por cento) do montante RWA, estabelecida pela Resolução 4.193, de 2013; ou\n2. assinatura de compromisso de aporte para a instituição emitente, caso se configure a exceção prevista no caput do art. 28 da Lei Complementar no 101, de 4 de maio de 2000; ou\n3. seja decretado pelo BACEN o regime de administração especial temporária ou intervenção do BRB – Banco de Brasília S.A.; ou\n4. seja determinado pelo BACEN, segundo critérios estabelecidos em regulamento específico editado pelo Conselho Monetário Nacional,a extinção do instrumento.","Totalmente","Permanente","Contratual","Não","Não","Não se aplica"]
[null,26,"BRB - BANCO DE BRASILIA S/A","LFSC21001EG","Lei 12.249/2010 - Resolução 4.955/2021 do CMN","Capital Complementar","Capital Complementar","Conglomerado","Letra financeira",{"v":5077546.81,"d":"R$ 5,077,546.81"},{"v":3003000,"d":"R$ 3,003,000.00"},"passivo - custo amortizado","2021-07-08","Perpétuo","2031-07-08","Sim","Anual, a partir de 09/07/2026","(1) Não há vinculação regulatória ou fiscal para resgate ou recompra","(2) Em parcela única na data da recompra","Não se aplica","Fixo","IPCA + 7,5%","Não","Mandatório","Não","Cumulativo","Não conversível","Não se aplica","Não se aplica","Não se aplica","Não se aplica","Não se aplica","Não se aplica","Sim","Os títulos serão extintos, permanente e em valor no mínimo correspondente ao saldo computado no Nível I do Patrimônio de Referência do BRB – Banco de Brasília S.A nas seguintes condições:         1. seja verificada a divulgação pelo BRB – Banco de Brasília S.A. de que seu Capital Principal está em patamar inferior a 5,125% (cinco inteiros e cento e vinte e cinco milésimos por cento) do montante RWA, estabelecida pela Resolução 4.193, de 2013; ou\n2. assinatura de compromisso de aporte para a instituição emitente, caso se configure a exceção prevista no caput do art. 28 da Lei Complementar no 101, de 4 de maio de 2000; ou\n3. seja decretado pelo BACEN o regime de administração especial temporária ou intervenção do BRB – Banco de Brasília S.A.; ou\n4. seja determinado pelo BACEN, segundo critérios estabelecidos em regulamento específico editado pelo Conselho Monetário Nacional,a extinção do instrumento.","Totalmente","Permanente","Contratual","Não","Não","Não se aplica"]
[null,27,"BRB - BANCO DE BRASILIA S/A","LFSC21001KL","Lei 12.249/2010 - Resolução 4.955/2021 do CMN","Capital Complementar","Capital Complementar","Conglomerado","Letra financeira",{"v":1681945.03,"d":"R$ 1,681,945.03"},{"v":1000000,"d":"R$ 1,000,000.00"},"passivo - custo amortizado","2021-07-16","Perpétuo","2031-07-17","Sim","Anual, a partir de 17/07/2026","(1) Não há vinculação regulatória ou fiscal para resgate ou recompra","(2) Em parcela única na data da recompra","Não se aplica","Fixo","IPCA + 7,5%","Não","Mandatório","Não","Cumulativo","Não conversível","Não se aplica","Não se aplica","Não se aplica","Não se aplica","Não se aplica","Não se aplica","Sim","Os títulos serão extintos, permanente e em valor no mínimo correspondente ao saldo computado no Nível I do Patrimônio de Referência do BRB – Banco de Brasília S.A nas seguintes condições:         1. seja verificada a divulgação pelo BRB – Banco de Brasília S.A. de que seu Capital Principal está em patamar inferior a 5,125% (cinco inteiros e cento e vinte e cinco milésimos por cento) do montante RWA, estabelecida pela Resolução 4.193, de 2013; ou\n2. assinatura de compromisso de aporte para a instituição emitente, caso se configure a exceção prevista no caput do art. 28 da Lei Complementar no 101, de 4 de maio de 2000; ou\n3. seja decretado pelo BACEN o regime de administração especial temporária ou intervenção do BRB – Banco de Brasília S.A.; ou\n4. seja determinado pelo BACEN, segundo critérios estabelecidos em regulamento específico editado pelo Conselho Monetário Nacional,a extinção do instrumento.","Totalmente","Permanente","Contratual","Não","Não","Não se aplica"]
[null,28,"BRB - BANCO DE BRASILIA S/A","LFSC21001KV","Lei 12.249/2010 - Resolução 4.955/2021 do CMN","Capital Complementar","Capital Complementar","Conglomerado","Letra financeira",{"v":3436767.62,"d":"R$ 3,436,767.62"},{"v":2050000,"d":"R$ 2,050,000.00"},"passivo - custo amortizado","2021-07-28","Perpétuo","2051-07-28","Sim","Anual, a partir de 29/07/2026","(1) Não há vinculação regulatória ou fiscal para resgate ou recompra","(2) Em parcela única na data da recompra","Não se aplica","Fixo","IPCA + 7,5%","Não","Mandatório","Não","Cumulativo","Não conversível","Não se aplica","Não se aplica","Não se aplica","Não se aplica","Não se aplica","Não se aplica","Sim","Os títulos serão extintos, permanente e em valor no mínimo correspondente ao saldo computado no Nível I do Patrimônio de Referência do BRB – Banco de Brasília S.A nas seguintes condições:         1. seja verificada a divulgação pelo BRB – Banco de Brasília S.A. de que seu Capital Principal está em patamar inferior a 5,125% (cinco inteiros e cento e vinte e cinco milésimos por cento) do montante RWA, estabelecida pela Resolução 4.193, de 2013; ou\n2. assinatura de compromisso de aporte para a instituição emitente, caso se configure a exceção prevista no caput do art. 28 da Lei Complementar no 101, de 4 de maio de 2000; ou\n3. seja decretado pelo BACEN o regime de administração especial temporária ou intervenção do BRB – Banco de Brasília S.A.; ou\n4. seja determinado pelo BACEN, segundo critérios estabelecidos em regulamento específico editado pelo Conselho Monetário Nacional,a extinção do instrumento.","Totalmente","Permanente","Contratual","Não","Não","Não se aplica"]
[null,29,"BRB - BANCO DE BRASILIA S/A","LFSC21001V3","Lei 12.249/2010 - Resolução 4.955/2021 do CMN","Capital Complementar","Capital Complementar","Conglomerado","Letra financeira",{"v":62291555.57,"d":"R$ 62,291,555.57"},{"v":30803000,"d":"R$ 30,803,000.00"},"passivo - custo amortizado","2021-09-02","Perpétuo","2050-01-05","Sim","Anual, a partir de 03/09/2026","(1) Não há vinculação regulatória ou fiscal para resgate ou recompra","(2) Em parcela única na data da recompra","Não se aplica","Fixo","165% CDI","Não","Mandatório","Não","Cumulativo","Não conversível","Não se aplica","Não se aplica","Não se aplica","Não se aplica","Não se aplica","Não se aplica","Sim","Os títulos serão extintos, permanente e em valor no mínimo correspondente ao saldo computado no Nível I do Patrimônio de Referência do BRB – Banco de Brasília S.A nas seguintes condições:         1. seja verificada a divulgação pelo BRB – Banco de Brasília S.A. de que seu Capital Principal está em patamar inferior a 5,125% (cinco inteiros e cento e vinte e cinco milésimos por cento) do montante RWA, estabelecida pela Resolução 4.193, de 2013; ou\n2. assinatura de compromisso de aporte para a instituição emitente, caso se configure a exceção prevista no caput do art. 28 da Lei Complementar no 101, de 4 de maio de 2000; ou\n3. seja decretado pelo BACEN o regime de administração especial temporária ou intervenção do BRB – Banco de Brasília S.A.; ou\n4. seja determinado pelo BACEN, segundo critérios estabelecidos em regulamento específico editado pelo Conselho Monetário Nacional,a extinção do instrumento.","Totalmente","Permanente","Contratual","Não","Não","Não se aplica"]
[null,30,"BRB - BANCO DE BRASILIA S/A","LFSC21001V4","Lei 12.249/2010 - Resolução 4.955/2021 do CMN","Capital Complementar","Capital Complementar","Conglomerado","Letra financeira",{"v":62291555.57,"d":"R$ 62,291,555.57"},{"v":30803000,"d":"R$ 30,803,000.00"},"passivo - custo amortizado","2021-09-02","Perpétuo","2050-01-05","Sim","Anual, a partir de 03/09/2026","(1) Não há vinculação regulatória ou fiscal para resgate ou recompra","(2) Em parcela única na data da recompra","Não se aplica","Fixo","165% CDI","Não","Mandatório","Não","Cumulativo","Não conversível","Não se aplica","Não se aplica","Não se aplica","Não se aplica","Não se aplica","Não se aplica","Sim","Os títulos serão extintos, permanente e em valor no mínimo correspondente ao saldo computado no Nível I do Patrimônio de Referência do BRB – Banco de Brasília S.A nas seguintes condições:         1. seja verificada a divulgação pelo BRB – Banco de Brasília S.A. de que seu Capital Principal está em patamar inferior a 5,125% (cinco inteiros e cento e vinte e cinco milésimos por cento) do montante RWA, estabelecida pela Resolução 4.193, de 2013; ou\n2. assinatura de compromisso de aporte para a instituição emitente, caso se configure a exceção prevista no caput do art. 28 da Lei Complementar no 101, de 4 de maio de 2000; ou\n3. seja decretado pelo BACEN o regime de administração especial temporária ou intervenção do BRB – Banco de Brasília S.A.; ou\n4. seja determinado pelo BACEN, segundo critérios estabelecidos em regulamento específico editado pelo Conselho Monetário Nacional,a extinção do instrumento.","Totalmente","Permanente","Contratual","Não","Não","Não se aplica"]
[null,31,"BRB - BANCO DE BRASILIA S/A","LFSC21001V5","Lei 12.249/2010 - Resolução 4.955/2021 do CMN","Capital Complementar","Capital Complementar","Conglomerado","Letra financeira",{"v":62291555.57,"d":"R$ 62,291,555.57"},{"v":30803000,"d":"R$ 30,803,000.00"},"passivo - custo amortizado","2021-09-02","Perpétuo","2050-01-05","Sim","Anual, a partir de 03/09/2026","(1) Não há vinculação regulatória ou fiscal para resgate ou recompra","(2) Em parcela única na data da recompra","Não se aplica","Fixo","165% CDI","Não","Mandatório","Não","Cumulativo","Não conversível","Não se aplica","Não se aplica","Não se aplica","Não se aplica","Não se aplica","Não se aplica","Sim","Os títulos serão extintos, permanente e em valor no mínimo correspondente ao saldo computado no Nível I do Patrimônio de Referência do BRB – Banco de Brasília S.A nas seguintes condições:         1. seja verificada a divulgação pelo BRB – Banco de Brasília S.A. de que seu Capital Principal está em patamar inferior a 5,125% (cinco inteiros e cento e vinte e cinco milésimos por cento) do montante RWA, estabelecida pela Resolução 4.193, de 2013; ou\n2. assinatura de compromisso de aporte para a instituição emitente, caso se configure a exceção prevista no caput do art. 28 da Lei Complementar no 101, de 4 de maio de 2000; ou\n3. seja decretado pelo BACEN o regime de administração especial temporária ou intervenção do BRB – Banco de Brasília S.A.; ou\n4. seja determinado pelo BACEN, segundo critérios estabelecidos em regulamento específico editado pelo Conselho Monetário Nacional,a extinção do instrumento.","Totalmente","Permanente","Contratual","Não","Não","Não se aplica"]
[null,32,"BRB - BANCO DE BRASILIA S/A","LFSC21001V6","Lei 12.249/2010 - Resolução 4.955/2021 do CMN","Capital Complementar","Capital Complementar","Conglomerado","Letra financeira",{"v":62291555.57,"d":"R$ 62,291,555.57"},{"v":30803000,"d":"R$ 30,803,000.00"},"passivo - custo amortizado","2021-09-02","Perpétuo","2050-01-05","Sim","Anual, a partir de 03/09/2026","(1) Não há vinculação regulatória ou fiscal para resgate ou recompra","(2) Em parcela única na data da recompra","Não se aplica","Fixo","165% CDI","Não","Mandatório","Não","Cumulativo","Não conversível","Não se aplica","Não se aplica","Não se aplica","Não se aplica","Não se aplica","Não se aplica","Sim","Os títulos serão extintos, permanente e em valor no mínimo correspondente ao saldo computado no Nível I do Patrimônio de Referência do BRB – Banco de Brasília S.A nas seguintes condições:         1. seja verificada a divulgação pelo BRB – Banco de Brasília S.A. de que seu Capital Principal está em patamar inferior a 5,125% (cinco inteiros e cento e vinte e cinco milésimos por cento) do montante RWA, estabelecida pela Resolução 4.193, de 2013; ou\n2. assinatura de compromisso de aporte para a instituição emitente, caso se configure a exceção prevista no caput do art. 28 da Lei Complementar no 101, de 4 de maio de 2000; ou\n3. seja decretado pelo BACEN o regime de administração especial temporária ou intervenção do BRB – Banco de Brasília S.A.; ou\n4. seja determinado pelo BACEN, segundo critérios estabelecidos em regulamento específico editado pelo Conselho Monetário Nacional,a extinção do instrumento.","Totalmente","Permanente","Contratual","Não","Não","Não se aplica"]
[null,33,"BRB - BANCO DE BRASILIA S/A","LFSC21001V7","Lei 12.249/2010 - Resolução 4.955/2021 do CMN","Capital Complementar","Capital Complementar","Conglomerado","Letra financeira",{"v":11053652,"d":"R$ 11,053,652.00"},{"v":5466000,"d":"R$ 5,466,000.00"},"passivo - custo amortizado","2021-09-02","Perpétuo","2050-01-05","Sim","Anual, a partir de 03/09/2026","(1) Não há vinculação regulatória ou fiscal para resgate ou recompra","(2) Em parcela única na data da recompra","Não se aplica","Fixo","165% CDI","Não","Mandatório","Não","Cumulativo","Não conversível","Não se aplica","Não se aplica","Não se aplica","Não se aplica","Não se aplica","Não se aplica","Sim","Os títulos serão extintos, permanente e em valor no mínimo correspondente ao saldo computado no Nível I do Patrimônio de Referência do BRB – Banco de Brasília S.A nas seguintes condições:         1. seja verificada a divulgação pelo BRB – Banco de Brasília S.A. de que seu Capital Principal está em patamar inferior a 5,125% (cinco inteiros e cento e vinte e cinco milésimos por cento) do montante RWA, estabelecida pela Resolução 4.193, de 2013; ou\n2. assinatura de compromisso de aporte para a instituição emitente, caso se configure a exceção prevista no caput do art. 28 da Lei Complementar no 101, de 4 de maio de 2000; ou\n3. seja decretado pelo BACEN o regime de administração especial temporária ou intervenção do BRB – Banco de Brasília S.A.; ou\n4. seja determinado pelo BACEN, segundo critérios estabelecidos em regulamento específico editado pelo Conselho Monetário Nacional,a extinção do instrumento.","Totalmente","Permanente","Contratual","Não","Não","Não se aplica"]
[null,34,"BRB - BANCO DE BRASILIA S/A","LFSC21001V8","Lei 12.249/2010 - Resolução 4.955/2021 do CMN","Capital Complementar","Capital Complementar","Conglomerado","Letra financeira",{"v":7497929.48,"d":"R$ 7,497,929.48"},{"v":3707705.16,"d":"R$ 3,707,705.16"},"passivo - custo amortizado","2021-09-02","Perpétuo","2050-01-05","Sim","Anual, a partir de 03/09/2026","(1) Não há vinculação regulatória ou fiscal para resgate ou recompra","(2) Em parcela única na data da recompra","Não se aplica","Fixo","165% CDI","Não","Mandatório","Não","Cumulativo","Não conversível","Não se aplica","Não se aplica","Não se aplica","Não se aplica","Não se aplica","Não se aplica","Sim","Os títulos serão extintos, permanente e em valor no mínimo correspondente ao saldo computado no Nível I do Patrimônio de Referência do BRB – Banco de Brasília S.A nas seguintes condições:         1. seja verificada a divulgação pelo BRB – Banco de Brasília S.A. de que seu Capital Principal está em patamar inferior a 5,125% (cinco inteiros e cento e vinte e cinco milésimos por cento) do montante RWA, estabelecida pela Resolução 4.193, de 2013; ou\n2. assinatura de compromisso de aporte para a instituição emitente, caso se configure a exceção prevista no caput do art. 28 da Lei Complementar no 101, de 4 de maio de 2000; ou\n3. seja decretado pelo BACEN o regime de administração especial temporária ou intervenção do BRB – Banco de Brasília S.A.; ou\n4. seja determinado pelo BACEN, segundo critérios estabelecidos em regulamento específico editado pelo Conselho Monetário Nacional,a extinção do instrumento.","Totalmente","Permanente","Contratual","Não","Não","Não se aplica"]
[null,35,"BRB - BANCO DE BRASILIA S/A","LFSC2200461","Lei 12.249/2010 - Resolução 4.955/2021 do CMN","Capital Complementar","Capital Complementar","Conglomerado","Letra financeira",{"v":3839709,"d":"R$ 3,839,709.00"},{"v":2440000,"d":"R$ 2,440,000.00"},"passivo - custo amortizado","2022-12-19","Perpétuo","2050-05-05","Sim","Anual, a partir de 20/12/2027","(1) Não há vinculação regulatória ou fiscal para resgate ou recompra","(2) Em parcela única na data da recompra","Não se aplica","Fixo","155% CDI","Não","Mandatório","Não","Cumulativo","Não conversível","Não se aplica","Não se aplica","Não se aplica","Não se aplica","Não se aplica","Não se aplica","Sim","Os títulos serão extintos, permanente e em valor no mínimo correspondente ao saldo computado no Nível I do Patrimônio de Referência do BRB – Banco de Brasília S.A nas seguintes condições:         1. seja verificada a divulgação pelo BRB – Banco de Brasília S.A. de que seu Capital Principal está em patamar inferior a 5,125% (cinco inteiros e cento e vinte e cinco milésimos por cento) do montante RWA, estabelecida pela Resolução 4.193, de 2013; ou\n2. assinatura de compromisso de aporte para a instituição emitente, caso se configure a exceção prevista no caput do art. 28 da Lei Complementar no 101, de 4 de maio de 2000; ou\n3. seja decretado pelo BACEN o regime de administração especial temporária ou intervenção do BRB – Banco de Brasília S.A.; ou\n4. seja determinado pelo BACEN, segundo critérios estabelecidos em regulamento específico editado pelo Conselho Monetário Nacional,a extinção do instrumento.","Totalmente","Permanente","Contratual","Não","Não","Não se aplica"]
[null,36,"BRB - BANCO DE BRASILIA S/A","LFSC2200462","Lei 12.249/2010 - Resolução 4.955/2021 do CMN","Capital Complementar","Capital Complementar","Conglomerado","Letra financeira",{"v":7193159.77,"d":"R$ 7,193,159.77"},{"v":4571000,"d":"R$ 4,571,000.00"},"passivo - custo amortizado","2022-12-19","Perpétuo","2050-05-05","Sim","Anual, a partir de 20/12/2027","(1) Não há vinculação regulatória ou fiscal para resgate ou recompra","(2) Em parcela única na data da recompra","Não se aplica","Fixo","155% CDI","Não","Mandatório","Não","Cumulativo","Não conversível","Não se aplica","Não se aplica","Não se aplica","Não se aplica","Não se aplica","Não se aplica","Sim","Os títulos serão extintos, permanente e em valor no mínimo correspondente ao saldo computado no Nível I do Patrimônio de Referência do BRB – Banco de Brasília S.A nas seguintes condições:         1. seja verificada a divulgação pelo BRB – Banco de Brasília S.A. de que seu Capital Principal está em patamar inferior a 5,125% (cinco inteiros e cento e vinte e cinco milésimos por cento) do montante RWA, estabelecida pela Resolução 4.193, de 2013; ou\n2. assinatura de compromisso de aporte para a instituição emitente, caso se configure a exceção prevista no caput do art. 28 da Lei Complementar no 101, de 4 de maio de 2000; ou\n3. seja decretado pelo BACEN o regime de administração especial temporária ou intervenção do BRB – Banco de Brasília S.A.; ou\n4. seja determinado pelo BACEN, segundo critérios estabelecidos em regulamento específico editado pelo Conselho Monetário Nacional,a extinção do instrumento.","Totalmente","Permanente","Contratual","Não","Não","Não se aplica"]
[null,37,"BRB - BANCO DE BRASILIA S/A","LFSC2200463","Lei 12.249/2010 - Resolução 4.955/2021 do CMN","Capital Complementar","Capital Complementar","Conglomerado","Letra financeira",{"v":1205416.84,"d":"R$ 1,205,416.84"},{"v":766000,"d":"R$ 766,000.00"},"passivo - custo amortizado","2022-12-19","Perpétuo","2050-05-05","Sim","Anual, a partir de 20/12/2027","(1) Não há vinculação regulatória ou fiscal para resgate ou recompra","(2) Em parcela única na data da recompra","Não se aplica","Fixo","155% CDI","Não","Mandatório","Não","Cumulativo","Não conversível","Não se aplica","Não se aplica","Não se aplica","Não se aplica","Não se aplica","Não se aplica","Sim","Os títulos serão extintos, permanente e em valor no mínimo correspondente ao saldo computado no Nível I do Patrimônio de Referência do BRB – Banco de Brasília S.A nas seguintes condições:         1. seja verificada a divulgação pelo BRB – Banco de Brasília S.A. de que seu Capital Principal está em patamar inferior a 5,125% (cinco inteiros e cento e vinte e cinco milésimos por cento) do montante RWA, estabelecida pela Resolução 4.193, de 2013; ou\n2. assinatura de compromisso de aporte para a instituição emitente, caso se configure a exceção prevista no caput do art. 28 da Lei Complementar no 101, de 4 de maio de 2000; ou\n3. seja decretado pelo BACEN o regime de administração especial temporária ou intervenção do BRB – Banco de Brasília S.A.; ou\n4. seja determinado pelo BACEN, segundo critérios estabelecidos em regulamento específico editado pelo Conselho Monetário Nacional,a extinção do instrumento.","Totalmente","Permanente","Contratual","Não","Não","Não se aplica"]
[null,38,"BRB - BANCO DE BRASILIA S/A","LFSC22004BM","Lei 12.249/2010 - Resolução 4.955/2021 do CMN","Capital Complementar","Capital Complementar","Conglomerado","Letra financeira",{"v":4624174.92,"d":"R$ 4,624,174.92"},{"v":3000000,"d":"R$ 3,000,000.00"},"passivo - custo amortizado","2022-12-29","Perpétuo","2050-05-16","Sim","Anual, a partir de 30/12/2027","(1) Não há vinculação regulatória ou fiscal para resgate ou recompra","(2) Em parcela única na data da recompra","Não se aplica","Fixo","150% CDI","Não","Mandatório","Não","Cumulativo","Não conversível","Não se aplica","Não se aplica","Não se aplica","Não se aplica","Não se aplica","Não se aplica","Sim","Os títulos serão extintos, permanente e em valor no mínimo correspondente ao saldo computado no Nível I do Patrimônio de Referência do BRB – Banco de Brasília S.A nas seguintes condições:         1. seja verificada a divulgação pelo BRB – Banco de Brasília S.A. de que seu Capital Principal está em patamar inferior a 5,125% (cinco inteiros e cento e vinte e cinco milésimos por cento) do montante RWA, estabelecida pela Resolução 4.193, de 2013; ou\n2. assinatura de compromisso de aporte para a instituição emitente, caso se configure a exceção prevista no caput do art. 28 da Lei Complementar no 101, de 4 de maio de 2000; ou\n3. seja decretado pelo BACEN o regime de administração especial temporária ou intervenção do BRB – Banco de Brasília S.A.; ou\n4. seja determinado pelo BACEN, segundo critérios estabelecidos em regulamento específico editado pelo Conselho Monetário Nacional,a extinção do instrumento.","Totalmente","Permanente","Contratual","Não","Não","Não se aplica"]
[null,39,"BRB - BANCO DE BRASILIA S/A","LFSC23000GP","Lei 12.249/2010 - Resolução 4.955/2021 do CMN","Capital Complementar","Capital Complementar","Conglomerado","Letra financeira",{"v":61679488.34,"d":"R$ 61,679,488.34"},{"v":52999999.36,"d":"R$ 52,999,999.36"},"passivo - custo amortizado","2023-02-06","Perpétuo","2050-02-06","Sim","Anual, a partir de 07/02/2028","(1) Não há vinculação regulatória ou fiscal para resgate ou recompra","(2) Em parcela única na data da recompra","Não se aplica","Fixo","IPCA + 9,01%","Não","Mandatório","Não","Cumulativo","Não conversível","Não se aplica","Não se aplica","Não se aplica","Não se aplica","Não se aplica","Não se aplica","Sim","Os títulos serão extintos, permanente e em valor no mínimo correspondente ao saldo computado no Nível I do Patrimônio de Referência do BRB – Banco de Brasília S.A nas seguintes condições:         1. seja verificada a divulgação pelo BRB – Banco de Brasília S.A. de que seu Capital Principal está em patamar inferior a 5,125% (cinco inteiros e cento e vinte e cinco milésimos por cento) do montante RWA, estabelecida pela Resolução 4.193, de 2013; ou\n2. assinatura de compromisso de aporte para a instituição emitente, caso se configure a exceção prevista no caput do art. 28 da Lei Complementar no 101, de 4 de maio de 2000; ou\n3. seja decretado pelo BACEN o regime de administração especial temporária ou intervenção do BRB – Banco de Brasília S.A.; ou\n4. seja determinado pelo BACEN, segundo critérios estabelecidos em regulamento específico editado pelo Conselho Monetário Nacional,a extinção do instrumento.","Totalmente","Permanente","Contratual","Não","Não","Não se aplica"]
[null,40,"BRB - BANCO DE BRASILIA S/A","LFSC23000GQ","Lei 12.249/2010 - Resolução 4.955/2021 do CMN","Capital Complementar","Capital Complementar","Conglomerado","Letra financeira",{"v":19085728.46,"d":"R$ 19,085,728.46"},{"v":16399999.8,"d":"R$ 16,399,999.80"},"passivo - custo amortizado","2023-02-06","Perpétuo","2050-02-06","Sim","Anual, a partir de 07/02/2028","(1) Não há vinculação regulatória ou fiscal para resgate ou recompra","(2) Em parcela única na data da recompra","Não se aplica","Fixo","IPCA + 9,01%","Não","Mandatório","Não","Cumulativo","Não conversível","Não se aplica","Não se aplica","Não se aplica","Não se aplica","Não se aplica","Não se aplica","Sim","Os títulos serão extintos, permanente e em valor no mínimo correspondente ao saldo computado no Nível I do Patrimônio de Referência do BRB – Banco de Brasília S.A nas seguintes condições:         1. seja verificada a divulgação pelo BRB – Banco de Brasília S.A. de que seu Capital Principal está em patamar inferior a 5,125% (cinco inteiros e cento e vinte e cinco milésimos por cento) do montante RWA, estabelecida pela Resolução 4.193, de 2013; ou\n2. assinatura de compromisso de aporte para a instituição emitente, caso se configure a exceção prevista no caput do art. 28 da Lei Complementar no 101, de 4 de maio de 2000; ou\n3. seja decretado pelo BACEN o regime de administração especial temporária ou intervenção do BRB – Banco de Brasília S.A.; ou\n4. seja determinado pelo BACEN, segundo critérios estabelecidos em regulamento específico editado pelo Conselho Monetário Nacional,a extinção do instrumento.","Totalmente","Permanente","Contratual","Não","Não","Não se aplica"]
[null,41,"BRB - BANCO DE BRASILIA S/A","LFSC23000M9","Lei 12.249/2010 - Resolução 4.955/2021 do CMN","Capital Complementar","Capital Complementar","Conglomerado","Letra financeira",{"v":698258.36,"d":"R$ 698,258.36"},{"v":600000,"d":"R$ 600,000.00"},"passivo - custo amortizado","2023-02-06","Perpétuo","2050-02-06","Sim","Anual, a partir de 07/02/2028","(1) Não há vinculação regulatória ou fiscal para resgate ou recompra","(2) Em parcela única na data da recompra","Não se aplica","Fixo","IPCA + 9,01%","Não","Mandatório","Não","Cumulativo","Não conversível","Não se aplica","Não se aplica","Não se aplica","Não se aplica","Não se aplica","Não se aplica","Sim","Os títulos serão extintos, permanente e em valor no mínimo correspondente ao saldo computado no Nível I do Patrimônio de Referência do BRB – Banco de Brasília S.A nas seguintes condições:         1. seja verificada a divulgação pelo BRB – Banco de Brasília S.A. de que seu Capital Principal está em patamar inferior a 5,125% (cinco inteiros e cento e vinte e cinco milésimos por cento) do montante RWA, estabelecida pela Resolução 4.193, de 2013; ou\n2. assinatura de compromisso de aporte para a instituição emitente, caso se configure a exceção prevista no caput do art. 28 da Lei Complementar no 101, de 4 de maio de 2000; ou\n3. seja decretado pelo BACEN o regime de administração especial temporária ou intervenção do BRB – Banco de Brasília S.A.; ou\n4. seja determinado pelo BACEN, segundo critérios estabelecidos em regulamento específico editado pelo Conselho Monetário Nacional,a extinção do instrumento.","Totalmente","Permanente","Contratual","Não","Não","Não se aplica"]
[null,42,"BRB - BANCO DE BRASILIA S/A","LFSC250026C","Lei 12.249/2010 - Resolução 4.955/2021 do CMN","Capital Complementar","Capital Complementar","Conglomerado","Letra financeira",{"v":15463059.22,"d":"R$ 15,463,059.22"},{"v":15000000,"d":"R$ 15,000,000.00"},"passivo - custo amortizado","2025-02-20","Perpétuo","2050-02-23","Sim","Anual, a partir de 21/02/2030","(1) Não há vinculação regulatória ou fiscal para resgate ou recompra","(2) Em parcela única na data da recompra","Não se aplica","Fixo","IPCA + 8,1%","Não","Mandatório","Não","Cumulativo","Não conversível","Não se aplica","Não se aplica","Não se aplica","Não se aplica","Não se aplica","Não se aplica","Sim","Os títulos serão extintos, permanente e em valor no mínimo correspondente ao saldo computado no Nível I do Patrimônio de Referência do BRB – Banco de Brasília S.A nas seguintes condições:         1. seja verificada a divulgação pelo BRB – Banco de Brasília S.A. de que seu Capital Principal está em patamar inferior a 5,125% (cinco inteiros e cento e vinte e cinco milésimos por cento) do montante RWA, estabelecida pela Resolução 4.193, de 2013; ou\n2. assinatura de compromisso de aporte para a instituição emitente, caso se configure a exceção prevista no caput do art. 28 da Lei Complementar no 101, de 4 de maio de 2000; ou\n3. seja decretado pelo BACEN o regime de administração especial temporária ou intervenção do BRB – Banco de Brasília S.A.; ou\n4. seja determinado pelo BACEN, segundo critérios estabelecidos em regulamento específico editado pelo Conselho Monetário Nacional,a extinção do instrumento.","Totalmente","Permanente","Contratual","Não","Não","Não se aplica"]
[null,43,"BRB - BANCO DE BRASILIA S/A","LFSC25002BJ","Lei 12.249/2010 - Resolução 4.955/2021 do CMN","Capital Complementar","Capital Complementar","Conglomerado","Letra financeira",{"v":15184135.47,"d":"R$ 15,184,135.47"},{"v":15000000,"d":"R$ 15,000,000.00"},"passivo - custo amortizado","2025-02-25","Perpétuo","2050-02-20","Sim","Anual, a partir de 26/02/2030","(1) Não há vinculação regulatória ou fiscal para resgate ou recompra","(2) Em parcela única na data da recompra","Não se aplica","Fixo","IPCA + 8,1%","Não","Mandatório","Não","Cumulativo","Não conversível","Não se aplica","Não se aplica","Não se aplica","Não se aplica","Não se aplica","Não se aplica","Sim","Os títulos serão extintos, permanente e em valor no mínimo correspondente ao saldo computado no Nível I do Patrimônio de Referência do BRB – Banco de Brasília S.A nas seguintes condições:         1. seja verificada a divulgação pelo BRB – Banco de Brasília S.A. de que seu Capital Principal está em patamar inferior a 5,125% (cinco inteiros e cento e vinte e cinco milésimos por cento) do montante RWA, estabelecida pela Resolução 4.193, de 2013; ou\n2. assinatura de compromisso de aporte para a instituição emitente, caso se configure a exceção prevista no caput do art. 28 da Lei Complementar no 101, de 4 de maio de 2000; ou\n3. seja decretado pelo BACEN o regime de administração especial temporária ou intervenção do BRB – Banco de Brasília S.A.; ou\n4. seja determinado pelo BACEN, segundo critérios estabelecidos em regulamento específico editado pelo Conselho Monetário Nacional,a extinção do instrumento.","Totalmente","Permanente","Contratual","Não","Não","Não se aplica"]
[null,44,"BRB - BANCO DE BRASILIA S/A","LFSC25003PX","Lei 12.249/2010 - Resolução 4.955/2021 do CMN","Capital Complementar","Capital Complementar","Conglomerado","Letra financeira",{"v":29206319.19,"d":"R$ 29,206,319.19"},{"v":30000000,"d":"R$ 30,000,000.00"},"passivo - custo amortizado","2025-03-20","Perpétuo","2035-03-20","Sim","Anual, a partir de 21/03/2030","(1) Não há vinculação regulatória ou fiscal para resgate ou recompra","(2) Em parcela única na data da recompra","Não se aplica","Fixo","IPCA + 8%","Não","Mandatório","Não","Cumulativo","Não conversível","Não se aplica","Não se aplica","Não se aplica","Não se aplica","Não se aplica","Não se aplica","Sim","Os títulos serão extintos, permanente e em valor no mínimo correspondente ao saldo computado no Nível I do Patrimônio de Referência do BRB – Banco de Brasília S.A nas seguintes condições:         1. seja verificada a divulgação pelo BRB – Banco de Brasília S.A. de que seu Capital Principal está em patamar inferior a 5,125% (cinco inteiros e cento e vinte e cinco milésimos por cento) do montante RWA, estabelecida pela Resolução 4.193, de 2013; ou\n2. assinatura de compromisso de aporte para a instituição emitente, caso se configure a exceção prevista no caput do art. 28 da Lei Complementar no 101, de 4 de maio de 2000; ou\n3. seja decretado pelo BACEN o regime de administração especial temporária ou intervenção do BRB – Banco de Brasília S.A.; ou\n4. seja determinado pelo BACEN, segundo critérios estabelecidos em regulamento específico editado pelo Conselho Monetário Nacional,a extinção do instrumento.","Totalmente","Permanente","Contratual","Não","Não","Não se aplica"]
[null,45,"BRB - BANCO DE BRASILIA S/A","LFSN1800I5C","Lei 12.249/2010 - Resolução 4.955/2021 do CMN","Nível II","Nível II","Conglomerado","Letra financeira",0,{"v":10000000,"d":"R$ 10,000,000.00"},"passivo - custo amortizado","2018-11-29","Com vencimento","2025-11-28","Não","(1) Não há uma data específica, apenas quando for solicitado ao Bacen","(2) Não há vinculação regulatória ou fiscal para resgate ou recompra","(3) O valor pode ser parcial ou total, conforme autorização do Bacen","Não se aplica","Fixo","125% CDI","Não","Mandatório","Não","Cumulativo","Não conversível","Não se aplica","Não se aplica","Não se aplica","Não se aplica","Não se aplica","Não se aplica","Sim","Os títulos serão extintos, permanente e em valor no mínimo correspondente ao saldo computado no Nível II do Patrimônio de Referência do BRB – Banco de Brasília S.A nas seguintes condições:         1. seja verificada a divulgação pelo BRB – Banco de Brasília S.A. de que seu Capital Principal está em patamar inferior a 4,5% (quatro inteiros e cinco décimos por cento) do montante RWA, estabelecida pela regulamentação vigente; ou\n2. seja verificada, em lei específica, a assinatura de compromisso de aporte para o BRB – Banco de Brasília S.A.;\n3. seja decretado pelo BACEN o regime de administração especial temporária ou intervenção do BRB – Banco de Brasília S.A.; ou\n4. seja determinado pelo BACEN, segundo critérios estabelecidos em regulamento específico editado pelo Conselho Monetário Nacional,a extinção do instrumento.","Totalmente","Permanente","Contratual","Não","Não","Não se aplica"]
[null,46,"BRB - BANCO DE BRASILIA S/A","LFSN19000BA","Lei 12.249/2010 - Resolução 4.955/2021 do CMN","Nível II","Nível II","Conglomerado","Letra financeira",{"v":1615327.242,"d":"R$ 1,615,327.24"},{"v":4000000,"d":"R$ 4,000,000.00"},"passivo - custo amortizado","2019-02-08","Com vencimento","2026-08-17","Não","(1) Não há uma data específica, apenas quando for solicitado ao Bacen","(2) Não há vinculação regulatória ou fiscal para resgate ou recompra","(3) O valor pode ser parcial ou total, conforme autorização do Bacen","Não se aplica","Fixo","IPCA + 5,6%","Não","Mandatório","Não","Cumulativo","Não conversível","Não se aplica","Não se aplica","Não se aplica","Não se aplica","Não se aplica","Não se aplica","Sim","Os títulos serão extintos, permanente e em valor no mínimo correspondente ao saldo computado no Nível II do Patrimônio de Referência do BRB – Banco de Brasília S.A nas seguintes condições:         1. seja verificada a divulgação pelo BRB – Banco de Brasília S.A. de que seu Capital Principal está em patamar inferior a 4,5% (quatro inteiros e cinco décimos por cento) do montante RWA, estabelecida pela regulamentação vigente; ou\n2. seja verificada, em lei específica, a assinatura de compromisso de aporte para o BRB – Banco de Brasília S.A.;\n3. seja decretado pelo BACEN o regime de administração especial temporária ou intervenção do BRB – Banco de Brasília S.A.; ou\n4. seja determinado pelo BACEN, segundo critérios estabelecidos em regulamento específico editado pelo Conselho Monetário Nacional,a extinção do instrumento.","Totalmente","Permanente","Contratual","Não","Não","Não se aplica"]
[null,47,"BRB - BANCO DE BRASILIA S/A","LFSN1900BZ5","Lei 12.249/2010 - Resolução 4.955/2021 do CMN","Nível II","Nível II","Conglomerado","Letra financeira",{"v":363738.36400000006,"d":"R$ 363,738.36"},{"v":1000000,"d":"R$ 1,000,000.00"},"passivo - custo amortizado","2019-07-23","Com vencimento","2026-08-17","Não","(1) Não há uma data específica, apenas quando for solicitado ao Bacen","(2) Não há vinculação regulatória ou fiscal para resgate ou recompra","(3) O valor pode ser parcial ou total, conforme autorização do Bacen","Não se aplica","Fixo","120% CDI","Não","Mandatório","Não","Cumulativo","Não conversível","Não se aplica","Não se aplica","Não se aplica","Não se aplica","Não se aplica","Não se aplica","Sim","Os títulos serão extintos, permanente e em valor no mínimo correspondente ao saldo computado no Nível II do Patrimônio de Referência do BRB – Banco de Brasília S.A nas seguintes condições:         1. seja verificada a divulgação pelo BRB – Banco de Brasília S.A. de que seu Capital Principal está em patamar inferior a 4,5% (quatro inteiros e cinco décimos por cento) do montante RWA, estabelecida pela regulamentação vigente; ou\n2. seja verificada, em lei específica, a assinatura de compromisso de aporte para o BRB – Banco de Brasília S.A.;\n3. seja decretado pelo BACEN o regime de administração especial temporária ou intervenção do BRB – Banco de Brasília S.A.; ou\n4. seja determinado pelo BACEN, segundo critérios estabelecidos em regulamento específico editado pelo Conselho Monetário Nacional,a extinção do instrumento.","Totalmente","Permanente","Contratual","Não","Não","Não se aplica"]
[null,48,"BRB - BANCO DE BRASILIA S/A","LFSN1900BZ6","Lei 12.249/2010 - Resolução 4.955/2021 do CMN","Nível II","Nível II","Conglomerado","Letra financeira",{"v":362741.422,"d":"R$ 362,741.42"},{"v":1000000,"d":"R$ 1,000,000.00"},"passivo - custo amortizado","2019-07-23","Com vencimento","2026-08-17","Não","(1) Não há uma data específica, apenas quando for solicitado ao Bacen","(2) Não há vinculação regulatória ou fiscal para resgate ou recompra","(3) O valor pode ser parcial ou total, conforme autorização do Bacen","Não se aplica","Fixo","IPCA + 4,48%","Não","Mandatório","Não","Cumulativo","Não conversível","Não se aplica","Não se aplica","Não se aplica","Não se aplica","Não se aplica","Não se aplica","Sim","Os títulos serão extintos, permanente e em valor no mínimo correspondente ao saldo computado no Nível II do Patrimônio de Referência do BRB – Banco de Brasília S.A nas seguintes condições:         1. seja verificada a divulgação pelo BRB – Banco de Brasília S.A. de que seu Capital Principal está em patamar inferior a 4,5% (quatro inteiros e cinco décimos por cento) do montante RWA, estabelecida pela regulamentação vigente; ou\n2. seja verificada, em lei específica, a assinatura de compromisso de aporte para o BRB – Banco de Brasília S.A.;\n3. seja decretado pelo BACEN o regime de administração especial temporária ou intervenção do BRB – Banco de Brasília S.A.; ou\n4. seja determinado pelo BACEN, segundo critérios estabelecidos em regulamento específico editado pelo Conselho Monetário Nacional,a extinção do instrumento.","Totalmente","Permanente","Contratual","Não","Não","Não se aplica"]
[null,49,"BRB - BANCO DE BRASILIA S/A","LFSN1900BZ7","Lei 12.249/2010 - Resolução 4.955/2021 do CMN","Nível II","Nível II","Conglomerado","Letra financeira",{"v":363738.36400000006,"d":"R$ 363,738.36"},{"v":1000000,"d":"R$ 1,000,000.00"},"passivo - custo amortizado","2019-07-23","Com vencimento","2026-08-17","Não","(1) Não há uma data específica, apenas quando for solicitado ao Bacen","(2) Não há vinculação regulatória ou fiscal para resgate ou recompra","(3) O valor pode ser parcial ou total, conforme autorização do Bacen","Não se aplica","Fixo","120% CDI","Não","Mandatório","Não","Cumulativo","Não conversível","Não se aplica","Não se aplica","Não se aplica","Não se aplica","Não se aplica","Não se aplica","Sim","Os títulos serão extintos, permanente e em valor no mínimo correspondente ao saldo computado no Nível II do Patrimônio de Referência do BRB – Banco de Brasília S.A nas seguintes condições:         1. seja verificada a divulgação pelo BRB – Banco de Brasília S.A. de que seu Capital Principal está em patamar inferior a 4,5% (quatro inteiros e cinco décimos por cento) do montante RWA, estabelecida pela regulamentação vigente; ou\n2. seja verificada, em lei específica, a assinatura de compromisso de aporte para o BRB – Banco de Brasília S.A.;\n3. seja decretado pelo BACEN o regime de administração especial temporária ou intervenção do BRB – Banco de Brasília S.A.; ou\n4. seja determinado pelo BACEN, segundo critérios estabelecidos em regulamento específico editado pelo Conselho Monetário Nacional,a extinção do instrumento.","Totalmente","Permanente","Contratual","Não","Não","Não se aplica"]
[null,50,"BRB - BANCO DE BRASILIA S/A","LFSN1900FDL","Lei 12.249/2010 - Resolução 4.955/2021 do CMN","Nível II","Nível II","Conglomerado","Letra financeira",{"v":1684596.6260000002,"d":"R$ 1,684,596.63"},{"v":4687827.93,"d":"R$ 4,687,827.93"},"passivo - custo amortizado","2019-09-23","Com vencimento","2026-09-23","Não","(1) Não há uma data específica, apenas quando for solicitado ao Bacen","(2) Não há vinculação regulatória ou fiscal para resgate ou recompra","(3) O valor pode ser parcial ou total, conforme autorização do Bacen","Não se aplica","Fixo","120% CDI","Não","Mandatório","Não","Cumulativo","Não conversível","Não se aplica","Não se aplica","Não se aplica","Não se aplica","Não se aplica","Não se aplica","Sim","Os títulos serão extintos, permanente e em valor no mínimo correspondente ao saldo computado no Nível II do Patrimônio de Referência do BRB – Banco de Brasília S.A nas seguintes condições:         1. seja verificada a divulgação pelo BRB – Banco de Brasília S.A. de que seu Capital Principal está em patamar inferior a 4,5% (quatro inteiros e cinco décimos por cento) do montante RWA, estabelecida pela regulamentação vigente; ou\n2. seja verificada, em lei específica, a assinatura de compromisso de aporte para o BRB – Banco de Brasília S.A.;\n3. seja decretado pelo BACEN o regime de administração especial temporária ou intervenção do BRB – Banco de Brasília S.A.; ou\n4. seja determinado pelo BACEN, segundo critérios estabelecidos em regulamento específico editado pelo Conselho Monetário Nacional,a extinção do instrumento.","Totalmente","Permanente","Contratual","Não","Não","Não se aplica"]
[null,51,"BRB - BANCO DE BRASILIA S/A","LFSN20008SR","Lei 12.249/2010 - Resolução 4.955/2021 do CMN","Nível II","Nível II","Conglomerado","Letra financeira",{"v":28992011.55,"d":"R$ 28,992,011.55"},{"v":15000000,"d":"R$ 15,000,000.00"},"passivo - custo amortizado","2020-10-15","Com vencimento","2030-10-15","Não","(1) Não há uma data específica, apenas quando for solicitado ao Bacen","(2) Não há vinculação regulatória ou fiscal para resgate ou recompra","(3) O valor pode ser parcial ou total, conforme autorização do Bacen","Não se aplica","Fixo","IPCA + 7,9%","Não","Mandatório","Não","Cumulativo","Não conversível","Não se aplica","Não se aplica","Não se aplica","Não se aplica","Não se aplica","Não se aplica","Sim","Os títulos serão extintos, permanente e em valor no mínimo correspondente ao saldo computado no Nível II do Patrimônio de Referência do BRB – Banco de Brasília S.A nas seguintes condições:         1. seja verificada a divulgação pelo BRB – Banco de Brasília S.A. de que seu Capital Principal está em patamar inferior a 4,5% (quatro inteiros e cinco décimos por cento) do montante RWA, estabelecida pela regulamentação vigente; ou\n2. seja verificada, em lei específica, a assinatura de compromisso de aporte para o BRB – Banco de Brasília S.A.;\n3. seja decretado pelo BACEN o regime de administração especial temporária ou intervenção do BRB – Banco de Brasília S.A.; ou\n4. seja determinado pelo BACEN, segundo critérios estabelecidos em regulamento específico editado pelo Conselho Monetário Nacional,a extinção do instrumento.","Totalmente","Permanente","Contratual","Não","Não","Não se aplica"]
[null,52,"BRB - BANCO DE BRASILIA S/A","LFSN20008SS","Lei 12.249/2010 - Resolução 4.955/2021 do CMN","Nível II","Nível II","Conglomerado","Letra financeira",{"v":115968046.21,"d":"R$ 115,968,046.21"},{"v":60000000,"d":"R$ 60,000,000.00"},"passivo - custo amortizado","2020-10-15","Com vencimento","2030-10-15","Não","(1) Não há uma data específica, apenas quando for solicitado ao Bacen","(2) Não há vinculação regulatória ou fiscal para resgate ou recompra","(3) O valor pode ser parcial ou total, conforme autorização do Bacen","Não se aplica","Fixo","IPCA + 7,9%","Não","Mandatório","Não","Cumulativo","Não conversível","Não se aplica","Não se aplica","Não se aplica","Não se aplica","Não se aplica","Não se aplica","Sim","Os títulos serão extintos, permanente e em valor no mínimo correspondente ao saldo computado no Nível II do Patrimônio de Referência do BRB – Banco de Brasília S.A nas seguintes condições:         1. seja verificada a divulgação pelo BRB – Banco de Brasília S.A. de que seu Capital Principal está em patamar inferior a 4,5% (quatro inteiros e cinco décimos por cento) do montante RWA, estabelecida pela regulamentação vigente; ou\n2. seja verificada, em lei específica, a assinatura de compromisso de aporte para o BRB – Banco de Brasília S.A.;\n3. seja decretado pelo BACEN o regime de administração especial temporária ou intervenção do BRB – Banco de Brasília S.A.; ou\n4. seja determinado pelo BACEN, segundo critérios estabelecidos em regulamento específico editado pelo Conselho Monetário Nacional,a extinção do instrumento.","Totalmente","Permanente","Contratual","Não","Não","Não se aplica"]
[null,53,"BRB - BANCO DE BRASILIA S/A","LFSN20009F8","Lei 12.249/2010 - Resolução 4.955/2021 do CMN","Nível II","Nível II","Conglomerado","Letra financeira",{"v":7116837.712000001,"d":"R$ 7,116,837.71"},{"v":9495766.62,"d":"R$ 9,495,766.62"},"passivo - custo amortizado","2020-12-14","Com vencimento","2027-12-14","Não","(1) Não há uma data específica, apenas quando for solicitado ao Bacen","(2) Não há vinculação regulatória ou fiscal para resgate ou recompra","(3) O valor pode ser parcial ou total, conforme autorização do Bacen","Não se aplica","Fixo","140% CDI","Não","Mandatório","Não","Cumulativo","Não conversível","Não se aplica","Não se aplica","Não se aplica","Não se aplica","Não se aplica","Não se aplica","Sim","Os títulos serão extintos, permanente e em valor no mínimo correspondente ao saldo computado no Nível II do Patrimônio de Referência do BRB – Banco de Brasília S.A nas seguintes condições:         1. seja verificada a divulgação pelo BRB – Banco de Brasília S.A. de que seu Capital Principal está em patamar inferior a 4,5% (quatro inteiros e cinco décimos por cento) do montante RWA, estabelecida pela regulamentação vigente; ou\n2. seja verificada, em lei específica, a assinatura de compromisso de aporte para o BRB – Banco de Brasília S.A.;\n3. seja decretado pelo BACEN o regime de administração especial temporária ou intervenção do BRB – Banco de Brasília S.A.; ou\n4. seja determinado pelo BACEN, segundo critérios estabelecidos em regulamento específico editado pelo Conselho Monetário Nacional,a extinção do instrumento.","Totalmente","Permanente","Contratual","Não","Não","Não se aplica"]
[null,54,"BRB - BANCO DE BRASILIA S/A","LFSN20009F9","Lei 12.249/2010 - Resolução 4.955/2021 do CMN","Nível II","Nível II","Conglomerado","Letra financeira",{"v":66464990.324,"d":"R$ 66,464,990.32"},{"v":88682089.16,"d":"R$ 88,682,089.16"},"passivo - custo amortizado","2020-12-14","Com vencimento","2027-12-14","Não","(1) Não há uma data específica, apenas quando for solicitado ao Bacen","(2) Não há vinculação regulatória ou fiscal para resgate ou recompra","(3) O valor pode ser parcial ou total, conforme autorização do Bacen","Não se aplica","Fixo","140% CDI","Não","Mandatório","Não","Cumulativo","Não conversível","Não se aplica","Não se aplica","Não se aplica","Não se aplica","Não se aplica","Não se aplica","Sim","Os títulos serão extintos, permanente e em valor no mínimo correspondente ao saldo computado no Nível II do Patrimônio de Referência do BRB – Banco de Brasília S.A nas seguintes condições:         1. seja verificada a divulgação pelo BRB – Banco de Brasília S.A. de que seu Capital Principal está em patamar inferior a 4,5% (quatro inteiros e cinco décimos por cento) do montante RWA, estabelecida pela regulamentação vigente; ou\n2. seja verificada, em lei específica, a assinatura de compromisso de aporte para o BRB – Banco de Brasília S.A.;\n3. seja decretado pelo BACEN o regime de administração especial temporária ou intervenção do BRB – Banco de Brasília S.A.; ou\n4. seja determinado pelo BACEN, segundo critérios estabelecidos em regulamento específico editado pelo Conselho Monetário Nacional,a extinção do instrumento.","Totalmente","Permanente","Contratual","Não","Não","Não se aplica"]
[null,55,"BRB - BANCO DE BRASILIA S/A","LFSN210024S","Lei 12.249/2010 - Resolução 4.955/2021 do CMN","Nível II","Nível II","Conglomerado","Letra financeira",0,{"v":50000000,"d":"R$ 50,000,000.00"},"passivo - custo amortizado","2021-06-28","Com vencimento","2026-06-29","Não","(1) Não há uma data específica, apenas quando for solicitado ao Bacen","(2) Não há vinculação regulatória ou fiscal para resgate ou recompra","(3) O valor pode ser parcial ou total, conforme autorização do Bacen","Não se aplica","Fixo","IPCA + 7%","Não","Mandatório","Não","Cumulativo","Não conversível","Não se aplica","Não se aplica","Não se aplica","Não se aplica","Não se aplica","Não se aplica","Sim","Os títulos serão extintos, permanente e em valor no mínimo correspondente ao saldo computado no Nível II do Patrimônio de Referência do BRB – Banco de Brasília S.A nas seguintes condições:         1. seja verificada a divulgação pelo BRB – Banco de Brasília S.A. de que seu Capital Principal está em patamar inferior a 4,5% (quatro inteiros e cinco décimos por cento) do montante RWA, estabelecida pela regulamentação vigente; ou\n2. seja verificada, em lei específica, a assinatura de compromisso de aporte para o BRB – Banco de Brasília S.A.;\n3. seja decretado pelo BACEN o regime de administração especial temporária ou intervenção do BRB – Banco de Brasília S.A.; ou\n4. seja determinado pelo BACEN, segundo critérios estabelecidos em regulamento específico editado pelo Conselho Monetário Nacional,a extinção do instrumento.","Totalmente","Permanente","Contratual","Não","Não","Não se aplica"]
[null,56,"BRB - BANCO DE BRASILIA S/A","LFSN21002KE","Lei 12.249/2010 - Resolução 4.955/2021 do CMN","Nível II","Nível II","Conglomerado","Letra financeira",{"v":50364675.941999994,"d":"R$ 50,364,675.94"},{"v":50000000,"d":"R$ 50,000,000.00"},"passivo - custo amortizado","2021-08-11","Com vencimento","2028-08-11","Não","(1) Não há uma data específica, apenas quando for solicitado ao Bacen","(2) Não há vinculação regulatória ou fiscal para resgate ou recompra","(3) O valor pode ser parcial ou total, conforme autorização do Bacen","Não se aplica","Fixo","IPCA + 7,65%","Não","Mandatório","Não","Cumulativo","Não conversível","Não se aplica","Não se aplica","Não se aplica","Não se aplica","Não se aplica","Não se aplica","Sim","Os títulos serão extintos, permanente e em valor no mínimo correspondente ao saldo computado no Nível II do Patrimônio de Referência do BRB – Banco de Brasília S.A nas seguintes condições:         1. seja verificada a divulgação pelo BRB – Banco de Brasília S.A. de que seu Capital Principal está em patamar inferior a 4,5% (quatro inteiros e cinco décimos por cento) do montante RWA, estabelecida pela regulamentação vigente; ou\n2. seja verificada, em lei específica, a assinatura de compromisso de aporte para o BRB – Banco de Brasília S.A.;\n3. seja decretado pelo BACEN o regime de administração especial temporária ou intervenção do BRB – Banco de Brasília S.A.; ou\n4. seja determinado pelo BACEN, segundo critérios estabelecidos em regulamento específico editado pelo Conselho Monetário Nacional,a extinção do instrumento.","Totalmente","Permanente","Contratual","Não","Não","Não se aplica"]
[null,57,"BRB - BANCO DE BRASILIA S/A","LFSN21003UL","Lei 12.249/2010 - Resolução 4.955/2021 do CMN","Nível II","Nível II","Conglomerado","Letra financeira",{"v":95299.844,"d":"R$ 95,299.84"},{"v":300000,"d":"R$ 300,000.00"},"passivo - custo amortizado","2021-09-23","Com vencimento","2026-09-24","Não","(1) Não há uma data específica, apenas quando for solicitado ao Bacen","(2) Não há vinculação regulatória ou fiscal para resgate ou recompra","(3) O valor pode ser parcial ou total, conforme autorização do Bacen","Não se aplica","Fixo","IPCA + 6,82%","Não","Mandatório","Não","Cumulativo","Não conversível","Não se aplica","Não se aplica","Não se aplica","Não se aplica","Não se aplica","Não se aplica","Sim","Os títulos serão extintos, permanente e em valor no mínimo correspondente ao saldo computado no Nível II do Patrimônio de Referência do BRB – Banco de Brasília S.A nas seguintes condições:         1. seja verificada a divulgação pelo BRB – Banco de Brasília S.A. de que seu Capital Principal está em patamar inferior a 4,5% (quatro inteiros e cinco décimos por cento) do montante RWA, estabelecida pela regulamentação vigente; ou\n2. seja verificada, em lei específica, a assinatura de compromisso de aporte para o BRB – Banco de Brasília S.A.;\n3. seja decretado pelo BACEN o regime de administração especial temporária ou intervenção do BRB – Banco de Brasília S.A.; ou\n4. seja determinado pelo BACEN, segundo critérios estabelecidos em regulamento específico editado pelo Conselho Monetário Nacional,a extinção do instrumento.","Totalmente","Permanente","Contratual","Não","Não","Não se aplica"]
[null,58,"BRB - BANCO DE BRASILIA S/A","LFSN21003UM","Lei 12.249/2010 - Resolução 4.955/2021 do CMN","Nível II","Nível II","Conglomerado","Letra financeira",{"v":95219.474,"d":"R$ 95,219.47"},{"v":300000,"d":"R$ 300,000.00"},"passivo - custo amortizado","2021-09-23","Com vencimento","2026-09-24","Não","(1) Não há uma data específica, apenas quando for solicitado ao Bacen","(2) Não há vinculação regulatória ou fiscal para resgate ou recompra","(3) O valor pode ser parcial ou total, conforme autorização do Bacen","Não se aplica","Fixo","IPCA + 6,8%","Não","Mandatório","Não","Cumulativo","Não conversível","Não se aplica","Não se aplica","Não se aplica","Não se aplica","Não se aplica","Não se aplica","Sim","Os títulos serão extintos, permanente e em valor no mínimo correspondente ao saldo computado no Nível II do Patrimônio de Referência do BRB – Banco de Brasília S.A nas seguintes condições:         1. seja verificada a divulgação pelo BRB – Banco de Brasília S.A. de que seu Capital Principal está em patamar inferior a 4,5% (quatro inteiros e cinco décimos por cento) do montante RWA, estabelecida pela regulamentação vigente; ou\n2. seja verificada, em lei específica, a assinatura de compromisso de aporte para o BRB – Banco de Brasília S.A.;\n3. seja decretado pelo BACEN o regime de administração especial temporária ou intervenção do BRB – Banco de Brasília S.A.; ou\n4. seja determinado pelo BACEN, segundo critérios estabelecidos em regulamento específico editado pelo Conselho Monetário Nacional,a extinção do instrumento.","Totalmente","Permanente","Contratual","Não","Não","Não se aplica"]
[null,59,"BRB - BANCO DE BRASILIA S/A","LFSN21003V1","Lei 12.249/2010 - Resolução 4.955/2021 do CMN","Nível II","Nível II","Conglomerado","Letra financeira",{"v":3181103.632,"d":"R$ 3,181,103.63"},{"v":9953469.1,"d":"R$ 9,953,469.10"},"passivo - custo amortizado","2021-09-28","Com vencimento","2026-09-28","Não","(1) Não há uma data específica, apenas quando for solicitado ao Bacen","(2) Não há vinculação regulatória ou fiscal para resgate ou recompra","(3) O valor pode ser parcial ou total, conforme autorização do Bacen","Não se aplica","Fixo","IPCA + 7%","Não","Mandatório","Não","Cumulativo","Não conversível","Não se aplica","Não se aplica","Não se aplica","Não se aplica","Não se aplica","Não se aplica","Sim","Os títulos serão extintos, permanente e em valor no mínimo correspondente ao saldo computado no Nível II do Patrimônio de Referência do BRB – Banco de Brasília S.A nas seguintes condições:         1. seja verificada a divulgação pelo BRB – Banco de Brasília S.A. de que seu Capital Principal está em patamar inferior a 4,5% (quatro inteiros e cinco décimos por cento) do montante RWA, estabelecida pela regulamentação vigente; ou\n2. seja verificada, em lei específica, a assinatura de compromisso de aporte para o BRB – Banco de Brasília S.A.;\n3. seja decretado pelo BACEN o regime de administração especial temporária ou intervenção do BRB – Banco de Brasília S.A.; ou\n4. seja determinado pelo BACEN, segundo critérios estabelecidos em regulamento específico editado pelo Conselho Monetário Nacional,a extinção do instrumento.","Totalmente","Permanente","Contratual","Não","Não","Não se aplica"]
[null,60,"BRB - BANCO DE BRASILIA S/A","LFSN22002N6","Lei 12.249/2010 - Resolução 4.955/2021 do CMN","Nível II","Nível II","Conglomerado","Letra financeira",{"v":24741958.608,"d":"R$ 24,741,958.61"},{"v":24000000,"d":"R$ 24,000,000.00"},"passivo - custo amortizado","2022-03-11","Com vencimento","2029-03-12","Não","(1) Não há uma data específica, apenas quando for solicitado ao Bacen","(2) Não há vinculação regulatória ou fiscal para resgate ou recompra","(3) O valor pode ser parcial ou total, conforme autorização do Bacen","Não se aplica","Fixo","140% CDI","Não","Mandatório","Não","Cumulativo","Não conversível","Não se aplica","Não se aplica","Não se aplica","Não se aplica","Não se aplica","Não se aplica","Sim","Os títulos serão extintos, permanente e em valor no mínimo correspondente ao saldo computado no Nível II do Patrimônio de Referência do BRB – Banco de Brasília S.A nas seguintes condições:         1. seja verificada a divulgação pelo BRB – Banco de Brasília S.A. de que seu Capital Principal está em patamar inferior a 4,5% (quatro inteiros e cinco décimos por cento) do montante RWA, estabelecida pela regulamentação vigente; ou\n2. seja verificada, em lei específica, a assinatura de compromisso de aporte para o BRB – Banco de Brasília S.A.;\n3. seja decretado pelo BACEN o regime de administração especial temporária ou intervenção do BRB – Banco de Brasília S.A.; ou\n4. seja determinado pelo BACEN, segundo critérios estabelecidos em regulamento específico editado pelo Conselho Monetário Nacional,a extinção do instrumento.","Totalmente","Permanente","Contratual","Não","Não","Não se aplica"]
[null,61,"BRB - BANCO DE BRASILIA S/A","LFSN22002N7","Lei 12.249/2010 - Resolução 4.955/2021 do CMN","Nível II","Nível II","Conglomerado","Letra financeira",{"v":16178940.480000002,"d":"R$ 16,178,940.48"},{"v":24000000,"d":"R$ 24,000,000.00"},"passivo - custo amortizado","2022-03-11","Com vencimento","2028-03-13","Não","(1) Não há uma data específica, apenas quando for solicitado ao Bacen","(2) Não há vinculação regulatória ou fiscal para resgate ou recompra","(3) O valor pode ser parcial ou total, conforme autorização do Bacen","Não se aplica","Fixo","135% CDI","Não","Mandatório","Não","Cumulativo","Não conversível","Não se aplica","Não se aplica","Não se aplica","Não se aplica","Não se aplica","Não se aplica","Sim","Os títulos serão extintos, permanente e em valor no mínimo correspondente ao saldo computado no Nível II do Patrimônio de Referência do BRB – Banco de Brasília S.A nas seguintes condições:         1. seja verificada a divulgação pelo BRB – Banco de Brasília S.A. de que seu Capital Principal está em patamar inferior a 4,5% (quatro inteiros e cinco décimos por cento) do montante RWA, estabelecida pela regulamentação vigente; ou\n2. seja verificada, em lei específica, a assinatura de compromisso de aporte para o BRB – Banco de Brasília S.A.;\n3. seja decretado pelo BACEN o regime de administração especial temporária ou intervenção do BRB – Banco de Brasília S.A.; ou\n4. seja determinado pelo BACEN, segundo critérios estabelecidos em regulamento específico editado pelo Conselho Monetário Nacional,a extinção do instrumento.","Totalmente","Permanente","Contratual","Não","Não","Não se aplica"]
[null,62,"BRB - BANCO DE BRASILIA S/A","LFSN22003UX","Lei 12.249/2010 - Resolução 4.955/2021 do CMN","Nível II","Nível II","Conglomerado","Letra financeira",{"v":5952295.4120000005,"d":"R$ 5,952,295.41"},{"v":10000000,"d":"R$ 10,000,000.00"},"passivo - custo amortizado","2022-03-30","Com vencimento","2028-03-30","Não","(1) Não há uma data específica, apenas quando for solicitado ao Bacen","(2) Não há vinculação regulatória ou fiscal para resgate ou recompra","(3) O valor pode ser parcial ou total, conforme autorização do Bacen","Não se aplica","Fixo","IPCA + 7,9%","Não","Mandatório","Não","Cumulativo","Não conversível","Não se aplica","Não se aplica","Não se aplica","Não se aplica","Não se aplica","Não se aplica","Sim","Os títulos serão extintos, permanente e em valor no mínimo correspondente ao saldo computado no Nível II do Patrimônio de Referência do BRB – Banco de Brasília S.A nas seguintes condições:         1. seja verificada a divulgação pelo BRB – Banco de Brasília S.A. de que seu Capital Principal está em patamar inferior a 4,5% (quatro inteiros e cinco décimos por cento) do montante RWA, estabelecida pela regulamentação vigente; ou\n2. seja verificada, em lei específica, a assinatura de compromisso de aporte para o BRB – Banco de Brasília S.A.;\n3. seja decretado pelo BACEN o regime de administração especial temporária ou intervenção do BRB – Banco de Brasília S.A.; ou\n4. seja determinado pelo BACEN, segundo critérios estabelecidos em regulamento específico editado pelo Conselho Monetário Nacional,a extinção do instrumento.","Totalmente","Permanente","Contratual","Não","Não","Não se aplica"]
[null,63,"BRB - BANCO DE BRASILIA S/A","LFSN220040V","Lei 12.249/2010 - Resolução 4.955/2021 do CMN","Nível II","Nível II","Conglomerado","Letra financeira",{"v":6666027.94,"d":"R$ 6,666,027.94"},{"v":10749000,"d":"R$ 10,749,000.00"},"passivo - custo amortizado","2022-03-31","Com vencimento","2028-03-31","Não","(1) Não há uma data específica, apenas quando for solicitado ao Bacen","(2) Não há vinculação regulatória ou fiscal para resgate ou recompra","(3) O valor pode ser parcial ou total, conforme autorização do Bacen","Não se aplica","Fixo","14,48%","Não","Mandatório","Não","Cumulativo","Não conversível","Não se aplica","Não se aplica","Não se aplica","Não se aplica","Não se aplica","Não se aplica","Sim","Os títulos serão extintos, permanente e em valor no mínimo correspondente ao saldo computado no Nível II do Patrimônio de Referência do BRB – Banco de Brasília S.A nas seguintes condições:         1. seja verificada a divulgação pelo BRB – Banco de Brasília S.A. de que seu Capital Principal está em patamar inferior a 4,5% (quatro inteiros e cinco décimos por cento) do montante RWA, estabelecida pela regulamentação vigente; ou\n2. seja verificada, em lei específica, a assinatura de compromisso de aporte para o BRB – Banco de Brasília S.A.;\n3. seja decretado pelo BACEN o regime de administração especial temporária ou intervenção do BRB – Banco de Brasília S.A.; ou\n4. seja determinado pelo BACEN, segundo critérios estabelecidos em regulamento específico editado pelo Conselho Monetário Nacional,a extinção do instrumento.","Totalmente","Permanente","Contratual","Não","Não","Não se aplica"]
[null,64,"BRB - BANCO DE BRASILIA S/A","LFSN22006BY","Lei 12.249/2010 - Resolução 4.955/2021 do CMN","Nível II","Nível II","Conglomerado","Letra financeira",{"v":6763353.942,"d":"R$ 6,763,353.94"},{"v":7800000,"d":"R$ 7,800,000.00"},"passivo - custo amortizado","2022-05-17","Com vencimento","2029-05-17","Não","(1) Não há uma data específica, apenas quando for solicitado ao Bacen","(2) Não há vinculação regulatória ou fiscal para resgate ou recompra","(3) O valor pode ser parcial ou total, conforme autorização do Bacen","Não se aplica","Fixo","IPCA + 7,99%","Não","Mandatório","Não","Cumulativo","Não conversível","Não se aplica","Não se aplica","Não se aplica","Não se aplica","Não se aplica","Não se aplica","Sim","Os títulos serão extintos, permanente e em valor no mínimo correspondente ao saldo computado no Nível II do Patrimônio de Referência do BRB – Banco de Brasília S.A nas seguintes condições:         1. seja verificada a divulgação pelo BRB – Banco de Brasília S.A. de que seu Capital Principal está em patamar inferior a 4,5% (quatro inteiros e cinco décimos por cento) do montante RWA, estabelecida pela regulamentação vigente; ou\n2. seja verificada, em lei específica, a assinatura de compromisso de aporte para o BRB – Banco de Brasília S.A.;\n3. seja decretado pelo BACEN o regime de administração especial temporária ou intervenção do BRB – Banco de Brasília S.A.; ou\n4. seja determinado pelo BACEN, segundo critérios estabelecidos em regulamento específico editado pelo Conselho Monetário Nacional,a extinção do instrumento.","Totalmente","Permanente","Contratual","Não","Não","Não se aplica"]
[null,65,"BRB - BANCO DE BRASILIA S/A","LFSN22006SV","Lei 12.249/2010 - Resolução 4.955/2021 do CMN","Nível II","Nível II","Conglomerado","Letra financeira",{"v":3095447.4600000004,"d":"R$ 3,095,447.46"},{"v":5000000,"d":"R$ 5,000,000.00"},"passivo - custo amortizado","2022-05-25","Com vencimento","2028-05-25","Não","(1) Não há uma data específica, apenas quando for solicitado ao Bacen","(2) Não há vinculação regulatória ou fiscal para resgate ou recompra","(3) O valor pode ser parcial ou total, conforme autorização do Bacen","Não se aplica","Fixo","120% CDI","Não","Mandatório","Não","Cumulativo","Não conversível","Não se aplica","Não se aplica","Não se aplica","Não se aplica","Não se aplica","Não se aplica","Sim","Os títulos serão extintos, permanente e em valor no mínimo correspondente ao saldo computado no Nível II do Patrimônio de Referência do BRB – Banco de Brasília S.A nas seguintes condições:         1. seja verificada a divulgação pelo BRB – Banco de Brasília S.A. de que seu Capital Principal está em patamar inferior a 4,5% (quatro inteiros e cinco décimos por cento) do montante RWA, estabelecida pela regulamentação vigente; ou\n2. seja verificada, em lei específica, a assinatura de compromisso de aporte para o BRB – Banco de Brasília S.A.;\n3. seja decretado pelo BACEN o regime de administração especial temporária ou intervenção do BRB – Banco de Brasília S.A.; ou\n4. seja determinado pelo BACEN, segundo critérios estabelecidos em regulamento específico editado pelo Conselho Monetário Nacional,a extinção do instrumento.","Totalmente","Permanente","Contratual","Não","Não","Não se aplica"]
[null,66,"BRB - BANCO DE BRASILIA S/A","LFSN2200795","Lei 12.249/2010 - Resolução 4.955/2021 do CMN","Nível II","Nível II","Conglomerado","Letra financeira",{"v":105192907.86400001,"d":"R$ 105,192,907.86"},{"v":170432403.91,"d":"R$ 170,432,403.91"},"passivo - custo amortizado","2022-05-30","Com vencimento","2028-05-30","Não","(1) Não há uma data específica, apenas quando for solicitado ao Bacen","(2) Não há vinculação regulatória ou fiscal para resgate ou recompra","(3) O valor pode ser parcial ou total, conforme autorização do Bacen","Não se aplica","Fixo","15,14%","Não","Mandatório","Não","Cumulativo","Não conversível","Não se aplica","Não se aplica","Não se aplica","Não se aplica","Não se aplica","Não se aplica","Sim","Os títulos serão extintos, permanente e em valor no mínimo correspondente ao saldo computado no Nível II do Patrimônio de Referência do BRB – Banco de Brasília S.A nas seguintes condições:         1. seja verificada a divulgação pelo BRB – Banco de Brasília S.A. de que seu Capital Principal está em patamar inferior a 4,5% (quatro inteiros e cinco décimos por cento) do montante RWA, estabelecida pela regulamentação vigente; ou\n2. seja verificada, em lei específica, a assinatura de compromisso de aporte para o BRB – Banco de Brasília S.A.;\n3. seja decretado pelo BACEN o regime de administração especial temporária ou intervenção do BRB – Banco de Brasília S.A.; ou\n4. seja determinado pelo BACEN, segundo critérios estabelecidos em regulamento específico editado pelo Conselho Monetário Nacional,a extinção do instrumento.","Totalmente","Permanente","Contratual","Não","Não","Não se aplica"]
[null,{"$f":"B75+1","v":67},"BRB - BANCO DE BRASILIA S/A","LFSN220086J","Lei 12.249/2010 - Resolução 4.955/2021 do CMN","Nível II","Nível II","Conglomerado","Letra financeira",{"v":11599910.892,"d":"R$ 11,599,910.89"},{"v":18912000,"d":"R$ 18,912,000.00"},"passivo - custo amortizado","2022-04-20","Com vencimento","2028-04-20","Não","(1) Não há uma data específica, apenas quando for solicitado ao Bacen","(2) Não há vinculação regulatória ou fiscal para resgate ou recompra","(3) O valor pode ser parcial ou total, conforme autorização do Bacen","Não se aplica","Fixo","14,35%","Não","Mandatório","Não","Cumulativo","Não conversível","Não se aplica","Não se aplica","Não se aplica","Não se aplica","Não se aplica","Não se aplica","Sim","Os títulos serão extintos, permanente e em valor no mínimo correspondente ao saldo computado no Nível II do Patrimônio de Referência do BRB – Banco de Brasília S.A nas seguintes condições:         1. seja verificada a divulgação pelo BRB – Banco de Brasília S.A. de que seu Capital Principal está em patamar inferior a 4,5% (quatro inteiros e cinco décimos por cento) do montante RWA, estabelecida pela regulamentação vigente; ou\n2. seja verificada, em lei específica, a assinatura de compromisso de aporte para o BRB – Banco de Brasília S.A.;\n3. seja decretado pelo BACEN o regime de administração especial temporária ou intervenção do BRB – Banco de Brasília S.A.; ou\n4. seja determinado pelo BACEN, segundo critérios estabelecidos em regulamento específico editado pelo Conselho Monetário Nacional,a extinção do instrumento.","Totalmente","Permanente","Contratual","Não","Não","Não se aplica"]
[null,68,"BRB - BANCO DE BRASILIA S/A","LFSN220086K","Lei 12.249/2010 - Resolução 4.955/2021 do CMN","Nível II","Nível II","Conglomerado","Letra financeira",{"v":14087239.508000001,"d":"R$ 14,087,239.51"},{"v":22912000,"d":"R$ 22,912,000.00"},"passivo - custo amortizado","2022-04-18","Com vencimento","2028-04-18","Não","(1) Não há uma data específica, apenas quando for solicitado ao Bacen","(2) Não há vinculação regulatória ou fiscal para resgate ou recompra","(3) O valor pode ser parcial ou total, conforme autorização do Bacen","Não se aplica","Fixo","14,41%","Não","Mandatório","Não","Cumulativo","Não conversível","Não se aplica","Não se aplica","Não se aplica","Não se aplica","Não se aplica","Não se aplica","Sim","Os títulos serão extintos, permanente e em valor no mínimo correspondente ao saldo computado no Nível II do Patrimônio de Referência do BRB – Banco de Brasília S.A nas seguintes condições:         1. seja verificada a divulgação pelo BRB – Banco de Brasília S.A. de que seu Capital Principal está em patamar inferior a 4,5% (quatro inteiros e cinco décimos por cento) do montante RWA, estabelecida pela regulamentação vigente; ou\n2. seja verificada, em lei específica, a assinatura de compromisso de aporte para o BRB – Banco de Brasília S.A.;\n3. seja decretado pelo BACEN o regime de administração especial temporária ou intervenção do BRB – Banco de Brasília S.A.; ou\n4. seja determinado pelo BACEN, segundo critérios estabelecidos em regulamento específico editado pelo Conselho Monetário Nacional,a extinção do instrumento.","Totalmente","Permanente","Contratual","Não","Não","Não se aplica"]
[null,69,"BRB - BANCO DE BRASILIA S/A","LFSN220086L","Lei 12.249/2010 - Resolução 4.955/2021 do CMN","Nível II","Nível II","Conglomerado","Letra financeira",{"v":16160043.468000002,"d":"R$ 16,160,043.47"},{"v":26235000,"d":"R$ 26,235,000.00"},"passivo - custo amortizado","2022-04-13","Com vencimento","2028-04-13","Não","(1) Não há uma data específica, apenas quando for solicitado ao Bacen","(2) Não há vinculação regulatória ou fiscal para resgate ou recompra","(3) O valor pode ser parcial ou total, conforme autorização do Bacen","Não se aplica","Fixo","14,41%","Não","Mandatório","Não","Cumulativo","Não conversível","Não se aplica","Não se aplica","Não se aplica","Não se aplica","Não se aplica","Não se aplica","Sim","Os títulos serão extintos, permanente e em valor no mínimo correspondente ao saldo computado no Nível II do Patrimônio de Referência do BRB – Banco de Brasília S.A nas seguintes condições:         1. seja verificada a divulgação pelo BRB – Banco de Brasília S.A. de que seu Capital Principal está em patamar inferior a 4,5% (quatro inteiros e cinco décimos por cento) do montante RWA, estabelecida pela regulamentação vigente; ou\n2. seja verificada, em lei específica, a assinatura de compromisso de aporte para o BRB – Banco de Brasília S.A.;\n3. seja decretado pelo BACEN o regime de administração especial temporária ou intervenção do BRB – Banco de Brasília S.A.; ou\n4. seja determinado pelo BACEN, segundo critérios estabelecidos em regulamento específico editado pelo Conselho Monetário Nacional,a extinção do instrumento.","Totalmente","Permanente","Contratual","Não","Não","Não se aplica"]
[null,70,"BRB - BANCO DE BRASILIA S/A","LFSN22008YJ","Lei 12.249/2010 - Resolução 4.955/2021 do CMN","Nível II","Nível II","Conglomerado","Letra financeira",{"v":20262680.996000003,"d":"R$ 20,262,681.00"},{"v":32400000,"d":"R$ 32,400,000.00"},"passivo - custo amortizado","2022-06-29","Com vencimento","2028-06-29","Não","(1) Não há uma data específica, apenas quando for solicitado ao Bacen","(2) Não há vinculação regulatória ou fiscal para resgate ou recompra","(3) O valor pode ser parcial ou total, conforme autorização do Bacen","Não se aplica","Fixo","130% CDI","Não","Mandatório","Não","Cumulativo","Não conversível","Não se aplica","Não se aplica","Não se aplica","Não se aplica","Não se aplica","Não se aplica","Sim","Os títulos serão extintos, permanente e em valor no mínimo correspondente ao saldo computado no Nível II do Patrimônio de Referência do BRB – Banco de Brasília S.A nas seguintes condições:         1. seja verificada a divulgação pelo BRB – Banco de Brasília S.A. de que seu Capital Principal está em patamar inferior a 4,5% (quatro inteiros e cinco décimos por cento) do montante RWA, estabelecida pela regulamentação vigente; ou\n2. seja verificada, em lei específica, a assinatura de compromisso de aporte para o BRB – Banco de Brasília S.A.;\n3. seja decretado pelo BACEN o regime de administração especial temporária ou intervenção do BRB – Banco de Brasília S.A.; ou\n4. seja determinado pelo BACEN, segundo critérios estabelecidos em regulamento específico editado pelo Conselho Monetário Nacional,a extinção do instrumento.","Totalmente","Permanente","Contratual","Não","Não","Não se aplica"]
[null,71,"BRB - BANCO DE BRASILIA S/A","LFSN22008YN","Lei 12.249/2010 - Resolução 4.955/2021 do CMN","Nível II","Nível II","Conglomerado","Letra financeira",{"v":187501.264,"d":"R$ 187,501.26"},{"v":300000,"d":"R$ 300,000.00"},"passivo - custo amortizado","2022-06-30","Com vencimento","2028-06-30","Não","(1) Não há uma data específica, apenas quando for solicitado ao Bacen","(2) Não há vinculação regulatória ou fiscal para resgate ou recompra","(3) O valor pode ser parcial ou total, conforme autorização do Bacen","Não se aplica","Fixo","130% CDI","Não","Mandatório","Não","Cumulativo","Não conversível","Não se aplica","Não se aplica","Não se aplica","Não se aplica","Não se aplica","Não se aplica","Sim","Os títulos serão extintos, permanente e em valor no mínimo correspondente ao saldo computado no Nível II do Patrimônio de Referência do BRB – Banco de Brasília S.A nas seguintes condições:         1. seja verificada a divulgação pelo BRB – Banco de Brasília S.A. de que seu Capital Principal está em patamar inferior a 4,5% (quatro inteiros e cinco décimos por cento) do montante RWA, estabelecida pela regulamentação vigente; ou\n2. seja verificada, em lei específica, a assinatura de compromisso de aporte para o BRB – Banco de Brasília S.A.;\n3. seja decretado pelo BACEN o regime de administração especial temporária ou intervenção do BRB – Banco de Brasília S.A.; ou\n4. seja determinado pelo BACEN, segundo critérios estabelecidos em regulamento específico editado pelo Conselho Monetário Nacional,a extinção do instrumento.","Totalmente","Permanente","Contratual","Não","Não","Não se aplica"]
[null,72,"BRB - BANCO DE BRASILIA S/A","LFSN22008YO","Lei 12.249/2010 - Resolução 4.955/2021 do CMN","Nível II","Nível II","Conglomerado","Letra financeira",{"v":1096982.216,"d":"R$ 1,096,982.22"},{"v":2000000,"d":"R$ 2,000,000.00"},"passivo - custo amortizado","2022-06-30","Com vencimento","2028-06-30","Não","(1) Não há uma data específica, apenas quando for solicitado ao Bacen","(2) Não há vinculação regulatória ou fiscal para resgate ou recompra","(3) O valor pode ser parcial ou total, conforme autorização do Bacen","Não se aplica","Fixo","IPCA + 7,1%","Não","Mandatório","Não","Cumulativo","Não conversível","Não se aplica","Não se aplica","Não se aplica","Não se aplica","Não se aplica","Não se aplica","Sim","Os títulos serão extintos, permanente e em valor no mínimo correspondente ao saldo computado no Nível II do Patrimônio de Referência do BRB – Banco de Brasília S.A nas seguintes condições:         1. seja verificada a divulgação pelo BRB – Banco de Brasília S.A. de que seu Capital Principal está em patamar inferior a 4,5% (quatro inteiros e cinco décimos por cento) do montante RWA, estabelecida pela regulamentação vigente; ou\n2. seja verificada, em lei específica, a assinatura de compromisso de aporte para o BRB – Banco de Brasília S.A.;\n3. seja decretado pelo BACEN o regime de administração especial temporária ou intervenção do BRB – Banco de Brasília S.A.; ou\n4. seja determinado pelo BACEN, segundo critérios estabelecidos em regulamento específico editado pelo Conselho Monetário Nacional,a extinção do instrumento.","Totalmente","Permanente","Contratual","Não","Não","Não se aplica"]
[null,73,"BRB - BANCO DE BRASILIA S/A","LFSN22008Z2","Lei 12.249/2010 - Resolução 4.955/2021 do CMN","Nível II","Nível II","Conglomerado","Letra financeira",{"v":2804976.03,"d":"R$ 2,804,976.03"},{"v":3000000,"d":"R$ 3,000,000.00"},"passivo - custo amortizado","2022-07-06","Com vencimento","2028-07-06","Não","(1) Não há uma data específica, apenas quando for solicitado ao Bacen","(2) Não há vinculação regulatória ou fiscal para resgate ou recompra","(3) O valor pode ser parcial ou total, conforme autorização do Bacen","Não se aplica","Fixo","130% CDI","Não","Mandatório","Não","Cumulativo","Não conversível","Não se aplica","Não se aplica","Não se aplica","Não se aplica","Não se aplica","Não se aplica","Sim","Os títulos serão extintos, permanente e em valor no mínimo correspondente ao saldo computado no Nível II do Patrimônio de Referência do BRB – Banco de Brasília S.A nas seguintes condições:         1. seja verificada a divulgação pelo BRB – Banco de Brasília S.A. de que seu Capital Principal está em patamar inferior a 4,5% (quatro inteiros e cinco décimos por cento) do montante RWA, estabelecida pela regulamentação vigente; ou\n2. seja verificada, em lei específica, a assinatura de compromisso de aporte para o BRB – Banco de Brasília S.A.;\n3. seja decretado pelo BACEN o regime de administração especial temporária ou intervenção do BRB – Banco de Brasília S.A.; ou\n4. seja determinado pelo BACEN, segundo critérios estabelecidos em regulamento específico editado pelo Conselho Monetário Nacional,a extinção do instrumento.","Totalmente","Permanente","Contratual","Não","Não","Não se aplica"]
[null,74,"BRB - BANCO DE BRASILIA S/A","LFSN220093X","Lei 12.249/2010 - Resolução 4.955/2021 do CMN","Nível II","Nível II","Conglomerado","Letra financeira",{"v":9244670.921999998,"d":"R$ 9,244,670.92"},{"v":9900000,"d":"R$ 9,900,000.00"},"passivo - custo amortizado","2022-07-08","Com vencimento","2028-07-10","Não","(1) Não há uma data específica, apenas quando for solicitado ao Bacen","(2) Não há vinculação regulatória ou fiscal para resgate ou recompra","(3) O valor pode ser parcial ou total, conforme autorização do Bacen","Não se aplica","Fixo","130% CDI","Não","Mandatório","Não","Cumulativo","Não conversível","Não se aplica","Não se aplica","Não se aplica","Não se aplica","Não se aplica","Não se aplica","Sim","Os títulos serão extintos, permanente e em valor no mínimo correspondente ao saldo computado no Nível II do Patrimônio de Referência do BRB – Banco de Brasília S.A nas seguintes condições:         1. seja verificada a divulgação pelo BRB – Banco de Brasília S.A. de que seu Capital Principal está em patamar inferior a 4,5% (quatro inteiros e cinco décimos por cento) do montante RWA, estabelecida pela regulamentação vigente; ou\n2. seja verificada, em lei específica, a assinatura de compromisso de aporte para o BRB – Banco de Brasília S.A.;\n3. seja decretado pelo BACEN o regime de administração especial temporária ou intervenção do BRB – Banco de Brasília S.A.; ou\n4. seja determinado pelo BACEN, segundo critérios estabelecidos em regulamento específico editado pelo Conselho Monetário Nacional,a extinção do instrumento.","Totalmente","Permanente","Contratual","Não","Não","Não se aplica"]
[null,75,"BRB - BANCO DE BRASILIA S/A","LFSN22009F0","Lei 12.249/2010 - Resolução 4.955/2021 do CMN","Nível II","Nível II","Conglomerado","Letra financeira",{"v":11428875,"d":"R$ 11,428,875.00"},{"v":12300000,"d":"R$ 12,300,000.00"},"passivo - custo amortizado","2022-07-19","Com vencimento","2028-07-19","Não","(1) Não há uma data específica, apenas quando for solicitado ao Bacen","(2) Não há vinculação regulatória ou fiscal para resgate ou recompra","(3) O valor pode ser parcial ou total, conforme autorização do Bacen","Não se aplica","Fixo","130% CDI","Não","Mandatório","Não","Cumulativo","Não conversível","Não se aplica","Não se aplica","Não se aplica","Não se aplica","Não se aplica","Não se aplica","Sim","Os títulos serão extintos, permanente e em valor no mínimo correspondente ao saldo computado no Nível II do Patrimônio de Referência do BRB – Banco de Brasília S.A nas seguintes condições:         1. seja verificada a divulgação pelo BRB – Banco de Brasília S.A. de que seu Capital Principal está em patamar inferior a 4,5% (quatro inteiros e cinco décimos por cento) do montante RWA, estabelecida pela regulamentação vigente; ou\n2. seja verificada, em lei específica, a assinatura de compromisso de aporte para o BRB – Banco de Brasília S.A.;\n3. seja decretado pelo BACEN o regime de administração especial temporária ou intervenção do BRB – Banco de Brasília S.A.; ou\n4. seja determinado pelo BACEN, segundo critérios estabelecidos em regulamento específico editado pelo Conselho Monetário Nacional,a extinção do instrumento.","Totalmente","Permanente","Contratual","Não","Não","Não se aplica"]
[null,76,"BRB - BANCO DE BRASILIA S/A","LFSN22009KI","Lei 12.249/2010 - Resolução 4.955/2021 do CMN","Nível II","Nível II","Conglomerado","Letra financeira",{"v":835603.9619999999,"d":"R$ 835,603.96"},{"v":900000,"d":"R$ 900,000.00"},"passivo - custo amortizado","2022-07-20","Com vencimento","2028-07-20","Não","(1) Não há uma data específica, apenas quando for solicitado ao Bacen","(2) Não há vinculação regulatória ou fiscal para resgate ou recompra","(3) O valor pode ser parcial ou total, conforme autorização do Bacen","Não se aplica","Fixo","130% CDI","Não","Mandatório","Não","Cumulativo","Não conversível","Não se aplica","Não se aplica","Não se aplica","Não se aplica","Não se aplica","Não se aplica","Sim","Os títulos serão extintos, permanente e em valor no mínimo correspondente ao saldo computado no Nível II do Patrimônio de Referência do BRB – Banco de Brasília S.A nas seguintes condições:         1. seja verificada a divulgação pelo BRB – Banco de Brasília S.A. de que seu Capital Principal está em patamar inferior a 4,5% (quatro inteiros e cinco décimos por cento) do montante RWA, estabelecida pela regulamentação vigente; ou\n2. seja verificada, em lei específica, a assinatura de compromisso de aporte para o BRB – Banco de Brasília S.A.;\n3. seja decretado pelo BACEN o regime de administração especial temporária ou intervenção do BRB – Banco de Brasília S.A.; ou\n4. seja determinado pelo BACEN, segundo critérios estabelecidos em regulamento específico editado pelo Conselho Monetário Nacional,a extinção do instrumento.","Totalmente","Permanente","Contratual","Não","Não","Não se aplica"]
[null,77,"BRB - BANCO DE BRASILIA S/A","LFSN22009KR","Lei 12.249/2010 - Resolução 4.955/2021 do CMN","Nível II","Nível II","Conglomerado","Letra financeira",{"v":5288965.992,"d":"R$ 5,288,965.99"},{"v":5700000,"d":"R$ 5,700,000.00"},"passivo - custo amortizado","2022-07-21","Com vencimento","2028-07-21","Não","(1) Não há uma data específica, apenas quando for solicitado ao Bacen","(2) Não há vinculação regulatória ou fiscal para resgate ou recompra","(3) O valor pode ser parcial ou total, conforme autorização do Bacen","Não se aplica","Fixo","130% CDI","Não","Mandatório","Não","Cumulativo","Não conversível","Não se aplica","Não se aplica","Não se aplica","Não se aplica","Não se aplica","Não se aplica","Sim","Os títulos serão extintos, permanente e em valor no mínimo correspondente ao saldo computado no Nível II do Patrimônio de Referência do BRB – Banco de Brasília S.A nas seguintes condições:         1. seja verificada a divulgação pelo BRB – Banco de Brasília S.A. de que seu Capital Principal está em patamar inferior a 4,5% (quatro inteiros e cinco décimos por cento) do montante RWA, estabelecida pela regulamentação vigente; ou\n2. seja verificada, em lei específica, a assinatura de compromisso de aporte para o BRB – Banco de Brasília S.A.;\n3. seja decretado pelo BACEN o regime de administração especial temporária ou intervenção do BRB – Banco de Brasília S.A.; ou\n4. seja determinado pelo BACEN, segundo critérios estabelecidos em regulamento específico editado pelo Conselho Monetário Nacional,a extinção do instrumento.","Totalmente","Permanente","Contratual","Não","Não","Não se aplica"]
[null,78,"BRB - BANCO DE BRASILIA S/A","LFSN22009LL","Lei 12.249/2010 - Resolução 4.955/2021 do CMN","Nível II","Nível II","Conglomerado","Letra financeira",{"v":7643054.5139999995,"d":"R$ 7,643,054.51"},{"v":9000000,"d":"R$ 9,000,000.00"},"passivo - custo amortizado","2022-07-22","Com vencimento","2028-07-24","Não","(1) Não há uma data específica, apenas quando for solicitado ao Bacen","(2) Não há vinculação regulatória ou fiscal para resgate ou recompra","(3) O valor pode ser parcial ou total, conforme autorização do Bacen","Não se aplica","Fixo","IPCA + 8%","Não","Mandatório","Não","Cumulativo","Não conversível","Não se aplica","Não se aplica","Não se aplica","Não se aplica","Não se aplica","Não se aplica","Sim","Os títulos serão extintos, permanente e em valor no mínimo correspondente ao saldo computado no Nível II do Patrimônio de Referência do BRB – Banco de Brasília S.A nas seguintes condições:         1. seja verificada a divulgação pelo BRB – Banco de Brasília S.A. de que seu Capital Principal está em patamar inferior a 4,5% (quatro inteiros e cinco décimos por cento) do montante RWA, estabelecida pela regulamentação vigente; ou\n2. seja verificada, em lei específica, a assinatura de compromisso de aporte para o BRB – Banco de Brasília S.A.;\n3. seja decretado pelo BACEN o regime de administração especial temporária ou intervenção do BRB – Banco de Brasília S.A.; ou\n4. seja determinado pelo BACEN, segundo critérios estabelecidos em regulamento específico editado pelo Conselho Monetário Nacional,a extinção do instrumento.","Totalmente","Permanente","Contratual","Não","Não","Não se aplica"]
[null,79,"BRB - BANCO DE BRASILIA S/A","LFSN22009RR","Lei 12.249/2010 - Resolução 4.955/2021 do CMN","Nível II","Nível II","Conglomerado","Letra financeira",{"v":6657226.662,"d":"R$ 6,657,226.66"},{"v":7200000,"d":"R$ 7,200,000.00"},"passivo - custo amortizado","2022-07-29","Com vencimento","2028-07-31","Não","(1) Não há uma data específica, apenas quando for solicitado ao Bacen","(2) Não há vinculação regulatória ou fiscal para resgate ou recompra","(3) O valor pode ser parcial ou total, conforme autorização do Bacen","Não se aplica","Fixo","130% CDI","Não","Mandatório","Não","Cumulativo","Não conversível","Não se aplica","Não se aplica","Não se aplica","Não se aplica","Não se aplica","Não se aplica","Sim","Os títulos serão extintos, permanente e em valor no mínimo correspondente ao saldo computado no Nível II do Patrimônio de Referência do BRB – Banco de Brasília S.A nas seguintes condições:         1. seja verificada a divulgação pelo BRB – Banco de Brasília S.A. de que seu Capital Principal está em patamar inferior a 4,5% (quatro inteiros e cinco décimos por cento) do montante RWA, estabelecida pela regulamentação vigente; ou\n2. seja verificada, em lei específica, a assinatura de compromisso de aporte para o BRB – Banco de Brasília S.A.;\n3. seja decretado pelo BACEN o regime de administração especial temporária ou intervenção do BRB – Banco de Brasília S.A.; ou\n4. seja determinado pelo BACEN, segundo critérios estabelecidos em regulamento específico editado pelo Conselho Monetário Nacional,a extinção do instrumento.","Totalmente","Permanente","Contratual","Não","Não","Não se aplica"]
[null,80,"BRB - BANCO DE BRASILIA S/A","LFSN2200A15","Lei 12.249/2010 - Resolução 4.955/2021 do CMN","Nível II","Nível II","Conglomerado","Letra financeira",{"v":3681570.306,"d":"R$ 3,681,570.31"},{"v":4000000,"d":"R$ 4,000,000.00"},"passivo - custo amortizado","2022-08-10","Com vencimento","2028-08-10","Não","(1) Não há uma data específica, apenas quando for solicitado ao Bacen","(2) Não há vinculação regulatória ou fiscal para resgate ou recompra","(3) O valor pode ser parcial ou total, conforme autorização do Bacen","Não se aplica","Fixo","130% CDI","Não","Mandatório","Não","Cumulativo","Não conversível","Não se aplica","Não se aplica","Não se aplica","Não se aplica","Não se aplica","Não se aplica","Sim","Os títulos serão extintos, permanente e em valor no mínimo correspondente ao saldo computado no Nível II do Patrimônio de Referência do BRB – Banco de Brasília S.A nas seguintes condições:         1. seja verificada a divulgação pelo BRB – Banco de Brasília S.A. de que seu Capital Principal está em patamar inferior a 4,5% (quatro inteiros e cinco décimos por cento) do montante RWA, estabelecida pela regulamentação vigente; ou\n2. seja verificada, em lei específica, a assinatura de compromisso de aporte para o BRB – Banco de Brasília S.A.;\n3. seja decretado pelo BACEN o regime de administração especial temporária ou intervenção do BRB – Banco de Brasília S.A.; ou\n4. seja determinado pelo BACEN, segundo critérios estabelecidos em regulamento específico editado pelo Conselho Monetário Nacional,a extinção do instrumento.","Totalmente","Permanente","Contratual","Não","Não","Não se aplica"]
[null,81,"BRB - BANCO DE BRASILIA S/A","LFSN2200A16","Lei 12.249/2010 - Resolução 4.955/2021 do CMN","Nível II","Nível II","Conglomerado","Letra financeira",{"v":25001541.056,"d":"R$ 25,001,541.06"},{"v":20100000,"d":"R$ 20,100,000.00"},"passivo - custo amortizado","2022-08-10","Com vencimento","2029-08-10","Não","(1) Não há uma data específica, apenas quando for solicitado ao Bacen","(2) Não há vinculação regulatória ou fiscal para resgate ou recompra","(3) O valor pode ser parcial ou total, conforme autorização do Bacen","Não se aplica","Fixo","135% CDI","Não","Mandatório","Não","Cumulativo","Não conversível","Não se aplica","Não se aplica","Não se aplica","Não se aplica","Não se aplica","Não se aplica","Sim","Os títulos serão extintos, permanente e em valor no mínimo correspondente ao saldo computado no Nível II do Patrimônio de Referência do BRB – Banco de Brasília S.A nas seguintes condições:         1. seja verificada a divulgação pelo BRB – Banco de Brasília S.A. de que seu Capital Principal está em patamar inferior a 4,5% (quatro inteiros e cinco décimos por cento) do montante RWA, estabelecida pela regulamentação vigente; ou\n2. seja verificada, em lei específica, a assinatura de compromisso de aporte para o BRB – Banco de Brasília S.A.;\n3. seja decretado pelo BACEN o regime de administração especial temporária ou intervenção do BRB – Banco de Brasília S.A.; ou\n4. seja determinado pelo BACEN, segundo critérios estabelecidos em regulamento específico editado pelo Conselho Monetário Nacional,a extinção do instrumento.","Totalmente","Permanente","Contratual","Não","Não","Não se aplica"]
[null,82,"BRB - BANCO DE BRASILIA S/A","LFSN2200A1C","Lei 12.249/2010 - Resolução 4.955/2021 do CMN","Nível II","Nível II","Conglomerado","Letra financeira",{"v":37291659.056,"d":"R$ 37,291,659.06"},{"v":30000000,"d":"R$ 30,000,000.00"},"passivo - custo amortizado","2022-08-11","Com vencimento","2029-08-13","Não","(1) Não há uma data específica, apenas quando for solicitado ao Bacen","(2) Não há vinculação regulatória ou fiscal para resgate ou recompra","(3) O valor pode ser parcial ou total, conforme autorização do Bacen","Não se aplica","Fixo","135% CDI","Não","Mandatório","Não","Cumulativo","Não conversível","Não se aplica","Não se aplica","Não se aplica","Não se aplica","Não se aplica","Não se aplica","Sim","Os títulos serão extintos, permanente e em valor no mínimo correspondente ao saldo computado no Nível II do Patrimônio de Referência do BRB – Banco de Brasília S.A nas seguintes condições:         1. seja verificada a divulgação pelo BRB – Banco de Brasília S.A. de que seu Capital Principal está em patamar inferior a 4,5% (quatro inteiros e cinco décimos por cento) do montante RWA, estabelecida pela regulamentação vigente; ou\n2. seja verificada, em lei específica, a assinatura de compromisso de aporte para o BRB – Banco de Brasília S.A.;\n3. seja decretado pelo BACEN o regime de administração especial temporária ou intervenção do BRB – Banco de Brasília S.A.; ou\n4. seja determinado pelo BACEN, segundo critérios estabelecidos em regulamento específico editado pelo Conselho Monetário Nacional,a extinção do instrumento.","Totalmente","Permanente","Contratual","Não","Não","Não se aplica"]
[null,83,"BRB - BANCO DE BRASILIA S/A","LFSN2200A1D","Lei 12.249/2010 - Resolução 4.955/2021 do CMN","Nível II","Nível II","Conglomerado","Letra financeira",{"v":62229701.60800001,"d":"R$ 62,229,701.61"},{"v":50100000,"d":"R$ 50,100,000.00"},"passivo - custo amortizado","2022-08-12","Com vencimento","2029-08-13","Não","(1) Não há uma data específica, apenas quando for solicitado ao Bacen","(2) Não há vinculação regulatória ou fiscal para resgate ou recompra","(3) O valor pode ser parcial ou total, conforme autorização do Bacen","Não se aplica","Fixo","135% CDI","Não","Mandatório","Não","Cumulativo","Não conversível","Não se aplica","Não se aplica","Não se aplica","Não se aplica","Não se aplica","Não se aplica","Sim","Os títulos serão extintos, permanente e em valor no mínimo correspondente ao saldo computado no Nível II do Patrimônio de Referência do BRB – Banco de Brasília S.A nas seguintes condições:         1. seja verificada a divulgação pelo BRB – Banco de Brasília S.A. de que seu Capital Principal está em patamar inferior a 4,5% (quatro inteiros e cinco décimos por cento) do montante RWA, estabelecida pela regulamentação vigente; ou\n2. seja verificada, em lei específica, a assinatura de compromisso de aporte para o BRB – Banco de Brasília S.A.;\n3. seja decretado pelo BACEN o regime de administração especial temporária ou intervenção do BRB – Banco de Brasília S.A.; ou\n4. seja determinado pelo BACEN, segundo critérios estabelecidos em regulamento específico editado pelo Conselho Monetário Nacional,a extinção do instrumento.","Totalmente","Permanente","Contratual","Não","Não","Não se aplica"]
[null,84,"BRB - BANCO DE BRASILIA S/A","LFSN2200A1E","Lei 12.249/2010 - Resolução 4.955/2021 do CMN","Nível II","Nível II","Conglomerado","Letra financeira",{"v":124459404.97600001,"d":"R$ 124,459,404.98"},{"v":100200000,"d":"R$ 100,200,000.00"},"passivo - custo amortizado","2022-08-12","Com vencimento","2029-08-13","Não","(1) Não há uma data específica, apenas quando for solicitado ao Bacen","(2) Não há vinculação regulatória ou fiscal para resgate ou recompra","(3) O valor pode ser parcial ou total, conforme autorização do Bacen","Não se aplica","Fixo","135% CDI","Não","Mandatório","Não","Cumulativo","Não conversível","Não se aplica","Não se aplica","Não se aplica","Não se aplica","Não se aplica","Não se aplica","Sim","Os títulos serão extintos, permanente e em valor no mínimo correspondente ao saldo computado no Nível II do Patrimônio de Referência do BRB – Banco de Brasília S.A nas seguintes condições:         1. seja verificada a divulgação pelo BRB – Banco de Brasília S.A. de que seu Capital Principal está em patamar inferior a 4,5% (quatro inteiros e cinco décimos por cento) do montante RWA, estabelecida pela regulamentação vigente; ou\n2. seja verificada, em lei específica, a assinatura de compromisso de aporte para o BRB – Banco de Brasília S.A.;\n3. seja decretado pelo BACEN o regime de administração especial temporária ou intervenção do BRB – Banco de Brasília S.A.; ou\n4. seja determinado pelo BACEN, segundo critérios estabelecidos em regulamento específico editado pelo Conselho Monetário Nacional,a extinção do instrumento.","Totalmente","Permanente","Contratual","Não","Não","Não se aplica"]
[null,85,"BRB - BANCO DE BRASILIA S/A","LFSN2200A6R","Lei 12.249/2010 - Resolução 4.955/2021 do CMN","Nível II","Nível II","Conglomerado","Letra financeira",{"v":62168856.216,"d":"R$ 62,168,856.22"},{"v":50100000,"d":"R$ 50,100,000.00"},"passivo - custo amortizado","2022-08-16","Com vencimento","2029-08-16","Não","(1) Não há uma data específica, apenas quando for solicitado ao Bacen","(2) Não há vinculação regulatória ou fiscal para resgate ou recompra","(3) O valor pode ser parcial ou total, conforme autorização do Bacen","Não se aplica","Fixo","135% CDI","Não","Mandatório","Não","Cumulativo","Não conversível","Não se aplica","Não se aplica","Não se aplica","Não se aplica","Não se aplica","Não se aplica","Sim","Os títulos serão extintos, permanente e em valor no mínimo correspondente ao saldo computado no Nível II do Patrimônio de Referência do BRB – Banco de Brasília S.A nas seguintes condições:         1. seja verificada a divulgação pelo BRB – Banco de Brasília S.A. de que seu Capital Principal está em patamar inferior a 4,5% (quatro inteiros e cinco décimos por cento) do montante RWA, estabelecida pela regulamentação vigente; ou\n2. seja verificada, em lei específica, a assinatura de compromisso de aporte para o BRB – Banco de Brasília S.A.;\n3. seja decretado pelo BACEN o regime de administração especial temporária ou intervenção do BRB – Banco de Brasília S.A.; ou\n4. seja determinado pelo BACEN, segundo critérios estabelecidos em regulamento específico editado pelo Conselho Monetário Nacional,a extinção do instrumento.","Totalmente","Permanente","Contratual","Não","Não","Não se aplica"]
[null,86,"BRB - BANCO DE BRASILIA S/A","LFSN2200AO8","Lei 12.249/2010 - Resolução 4.955/2021 do CMN","Nível II","Nível II","Conglomerado","Letra financeira",{"v":122143958.528,"d":"R$ 122,143,958.53"},{"v":100200000,"d":"R$ 100,200,000.00"},"passivo - custo amortizado","2022-09-21","Com vencimento","2029-09-21","Não","(1) Não há uma data específica, apenas quando for solicitado ao Bacen","(2) Não há vinculação regulatória ou fiscal para resgate ou recompra","(3) O valor pode ser parcial ou total, conforme autorização do Bacen","Não se aplica","Fixo","135% CDI","Não","Mandatório","Não","Cumulativo","Não conversível","Não se aplica","Não se aplica","Não se aplica","Não se aplica","Não se aplica","Não se aplica","Sim","Os títulos serão extintos, permanente e em valor no mínimo correspondente ao saldo computado no Nível II do Patrimônio de Referência do BRB – Banco de Brasília S.A nas seguintes condições:         1. seja verificada a divulgação pelo BRB – Banco de Brasília S.A. de que seu Capital Principal está em patamar inferior a 4,5% (quatro inteiros e cinco décimos por cento) do montante RWA, estabelecida pela regulamentação vigente; ou\n2. seja verificada, em lei específica, a assinatura de compromisso de aporte para o BRB – Banco de Brasília S.A.;\n3. seja decretado pelo BACEN o regime de administração especial temporária ou intervenção do BRB – Banco de Brasília S.A.; ou\n4. seja determinado pelo BACEN, segundo critérios estabelecidos em regulamento específico editado pelo Conselho Monetário Nacional,a extinção do instrumento.","Totalmente","Permanente","Contratual","Não","Não","Não se aplica"]
[null,87,"BRB - BANCO DE BRASILIA S/A","LFSN2200ASZ","Lei 12.249/2010 - Resolução 4.955/2021 do CMN","Nível II","Nível II","Conglomerado","Letra financeira",{"v":50314451.44800001,"d":"R$ 50,314,451.45"},{"v":41400000,"d":"R$ 41,400,000.00"},"passivo - custo amortizado","2022-09-27","Com vencimento","2029-09-27","Não","(1) Não há uma data específica, apenas quando for solicitado ao Bacen","(2) Não há vinculação regulatória ou fiscal para resgate ou recompra","(3) O valor pode ser parcial ou total, conforme autorização do Bacen","Não se aplica","Fixo","135% CDI","Não","Mandatório","Não","Cumulativo","Não conversível","Não se aplica","Não se aplica","Não se aplica","Não se aplica","Não se aplica","Não se aplica","Sim","Os títulos serão extintos, permanente e em valor no mínimo correspondente ao saldo computado no Nível II do Patrimônio de Referência do BRB – Banco de Brasília S.A nas seguintes condições:         1. seja verificada a divulgação pelo BRB – Banco de Brasília S.A. de que seu Capital Principal está em patamar inferior a 4,5% (quatro inteiros e cinco décimos por cento) do montante RWA, estabelecida pela regulamentação vigente; ou\n2. seja verificada, em lei específica, a assinatura de compromisso de aporte para o BRB – Banco de Brasília S.A.;\n3. seja decretado pelo BACEN o regime de administração especial temporária ou intervenção do BRB – Banco de Brasília S.A.; ou\n4. seja determinado pelo BACEN, segundo critérios estabelecidos em regulamento específico editado pelo Conselho Monetário Nacional,a extinção do instrumento.","Totalmente","Permanente","Contratual","Não","Não","Não se aplica"]
[null,88,"BRB - BANCO DE BRASILIA S/A","LFSN2200AT0","Lei 12.249/2010 - Resolução 4.955/2021 do CMN","Nível II","Nível II","Conglomerado","Letra financeira",{"v":10376677.224,"d":"R$ 10,376,677.22"},{"v":8700000,"d":"R$ 8,700,000.00"},"passivo - custo amortizado","2022-09-27","Com vencimento","2029-09-27","Não","(1) Não há uma data específica, apenas quando for solicitado ao Bacen","(2) Não há vinculação regulatória ou fiscal para resgate ou recompra","(3) O valor pode ser parcial ou total, conforme autorização do Bacen","Não se aplica","Fixo","132% CDI","Não","Mandatório","Não","Cumulativo","Não conversível","Não se aplica","Não se aplica","Não se aplica","Não se aplica","Não se aplica","Não se aplica","Sim","Os títulos serão extintos, permanente e em valor no mínimo correspondente ao saldo computado no Nível II do Patrimônio de Referência do BRB – Banco de Brasília S.A nas seguintes condições:         1. seja verificada a divulgação pelo BRB – Banco de Brasília S.A. de que seu Capital Principal está em patamar inferior a 4,5% (quatro inteiros e cinco décimos por cento) do montante RWA, estabelecida pela regulamentação vigente; ou\n2. seja verificada, em lei específica, a assinatura de compromisso de aporte para o BRB – Banco de Brasília S.A.;\n3. seja decretado pelo BACEN o regime de administração especial temporária ou intervenção do BRB – Banco de Brasília S.A.; ou\n4. seja determinado pelo BACEN, segundo critérios estabelecidos em regulamento específico editado pelo Conselho Monetário Nacional,a extinção do instrumento.","Totalmente","Permanente","Contratual","Não","Não","Não se aplica"]
[null,89,"BRB - BANCO DE BRASILIA S/A","LFSN2200ATC","Lei 12.249/2010 - Resolução 4.955/2021 do CMN","Nível II","Nível II","Conglomerado","Letra financeira",{"v":2977162.592,"d":"R$ 2,977,162.59"},{"v":2500000,"d":"R$ 2,500,000.00"},"passivo - custo amortizado","2022-09-29","Com vencimento","2029-09-28","Não","(1) Não há uma data específica, apenas quando for solicitado ao Bacen","(2) Não há vinculação regulatória ou fiscal para resgate ou recompra","(3) O valor pode ser parcial ou total, conforme autorização do Bacen","Não se aplica","Fixo","132% CDI","Não","Mandatório","Não","Cumulativo","Não conversível","Não se aplica","Não se aplica","Não se aplica","Não se aplica","Não se aplica","Não se aplica","Sim","Os títulos serão extintos, permanente e em valor no mínimo correspondente ao saldo computado no Nível II do Patrimônio de Referência do BRB – Banco de Brasília S.A nas seguintes condições:         1. seja verificada a divulgação pelo BRB – Banco de Brasília S.A. de que seu Capital Principal está em patamar inferior a 4,5% (quatro inteiros e cinco décimos por cento) do montante RWA, estabelecida pela regulamentação vigente; ou\n2. seja verificada, em lei específica, a assinatura de compromisso de aporte para o BRB – Banco de Brasília S.A.;\n3. seja decretado pelo BACEN o regime de administração especial temporária ou intervenção do BRB – Banco de Brasília S.A.; ou\n4. seja determinado pelo BACEN, segundo critérios estabelecidos em regulamento específico editado pelo Conselho Monetário Nacional,a extinção do instrumento.","Totalmente","Permanente","Contratual","Não","Não","Não se aplica"]
[null,90,"BRB - BANCO DE BRASILIA S/A","LFSN2200ATD","Lei 12.249/2010 - Resolução 4.955/2021 do CMN","Nível II","Nível II","Conglomerado","Letra financeira",{"v":2977162.592,"d":"R$ 2,977,162.59"},{"v":2500000,"d":"R$ 2,500,000.00"},"passivo - custo amortizado","2022-09-29","Com vencimento","2029-09-28","Não","(1) Não há uma data específica, apenas quando for solicitado ao Bacen","(2) Não há vinculação regulatória ou fiscal para resgate ou recompra","(3) O valor pode ser parcial ou total, conforme autorização do Bacen","Não se aplica","Fixo","132% CDI","Não","Mandatório","Não","Cumulativo","Não conversível","Não se aplica","Não se aplica","Não se aplica","Não se aplica","Não se aplica","Não se aplica","Sim","Os títulos serão extintos, permanente e em valor no mínimo correspondente ao saldo computado no Nível II do Patrimônio de Referência do BRB – Banco de Brasília S.A nas seguintes condições:         1. seja verificada a divulgação pelo BRB – Banco de Brasília S.A. de que seu Capital Principal está em patamar inferior a 4,5% (quatro inteiros e cinco décimos por cento) do montante RWA, estabelecida pela regulamentação vigente; ou\n2. seja verificada, em lei específica, a assinatura de compromisso de aporte para o BRB – Banco de Brasília S.A.;\n3. seja decretado pelo BACEN o regime de administração especial temporária ou intervenção do BRB – Banco de Brasília S.A.; ou\n4. seja determinado pelo BACEN, segundo critérios estabelecidos em regulamento específico editado pelo Conselho Monetário Nacional,a extinção do instrumento.","Totalmente","Permanente","Contratual","Não","Não","Não se aplica"]
[null,91,"BRB - BANCO DE BRASILIA S/A","LFSN2200B4D","Lei 12.249/2010 - Resolução 4.955/2021 do CMN","Nível II","Nível II","Conglomerado","Letra financeira",{"v":19556635.592,"d":"R$ 19,556,635.59"},{"v":16200000,"d":"R$ 16,200,000.00"},"passivo - custo amortizado","2022-10-11","Com vencimento","2029-10-11","Não","(1) Não há uma data específica, apenas quando for solicitado ao Bacen","(2) Não há vinculação regulatória ou fiscal para resgate ou recompra","(3) O valor pode ser parcial ou total, conforme autorização do Bacen","Não se aplica","Fixo","135% CDI","Não","Mandatório","Não","Cumulativo","Não conversível","Não se aplica","Não se aplica","Não se aplica","Não se aplica","Não se aplica","Não se aplica","Sim","Os títulos serão extintos, permanente e em valor no mínimo correspondente ao saldo computado no Nível II do Patrimônio de Referência do BRB – Banco de Brasília S.A nas seguintes condições:         1. seja verificada a divulgação pelo BRB – Banco de Brasília S.A. de que seu Capital Principal está em patamar inferior a 4,5% (quatro inteiros e cinco décimos por cento) do montante RWA, estabelecida pela regulamentação vigente; ou\n2. seja verificada, em lei específica, a assinatura de compromisso de aporte para o BRB – Banco de Brasília S.A.;\n3. seja decretado pelo BACEN o regime de administração especial temporária ou intervenção do BRB – Banco de Brasília S.A.; ou\n4. seja determinado pelo BACEN, segundo critérios estabelecidos em regulamento específico editado pelo Conselho Monetário Nacional,a extinção do instrumento.","Totalmente","Permanente","Contratual","Não","Não","Não se aplica"]
[null,92,"BRB - BANCO DE BRASILIA S/A","LFSN2200B9Q","Lei 12.249/2010 - Resolução 4.955/2021 do CMN","Nível II","Nível II","Conglomerado","Letra financeira",{"v":2361130.936,"d":"R$ 2,361,130.94"},{"v":2000000,"d":"R$ 2,000,000.00"},"passivo - custo amortizado","2022-10-19","Com vencimento","2029-10-19","Não","(1) Não há uma data específica, apenas quando for solicitado ao Bacen","(2) Não há vinculação regulatória ou fiscal para resgate ou recompra","(3) O valor pode ser parcial ou total, conforme autorização do Bacen","Não se aplica","Fixo","132% CDI","Não","Mandatório","Não","Cumulativo","Não conversível","Não se aplica","Não se aplica","Não se aplica","Não se aplica","Não se aplica","Não se aplica","Sim","Os títulos serão extintos, permanente e em valor no mínimo correspondente ao saldo computado no Nível II do Patrimônio de Referência do BRB – Banco de Brasília S.A nas seguintes condições:         1. seja verificada a divulgação pelo BRB – Banco de Brasília S.A. de que seu Capital Principal está em patamar inferior a 4,5% (quatro inteiros e cinco décimos por cento) do montante RWA, estabelecida pela regulamentação vigente; ou\n2. seja verificada, em lei específica, a assinatura de compromisso de aporte para o BRB – Banco de Brasília S.A.;\n3. seja decretado pelo BACEN o regime de administração especial temporária ou intervenção do BRB – Banco de Brasília S.A.; ou\n4. seja determinado pelo BACEN, segundo critérios estabelecidos em regulamento específico editado pelo Conselho Monetário Nacional,a extinção do instrumento.","Totalmente","Permanente","Contratual","Não","Não","Não se aplica"]
[null,93,"BRB - BANCO DE BRASILIA S/A","LFSN2200B9R","Lei 12.249/2010 - Resolução 4.955/2021 do CMN","Nível II","Nível II","Conglomerado","Letra financeira",{"v":3541699.728,"d":"R$ 3,541,699.73"},{"v":3000000,"d":"R$ 3,000,000.00"},"passivo - custo amortizado","2022-10-19","Com vencimento","2029-10-19","Não","(1) Não há uma data específica, apenas quando for solicitado ao Bacen","(2) Não há vinculação regulatória ou fiscal para resgate ou recompra","(3) O valor pode ser parcial ou total, conforme autorização do Bacen","Não se aplica","Fixo","132% CDI","Não","Mandatório","Não","Cumulativo","Não conversível","Não se aplica","Não se aplica","Não se aplica","Não se aplica","Não se aplica","Não se aplica","Sim","Os títulos serão extintos, permanente e em valor no mínimo correspondente ao saldo computado no Nível II do Patrimônio de Referência do BRB – Banco de Brasília S.A nas seguintes condições:         1. seja verificada a divulgação pelo BRB – Banco de Brasília S.A. de que seu Capital Principal está em patamar inferior a 4,5% (quatro inteiros e cinco décimos por cento) do montante RWA, estabelecida pela regulamentação vigente; ou\n2. seja verificada, em lei específica, a assinatura de compromisso de aporte para o BRB – Banco de Brasília S.A.;\n3. seja decretado pelo BACEN o regime de administração especial temporária ou intervenção do BRB – Banco de Brasília S.A.; ou\n4. seja determinado pelo BACEN, segundo critérios estabelecidos em regulamento específico editado pelo Conselho Monetário Nacional,a extinção do instrumento.","Totalmente","Permanente","Contratual","Não","Não","Não se aplica"]
[null,94,"BRB - BANCO DE BRASILIA S/A","LFSN2200B9U","Lei 12.249/2010 - Resolução 4.955/2021 do CMN","Nível II","Nível II","Conglomerado","Letra financeira",{"v":30689088.672,"d":"R$ 30,689,088.67"},{"v":33900000,"d":"R$ 33,900,000.00"},"passivo - custo amortizado","2022-10-19","Com vencimento","2028-10-19","Não","(1) Não há uma data específica, apenas quando for solicitado ao Bacen","(2) Não há vinculação regulatória ou fiscal para resgate ou recompra","(3) O valor pode ser parcial ou total, conforme autorização do Bacen","Não se aplica","Fixo","135% CDI","Não","Mandatório","Não","Cumulativo","Não conversível","Não se aplica","Não se aplica","Não se aplica","Não se aplica","Não se aplica","Não se aplica","Sim","Os títulos serão extintos, permanente e em valor no mínimo correspondente ao saldo computado no Nível II do Patrimônio de Referência do BRB – Banco de Brasília S.A nas seguintes condições:         1. seja verificada a divulgação pelo BRB – Banco de Brasília S.A. de que seu Capital Principal está em patamar inferior a 4,5% (quatro inteiros e cinco décimos por cento) do montante RWA, estabelecida pela regulamentação vigente; ou\n2. seja verificada, em lei específica, a assinatura de compromisso de aporte para o BRB – Banco de Brasília S.A.;\n3. seja decretado pelo BACEN o regime de administração especial temporária ou intervenção do BRB – Banco de Brasília S.A.; ou\n4. seja determinado pelo BACEN, segundo critérios estabelecidos em regulamento específico editado pelo Conselho Monetário Nacional,a extinção do instrumento.","Totalmente","Permanente","Contratual","Não","Não","Não se aplica"]
[null,95,"BRB - BANCO DE BRASILIA S/A","LFSN2200BF5","Lei 12.249/2010 - Resolução 4.955/2021 do CMN","Nível II","Nível II","Conglomerado","Letra financeira",{"v":2357324.648,"d":"R$ 2,357,324.65"},{"v":2000000,"d":"R$ 2,000,000.00"},"passivo - custo amortizado","2022-10-21","Com vencimento","2029-10-22","Não","(1) Não há uma data específica, apenas quando for solicitado ao Bacen","(2) Não há vinculação regulatória ou fiscal para resgate ou recompra","(3) O valor pode ser parcial ou total, conforme autorização do Bacen","Não se aplica","Fixo","132% CDI","Não","Mandatório","Não","Cumulativo","Não conversível","Não se aplica","Não se aplica","Não se aplica","Não se aplica","Não se aplica","Não se aplica","Sim","Os títulos serão extintos, permanente e em valor no mínimo correspondente ao saldo computado no Nível II do Patrimônio de Referência do BRB – Banco de Brasília S.A nas seguintes condições:         1. seja verificada a divulgação pelo BRB – Banco de Brasília S.A. de que seu Capital Principal está em patamar inferior a 4,5% (quatro inteiros e cinco décimos por cento) do montante RWA, estabelecida pela regulamentação vigente; ou\n2. seja verificada, em lei específica, a assinatura de compromisso de aporte para o BRB – Banco de Brasília S.A.;\n3. seja decretado pelo BACEN o regime de administração especial temporária ou intervenção do BRB – Banco de Brasília S.A.; ou\n4. seja determinado pelo BACEN, segundo critérios estabelecidos em regulamento específico editado pelo Conselho Monetário Nacional,a extinção do instrumento.","Totalmente","Permanente","Contratual","Não","Não","Não se aplica"]
[null,96,"BRB - BANCO DE BRASILIA S/A","LFSN2200C6Z","Lei 12.249/2010 - Resolução 4.955/2021 do CMN","Nível II","Nível II","Conglomerado","Letra financeira",{"v":12433368.864,"d":"R$ 12,433,368.86"},{"v":14000000,"d":"R$ 14,000,000.00"},"passivo - custo amortizado","2022-11-01","Com vencimento","2028-11-01","Não","(1) Não há uma data específica, apenas quando for solicitado ao Bacen","(2) Não há vinculação regulatória ou fiscal para resgate ou recompra","(3) O valor pode ser parcial ou total, conforme autorização do Bacen","Não se aplica","Fixo","127% CDI","Não","Mandatório","Não","Cumulativo","Não conversível","Não se aplica","Não se aplica","Não se aplica","Não se aplica","Não se aplica","Não se aplica","Sim","Os títulos serão extintos, permanente e em valor no mínimo correspondente ao saldo computado no Nível II do Patrimônio de Referência do BRB – Banco de Brasília S.A nas seguintes condições:         1. seja verificada a divulgação pelo BRB – Banco de Brasília S.A. de que seu Capital Principal está em patamar inferior a 4,5% (quatro inteiros e cinco décimos por cento) do montante RWA, estabelecida pela regulamentação vigente; ou\n2. seja verificada, em lei específica, a assinatura de compromisso de aporte para o BRB – Banco de Brasília S.A.;\n3. seja decretado pelo BACEN o regime de administração especial temporária ou intervenção do BRB – Banco de Brasília S.A.; ou\n4. seja determinado pelo BACEN, segundo critérios estabelecidos em regulamento específico editado pelo Conselho Monetário Nacional,a extinção do instrumento.","Totalmente","Permanente","Contratual","Não","Não","Não se aplica"]
[null,97,"BRB - BANCO DE BRASILIA S/A","LFSN2200D4A","Lei 12.249/2010 - Resolução 4.955/2021 do CMN","Nível II","Nível II","Conglomerado","Letra financeira",{"v":22079800.112000003,"d":"R$ 22,079,800.11"},{"v":18600000,"d":"R$ 18,600,000.00"},"passivo - custo amortizado","2022-11-11","Com vencimento","2029-11-12","Não","(1) Não há uma data específica, apenas quando for solicitado ao Bacen","(2) Não há vinculação regulatória ou fiscal para resgate ou recompra","(3) O valor pode ser parcial ou total, conforme autorização do Bacen","Não se aplica","Fixo","135% CDI","Não","Mandatório","Não","Cumulativo","Não conversível","Não se aplica","Não se aplica","Não se aplica","Não se aplica","Não se aplica","Não se aplica","Sim","Os títulos serão extintos, permanente e em valor no mínimo correspondente ao saldo computado no Nível II do Patrimônio de Referência do BRB – Banco de Brasília S.A nas seguintes condições:         1. seja verificada a divulgação pelo BRB – Banco de Brasília S.A. de que seu Capital Principal está em patamar inferior a 4,5% (quatro inteiros e cinco décimos por cento) do montante RWA, estabelecida pela regulamentação vigente; ou\n2. seja verificada, em lei específica, a assinatura de compromisso de aporte para o BRB – Banco de Brasília S.A.;\n3. seja decretado pelo BACEN o regime de administração especial temporária ou intervenção do BRB – Banco de Brasília S.A.; ou\n4. seja determinado pelo BACEN, segundo critérios estabelecidos em regulamento específico editado pelo Conselho Monetário Nacional,a extinção do instrumento.","Totalmente","Permanente","Contratual","Não","Não","Não se aplica"]
[null,98,"BRB - BANCO DE BRASILIA S/A","LFSN2200DFD","Lei 12.249/2010 - Resolução 4.955/2021 do CMN","Nível II","Nível II","Conglomerado","Letra financeira",{"v":11026594.648000002,"d":"R$ 11,026,594.65"},{"v":9300000,"d":"R$ 9,300,000.00"},"passivo - custo amortizado","2022-11-16","Com vencimento","2029-11-16","Não","(1) Não há uma data específica, apenas quando for solicitado ao Bacen","(2) Não há vinculação regulatória ou fiscal para resgate ou recompra","(3) O valor pode ser parcial ou total, conforme autorização do Bacen","Não se aplica","Fixo","135% CDI","Não","Mandatório","Não","Cumulativo","Não conversível","Não se aplica","Não se aplica","Não se aplica","Não se aplica","Não se aplica","Não se aplica","Sim","Os títulos serão extintos, permanente e em valor no mínimo correspondente ao saldo computado no Nível II do Patrimônio de Referência do BRB – Banco de Brasília S.A nas seguintes condições:         1. seja verificada a divulgação pelo BRB – Banco de Brasília S.A. de que seu Capital Principal está em patamar inferior a 4,5% (quatro inteiros e cinco décimos por cento) do montante RWA, estabelecida pela regulamentação vigente; ou\n2. seja verificada, em lei específica, a assinatura de compromisso de aporte para o BRB – Banco de Brasília S.A.;\n3. seja decretado pelo BACEN o regime de administração especial temporária ou intervenção do BRB – Banco de Brasília S.A.; ou\n4. seja determinado pelo BACEN, segundo critérios estabelecidos em regulamento específico editado pelo Conselho Monetário Nacional,a extinção do instrumento.","Totalmente","Permanente","Contratual","Não","Não","Não se aplica"]
[null,99,"BRB - BANCO DE BRASILIA S/A","LFSN2200DFU","Lei 12.249/2010 - Resolução 4.955/2021 do CMN","Nível II","Nível II","Conglomerado","Letra financeira",{"v":12424991.752,"d":"R$ 12,424,991.75"},{"v":10500000,"d":"R$ 10,500,000.00"},"passivo - custo amortizado","2022-11-18","Com vencimento","2029-11-19","Não","(1) Não há uma data específica, apenas quando for solicitado ao Bacen","(2) Não há vinculação regulatória ou fiscal para resgate ou recompra","(3) O valor pode ser parcial ou total, conforme autorização do Bacen","Não se aplica","Fixo","135% CDI","Não","Mandatório","Não","Cumulativo","Não conversível","Não se aplica","Não se aplica","Não se aplica","Não se aplica","Não se aplica","Não se aplica","Sim","Os títulos serão extintos, permanente e em valor no mínimo correspondente ao saldo computado no Nível II do Patrimônio de Referência do BRB – Banco de Brasília S.A nas seguintes condições:         1. seja verificada a divulgação pelo BRB – Banco de Brasília S.A. de que seu Capital Principal está em patamar inferior a 4,5% (quatro inteiros e cinco décimos por cento) do montante RWA, estabelecida pela regulamentação vigente; ou\n2. seja verificada, em lei específica, a assinatura de compromisso de aporte para o BRB – Banco de Brasília S.A.;\n3. seja decretado pelo BACEN o regime de administração especial temporária ou intervenção do BRB – Banco de Brasília S.A.; ou\n4. seja determinado pelo BACEN, segundo critérios estabelecidos em regulamento específico editado pelo Conselho Monetário Nacional,a extinção do instrumento.","Totalmente","Permanente","Contratual","Não","Não","Não se aplica"]
[null,100,"BRB - BANCO DE BRASILIA S/A","LFSN2200DQM","Lei 12.249/2010 - Resolução 4.955/2021 do CMN","Nível II","Nível II","Conglomerado","Letra financeira",{"v":12041136.592,"d":"R$ 12,041,136.59"},{"v":10200000,"d":"R$ 10,200,000.00"},"passivo - custo amortizado","2022-11-23","Com vencimento","2029-11-23","Não","(1) Não há uma data específica, apenas quando for solicitado ao Bacen","(2) Não há vinculação regulatória ou fiscal para resgate ou recompra","(3) O valor pode ser parcial ou total, conforme autorização do Bacen","Não se aplica","Fixo","135% CDI","Não","Mandatório","Não","Cumulativo","Não conversível","Não se aplica","Não se aplica","Não se aplica","Não se aplica","Não se aplica","Não se aplica","Sim","Os títulos serão extintos, permanente e em valor no mínimo correspondente ao saldo computado no Nível II do Patrimônio de Referência do BRB – Banco de Brasília S.A nas seguintes condições:         1. seja verificada a divulgação pelo BRB – Banco de Brasília S.A. de que seu Capital Principal está em patamar inferior a 4,5% (quatro inteiros e cinco décimos por cento) do montante RWA, estabelecida pela regulamentação vigente; ou\n2. seja verificada, em lei específica, a assinatura de compromisso de aporte para o BRB – Banco de Brasília S.A.;\n3. seja decretado pelo BACEN o regime de administração especial temporária ou intervenção do BRB – Banco de Brasília S.A.; ou\n4. seja determinado pelo BACEN, segundo critérios estabelecidos em regulamento específico editado pelo Conselho Monetário Nacional,a extinção do instrumento.","Totalmente","Permanente","Contratual","Não","Não","Não se aplica",null,"NUM","NUM","NUM","NUM","NUM","NUM","NUM","NUM","NUM","NUM","NUM","NUM","NUM","NUM","NUM","NUM","NUM","NUM","NUM","NUM","NUM","NUM","NUM","TXT","TXT","TXT","TXT","TXT","TXT","TXT","TXT","TXT","TXT","TXT","TXT","TXT","TXT","TXT","TXT","TXT","TXT","TXT","TXT","TXT","TXT","TXT","TXT","TXT","TXT","TXT","TXT","TXT","TXT","TXT"]
[null,101,"BRB - BANCO DE BRASILIA S/A","LFSN2200DW7","Lei 12.249/2010 - Resolução 4.955/2021 do CMN","Nível II","Nível II","Conglomerado","Letra financeira",{"v":16269994.912,"d":"R$ 16,269,994.91"},{"v":13800000,"d":"R$ 13,800,000.00"},"passivo - custo amortizado","2022-11-25","Com vencimento","2029-11-26","Não","(1) Não há uma data específica, apenas quando for solicitado ao Bacen","(2) Não há vinculação regulatória ou fiscal para resgate ou recompra","(3) O valor pode ser parcial ou total, conforme autorização do Bacen","Não se aplica","Fixo","135% CDI","Não","Mandatório","Não","Cumulativo","Não conversível","Não se aplica","Não se aplica","Não se aplica","Não se aplica","Não se aplica","Não se aplica","Sim","Os títulos serão extintos, permanente e em valor no mínimo correspondente ao saldo computado no Nível II do Patrimônio de Referência do BRB – Banco de Brasília S.A nas seguintes condições:         1. seja verificada a divulgação pelo BRB – Banco de Brasília S.A. de que seu Capital Principal está em patamar inferior a 4,5% (quatro inteiros e cinco décimos por cento) do montante RWA, estabelecida pela regulamentação vigente; ou\n2. seja verificada, em lei específica, a assinatura de compromisso de aporte para o BRB – Banco de Brasília S.A.;\n3. seja decretado pelo BACEN o regime de administração especial temporária ou intervenção do BRB – Banco de Brasília S.A.; ou\n4. seja determinado pelo BACEN, segundo critérios estabelecidos em regulamento específico editado pelo Conselho Monetário Nacional,a extinção do instrumento.","Totalmente","Permanente","Contratual","Não","Não","Não se aplica"]
[null,102,"BRB - BANCO DE BRASILIA S/A","LFSN2200ECS","Lei 12.249/2010 - Resolução 4.955/2021 do CMN","Nível II","Nível II","Conglomerado","Letra financeira",{"v":7416300.552,"d":"R$ 7,416,300.55"},{"v":6300000,"d":"R$ 6,300,000.00"},"passivo - custo amortizado","2022-11-30","Com vencimento","2029-11-30","Não","(1) Não há uma data específica, apenas quando for solicitado ao Bacen","(2) Não há vinculação regulatória ou fiscal para resgate ou recompra","(3) O valor pode ser parcial ou total, conforme autorização do Bacen","Não se aplica","Fixo","135% CDI","Não","Mandatório","Não","Cumulativo","Não conversível","Não se aplica","Não se aplica","Não se aplica","Não se aplica","Não se aplica","Não se aplica","Sim","Os títulos serão extintos, permanente e em valor no mínimo correspondente ao saldo computado no Nível II do Patrimônio de Referência do BRB – Banco de Brasília S.A nas seguintes condições:         1. seja verificada a divulgação pelo BRB – Banco de Brasília S.A. de que seu Capital Principal está em patamar inferior a 4,5% (quatro inteiros e cinco décimos por cento) do montante RWA, estabelecida pela regulamentação vigente; ou\n2. seja verificada, em lei específica, a assinatura de compromisso de aporte para o BRB – Banco de Brasília S.A.;\n3. seja decretado pelo BACEN o regime de administração especial temporária ou intervenção do BRB – Banco de Brasília S.A.; ou\n4. seja determinado pelo BACEN, segundo critérios estabelecidos em regulamento específico editado pelo Conselho Monetário Nacional,a extinção do instrumento.","Totalmente","Permanente","Contratual","Não","Não","Não se aplica"]
[null,103,"BRB - BANCO DE BRASILIA S/A","LFSN2200ENT","Lei 12.249/2010 - Resolução 4.955/2021 do CMN","Nível II","Nível II","Conglomerado","Letra financeira",{"v":6348670.368000001,"d":"R$ 6,348,670.37"},{"v":5400000,"d":"R$ 5,400,000.00"},"passivo - custo amortizado","2022-12-02","Com vencimento","2029-12-03","Não","(1) Não há uma data específica, apenas quando for solicitado ao Bacen","(2) Não há vinculação regulatória ou fiscal para resgate ou recompra","(3) O valor pode ser parcial ou total, conforme autorização do Bacen","Não se aplica","Fixo","135% CDI","Não","Mandatório","Não","Cumulativo","Não conversível","Não se aplica","Não se aplica","Não se aplica","Não se aplica","Não se aplica","Não se aplica","Sim","Os títulos serão extintos, permanente e em valor no mínimo correspondente ao saldo computado no Nível II do Patrimônio de Referência do BRB – Banco de Brasília S.A nas seguintes condições:         1. seja verificada a divulgação pelo BRB – Banco de Brasília S.A. de que seu Capital Principal está em patamar inferior a 4,5% (quatro inteiros e cinco décimos por cento) do montante RWA, estabelecida pela regulamentação vigente; ou\n2. seja verificada, em lei específica, a assinatura de compromisso de aporte para o BRB – Banco de Brasília S.A.;\n3. seja decretado pelo BACEN o regime de administração especial temporária ou intervenção do BRB – Banco de Brasília S.A.; ou\n4. seja determinado pelo BACEN, segundo critérios estabelecidos em regulamento específico editado pelo Conselho Monetário Nacional,a extinção do instrumento.","Totalmente","Permanente","Contratual","Não","Não","Não se aplica"]
[null,104,"BRB - BANCO DE BRASILIA S/A","LFSN2200EZ3","Lei 12.249/2010 - Resolução 4.955/2021 do CMN","Nível II","Nível II","Conglomerado","Letra financeira",{"v":1708257.996,"d":"R$ 1,708,258.00"},{"v":2000000,"d":"R$ 2,000,000.00"},"passivo - custo amortizado","2022-12-08","Com vencimento","2028-11-06","Não","(1) Não há uma data específica, apenas quando for solicitado ao Bacen","(2) Não há vinculação regulatória ou fiscal para resgate ou recompra","(3) O valor pode ser parcial ou total, conforme autorização do Bacen","Não se aplica","Fixo","123% CDI","Não","Mandatório","Não","Cumulativo","Não conversível","Não se aplica","Não se aplica","Não se aplica","Não se aplica","Não se aplica","Não se aplica","Sim","Os títulos serão extintos, permanente e em valor no mínimo correspondente ao saldo computado no Nível II do Patrimônio de Referência do BRB – Banco de Brasília S.A nas seguintes condições:         1. seja verificada a divulgação pelo BRB – Banco de Brasília S.A. de que seu Capital Principal está em patamar inferior a 4,5% (quatro inteiros e cinco décimos por cento) do montante RWA, estabelecida pela regulamentação vigente; ou\n2. seja verificada, em lei específica, a assinatura de compromisso de aporte para o BRB – Banco de Brasília S.A.;\n3. seja decretado pelo BACEN o regime de administração especial temporária ou intervenção do BRB – Banco de Brasília S.A.; ou\n4. seja determinado pelo BACEN, segundo critérios estabelecidos em regulamento específico editado pelo Conselho Monetário Nacional,a extinção do instrumento.","Totalmente","Permanente","Contratual","Não","Não","Não se aplica"]
[null,105,"BRB - BANCO DE BRASILIA S/A","LFSN23005EH","Lei 12.249/2010 - Resolução 4.955/2021 do CMN","Nível II","Nível II","Conglomerado","Letra financeira",{"v":2267527.152,"d":"R$ 2,267,527.15"},{"v":2700000,"d":"R$ 2,700,000.00"},"passivo - custo amortizado","2023-01-31","Com vencimento","2029-01-31","Não","(1) Não há uma data específica, apenas quando for solicitado ao Bacen","(2) Não há vinculação regulatória ou fiscal para resgate ou recompra","(3) O valor pode ser parcial ou total, conforme autorização do Bacen","Não se aplica","Fixo","127% CDI","Não","Mandatório","Não","Cumulativo","Não conversível","Não se aplica","Não se aplica","Não se aplica","Não se aplica","Não se aplica","Não se aplica","Sim","Os títulos serão extintos, permanente e em valor no mínimo correspondente ao saldo computado no Nível II do Patrimônio de Referência do BRB – Banco de Brasília S.A nas seguintes condições:         1. seja verificada a divulgação pelo BRB – Banco de Brasília S.A. de que seu Capital Principal está em patamar inferior a 4,5% (quatro inteiros e cinco décimos por cento) do montante RWA, estabelecida pela regulamentação vigente; ou\n2. seja verificada, em lei específica, a assinatura de compromisso de aporte para o BRB – Banco de Brasília S.A.;\n3. seja decretado pelo BACEN o regime de administração especial temporária ou intervenção do BRB – Banco de Brasília S.A.; ou\n4. seja determinado pelo BACEN, segundo critérios estabelecidos em regulamento específico editado pelo Conselho Monetário Nacional,a extinção do instrumento.","Totalmente","Permanente","Contratual","Não","Não","Não se aplica"]
[null,106,"BRB - BANCO DE BRASILIA S/A","LFSN23005K1","Lei 12.249/2010 - Resolução 4.955/2021 do CMN","Nível II","Nível II","Conglomerado","Letra financeira",{"v":11392902.896,"d":"R$ 11,392,902.90"},{"v":10200000,"d":"R$ 10,200,000.00"},"passivo - custo amortizado","2023-01-31","Com vencimento","2030-01-31","Não","(1) Não há uma data específica, apenas quando for solicitado ao Bacen","(2) Não há vinculação regulatória ou fiscal para resgate ou recompra","(3) O valor pode ser parcial ou total, conforme autorização do Bacen","Não se aplica","Fixo","129% CDI","Não","Mandatório","Não","Cumulativo","Não conversível","Não se aplica","Não se aplica","Não se aplica","Não se aplica","Não se aplica","Não se aplica","Sim","Os títulos serão extintos, permanente e em valor no mínimo correspondente ao saldo computado no Nível II do Patrimônio de Referência do BRB – Banco de Brasília S.A nas seguintes condições:         1. seja verificada a divulgação pelo BRB – Banco de Brasília S.A. de que seu Capital Principal está em patamar inferior a 4,5% (quatro inteiros e cinco décimos por cento) do montante RWA, estabelecida pela regulamentação vigente; ou\n2. seja verificada, em lei específica, a assinatura de compromisso de aporte para o BRB – Banco de Brasília S.A.;\n3. seja decretado pelo BACEN o regime de administração especial temporária ou intervenção do BRB – Banco de Brasília S.A.; ou\n4. seja determinado pelo BACEN, segundo critérios estabelecidos em regulamento específico editado pelo Conselho Monetário Nacional,a extinção do instrumento.","Totalmente","Permanente","Contratual","Não","Não","Não se aplica"]
[null,107,"BRB - BANCO DE BRASILIA S/A","LFSN23006BT","Lei 12.249/2010 - Resolução 4.955/2021 do CMN","Nível II","Nível II","Conglomerado","Letra financeira",{"v":9699224.904000001,"d":"R$ 9,699,224.90"},{"v":8700000,"d":"R$ 8,700,000.00"},"passivo - custo amortizado","2023-02-03","Com vencimento","2030-02-04","Não","(1) Não há uma data específica, apenas quando for solicitado ao Bacen","(2) Não há vinculação regulatória ou fiscal para resgate ou recompra","(3) O valor pode ser parcial ou total, conforme autorização do Bacen","Não se aplica","Fixo","129% CDI","Não","Mandatório","Não","Cumulativo","Não conversível","Não se aplica","Não se aplica","Não se aplica","Não se aplica","Não se aplica","Não se aplica","Sim","Os títulos serão extintos, permanente e em valor no mínimo correspondente ao saldo computado no Nível II do Patrimônio de Referência do BRB – Banco de Brasília S.A nas seguintes condições:         1. seja verificada a divulgação pelo BRB – Banco de Brasília S.A. de que seu Capital Principal está em patamar inferior a 4,5% (quatro inteiros e cinco décimos por cento) do montante RWA, estabelecida pela regulamentação vigente; ou\n2. seja verificada, em lei específica, a assinatura de compromisso de aporte para o BRB – Banco de Brasília S.A.;\n3. seja decretado pelo BACEN o regime de administração especial temporária ou intervenção do BRB – Banco de Brasília S.A.; ou\n4. seja determinado pelo BACEN, segundo critérios estabelecidos em regulamento específico editado pelo Conselho Monetário Nacional,a extinção do instrumento.","Totalmente","Permanente","Contratual","Não","Não","Não se aplica"]
[null,108,"BRB - BANCO DE BRASILIA S/A","LFSN23006HE","Lei 12.249/2010 - Resolução 4.955/2021 do CMN","Nível II","Nível II","Conglomerado","Letra financeira",{"v":334454.912,"d":"R$ 334,454.91"},{"v":300000,"d":"R$ 300,000.00"},"passivo - custo amortizado","2023-02-03","Com vencimento","2030-02-04","Não","(1) Não há uma data específica, apenas quando for solicitado ao Bacen","(2) Não há vinculação regulatória ou fiscal para resgate ou recompra","(3) O valor pode ser parcial ou total, conforme autorização do Bacen","Não se aplica","Fixo","129% CDI","Não","Mandatório","Não","Cumulativo","Não conversível","Não se aplica","Não se aplica","Não se aplica","Não se aplica","Não se aplica","Não se aplica","Sim","Os títulos serão extintos, permanente e em valor no mínimo correspondente ao saldo computado no Nível II do Patrimônio de Referência do BRB – Banco de Brasília S.A nas seguintes condições:         1. seja verificada a divulgação pelo BRB – Banco de Brasília S.A. de que seu Capital Principal está em patamar inferior a 4,5% (quatro inteiros e cinco décimos por cento) do montante RWA, estabelecida pela regulamentação vigente; ou\n2. seja verificada, em lei específica, a assinatura de compromisso de aporte para o BRB – Banco de Brasília S.A.;\n3. seja decretado pelo BACEN o regime de administração especial temporária ou intervenção do BRB – Banco de Brasília S.A.; ou\n4. seja determinado pelo BACEN, segundo critérios estabelecidos em regulamento específico editado pelo Conselho Monetário Nacional,a extinção do instrumento.","Totalmente","Permanente","Contratual","Não","Não","Não se aplica"]
[null,109,"BRB - BANCO DE BRASILIA S/A","LFSN23006SI","Lei 12.249/2010 - Resolução 4.955/2021 do CMN","Nível II","Nível II","Conglomerado","Letra financeira",{"v":9673356.848000001,"d":"R$ 9,673,356.85"},{"v":8700000,"d":"R$ 8,700,000.00"},"passivo - custo amortizado","2023-02-08","Com vencimento","2030-02-08","Não","(1) Não há uma data específica, apenas quando for solicitado ao Bacen","(2) Não há vinculação regulatória ou fiscal para resgate ou recompra","(3) O valor pode ser parcial ou total, conforme autorização do Bacen","Não se aplica","Fixo","129% CDI","Não","Mandatório","Não","Cumulativo","Não conversível","Não se aplica","Não se aplica","Não se aplica","Não se aplica","Não se aplica","Não se aplica","Sim","Os títulos serão extintos, permanente e em valor no mínimo correspondente ao saldo computado no Nível II do Patrimônio de Referência do BRB – Banco de Brasília S.A nas seguintes condições:         1. seja verificada a divulgação pelo BRB – Banco de Brasília S.A. de que seu Capital Principal está em patamar inferior a 4,5% (quatro inteiros e cinco décimos por cento) do montante RWA, estabelecida pela regulamentação vigente; ou\n2. seja verificada, em lei específica, a assinatura de compromisso de aporte para o BRB – Banco de Brasília S.A.;\n3. seja decretado pelo BACEN o regime de administração especial temporária ou intervenção do BRB – Banco de Brasília S.A.; ou\n4. seja determinado pelo BACEN, segundo critérios estabelecidos em regulamento específico editado pelo Conselho Monetário Nacional,a extinção do instrumento.","Totalmente","Permanente","Contratual","Não","Não","Não se aplica"]
[null,110,"BRB - BANCO DE BRASILIA S/A","LFSN23006SJ","Lei 12.249/2010 - Resolução 4.955/2021 do CMN","Nível II","Nível II","Conglomerado","Letra financeira",{"v":501722.75399999996,"d":"R$ 501,722.75"},{"v":600000,"d":"R$ 600,000.00"},"passivo - custo amortizado","2023-02-08","Com vencimento","2029-02-08","Não","(1) Não há uma data específica, apenas quando for solicitado ao Bacen","(2) Não há vinculação regulatória ou fiscal para resgate ou recompra","(3) O valor pode ser parcial ou total, conforme autorização do Bacen","Não se aplica","Fixo","127% CDI","Não","Mandatório","Não","Cumulativo","Não conversível","Não se aplica","Não se aplica","Não se aplica","Não se aplica","Não se aplica","Não se aplica","Sim","Os títulos serão extintos, permanente e em valor no mínimo correspondente ao saldo computado no Nível II do Patrimônio de Referência do BRB – Banco de Brasília S.A nas seguintes condições:         1. seja verificada a divulgação pelo BRB – Banco de Brasília S.A. de que seu Capital Principal está em patamar inferior a 4,5% (quatro inteiros e cinco décimos por cento) do montante RWA, estabelecida pela regulamentação vigente; ou\n2. seja verificada, em lei específica, a assinatura de compromisso de aporte para o BRB – Banco de Brasília S.A.;\n3. seja decretado pelo BACEN o regime de administração especial temporária ou intervenção do BRB – Banco de Brasília S.A.; ou\n4. seja determinado pelo BACEN, segundo critérios estabelecidos em regulamento específico editado pelo Conselho Monetário Nacional,a extinção do instrumento.","Totalmente","Permanente","Contratual","Não","Não","Não se aplica"]
[null,111,"BRB - BANCO DE BRASILIA S/A","LFSN23007K9","Lei 12.249/2010 - Resolução 4.955/2021 do CMN","Nível II","Nível II","Conglomerado","Letra financeira",{"v":5994391.760000001,"d":"R$ 5,994,391.76"},{"v":5400000,"d":"R$ 5,400,000.00"},"passivo - custo amortizado","2023-02-10","Com vencimento","2030-02-11","Não","(1) Não há uma data específica, apenas quando for solicitado ao Bacen","(2) Não há vinculação regulatória ou fiscal para resgate ou recompra","(3) O valor pode ser parcial ou total, conforme autorização do Bacen","Não se aplica","Fixo","129% CDI","Não","Mandatório","Não","Cumulativo","Não conversível","Não se aplica","Não se aplica","Não se aplica","Não se aplica","Não se aplica","Não se aplica","Sim","Os títulos serão extintos, permanente e em valor no mínimo correspondente ao saldo computado no Nível II do Patrimônio de Referência do BRB – Banco de Brasília S.A nas seguintes condições:         1. seja verificada a divulgação pelo BRB – Banco de Brasília S.A. de que seu Capital Principal está em patamar inferior a 4,5% (quatro inteiros e cinco décimos por cento) do montante RWA, estabelecida pela regulamentação vigente; ou\n2. seja verificada, em lei específica, a assinatura de compromisso de aporte para o BRB – Banco de Brasília S.A.;\n3. seja decretado pelo BACEN o regime de administração especial temporária ou intervenção do BRB – Banco de Brasília S.A.; ou\n4. seja determinado pelo BACEN, segundo critérios estabelecidos em regulamento específico editado pelo Conselho Monetário Nacional,a extinção do instrumento.","Totalmente","Permanente","Contratual","Não","Não","Não se aplica"]
[null,112,"BRB - BANCO DE BRASILIA S/A","LFSN23007KA","Lei 12.249/2010 - Resolução 4.955/2021 do CMN","Nível II","Nível II","Conglomerado","Letra financeira",{"v":500967.762,"d":"R$ 500,967.76"},{"v":600000,"d":"R$ 600,000.00"},"passivo - custo amortizado","2023-02-10","Com vencimento","2029-02-14","Não","(1) Não há uma data específica, apenas quando for solicitado ao Bacen","(2) Não há vinculação regulatória ou fiscal para resgate ou recompra","(3) O valor pode ser parcial ou total, conforme autorização do Bacen","Não se aplica","Fixo","127% CDI","Não","Mandatório","Não","Cumulativo","Não conversível","Não se aplica","Não se aplica","Não se aplica","Não se aplica","Não se aplica","Não se aplica","Sim","Os títulos serão extintos, permanente e em valor no mínimo correspondente ao saldo computado no Nível II do Patrimônio de Referência do BRB – Banco de Brasília S.A nas seguintes condições:         1. seja verificada a divulgação pelo BRB – Banco de Brasília S.A. de que seu Capital Principal está em patamar inferior a 4,5% (quatro inteiros e cinco décimos por cento) do montante RWA, estabelecida pela regulamentação vigente; ou\n2. seja verificada, em lei específica, a assinatura de compromisso de aporte para o BRB – Banco de Brasília S.A.;\n3. seja decretado pelo BACEN o regime de administração especial temporária ou intervenção do BRB – Banco de Brasília S.A.; ou\n4. seja determinado pelo BACEN, segundo critérios estabelecidos em regulamento específico editado pelo Conselho Monetário Nacional,a extinção do instrumento.","Totalmente","Permanente","Contratual","Não","Não","Não se aplica"]
[null,113,"BRB - BANCO DE BRASILIA S/A","LFSN24007KA","Lei 12.249/2010 - Resolução 4.955/2021 do CMN","Nível II","Nível II","Conglomerado","Letra financeira",{"v":14935695.54,"d":"R$ 14,935,695.54"},{"v":14100000,"d":"R$ 14,100,000.00"},"passivo - custo amortizado","2024-10-30","Com vencimento","2031-10-30","Não","(1) Não há uma data específica, apenas quando for solicitado ao Bacen","(2) Não há vinculação regulatória ou fiscal para resgate ou recompra","(3) O valor pode ser parcial ou total, conforme autorização do Bacen","Não se aplica","Fixo","124% CDI","Não","Mandatório","Não","Cumulativo","Não conversível","Não se aplica","Não se aplica","Não se aplica","Não se aplica","Não se aplica","Não se aplica","Sim","Os títulos serão extintos, permanente e em valor no mínimo correspondente ao saldo computado no Nível II do Patrimônio de Referência do BRB – Banco de Brasília S.A nas seguintes condições:         1. seja verificada a divulgação pelo BRB – Banco de Brasília S.A. de que seu Capital Principal está em patamar inferior a 4,5% (quatro inteiros e cinco décimos por cento) do montante RWA, estabelecida pela regulamentação vigente; ou\n2. seja verificada, em lei específica, a assinatura de compromisso de aporte para o BRB – Banco de Brasília S.A.;\n3. seja decretado pelo BACEN o regime de administração especial temporária ou intervenção do BRB – Banco de Brasília S.A.; ou\n4. seja determinado pelo BACEN, segundo critérios estabelecidos em regulamento específico editado pelo Conselho Monetário Nacional,a extinção do instrumento.","Totalmente","Permanente","Contratual","Não","Não","Não se aplica"]
[null,114,"BRB - BANCO DE BRASILIA S/A","LFSN24007KB","Lei 12.249/2010 - Resolução 4.955/2021 do CMN","Nível II","Nível II","Conglomerado","Letra financeira",{"v":1928713.3,"d":"R$ 1,928,713.30"},{"v":1800000,"d":"R$ 1,800,000.00"},"passivo - custo amortizado","2024-10-30","Com vencimento","2031-10-30","Não","(1) Não há uma data específica, apenas quando for solicitado ao Bacen","(2) Não há vinculação regulatória ou fiscal para resgate ou recompra","(3) O valor pode ser parcial ou total, conforme autorização do Bacen","Não se aplica","Fixo","125,5% CDI","Não","Mandatório","Não","Cumulativo","Não conversível","Não se aplica","Não se aplica","Não se aplica","Não se aplica","Não se aplica","Não se aplica","Sim","Os títulos serão extintos, permanente e em valor no mínimo correspondente ao saldo computado no Nível II do Patrimônio de Referência do BRB – Banco de Brasília S.A nas seguintes condições:         1. seja verificada a divulgação pelo BRB – Banco de Brasília S.A. de que seu Capital Principal está em patamar inferior a 4,5% (quatro inteiros e cinco décimos por cento) do montante RWA, estabelecida pela regulamentação vigente; ou\n2. seja verificada, em lei específica, a assinatura de compromisso de aporte para o BRB – Banco de Brasília S.A.;\n3. seja decretado pelo BACEN o regime de administração especial temporária ou intervenção do BRB – Banco de Brasília S.A.; ou\n4. seja determinado pelo BACEN, segundo critérios estabelecidos em regulamento específico editado pelo Conselho Monetário Nacional,a extinção do instrumento.","Totalmente","Permanente","Contratual","Não","Não","Não se aplica"]
[null,115,"BRB - BANCO DE BRASILIA S/A","LFSN24007KC","Lei 12.249/2010 - Resolução 4.955/2021 do CMN","Nível II","Nível II","Conglomerado","Letra financeira",{"v":4194912.86,"d":"R$ 4,194,912.86"},{"v":3900000,"d":"R$ 3,900,000.00"},"passivo - custo amortizado","2024-10-30","Com vencimento","2031-10-30","Não","(1) Não há uma data específica, apenas quando for solicitado ao Bacen","(2) Não há vinculação regulatória ou fiscal para resgate ou recompra","(3) O valor pode ser parcial ou total, conforme autorização do Bacen","Não se aplica","Fixo","126% CDI","Não","Mandatório","Não","Cumulativo","Não conversível","Não se aplica","Não se aplica","Não se aplica","Não se aplica","Não se aplica","Não se aplica","Sim","Os títulos serão extintos, permanente e em valor no mínimo correspondente ao saldo computado no Nível II do Patrimônio de Referência do BRB – Banco de Brasília S.A nas seguintes condições:         1. seja verificada a divulgação pelo BRB – Banco de Brasília S.A. de que seu Capital Principal está em patamar inferior a 4,5% (quatro inteiros e cinco décimos por cento) do montante RWA, estabelecida pela regulamentação vigente; ou\n2. seja verificada, em lei específica, a assinatura de compromisso de aporte para o BRB – Banco de Brasília S.A.;\n3. seja decretado pelo BACEN o regime de administração especial temporária ou intervenção do BRB – Banco de Brasília S.A.; ou\n4. seja determinado pelo BACEN, segundo critérios estabelecidos em regulamento específico editado pelo Conselho Monetário Nacional,a extinção do instrumento.","Totalmente","Permanente","Contratual","Não","Não","Não se aplica"]
[null,116,"BRB - BANCO DE BRASILIA S/A","LFSN24007KD","Lei 12.249/2010 - Resolução 4.955/2021 do CMN","Nível II","Nível II","Conglomerado","Letra financeira",{"v":8779484.63,"d":"R$ 8,779,484.63"},{"v":8100000,"d":"R$ 8,100,000.00"},"passivo - custo amortizado","2024-10-30","Com vencimento","2031-10-30","Não","(1) Não há uma data específica, apenas quando for solicitado ao Bacen","(2) Não há vinculação regulatória ou fiscal para resgate ou recompra","(3) O valor pode ser parcial ou total, conforme autorização do Bacen","Não se aplica","Fixo","127% CDI","Não","Mandatório","Não","Cumulativo","Não conversível","Não se aplica","Não se aplica","Não se aplica","Não se aplica","Não se aplica","Não se aplica","Sim","Os títulos serão extintos, permanente e em valor no mínimo correspondente ao saldo computado no Nível II do Patrimônio de Referência do BRB – Banco de Brasília S.A nas seguintes condições:         1. seja verificada a divulgação pelo BRB – Banco de Brasília S.A. de que seu Capital Principal está em patamar inferior a 4,5% (quatro inteiros e cinco décimos por cento) do montante RWA, estabelecida pela regulamentação vigente; ou\n2. seja verificada, em lei específica, a assinatura de compromisso de aporte para o BRB – Banco de Brasília S.A.;\n3. seja decretado pelo BACEN o regime de administração especial temporária ou intervenção do BRB – Banco de Brasília S.A.; ou\n4. seja determinado pelo BACEN, segundo critérios estabelecidos em regulamento específico editado pelo Conselho Monetário Nacional,a extinção do instrumento.","Totalmente","Permanente","Contratual","Não","Não","Não se aplica"]
[null,117,"BRB - BANCO DE BRASILIA S/A","LFSN24007VE","Lei 12.249/2010 - Resolução 4.955/2021 do CMN","Nível II","Nível II","Conglomerado","Letra financeira",{"v":8259103.93,"d":"R$ 8,259,103.93"},{"v":7800000,"d":"R$ 7,800,000.00"},"passivo - custo amortizado","2024-10-31","Com vencimento","2031-10-31","Não","(1) Não há uma data específica, apenas quando for solicitado ao Bacen","(2) Não há vinculação regulatória ou fiscal para resgate ou recompra","(3) O valor pode ser parcial ou total, conforme autorização do Bacen","Não se aplica","Fixo","124% CDI","Não","Mandatório","Não","Cumulativo","Não conversível","Não se aplica","Não se aplica","Não se aplica","Não se aplica","Não se aplica","Não se aplica","Sim","Os títulos serão extintos, permanente e em valor no mínimo correspondente ao saldo computado no Nível II do Patrimônio de Referência do BRB – Banco de Brasília S.A nas seguintes condições:         1. seja verificada a divulgação pelo BRB – Banco de Brasília S.A. de que seu Capital Principal está em patamar inferior a 4,5% (quatro inteiros e cinco décimos por cento) do montante RWA, estabelecida pela regulamentação vigente; ou\n2. seja verificada, em lei específica, a assinatura de compromisso de aporte para o BRB – Banco de Brasília S.A.;\n3. seja decretado pelo BACEN o regime de administração especial temporária ou intervenção do BRB – Banco de Brasília S.A.; ou\n4. seja determinado pelo BACEN, segundo critérios estabelecidos em regulamento específico editado pelo Conselho Monetário Nacional,a extinção do instrumento.","Totalmente","Permanente","Contratual","Não","Não","Não se aplica"]
[null,118,"BRB - BANCO DE BRASILIA S/A","LFSN24007VF","Lei 12.249/2010 - Resolução 4.955/2021 do CMN","Nível II","Nível II","Conglomerado","Letra financeira",{"v":2570536.85,"d":"R$ 2,570,536.85"},{"v":2400000,"d":"R$ 2,400,000.00"},"passivo - custo amortizado","2024-10-31","Com vencimento","2031-10-31","Não","(1) Não há uma data específica, apenas quando for solicitado ao Bacen","(2) Não há vinculação regulatória ou fiscal para resgate ou recompra","(3) O valor pode ser parcial ou total, conforme autorização do Bacen","Não se aplica","Fixo","125,5% CDI","Não","Mandatório","Não","Cumulativo","Não conversível","Não se aplica","Não se aplica","Não se aplica","Não se aplica","Não se aplica","Não se aplica","Sim","Os títulos serão extintos, permanente e em valor no mínimo correspondente ao saldo computado no Nível II do Patrimônio de Referência do BRB – Banco de Brasília S.A nas seguintes condições:         1. seja verificada a divulgação pelo BRB – Banco de Brasília S.A. de que seu Capital Principal está em patamar inferior a 4,5% (quatro inteiros e cinco décimos por cento) do montante RWA, estabelecida pela regulamentação vigente; ou\n2. seja verificada, em lei específica, a assinatura de compromisso de aporte para o BRB – Banco de Brasília S.A.;\n3. seja decretado pelo BACEN o regime de administração especial temporária ou intervenção do BRB – Banco de Brasília S.A.; ou\n4. seja determinado pelo BACEN, segundo critérios estabelecidos em regulamento específico editado pelo Conselho Monetário Nacional,a extinção do instrumento.","Totalmente","Permanente","Contratual","Não","Não","Não se aplica"]
[null,119,"BRB - BANCO DE BRASILIA S/A","LFSN24007VG","Lei 12.249/2010 - Resolução 4.955/2021 do CMN","Nível II","Nível II","Conglomerado","Letra financeira",{"v":1290185.1,"d":"R$ 1,290,185.10"},{"v":1200000,"d":"R$ 1,200,000.00"},"passivo - custo amortizado","2024-10-31","Com vencimento","2031-10-31","Não","(1) Não há uma data específica, apenas quando for solicitado ao Bacen","(2) Não há vinculação regulatória ou fiscal para resgate ou recompra","(3) O valor pode ser parcial ou total, conforme autorização do Bacen","Não se aplica","Fixo","126% CDI","Não","Mandatório","Não","Cumulativo","Não conversível","Não se aplica","Não se aplica","Não se aplica","Não se aplica","Não se aplica","Não se aplica","Sim","Os títulos serão extintos, permanente e em valor no mínimo correspondente ao saldo computado no Nível II do Patrimônio de Referência do BRB – Banco de Brasília S.A nas seguintes condições:         1. seja verificada a divulgação pelo BRB – Banco de Brasília S.A. de que seu Capital Principal está em patamar inferior a 4,5% (quatro inteiros e cinco décimos por cento) do montante RWA, estabelecida pela regulamentação vigente; ou\n2. seja verificada, em lei específica, a assinatura de compromisso de aporte para o BRB – Banco de Brasília S.A.;\n3. seja decretado pelo BACEN o regime de administração especial temporária ou intervenção do BRB – Banco de Brasília S.A.; ou\n4. seja determinado pelo BACEN, segundo critérios estabelecidos em regulamento específico editado pelo Conselho Monetário Nacional,a extinção do instrumento.","Totalmente","Permanente","Contratual","Não","Não","Não se aplica"]
[null,120,"BRB - BANCO DE BRASILIA S/A","LFSN24007VH","Lei 12.249/2010 - Resolução 4.955/2021 do CMN","Nível II","Nível II","Conglomerado","Letra financeira",{"v":5200293.5,"d":"R$ 5,200,293.50"},{"v":4800000,"d":"R$ 4,800,000.00"},"passivo - custo amortizado","2024-10-31","Com vencimento","2031-10-31","Não","(1) Não há uma data específica, apenas quando for solicitado ao Bacen","(2) Não há vinculação regulatória ou fiscal para resgate ou recompra","(3) O valor pode ser parcial ou total, conforme autorização do Bacen","Não se aplica","Fixo","127% CDI","Não","Mandatório","Não","Cumulativo","Não conversível","Não se aplica","Não se aplica","Não se aplica","Não se aplica","Não se aplica","Não se aplica","Sim","Os títulos serão extintos, permanente e em valor no mínimo correspondente ao saldo computado no Nível II do Patrimônio de Referência do BRB – Banco de Brasília S.A nas seguintes condições:         1. seja verificada a divulgação pelo BRB – Banco de Brasília S.A. de que seu Capital Principal está em patamar inferior a 4,5% (quatro inteiros e cinco décimos por cento) do montante RWA, estabelecida pela regulamentação vigente; ou\n2. seja verificada, em lei específica, a assinatura de compromisso de aporte para o BRB – Banco de Brasília S.A.;\n3. seja decretado pelo BACEN o regime de administração especial temporária ou intervenção do BRB – Banco de Brasília S.A.; ou\n4. seja determinado pelo BACEN, segundo critérios estabelecidos em regulamento específico editado pelo Conselho Monetário Nacional,a extinção do instrumento.","Totalmente","Permanente","Contratual","Não","Não","Não se aplica"]
[null,121,"BRB - BANCO DE BRASILIA S/A","LFSN240080Y","Lei 12.249/2010 - Resolução 4.955/2021 do CMN","Nível II","Nível II","Conglomerado","Letra financeira",{"v":634875.24,"d":"R$ 634,875.24"},{"v":600000,"d":"R$ 600,000.00"},"passivo - custo amortizado","2024-11-01","Com vencimento","2031-10-31","Não","(1) Não há uma data específica, apenas quando for solicitado ao Bacen","(2) Não há vinculação regulatória ou fiscal para resgate ou recompra","(3) O valor pode ser parcial ou total, conforme autorização do Bacen","Não se aplica","Fixo","124% CDI","Não","Mandatório","Não","Cumulativo","Não conversível","Não se aplica","Não se aplica","Não se aplica","Não se aplica","Não se aplica","Não se aplica","Sim","Os títulos serão extintos, permanente e em valor no mínimo correspondente ao saldo computado no Nível II do Patrimônio de Referência do BRB – Banco de Brasília S.A nas seguintes condições:         1. seja verificada a divulgação pelo BRB – Banco de Brasília S.A. de que seu Capital Principal está em patamar inferior a 4,5% (quatro inteiros e cinco décimos por cento) do montante RWA, estabelecida pela regulamentação vigente; ou\n2. seja verificada, em lei específica, a assinatura de compromisso de aporte para o BRB – Banco de Brasília S.A.;\n3. seja decretado pelo BACEN o regime de administração especial temporária ou intervenção do BRB – Banco de Brasília S.A.; ou\n4. seja determinado pelo BACEN, segundo critérios estabelecidos em regulamento específico editado pelo Conselho Monetário Nacional,a extinção do instrumento.","Totalmente","Permanente","Contratual","Não","Não","Não se aplica"]
[null,122,"BRB - BANCO DE BRASILIA S/A","LFSN24008C2","Lei 12.249/2010 - Resolução 4.955/2021 do CMN","Nível II","Nível II","Conglomerado","Letra financeira",{"v":6337954.51,"d":"R$ 6,337,954.51"},{"v":6000000,"d":"R$ 6,000,000.00"},"passivo - custo amortizado","2024-11-06","Com vencimento","2031-11-06","Não","(1) Não há uma data específica, apenas quando for solicitado ao Bacen","(2) Não há vinculação regulatória ou fiscal para resgate ou recompra","(3) O valor pode ser parcial ou total, conforme autorização do Bacen","Não se aplica","Fixo","124% CDI","Não","Mandatório","Não","Cumulativo","Não conversível","Não se aplica","Não se aplica","Não se aplica","Não se aplica","Não se aplica","Não se aplica","Sim","Os títulos serão extintos, permanente e em valor no mínimo correspondente ao saldo computado no Nível II do Patrimônio de Referência do BRB – Banco de Brasília S.A nas seguintes condições:         1. seja verificada a divulgação pelo BRB – Banco de Brasília S.A. de que seu Capital Principal está em patamar inferior a 4,5% (quatro inteiros e cinco décimos por cento) do montante RWA, estabelecida pela regulamentação vigente; ou\n2. seja verificada, em lei específica, a assinatura de compromisso de aporte para o BRB – Banco de Brasília S.A.;\n3. seja decretado pelo BACEN o regime de administração especial temporária ou intervenção do BRB – Banco de Brasília S.A.; ou\n4. seja determinado pelo BACEN, segundo critérios estabelecidos em regulamento específico editado pelo Conselho Monetário Nacional,a extinção do instrumento.","Totalmente","Permanente","Contratual","Não","Não","Não se aplica"]
[null,123,"BRB - BANCO DE BRASILIA S/A","LFSN24008C3","Lei 12.249/2010 - Resolução 4.955/2021 do CMN","Nível II","Nível II","Conglomerado","Letra financeira",{"v":2564583.75,"d":"R$ 2,564,583.75"},{"v":2400000,"d":"R$ 2,400,000.00"},"passivo - custo amortizado","2024-11-06","Com vencimento","2031-11-06","Não","(1) Não há uma data específica, apenas quando for solicitado ao Bacen","(2) Não há vinculação regulatória ou fiscal para resgate ou recompra","(3) O valor pode ser parcial ou total, conforme autorização do Bacen","Não se aplica","Fixo","125,5% CDI","Não","Mandatório","Não","Cumulativo","Não conversível","Não se aplica","Não se aplica","Não se aplica","Não se aplica","Não se aplica","Não se aplica","Sim","Os títulos serão extintos, permanente e em valor no mínimo correspondente ao saldo computado no Nível II do Patrimônio de Referência do BRB – Banco de Brasília S.A nas seguintes condições:         1. seja verificada a divulgação pelo BRB – Banco de Brasília S.A. de que seu Capital Principal está em patamar inferior a 4,5% (quatro inteiros e cinco décimos por cento) do montante RWA, estabelecida pela regulamentação vigente; ou\n2. seja verificada, em lei específica, a assinatura de compromisso de aporte para o BRB – Banco de Brasília S.A.;\n3. seja decretado pelo BACEN o regime de administração especial temporária ou intervenção do BRB – Banco de Brasília S.A.; ou\n4. seja determinado pelo BACEN, segundo critérios estabelecidos em regulamento específico editado pelo Conselho Monetário Nacional,a extinção do instrumento.","Totalmente","Permanente","Contratual","Não","Não","Não se aplica"]
[null,124,"BRB - BANCO DE BRASILIA S/A","LFSN24008C4","Lei 12.249/2010 - Resolução 4.955/2021 do CMN","Nível II","Nível II","Conglomerado","Letra financeira",{"v":4864356.69,"d":"R$ 4,864,356.69"},{"v":4500000,"d":"R$ 4,500,000.00"},"passivo - custo amortizado","2024-11-06","Com vencimento","2031-11-06","Não","(1) Não há uma data específica, apenas quando for solicitado ao Bacen","(2) Não há vinculação regulatória ou fiscal para resgate ou recompra","(3) O valor pode ser parcial ou total, conforme autorização do Bacen","Não se aplica","Fixo","127% CDI","Não","Mandatório","Não","Cumulativo","Não conversível","Não se aplica","Não se aplica","Não se aplica","Não se aplica","Não se aplica","Não se aplica","Sim","Os títulos serão extintos, permanente e em valor no mínimo correspondente ao saldo computado no Nível II do Patrimônio de Referência do BRB – Banco de Brasília S.A nas seguintes condições:         1. seja verificada a divulgação pelo BRB – Banco de Brasília S.A. de que seu Capital Principal está em patamar inferior a 4,5% (quatro inteiros e cinco décimos por cento) do montante RWA, estabelecida pela regulamentação vigente; ou\n2. seja verificada, em lei específica, a assinatura de compromisso de aporte para o BRB – Banco de Brasília S.A.;\n3. seja decretado pelo BACEN o regime de administração especial temporária ou intervenção do BRB – Banco de Brasília S.A.; ou\n4. seja determinado pelo BACEN, segundo critérios estabelecidos em regulamento específico editado pelo Conselho Monetário Nacional,a extinção do instrumento.","Totalmente","Permanente","Contratual","Não","Não","Não se aplica"]
[null,125,"BRB - BANCO DE BRASILIA S/A","LFSN24008HM","Lei 12.249/2010 - Resolução 4.955/2021 do CMN","Nível II","Nível II","Conglomerado","Letra financeira",{"v":14252006.36,"d":"R$ 14,252,006.36"},{"v":13500000,"d":"R$ 13,500,000.00"},"passivo - custo amortizado","2024-11-08","Com vencimento","2031-11-07","Não","(1) Não há uma data específica, apenas quando for solicitado ao Bacen","(2) Não há vinculação regulatória ou fiscal para resgate ou recompra","(3) O valor pode ser parcial ou total, conforme autorização do Bacen","Não se aplica","Fixo","124% CDI","Não","Mandatório","Não","Cumulativo","Não conversível","Não se aplica","Não se aplica","Não se aplica","Não se aplica","Não se aplica","Não se aplica","Sim","Os títulos serão extintos, permanente e em valor no mínimo correspondente ao saldo computado no Nível II do Patrimônio de Referência do BRB – Banco de Brasília S.A nas seguintes condições:         1. seja verificada a divulgação pelo BRB – Banco de Brasília S.A. de que seu Capital Principal está em patamar inferior a 4,5% (quatro inteiros e cinco décimos por cento) do montante RWA, estabelecida pela regulamentação vigente; ou\n2. seja verificada, em lei específica, a assinatura de compromisso de aporte para o BRB – Banco de Brasília S.A.;\n3. seja decretado pelo BACEN o regime de administração especial temporária ou intervenção do BRB – Banco de Brasília S.A.; ou\n4. seja determinado pelo BACEN, segundo critérios estabelecidos em regulamento específico editado pelo Conselho Monetário Nacional,a extinção do instrumento.","Totalmente","Permanente","Contratual","Não","Não","Não se aplica"]
[null,126,"BRB - BANCO DE BRASILIA S/A","LFSN24008HN","Lei 12.249/2010 - Resolução 4.955/2021 do CMN","Nível II","Nível II","Conglomerado","Letra financeira",{"v":4484844.85,"d":"R$ 4,484,844.85"},{"v":4200000,"d":"R$ 4,200,000.00"},"passivo - custo amortizado","2024-11-08","Com vencimento","2031-11-07","Não","(1) Não há uma data específica, apenas quando for solicitado ao Bacen","(2) Não há vinculação regulatória ou fiscal para resgate ou recompra","(3) O valor pode ser parcial ou total, conforme autorização do Bacen","Não se aplica","Fixo","125,5% CDI","Não","Mandatório","Não","Cumulativo","Não conversível","Não se aplica","Não se aplica","Não se aplica","Não se aplica","Não se aplica","Não se aplica","Sim","Os títulos serão extintos, permanente e em valor no mínimo correspondente ao saldo computado no Nível II do Patrimônio de Referência do BRB – Banco de Brasília S.A nas seguintes condições:         1. seja verificada a divulgação pelo BRB – Banco de Brasília S.A. de que seu Capital Principal está em patamar inferior a 4,5% (quatro inteiros e cinco décimos por cento) do montante RWA, estabelecida pela regulamentação vigente; ou\n2. seja verificada, em lei específica, a assinatura de compromisso de aporte para o BRB – Banco de Brasília S.A.;\n3. seja decretado pelo BACEN o regime de administração especial temporária ou intervenção do BRB – Banco de Brasília S.A.; ou\n4. seja determinado pelo BACEN, segundo critérios estabelecidos em regulamento específico editado pelo Conselho Monetário Nacional,a extinção do instrumento.","Totalmente","Permanente","Contratual","Não","Não","Não se aplica"]
[null,127,"BRB - BANCO DE BRASILIA S/A","LFSN24008HO","Lei 12.249/2010 - Resolução 4.955/2021 do CMN","Nível II","Nível II","Conglomerado","Letra financeira",{"v":10044688.38,"d":"R$ 10,044,688.38"},{"v":9300000,"d":"R$ 9,300,000.00"},"passivo - custo amortizado","2024-11-08","Com vencimento","2031-11-07","Não","(1) Não há uma data específica, apenas quando for solicitado ao Bacen","(2) Não há vinculação regulatória ou fiscal para resgate ou recompra","(3) O valor pode ser parcial ou total, conforme autorização do Bacen","Não se aplica","Fixo","127% CDI","Não","Mandatório","Não","Cumulativo","Não conversível","Não se aplica","Não se aplica","Não se aplica","Não se aplica","Não se aplica","Não se aplica","Sim","Os títulos serão extintos, permanente e em valor no mínimo correspondente ao saldo computado no Nível II do Patrimônio de Referência do BRB – Banco de Brasília S.A nas seguintes condições:         1. seja verificada a divulgação pelo BRB – Banco de Brasília S.A. de que seu Capital Principal está em patamar inferior a 4,5% (quatro inteiros e cinco décimos por cento) do montante RWA, estabelecida pela regulamentação vigente; ou\n2. seja verificada, em lei específica, a assinatura de compromisso de aporte para o BRB – Banco de Brasília S.A.;\n3. seja decretado pelo BACEN o regime de administração especial temporária ou intervenção do BRB – Banco de Brasília S.A.; ou\n4. seja determinado pelo BACEN, segundo critérios estabelecidos em regulamento específico editado pelo Conselho Monetário Nacional,a extinção do instrumento.","Totalmente","Permanente","Contratual","Não","Não","Não se aplica"]
[null,128,"BRB - BANCO DE BRASILIA S/A","LFSN24008SQ","Lei 12.249/2010 - Resolução 4.955/2021 do CMN","Nível II","Nível II","Conglomerado","Letra financeira",{"v":10396395.3,"d":"R$ 10,396,395.30"},{"v":9900000,"d":"R$ 9,900,000.00"},"passivo - custo amortizado","2024-11-22","Com vencimento","2031-11-24","Não","(1) Não há uma data específica, apenas quando for solicitado ao Bacen","(2) Não há vinculação regulatória ou fiscal para resgate ou recompra","(3) O valor pode ser parcial ou total, conforme autorização do Bacen","Não se aplica","Fixo","124% CDI","Não","Mandatório","Não","Cumulativo","Não conversível","Não se aplica","Não se aplica","Não se aplica","Não se aplica","Não se aplica","Não se aplica","Sim","Os títulos serão extintos, permanente e em valor no mínimo correspondente ao saldo computado no Nível II do Patrimônio de Referência do BRB – Banco de Brasília S.A nas seguintes condições:         1. seja verificada a divulgação pelo BRB – Banco de Brasília S.A. de que seu Capital Principal está em patamar inferior a 4,5% (quatro inteiros e cinco décimos por cento) do montante RWA, estabelecida pela regulamentação vigente; ou\n2. seja verificada, em lei específica, a assinatura de compromisso de aporte para o BRB – Banco de Brasília S.A.;\n3. seja decretado pelo BACEN o regime de administração especial temporária ou intervenção do BRB – Banco de Brasília S.A.; ou\n4. seja determinado pelo BACEN, segundo critérios estabelecidos em regulamento específico editado pelo Conselho Monetário Nacional,a extinção do instrumento.","Totalmente","Permanente","Contratual","Não","Não","Não se aplica"]
[null,129,"BRB - BANCO DE BRASILIA S/A","LFSN24008SR","Lei 12.249/2010 - Resolução 4.955/2021 do CMN","Nível II","Nível II","Conglomerado","Letra financeira",{"v":1274924.26,"d":"R$ 1,274,924.26"},{"v":1200000,"d":"R$ 1,200,000.00"},"passivo - custo amortizado","2024-11-22","Com vencimento","2031-11-24","Não","(1) Não há uma data específica, apenas quando for solicitado ao Bacen","(2) Não há vinculação regulatória ou fiscal para resgate ou recompra","(3) O valor pode ser parcial ou total, conforme autorização do Bacen","Não se aplica","Fixo","125,5% CDI","Não","Mandatório","Não","Cumulativo","Não conversível","Não se aplica","Não se aplica","Não se aplica","Não se aplica","Não se aplica","Não se aplica","Sim","Os títulos serão extintos, permanente e em valor no mínimo correspondente ao saldo computado no Nível II do Patrimônio de Referência do BRB – Banco de Brasília S.A nas seguintes condições:         1. seja verificada a divulgação pelo BRB – Banco de Brasília S.A. de que seu Capital Principal está em patamar inferior a 4,5% (quatro inteiros e cinco décimos por cento) do montante RWA, estabelecida pela regulamentação vigente; ou\n2. seja verificada, em lei específica, a assinatura de compromisso de aporte para o BRB – Banco de Brasília S.A.;\n3. seja decretado pelo BACEN o regime de administração especial temporária ou intervenção do BRB – Banco de Brasília S.A.; ou\n4. seja determinado pelo BACEN, segundo critérios estabelecidos em regulamento específico editado pelo Conselho Monetário Nacional,a extinção do instrumento.","Totalmente","Permanente","Contratual","Não","Não","Não se aplica"]
[null,130,"BRB - BANCO DE BRASILIA S/A","LFSN24008SS","Lei 12.249/2010 - Resolução 4.955/2021 do CMN","Nível II","Nível II","Conglomerado","Letra financeira",{"v":4192018.51,"d":"R$ 4,192,018.51"},{"v":3900000,"d":"R$ 3,900,000.00"},"passivo - custo amortizado","2024-11-22","Com vencimento","2031-11-24","Não","(1) Não há uma data específica, apenas quando for solicitado ao Bacen","(2) Não há vinculação regulatória ou fiscal para resgate ou recompra","(3) O valor pode ser parcial ou total, conforme autorização do Bacen","Não se aplica","Fixo","127% CDI","Não","Mandatório","Não","Cumulativo","Não conversível","Não se aplica","Não se aplica","Não se aplica","Não se aplica","Não se aplica","Não se aplica","Sim","Os títulos serão extintos, permanente e em valor no mínimo correspondente ao saldo computado no Nível II do Patrimônio de Referência do BRB – Banco de Brasília S.A nas seguintes condições:         1. seja verificada a divulgação pelo BRB – Banco de Brasília S.A. de que seu Capital Principal está em patamar inferior a 4,5% (quatro inteiros e cinco décimos por cento) do montante RWA, estabelecida pela regulamentação vigente; ou\n2. seja verificada, em lei específica, a assinatura de compromisso de aporte para o BRB – Banco de Brasília S.A.;\n3. seja decretado pelo BACEN o regime de administração especial temporária ou intervenção do BRB – Banco de Brasília S.A.; ou\n4. seja determinado pelo BACEN, segundo critérios estabelecidos em regulamento específico editado pelo Conselho Monetário Nacional,a extinção do instrumento.","Totalmente","Permanente","Contratual","Não","Não","Não se aplica"]
[null,{"$f":"B139+1","v":131},"BRB - BANCO DE BRASILIA S/A","LFSN24008YA","Lei 12.249/2010 - Resolução 4.955/2021 do CMN","Nível II","Nível II","Conglomerado","Letra financeira",{"v":19817874.49,"d":"R$ 19,817,874.49"},{"v":18900000,"d":"R$ 18,900,000.00"},"passivo - custo amortizado","2024-11-27","Com vencimento","2031-11-27","Não","(1) Não há uma data específica, apenas quando for solicitado ao Bacen","(2) Não há vinculação regulatória ou fiscal para resgate ou recompra","(3) O valor pode ser parcial ou total, conforme autorização do Bacen","Não se aplica","Fixo","124% CDI","Não","Mandatório","Não","Cumulativo","Não conversível","Não se aplica","Não se aplica","Não se aplica","Não se aplica","Não se aplica","Não se aplica","Sim","Os títulos serão extintos, permanente e em valor no mínimo correspondente ao saldo computado no Nível II do Patrimônio de Referência do BRB – Banco de Brasília S.A nas seguintes condições:         1. seja verificada a divulgação pelo BRB – Banco de Brasília S.A. de que seu Capital Principal está em patamar inferior a 4,5% (quatro inteiros e cinco décimos por cento) do montante RWA, estabelecida pela regulamentação vigente; ou\n2. seja verificada, em lei específica, a assinatura de compromisso de aporte para o BRB – Banco de Brasília S.A.;\n3. seja decretado pelo BACEN o regime de administração especial temporária ou intervenção do BRB – Banco de Brasília S.A.; ou\n4. seja determinado pelo BACEN, segundo critérios estabelecidos em regulamento específico editado pelo Conselho Monetário Nacional,a extinção do instrumento.","Totalmente","Permanente","Contratual","Não","Não","Não se aplica"]
[null,132,"BRB - BANCO DE BRASILIA S/A","LFSN24008YB","Lei 12.249/2010 - Resolução 4.955/2021 do CMN","Nível II","Nível II","Conglomerado","Letra financeira",{"v":6046602.92,"d":"R$ 6,046,602.92"},{"v":5700000,"d":"R$ 5,700,000.00"},"passivo - custo amortizado","2024-11-27","Com vencimento","2031-11-27","Não","(1) Não há uma data específica, apenas quando for solicitado ao Bacen","(2) Não há vinculação regulatória ou fiscal para resgate ou recompra","(3) O valor pode ser parcial ou total, conforme autorização do Bacen","Não se aplica","Fixo","125,5% CDI","Não","Mandatório","Não","Cumulativo","Não conversível","Não se aplica","Não se aplica","Não se aplica","Não se aplica","Não se aplica","Não se aplica","Sim","Os títulos serão extintos, permanente e em valor no mínimo correspondente ao saldo computado no Nível II do Patrimônio de Referência do BRB – Banco de Brasília S.A nas seguintes condições:         1. seja verificada a divulgação pelo BRB – Banco de Brasília S.A. de que seu Capital Principal está em patamar inferior a 4,5% (quatro inteiros e cinco décimos por cento) do montante RWA, estabelecida pela regulamentação vigente; ou\n2. seja verificada, em lei específica, a assinatura de compromisso de aporte para o BRB – Banco de Brasília S.A.;\n3. seja decretado pelo BACEN o regime de administração especial temporária ou intervenção do BRB – Banco de Brasília S.A.; ou\n4. seja determinado pelo BACEN, segundo critérios estabelecidos em regulamento específico editado pelo Conselho Monetário Nacional,a extinção do instrumento.","Totalmente","Permanente","Contratual","Não","Não","Não se aplica"]
[null,133,"BRB - BANCO DE BRASILIA S/A","LFSN24008YC","Lei 12.249/2010 - Resolução 4.955/2021 do CMN","Nível II","Nível II","Conglomerado","Letra financeira",{"v":6439152.02,"d":"R$ 6,439,152.02"},{"v":6000000,"d":"R$ 6,000,000.00"},"passivo - custo amortizado","2024-11-27","Com vencimento","2031-11-27","Não","(1) Não há uma data específica, apenas quando for solicitado ao Bacen","(2) Não há vinculação regulatória ou fiscal para resgate ou recompra","(3) O valor pode ser parcial ou total, conforme autorização do Bacen","Não se aplica","Fixo","127% CDI","Não","Mandatório","Não","Cumulativo","Não conversível","Não se aplica","Não se aplica","Não se aplica","Não se aplica","Não se aplica","Não se aplica","Sim","Os títulos serão extintos, permanente e em valor no mínimo correspondente ao saldo computado no Nível II do Patrimônio de Referência do BRB – Banco de Brasília S.A nas seguintes condições:         1. seja verificada a divulgação pelo BRB – Banco de Brasília S.A. de que seu Capital Principal está em patamar inferior a 4,5% (quatro inteiros e cinco décimos por cento) do montante RWA, estabelecida pela regulamentação vigente; ou\n2. seja verificada, em lei específica, a assinatura de compromisso de aporte para o BRB – Banco de Brasília S.A.;\n3. seja decretado pelo BACEN o regime de administração especial temporária ou intervenção do BRB – Banco de Brasília S.A.; ou\n4. seja determinado pelo BACEN, segundo critérios estabelecidos em regulamento específico editado pelo Conselho Monetário Nacional,a extinção do instrumento.","Totalmente","Permanente","Contratual","Não","Não","Não se aplica"]
[null,134,"BRB - BANCO DE BRASILIA S/A","LFSN240099F","Lei 12.249/2010 - Resolução 4.955/2021 do CMN","Nível II","Nível II","Conglomerado","Letra financeira",{"v":25710460.15,"d":"R$ 25,710,460.15"},{"v":24600000,"d":"R$ 24,600,000.00"},"passivo - custo amortizado","2024-11-29","Com vencimento","2031-11-28","Não","(1) Não há uma data específica, apenas quando for solicitado ao Bacen","(2) Não há vinculação regulatória ou fiscal para resgate ou recompra","(3) O valor pode ser parcial ou total, conforme autorização do Bacen","Não se aplica","Fixo","124% CDI","Não","Mandatório","Não","Cumulativo","Não conversível","Não se aplica","Não se aplica","Não se aplica","Não se aplica","Não se aplica","Não se aplica","Sim","Os títulos serão extintos, permanente e em valor no mínimo correspondente ao saldo computado no Nível II do Patrimônio de Referência do BRB – Banco de Brasília S.A nas seguintes condições:         1. seja verificada a divulgação pelo BRB – Banco de Brasília S.A. de que seu Capital Principal está em patamar inferior a 4,5% (quatro inteiros e cinco décimos por cento) do montante RWA, estabelecida pela regulamentação vigente; ou\n2. seja verificada, em lei específica, a assinatura de compromisso de aporte para o BRB – Banco de Brasília S.A.;\n3. seja decretado pelo BACEN o regime de administração especial temporária ou intervenção do BRB – Banco de Brasília S.A.; ou\n4. seja determinado pelo BACEN, segundo critérios estabelecidos em regulamento específico editado pelo Conselho Monetário Nacional,a extinção do instrumento.","Totalmente","Permanente","Contratual","Não","Não","Não se aplica"]
[null,135,"BRB - BANCO DE BRASILIA S/A","LFSN240099G","Lei 12.249/2010 - Resolução 4.955/2021 do CMN","Nível II","Nível II","Conglomerado","Letra financeira",{"v":2539002.47,"d":"R$ 2,539,002.47"},{"v":2400000,"d":"R$ 2,400,000.00"},"passivo - custo amortizado","2024-11-29","Com vencimento","2031-11-28","Não","(1) Não há uma data específica, apenas quando for solicitado ao Bacen","(2) Não há vinculação regulatória ou fiscal para resgate ou recompra","(3) O valor pode ser parcial ou total, conforme autorização do Bacen","Não se aplica","Fixo","125,5% CDI","Não","Mandatório","Não","Cumulativo","Não conversível","Não se aplica","Não se aplica","Não se aplica","Não se aplica","Não se aplica","Não se aplica","Sim","Os títulos serão extintos, permanente e em valor no mínimo correspondente ao saldo computado no Nível II do Patrimônio de Referência do BRB – Banco de Brasília S.A nas seguintes condições:         1. seja verificada a divulgação pelo BRB – Banco de Brasília S.A. de que seu Capital Principal está em patamar inferior a 4,5% (quatro inteiros e cinco décimos por cento) do montante RWA, estabelecida pela regulamentação vigente; ou\n2. seja verificada, em lei específica, a assinatura de compromisso de aporte para o BRB – Banco de Brasília S.A.;\n3. seja decretado pelo BACEN o regime de administração especial temporária ou intervenção do BRB – Banco de Brasília S.A.; ou\n4. seja determinado pelo BACEN, segundo critérios estabelecidos em regulamento específico editado pelo Conselho Monetário Nacional,a extinção do instrumento.","Totalmente","Permanente","Contratual","Não","Não","Não se aplica"]
[null,136,"BRB - BANCO DE BRASILIA S/A","LFSN240099H","Lei 12.249/2010 - Resolução 4.955/2021 do CMN","Nível II","Nível II","Conglomerado","Letra financeira",{"v":3855064.62,"d":"R$ 3,855,064.62"},{"v":3600000,"d":"R$ 3,600,000.00"},"passivo - custo amortizado","2024-11-29","Com vencimento","2031-11-28","Não","(1) Não há uma data específica, apenas quando for solicitado ao Bacen","(2) Não há vinculação regulatória ou fiscal para resgate ou recompra","(3) O valor pode ser parcial ou total, conforme autorização do Bacen","Não se aplica","Fixo","127% CDI","Não","Mandatório","Não","Cumulativo","Não conversível","Não se aplica","Não se aplica","Não se aplica","Não se aplica","Não se aplica","Não se aplica","Sim","Os títulos serão extintos, permanente e em valor no mínimo correspondente ao saldo computado no Nível II do Patrimônio de Referência do BRB – Banco de Brasília S.A nas seguintes condições:         1. seja verificada a divulgação pelo BRB – Banco de Brasília S.A. de que seu Capital Principal está em patamar inferior a 4,5% (quatro inteiros e cinco décimos por cento) do montante RWA, estabelecida pela regulamentação vigente; ou\n2. seja verificada, em lei específica, a assinatura de compromisso de aporte para o BRB – Banco de Brasília S.A.;\n3. seja decretado pelo BACEN o regime de administração especial temporária ou intervenção do BRB – Banco de Brasília S.A.; ou\n4. seja determinado pelo BACEN, segundo critérios estabelecidos em regulamento específico editado pelo Conselho Monetário Nacional,a extinção do instrumento.","Totalmente","Permanente","Contratual","Não","Não","Não se aplica"]
[null,137,"BRB - BANCO DE BRASILIA S/A","LFSN24009EY","Lei 12.249/2010 - Resolução 4.955/2021 do CMN","Nível II","Nível II","Conglomerado","Letra financeira",{"v":13745990.56,"d":"R$ 13,745,990.56"},{"v":13200000,"d":"R$ 13,200,000.00"},"passivo - custo amortizado","2024-12-06","Com vencimento","2031-12-08","Não","(1) Não há uma data específica, apenas quando for solicitado ao Bacen","(2) Não há vinculação regulatória ou fiscal para resgate ou recompra","(3) O valor pode ser parcial ou total, conforme autorização do Bacen","Não se aplica","Fixo","124% CDI","Não","Mandatório","Não","Cumulativo","Não conversível","Não se aplica","Não se aplica","Não se aplica","Não se aplica","Não se aplica","Não se aplica","Sim","Os títulos serão extintos, permanente e em valor no mínimo correspondente ao saldo computado no Nível II do Patrimônio de Referência do BRB – Banco de Brasília S.A nas seguintes condições:         1. seja verificada a divulgação pelo BRB – Banco de Brasília S.A. de que seu Capital Principal está em patamar inferior a 4,5% (quatro inteiros e cinco décimos por cento) do montante RWA, estabelecida pela regulamentação vigente; ou\n2. seja verificada, em lei específica, a assinatura de compromisso de aporte para o BRB – Banco de Brasília S.A.;\n3. seja decretado pelo BACEN o regime de administração especial temporária ou intervenção do BRB – Banco de Brasília S.A.; ou\n4. seja determinado pelo BACEN, segundo critérios estabelecidos em regulamento específico editado pelo Conselho Monetário Nacional,a extinção do instrumento.","Totalmente","Permanente","Contratual","Não","Não","Não se aplica"]
[null,138,"BRB - BANCO DE BRASILIA S/A","LFSN24009EZ","Lei 12.249/2010 - Resolução 4.955/2021 do CMN","Nível II","Nível II","Conglomerado","Letra financeira",{"v":1265194.74,"d":"R$ 1,265,194.74"},{"v":1200000,"d":"R$ 1,200,000.00"},"passivo - custo amortizado","2024-12-06","Com vencimento","2031-12-08","Não","(1) Não há uma data específica, apenas quando for solicitado ao Bacen","(2) Não há vinculação regulatória ou fiscal para resgate ou recompra","(3) O valor pode ser parcial ou total, conforme autorização do Bacen","Não se aplica","Fixo","125,5% CDI","Não","Mandatório","Não","Cumulativo","Não conversível","Não se aplica","Não se aplica","Não se aplica","Não se aplica","Não se aplica","Não se aplica","Sim","Os títulos serão extintos, permanente e em valor no mínimo correspondente ao saldo computado no Nível II do Patrimônio de Referência do BRB – Banco de Brasília S.A nas seguintes condições:         1. seja verificada a divulgação pelo BRB – Banco de Brasília S.A. de que seu Capital Principal está em patamar inferior a 4,5% (quatro inteiros e cinco décimos por cento) do montante RWA, estabelecida pela regulamentação vigente; ou\n2. seja verificada, em lei específica, a assinatura de compromisso de aporte para o BRB – Banco de Brasília S.A.;\n3. seja decretado pelo BACEN o regime de administração especial temporária ou intervenção do BRB – Banco de Brasília S.A.; ou\n4. seja determinado pelo BACEN, segundo critérios estabelecidos em regulamento específico editado pelo Conselho Monetário Nacional,a extinção do instrumento.","Totalmente","Permanente","Contratual","Não","Não","Não se aplica"]
[null,139,"BRB - BANCO DE BRASILIA S/A","LFSN24009F0","Lei 12.249/2010 - Resolução 4.955/2021 do CMN","Nível II","Nível II","Conglomerado","Letra financeira",{"v":960710.73,"d":"R$ 960,710.73"},{"v":900000,"d":"R$ 900,000.00"},"passivo - custo amortizado","2024-12-06","Com vencimento","2031-12-08","Não","(1) Não há uma data específica, apenas quando for solicitado ao Bacen","(2) Não há vinculação regulatória ou fiscal para resgate ou recompra","(3) O valor pode ser parcial ou total, conforme autorização do Bacen","Não se aplica","Fixo","127% CDI","Não","Mandatório","Não","Cumulativo","Não conversível","Não se aplica","Não se aplica","Não se aplica","Não se aplica","Não se aplica","Não se aplica","Sim","Os títulos serão extintos, permanente e em valor no mínimo correspondente ao saldo computado no Nível II do Patrimônio de Referência do BRB – Banco de Brasília S.A nas seguintes condições:         1. seja verificada a divulgação pelo BRB – Banco de Brasília S.A. de que seu Capital Principal está em patamar inferior a 4,5% (quatro inteiros e cinco décimos por cento) do montante RWA, estabelecida pela regulamentação vigente; ou\n2. seja verificada, em lei específica, a assinatura de compromisso de aporte para o BRB – Banco de Brasília S.A.;\n3. seja decretado pelo BACEN o regime de administração especial temporária ou intervenção do BRB – Banco de Brasília S.A.; ou\n4. seja determinado pelo BACEN, segundo critérios estabelecidos em regulamento específico editado pelo Conselho Monetário Nacional,a extinção do instrumento.","Totalmente","Permanente","Contratual","Não","Não","Não se aplica"]
[null,140,"BRB - BANCO DE BRASILIA S/A","LFSN24009F1","Lei 12.249/2010 - Resolução 4.955/2021 do CMN","Nível II","Nível II","Conglomerado","Letra financeira",{"v":640473.77,"d":"R$ 640,473.77"},{"v":600000,"d":"R$ 600,000.00"},"passivo - custo amortizado","2024-12-06","Com vencimento","2031-12-08","Não","(1) Não há uma data específica, apenas quando for solicitado ao Bacen","(2) Não há vinculação regulatória ou fiscal para resgate ou recompra","(3) O valor pode ser parcial ou total, conforme autorização do Bacen","Não se aplica","Fixo","127% CDI","Não","Mandatório","Não","Cumulativo","Não conversível","Não se aplica","Não se aplica","Não se aplica","Não se aplica","Não se aplica","Não se aplica","Sim","Os títulos serão extintos, permanente e em valor no mínimo correspondente ao saldo computado no Nível II do Patrimônio de Referência do BRB – Banco de Brasília S.A nas seguintes condições:         1. seja verificada a divulgação pelo BRB – Banco de Brasília S.A. de que seu Capital Principal está em patamar inferior a 4,5% (quatro inteiros e cinco décimos por cento) do montante RWA, estabelecida pela regulamentação vigente; ou\n2. seja verificada, em lei específica, a assinatura de compromisso de aporte para o BRB – Banco de Brasília S.A.;\n3. seja decretado pelo BACEN o regime de administração especial temporária ou intervenção do BRB – Banco de Brasília S.A.; ou\n4. seja determinado pelo BACEN, segundo critérios estabelecidos em regulamento específico editado pelo Conselho Monetário Nacional,a extinção do instrumento.","Totalmente","Permanente","Contratual","Não","Não","Não se aplica"]
[null,141,"BRB - BANCO DE BRASILIA S/A","LFSN24009KI","Lei 12.249/2010 - Resolução 4.955/2021 do CMN","Nível II","Nível II","Conglomerado","Letra financeira",{"v":7795054.92,"d":"R$ 7,795,054.92"},{"v":7500000,"d":"R$ 7,500,000.00"},"passivo - custo amortizado","2024-12-11","Com vencimento","2031-12-11","Não","(1) Não há uma data específica, apenas quando for solicitado ao Bacen","(2) Não há vinculação regulatória ou fiscal para resgate ou recompra","(3) O valor pode ser parcial ou total, conforme autorização do Bacen","Não se aplica","Fixo","124% CDI","Não","Mandatório","Não","Cumulativo","Não conversível","Não se aplica","Não se aplica","Não se aplica","Não se aplica","Não se aplica","Não se aplica","Sim","Os títulos serão extintos, permanente e em valor no mínimo correspondente ao saldo computado no Nível II do Patrimônio de Referência do BRB – Banco de Brasília S.A nas seguintes condições:         1. seja verificada a divulgação pelo BRB – Banco de Brasília S.A. de que seu Capital Principal está em patamar inferior a 4,5% (quatro inteiros e cinco décimos por cento) do montante RWA, estabelecida pela regulamentação vigente; ou\n2. seja verificada, em lei específica, a assinatura de compromisso de aporte para o BRB – Banco de Brasília S.A.;\n3. seja decretado pelo BACEN o regime de administração especial temporária ou intervenção do BRB – Banco de Brasília S.A.; ou\n4. seja determinado pelo BACEN, segundo critérios estabelecidos em regulamento específico editado pelo Conselho Monetário Nacional,a extinção do instrumento.","Totalmente","Permanente","Contratual","Não","Não","Não se aplica"]
[null,142,"BRB - BANCO DE BRASILIA S/A","LFSN24009KJ","Lei 12.249/2010 - Resolução 4.955/2021 do CMN","Nível II","Nível II","Conglomerado","Letra financeira",{"v":947125.85,"d":"R$ 947,125.85"},{"v":900000,"d":"R$ 900,000.00"},"passivo - custo amortizado","2024-12-11","Com vencimento","2031-12-11","Não","(1) Não há uma data específica, apenas quando for solicitado ao Bacen","(2) Não há vinculação regulatória ou fiscal para resgate ou recompra","(3) O valor pode ser parcial ou total, conforme autorização do Bacen","Não se aplica","Fixo","125,5% CDI","Não","Mandatório","Não","Cumulativo","Não conversível","Não se aplica","Não se aplica","Não se aplica","Não se aplica","Não se aplica","Não se aplica","Sim","Os títulos serão extintos, permanente e em valor no mínimo correspondente ao saldo computado no Nível II do Patrimônio de Referência do BRB – Banco de Brasília S.A nas seguintes condições:         1. seja verificada a divulgação pelo BRB – Banco de Brasília S.A. de que seu Capital Principal está em patamar inferior a 4,5% (quatro inteiros e cinco décimos por cento) do montante RWA, estabelecida pela regulamentação vigente; ou\n2. seja verificada, em lei específica, a assinatura de compromisso de aporte para o BRB – Banco de Brasília S.A.;\n3. seja decretado pelo BACEN o regime de administração especial temporária ou intervenção do BRB – Banco de Brasília S.A.; ou\n4. seja determinado pelo BACEN, segundo critérios estabelecidos em regulamento específico editado pelo Conselho Monetário Nacional,a extinção do instrumento.","Totalmente","Permanente","Contratual","Não","Não","Não se aplica"]
[null,143,"BRB - BANCO DE BRASILIA S/A","LFSN24009KK","Lei 12.249/2010 - Resolução 4.955/2021 do CMN","Nível II","Nível II","Conglomerado","Letra financeira",{"v":5753961.43,"d":"R$ 5,753,961.43"},{"v":5400000,"d":"R$ 5,400,000.00"},"passivo - custo amortizado","2024-12-11","Com vencimento","2031-12-11","Não","(1) Não há uma data específica, apenas quando for solicitado ao Bacen","(2) Não há vinculação regulatória ou fiscal para resgate ou recompra","(3) O valor pode ser parcial ou total, conforme autorização do Bacen","Não se aplica","Fixo","127% CDI","Não","Mandatório","Não","Cumulativo","Não conversível","Não se aplica","Não se aplica","Não se aplica","Não se aplica","Não se aplica","Não se aplica","Sim","Os títulos serão extintos, permanente e em valor no mínimo correspondente ao saldo computado no Nível II do Patrimônio de Referência do BRB – Banco de Brasília S.A nas seguintes condições:         1. seja verificada a divulgação pelo BRB – Banco de Brasília S.A. de que seu Capital Principal está em patamar inferior a 4,5% (quatro inteiros e cinco décimos por cento) do montante RWA, estabelecida pela regulamentação vigente; ou\n2. seja verificada, em lei específica, a assinatura de compromisso de aporte para o BRB – Banco de Brasília S.A.;\n3. seja decretado pelo BACEN o regime de administração especial temporária ou intervenção do BRB – Banco de Brasília S.A.; ou\n4. seja determinado pelo BACEN, segundo critérios estabelecidos em regulamento específico editado pelo Conselho Monetário Nacional,a extinção do instrumento.","Totalmente","Permanente","Contratual","Não","Não","Não se aplica"]
[null,144,"BRB - BANCO DE BRASILIA S/A","LFSN24009Q2","Lei 12.249/2010 - Resolução 4.955/2021 do CMN","Nível II","Nível II","Conglomerado","Letra financeira",{"v":5296518.86,"d":"R$ 5,296,518.86"},{"v":5100000,"d":"R$ 5,100,000.00"},"passivo - custo amortizado","2024-12-13","Com vencimento","2031-12-15","Não","(1) Não há uma data específica, apenas quando for solicitado ao Bacen","(2) Não há vinculação regulatória ou fiscal para resgate ou recompra","(3) O valor pode ser parcial ou total, conforme autorização do Bacen","Não se aplica","Fixo","124% CDI","Não","Mandatório","Não","Cumulativo","Não conversível","Não se aplica","Não se aplica","Não se aplica","Não se aplica","Não se aplica","Não se aplica","Sim","Os títulos serão extintos, permanente e em valor no mínimo correspondente ao saldo computado no Nível II do Patrimônio de Referência do BRB – Banco de Brasília S.A nas seguintes condições:         1. seja verificada a divulgação pelo BRB – Banco de Brasília S.A. de que seu Capital Principal está em patamar inferior a 4,5% (quatro inteiros e cinco décimos por cento) do montante RWA, estabelecida pela regulamentação vigente; ou\n2. seja verificada, em lei específica, a assinatura de compromisso de aporte para o BRB – Banco de Brasília S.A.;\n3. seja decretado pelo BACEN o regime de administração especial temporária ou intervenção do BRB – Banco de Brasília S.A.; ou\n4. seja determinado pelo BACEN, segundo critérios estabelecidos em regulamento específico editado pelo Conselho Monetário Nacional,a extinção do instrumento.","Totalmente","Permanente","Contratual","Não","Não","Não se aplica"]
[null,145,"BRB - BANCO DE BRASILIA S/A","LFSN24009Q3","Lei 12.249/2010 - Resolução 4.955/2021 do CMN","Nível II","Nível II","Conglomerado","Letra financeira",{"v":946305.59,"d":"R$ 946,305.59"},{"v":900000,"d":"R$ 900,000.00"},"passivo - custo amortizado","2024-12-13","Com vencimento","2031-12-15","Não","(1) Não há uma data específica, apenas quando for solicitado ao Bacen","(2) Não há vinculação regulatória ou fiscal para resgate ou recompra","(3) O valor pode ser parcial ou total, conforme autorização do Bacen","Não se aplica","Fixo","125,5% CDI","Não","Mandatório","Não","Cumulativo","Não conversível","Não se aplica","Não se aplica","Não se aplica","Não se aplica","Não se aplica","Não se aplica","Sim","Os títulos serão extintos, permanente e em valor no mínimo correspondente ao saldo computado no Nível II do Patrimônio de Referência do BRB – Banco de Brasília S.A nas seguintes condições:         1. seja verificada a divulgação pelo BRB – Banco de Brasília S.A. de que seu Capital Principal está em patamar inferior a 4,5% (quatro inteiros e cinco décimos por cento) do montante RWA, estabelecida pela regulamentação vigente; ou\n2. seja verificada, em lei específica, a assinatura de compromisso de aporte para o BRB – Banco de Brasília S.A.;\n3. seja decretado pelo BACEN o regime de administração especial temporária ou intervenção do BRB – Banco de Brasília S.A.; ou\n4. seja determinado pelo BACEN, segundo critérios estabelecidos em regulamento específico editado pelo Conselho Monetário Nacional,a extinção do instrumento.","Totalmente","Permanente","Contratual","Não","Não","Não se aplica"]
[null,146,"BRB - BANCO DE BRASILIA S/A","LFSN24009Q4","Lei 12.249/2010 - Resolução 4.955/2021 do CMN","Nível II","Nível II","Conglomerado","Letra financeira",{"v":3193587.79,"d":"R$ 3,193,587.79"},{"v":3000000,"d":"R$ 3,000,000.00"},"passivo - custo amortizado","2024-12-13","Com vencimento","2031-12-15","Não","(1) Não há uma data específica, apenas quando for solicitado ao Bacen","(2) Não há vinculação regulatória ou fiscal para resgate ou recompra","(3) O valor pode ser parcial ou total, conforme autorização do Bacen","Não se aplica","Fixo","127% CDI","Não","Mandatório","Não","Cumulativo","Não conversível","Não se aplica","Não se aplica","Não se aplica","Não se aplica","Não se aplica","Não se aplica","Sim","Os títulos serão extintos, permanente e em valor no mínimo correspondente ao saldo computado no Nível II do Patrimônio de Referência do BRB – Banco de Brasília S.A nas seguintes condições:         1. seja verificada a divulgação pelo BRB – Banco de Brasília S.A. de que seu Capital Principal está em patamar inferior a 4,5% (quatro inteiros e cinco décimos por cento) do montante RWA, estabelecida pela regulamentação vigente; ou\n2. seja verificada, em lei específica, a assinatura de compromisso de aporte para o BRB – Banco de Brasília S.A.;\n3. seja decretado pelo BACEN o regime de administração especial temporária ou intervenção do BRB – Banco de Brasília S.A.; ou\n4. seja determinado pelo BACEN, segundo critérios estabelecidos em regulamento específico editado pelo Conselho Monetário Nacional,a extinção do instrumento.","Totalmente","Permanente","Contratual","Não","Não","Não se aplica"]
[null,147,"BRB - BANCO DE BRASILIA S/A","LFSN2400ACE","Lei 12.249/2010 - Resolução 4.955/2021 do CMN","Nível II","Nível II","Conglomerado","Letra financeira",{"v":6805072.35,"d":"R$ 6,805,072.35"},{"v":6500000,"d":"R$ 6,500,000.00"},"passivo - custo amortizado","2024-12-17","Com vencimento","2031-12-17","Não","(1) Não há uma data específica, apenas quando for solicitado ao Bacen","(2) Não há vinculação regulatória ou fiscal para resgate ou recompra","(3) O valor pode ser parcial ou total, conforme autorização do Bacen","Não se aplica","Fixo","125% CDI","Não","Mandatório","Não","Cumulativo","Não conversível","Não se aplica","Não se aplica","Não se aplica","Não se aplica","Não se aplica","Não se aplica","Sim","Os títulos serão extintos, permanente e em valor no mínimo correspondente ao saldo computado no Nível II do Patrimônio de Referência do BRB – Banco de Brasília S.A nas seguintes condições:         1. seja verificada a divulgação pelo BRB – Banco de Brasília S.A. de que seu Capital Principal está em patamar inferior a 4,5% (quatro inteiros e cinco décimos por cento) do montante RWA, estabelecida pela regulamentação vigente; ou\n2. seja verificada, em lei específica, a assinatura de compromisso de aporte para o BRB – Banco de Brasília S.A.;\n3. seja decretado pelo BACEN o regime de administração especial temporária ou intervenção do BRB – Banco de Brasília S.A.; ou\n4. seja determinado pelo BACEN, segundo critérios estabelecidos em regulamento específico editado pelo Conselho Monetário Nacional,a extinção do instrumento.","Totalmente","Permanente","Contratual","Não","Não","Não se aplica"]
[null,148,"BRB - BANCO DE BRASILIA S/A","LFSN2400ANF","Lei 12.249/2010 - Resolução 4.955/2021 do CMN","Nível II","Nível II","Conglomerado","Letra financeira",{"v":16126071.57,"d":"R$ 16,126,071.57"},{"v":15600000,"d":"R$ 15,600,000.00"},"passivo - custo amortizado","2024-12-18","Com vencimento","2031-12-18","Não","(1) Não há uma data específica, apenas quando for solicitado ao Bacen","(2) Não há vinculação regulatória ou fiscal para resgate ou recompra","(3) O valor pode ser parcial ou total, conforme autorização do Bacen","Não se aplica","Fixo","124% CDI","Não","Mandatório","Não","Cumulativo","Não conversível","Não se aplica","Não se aplica","Não se aplica","Não se aplica","Não se aplica","Não se aplica","Sim","Os títulos serão extintos, permanente e em valor no mínimo correspondente ao saldo computado no Nível II do Patrimônio de Referência do BRB – Banco de Brasília S.A nas seguintes condições:         1. seja verificada a divulgação pelo BRB – Banco de Brasília S.A. de que seu Capital Principal está em patamar inferior a 4,5% (quatro inteiros e cinco décimos por cento) do montante RWA, estabelecida pela regulamentação vigente; ou\n2. seja verificada, em lei específica, a assinatura de compromisso de aporte para o BRB – Banco de Brasília S.A.;\n3. seja decretado pelo BACEN o regime de administração especial temporária ou intervenção do BRB – Banco de Brasília S.A.; ou\n4. seja determinado pelo BACEN, segundo critérios estabelecidos em regulamento específico editado pelo Conselho Monetário Nacional,a extinção do instrumento.","Totalmente","Permanente","Contratual","Não","Não","Não se aplica"]
[null,149,"BRB - BANCO DE BRASILIA S/A","LFSN2400ANG","Lei 12.249/2010 - Resolução 4.955/2021 do CMN","Nível II","Nível II","Conglomerado","Letra financeira",{"v":4712979.12,"d":"R$ 4,712,979.12"},{"v":4500000,"d":"R$ 4,500,000.00"},"passivo - custo amortizado","2024-12-18","Com vencimento","2031-12-18","Não","(1) Não há uma data específica, apenas quando for solicitado ao Bacen","(2) Não há vinculação regulatória ou fiscal para resgate ou recompra","(3) O valor pode ser parcial ou total, conforme autorização do Bacen","Não se aplica","Fixo","125,5% CDI","Não","Mandatório","Não","Cumulativo","Não conversível","Não se aplica","Não se aplica","Não se aplica","Não se aplica","Não se aplica","Não se aplica","Sim","Os títulos serão extintos, permanente e em valor no mínimo correspondente ao saldo computado no Nível II do Patrimônio de Referência do BRB – Banco de Brasília S.A nas seguintes condições:         1. seja verificada a divulgação pelo BRB – Banco de Brasília S.A. de que seu Capital Principal está em patamar inferior a 4,5% (quatro inteiros e cinco décimos por cento) do montante RWA, estabelecida pela regulamentação vigente; ou\n2. seja verificada, em lei específica, a assinatura de compromisso de aporte para o BRB – Banco de Brasília S.A.;\n3. seja decretado pelo BACEN o regime de administração especial temporária ou intervenção do BRB – Banco de Brasília S.A.; ou\n4. seja determinado pelo BACEN, segundo critérios estabelecidos em regulamento específico editado pelo Conselho Monetário Nacional,a extinção do instrumento.","Totalmente","Permanente","Contratual","Não","Não","Não se aplica"]
[null,150,"BRB - BANCO DE BRASILIA S/A","LFSN2400ANH","Lei 12.249/2010 - Resolução 4.955/2021 do CMN","Nível II","Nível II","Conglomerado","Letra financeira",{"v":10823383.91,"d":"R$ 10,823,383.91"},{"v":10200000,"d":"R$ 10,200,000.00"},"passivo - custo amortizado","2024-12-18","Com vencimento","2031-12-18","Não","(1) Não há uma data específica, apenas quando for solicitado ao Bacen","(2) Não há vinculação regulatória ou fiscal para resgate ou recompra","(3) O valor pode ser parcial ou total, conforme autorização do Bacen","Não se aplica","Fixo","127% CDI","Não","Mandatório","Não","Cumulativo","Não conversível","Não se aplica","Não se aplica","Não se aplica","Não se aplica","Não se aplica","Não se aplica","Sim","Os títulos serão extintos, permanente e em valor no mínimo correspondente ao saldo computado no Nível II do Patrimônio de Referência do BRB – Banco de Brasília S.A nas seguintes condições:         1. seja verificada a divulgação pelo BRB – Banco de Brasília S.A. de que seu Capital Principal está em patamar inferior a 4,5% (quatro inteiros e cinco décimos por cento) do montante RWA, estabelecida pela regulamentação vigente; ou\n2. seja verificada, em lei específica, a assinatura de compromisso de aporte para o BRB – Banco de Brasília S.A.;\n3. seja decretado pelo BACEN o regime de administração especial temporária ou intervenção do BRB – Banco de Brasília S.A.; ou\n4. seja determinado pelo BACEN, segundo critérios estabelecidos em regulamento específico editado pelo Conselho Monetário Nacional,a extinção do instrumento.","Totalmente","Permanente","Contratual","Não","Não","Não se aplica"]
[null,151,"BRB - BANCO DE BRASILIA S/A","LFSN25000RT","Lei 12.249/2010 - Resolução 4.955/2021 do CMN","Nível II","Nível II","Conglomerado","Letra financeira",{"v":29436976.08,"d":"R$ 29,436,976.08"},{"v":28800000,"d":"R$ 28,800,000.00"},"passivo - custo amortizado","2025-01-29","Com vencimento","2032-01-29","Não","(1) Não há uma data específica, apenas quando for solicitado ao Bacen","(2) Não há vinculação regulatória ou fiscal para resgate ou recompra","(3) O valor pode ser parcial ou total, conforme autorização do Bacen","Não se aplica","Fixo","129,5% CDI","Não","Mandatório","Não","Cumulativo","Não conversível","Não se aplica","Não se aplica","Não se aplica","Não se aplica","Não se aplica","Não se aplica","Sim","Os títulos serão extintos, permanente e em valor no mínimo correspondente ao saldo computado no Nível II do Patrimônio de Referência do BRB – Banco de Brasília S.A nas seguintes condições:         1. seja verificada a divulgação pelo BRB – Banco de Brasília S.A. de que seu Capital Principal está em patamar inferior a 4,5% (quatro inteiros e cinco décimos por cento) do montante RWA, estabelecida pela regulamentação vigente; ou\n2. seja verificada, em lei específica, a assinatura de compromisso de aporte para o BRB – Banco de Brasília S.A.;\n3. seja decretado pelo BACEN o regime de administração especial temporária ou intervenção do BRB – Banco de Brasília S.A.; ou\n4. seja determinado pelo BACEN, segundo critérios estabelecidos em regulamento específico editado pelo Conselho Monetário Nacional,a extinção do instrumento.","Totalmente","Permanente","Contratual","Não","Não","Não se aplica"]
[null,152,"BRB - BANCO DE BRASILIA S/A","LFSN25000RU","Lei 12.249/2010 - Resolução 4.955/2021 do CMN","Nível II","Nível II","Conglomerado","Letra financeira",{"v":3145480.81,"d":"R$ 3,145,480.81"},{"v":3000000,"d":"R$ 3,000,000.00"},"passivo - custo amortizado","2025-01-29","Com vencimento","2032-01-29","Não","(1) Não há uma data específica, apenas quando for solicitado ao Bacen","(2) Não há vinculação regulatória ou fiscal para resgate ou recompra","(3) O valor pode ser parcial ou total, conforme autorização do Bacen","Não se aplica","Fixo","129,5% CDI","Não","Mandatório","Não","Cumulativo","Não conversível","Não se aplica","Não se aplica","Não se aplica","Não se aplica","Não se aplica","Não se aplica","Sim","Os títulos serão extintos, permanente e em valor no mínimo correspondente ao saldo computado no Nível II do Patrimônio de Referência do BRB – Banco de Brasília S.A nas seguintes condições:         1. seja verificada a divulgação pelo BRB – Banco de Brasília S.A. de que seu Capital Principal está em patamar inferior a 4,5% (quatro inteiros e cinco décimos por cento) do montante RWA, estabelecida pela regulamentação vigente; ou\n2. seja verificada, em lei específica, a assinatura de compromisso de aporte para o BRB – Banco de Brasília S.A.;\n3. seja decretado pelo BACEN o regime de administração especial temporária ou intervenção do BRB – Banco de Brasília S.A.; ou\n4. seja determinado pelo BACEN, segundo critérios estabelecidos em regulamento específico editado pelo Conselho Monetário Nacional,a extinção do instrumento.","Totalmente","Permanente","Contratual","Não","Não","Não se aplica"]
[null,153,"BRB - BANCO DE BRASILIA S/A","LFSN25000RV","Lei 12.249/2010 - Resolução 4.955/2021 do CMN","Nível II","Nível II","Conglomerado","Letra financeira",{"v":4985471.7,"d":"R$ 4,985,471.70"},{"v":4800000,"d":"R$ 4,800,000.00"},"passivo - custo amortizado","2025-01-29","Com vencimento","2035-01-29","Não","(1) Não há uma data específica, apenas quando for solicitado ao Bacen","(2) Não há vinculação regulatória ou fiscal para resgate ou recompra","(3) O valor pode ser parcial ou total, conforme autorização do Bacen","Não se aplica","Fixo","129,5% CDI","Não","Mandatório","Não","Cumulativo","Não conversível","Não se aplica","Não se aplica","Não se aplica","Não se aplica","Não se aplica","Não se aplica","Sim","Os títulos serão extintos, permanente e em valor no mínimo correspondente ao saldo computado no Nível II do Patrimônio de Referência do BRB – Banco de Brasília S.A nas seguintes condições:         1. seja verificada a divulgação pelo BRB – Banco de Brasília S.A. de que seu Capital Principal está em patamar inferior a 4,5% (quatro inteiros e cinco décimos por cento) do montante RWA, estabelecida pela regulamentação vigente; ou\n2. seja verificada, em lei específica, a assinatura de compromisso de aporte para o BRB – Banco de Brasília S.A.;\n3. seja decretado pelo BACEN o regime de administração especial temporária ou intervenção do BRB – Banco de Brasília S.A.; ou\n4. seja determinado pelo BACEN, segundo critérios estabelecidos em regulamento específico editado pelo Conselho Monetário Nacional,a extinção do instrumento.","Totalmente","Permanente","Contratual","Não","Não","Não se aplica"]
[null,154,"BRB - BANCO DE BRASILIA S/A","LFSN25000XD","Lei 12.249/2010 - Resolução 4.955/2021 do CMN","Nível II","Nível II","Conglomerado","Letra financeira",{"v":2749571.04,"d":"R$ 2,749,571.04"},{"v":2700000,"d":"R$ 2,700,000.00"},"passivo - custo amortizado","2025-01-31","Com vencimento","2032-01-30","Não","(1) Não há uma data específica, apenas quando for solicitado ao Bacen","(2) Não há vinculação regulatória ou fiscal para resgate ou recompra","(3) O valor pode ser parcial ou total, conforme autorização do Bacen","Não se aplica","Fixo","124% CDI","Não","Mandatório","Não","Cumulativo","Não conversível","Não se aplica","Não se aplica","Não se aplica","Não se aplica","Não se aplica","Não se aplica","Sim","Os títulos serão extintos, permanente e em valor no mínimo correspondente ao saldo computado no Nível II do Patrimônio de Referência do BRB – Banco de Brasília S.A nas seguintes condições:         1. seja verificada a divulgação pelo BRB – Banco de Brasília S.A. de que seu Capital Principal está em patamar inferior a 4,5% (quatro inteiros e cinco décimos por cento) do montante RWA, estabelecida pela regulamentação vigente; ou\n2. seja verificada, em lei específica, a assinatura de compromisso de aporte para o BRB – Banco de Brasília S.A.;\n3. seja decretado pelo BACEN o regime de administração especial temporária ou intervenção do BRB – Banco de Brasília S.A.; ou\n4. seja determinado pelo BACEN, segundo critérios estabelecidos em regulamento específico editado pelo Conselho Monetário Nacional,a extinção do instrumento.","Totalmente","Permanente","Contratual","Não","Não","Não se aplica"]
[null,155,"BRB - BANCO DE BRASILIA S/A","LFSN25000XE","Lei 12.249/2010 - Resolução 4.955/2021 do CMN","Nível II","Nível II","Conglomerado","Letra financeira",{"v":627646.91,"d":"R$ 627,646.91"},{"v":600000,"d":"R$ 600,000.00"},"passivo - custo amortizado","2025-01-31","Com vencimento","2032-01-30","Não","(1) Não há uma data específica, apenas quando for solicitado ao Bacen","(2) Não há vinculação regulatória ou fiscal para resgate ou recompra","(3) O valor pode ser parcial ou total, conforme autorização do Bacen","Não se aplica","Fixo","127% CDI","Não","Mandatório","Não","Cumulativo","Não conversível","Não se aplica","Não se aplica","Não se aplica","Não se aplica","Não se aplica","Não se aplica","Sim","Os títulos serão extintos, permanente e em valor no mínimo correspondente ao saldo computado no Nível II do Patrimônio de Referência do BRB – Banco de Brasília S.A nas seguintes condições:         1. seja verificada a divulgação pelo BRB – Banco de Brasília S.A. de que seu Capital Principal está em patamar inferior a 4,5% (quatro inteiros e cinco décimos por cento) do montante RWA, estabelecida pela regulamentação vigente; ou\n2. seja verificada, em lei específica, a assinatura de compromisso de aporte para o BRB – Banco de Brasília S.A.;\n3. seja decretado pelo BACEN o regime de administração especial temporária ou intervenção do BRB – Banco de Brasília S.A.; ou\n4. seja determinado pelo BACEN, segundo critérios estabelecidos em regulamento específico editado pelo Conselho Monetário Nacional,a extinção do instrumento.","Totalmente","Permanente","Contratual","Não","Não","Não se aplica"]
[null,156,"BRB - BANCO DE BRASILIA S/A","LFSN250012X","Lei 12.249/2010 - Resolução 4.955/2021 do CMN","Nível II","Nível II","Conglomerado","Letra financeira",{"v":20452549.1,"d":"R$ 20,452,549.10"},{"v":20100000,"d":"R$ 20,100,000.00"},"passivo - custo amortizado","2025-02-05","Com vencimento","2032-02-04","Não","(1) Não há uma data específica, apenas quando for solicitado ao Bacen","(2) Não há vinculação regulatória ou fiscal para resgate ou recompra","(3) O valor pode ser parcial ou total, conforme autorização do Bacen","Não se aplica","Fixo","124% CDI","Não","Mandatório","Não","Cumulativo","Não conversível","Não se aplica","Não se aplica","Não se aplica","Não se aplica","Não se aplica","Não se aplica","Sim","Os títulos serão extintos, permanente e em valor no mínimo correspondente ao saldo computado no Nível II do Patrimônio de Referência do BRB – Banco de Brasília S.A nas seguintes condições:         1. seja verificada a divulgação pelo BRB – Banco de Brasília S.A. de que seu Capital Principal está em patamar inferior a 4,5% (quatro inteiros e cinco décimos por cento) do montante RWA, estabelecida pela regulamentação vigente; ou\n2. seja verificada, em lei específica, a assinatura de compromisso de aporte para o BRB – Banco de Brasília S.A.;\n3. seja decretado pelo BACEN o regime de administração especial temporária ou intervenção do BRB – Banco de Brasília S.A.; ou\n4. seja determinado pelo BACEN, segundo critérios estabelecidos em regulamento específico editado pelo Conselho Monetário Nacional,a extinção do instrumento.","Totalmente","Permanente","Contratual","Não","Não","Não se aplica"]
[null,157,"BRB - BANCO DE BRASILIA S/A","LFSN250012Y","Lei 12.249/2010 - Resolução 4.955/2021 do CMN","Nível II","Nível II","Conglomerado","Letra financeira",{"v":3711548.96,"d":"R$ 3,711,548.96"},{"v":3600000,"d":"R$ 3,600,000.00"},"passivo - custo amortizado","2025-02-05","Com vencimento","2032-02-04","Não","(1) Não há uma data específica, apenas quando for solicitado ao Bacen","(2) Não há vinculação regulatória ou fiscal para resgate ou recompra","(3) O valor pode ser parcial ou total, conforme autorização do Bacen","Não se aplica","Fixo","125,5% CDI","Não","Mandatório","Não","Cumulativo","Não conversível","Não se aplica","Não se aplica","Não se aplica","Não se aplica","Não se aplica","Não se aplica","Sim","Os títulos serão extintos, permanente e em valor no mínimo correspondente ao saldo computado no Nível II do Patrimônio de Referência do BRB – Banco de Brasília S.A nas seguintes condições:         1. seja verificada a divulgação pelo BRB – Banco de Brasília S.A. de que seu Capital Principal está em patamar inferior a 4,5% (quatro inteiros e cinco décimos por cento) do montante RWA, estabelecida pela regulamentação vigente; ou\n2. seja verificada, em lei específica, a assinatura de compromisso de aporte para o BRB – Banco de Brasília S.A.;\n3. seja decretado pelo BACEN o regime de administração especial temporária ou intervenção do BRB – Banco de Brasília S.A.; ou\n4. seja determinado pelo BACEN, segundo critérios estabelecidos em regulamento específico editado pelo Conselho Monetário Nacional,a extinção do instrumento.","Totalmente","Permanente","Contratual","Não","Não","Não se aplica"]
[null,158,"BRB - BANCO DE BRASILIA S/A","LFSN250012Z","Lei 12.249/2010 - Resolução 4.955/2021 do CMN","Nível II","Nível II","Conglomerado","Letra financeira",{"v":17862845.71,"d":"R$ 17,862,845.71"},{"v":17100000,"d":"R$ 17,100,000.00"},"passivo - custo amortizado","2025-02-05","Com vencimento","2032-02-04","Não","(1) Não há uma data específica, apenas quando for solicitado ao Bacen","(2) Não há vinculação regulatória ou fiscal para resgate ou recompra","(3) O valor pode ser parcial ou total, conforme autorização do Bacen","Não se aplica","Fixo","127% CDI","Não","Mandatório","Não","Cumulativo","Não conversível","Não se aplica","Não se aplica","Não se aplica","Não se aplica","Não se aplica","Não se aplica","Sim","Os títulos serão extintos, permanente e em valor no mínimo correspondente ao saldo computado no Nível II do Patrimônio de Referência do BRB – Banco de Brasília S.A nas seguintes condições:         1. seja verificada a divulgação pelo BRB – Banco de Brasília S.A. de que seu Capital Principal está em patamar inferior a 4,5% (quatro inteiros e cinco décimos por cento) do montante RWA, estabelecida pela regulamentação vigente; ou\n2. seja verificada, em lei específica, a assinatura de compromisso de aporte para o BRB – Banco de Brasília S.A.;\n3. seja decretado pelo BACEN o regime de administração especial temporária ou intervenção do BRB – Banco de Brasília S.A.; ou\n4. seja determinado pelo BACEN, segundo critérios estabelecidos em regulamento específico editado pelo Conselho Monetário Nacional,a extinção do instrumento.","Totalmente","Permanente","Contratual","Não","Não","Não se aplica"]
[null,159,"BRB - BANCO DE BRASILIA S/A","LFSN2500130","Lei 12.249/2010 - Resolução 4.955/2021 do CMN","Nível II","Nível II","Conglomerado","Letra financeira",{"v":3105137.09,"d":"R$ 3,105,137.09"},{"v":3000000,"d":"R$ 3,000,000.00"},"passivo - custo amortizado","2025-02-05","Com vencimento","2035-02-07","Não","(1) Não há uma data específica, apenas quando for solicitado ao Bacen","(2) Não há vinculação regulatória ou fiscal para resgate ou recompra","(3) O valor pode ser parcial ou total, conforme autorização do Bacen","Não se aplica","Fixo","127% CDI","Não","Mandatório","Não","Cumulativo","Não conversível","Não se aplica","Não se aplica","Não se aplica","Não se aplica","Não se aplica","Não se aplica","Sim","Os títulos serão extintos, permanente e em valor no mínimo correspondente ao saldo computado no Nível II do Patrimônio de Referência do BRB – Banco de Brasília S.A nas seguintes condições:         1. seja verificada a divulgação pelo BRB – Banco de Brasília S.A. de que seu Capital Principal está em patamar inferior a 4,5% (quatro inteiros e cinco décimos por cento) do montante RWA, estabelecida pela regulamentação vigente; ou\n2. seja verificada, em lei específica, a assinatura de compromisso de aporte para o BRB – Banco de Brasília S.A.;\n3. seja decretado pelo BACEN o regime de administração especial temporária ou intervenção do BRB – Banco de Brasília S.A.; ou\n4. seja determinado pelo BACEN, segundo critérios estabelecidos em regulamento específico editado pelo Conselho Monetário Nacional,a extinção do instrumento.","Totalmente","Permanente","Contratual","Não","Não","Não se aplica"]
[null,160,"BRB - BANCO DE BRASILIA S/A","LFSN25001E1","Lei 12.249/2010 - Resolução 4.955/2021 do CMN","Nível II","Nível II","Conglomerado","Letra financeira",{"v":17668988.48,"d":"R$ 17,668,988.48"},{"v":17400000,"d":"R$ 17,400,000.00"},"passivo - custo amortizado","2025-02-07","Com vencimento","2032-02-06","Não","(1) Não há uma data específica, apenas quando for solicitado ao Bacen","(2) Não há vinculação regulatória ou fiscal para resgate ou recompra","(3) O valor pode ser parcial ou total, conforme autorização do Bacen","Não se aplica","Fixo","124% CDI","Não","Mandatório","Não","Cumulativo","Não conversível","Não se aplica","Não se aplica","Não se aplica","Não se aplica","Não se aplica","Não se aplica","Sim","Os títulos serão extintos, permanente e em valor no mínimo correspondente ao saldo computado no Nível II do Patrimônio de Referência do BRB – Banco de Brasília S.A nas seguintes condições:         1. seja verificada a divulgação pelo BRB – Banco de Brasília S.A. de que seu Capital Principal está em patamar inferior a 4,5% (quatro inteiros e cinco décimos por cento) do montante RWA, estabelecida pela regulamentação vigente; ou\n2. seja verificada, em lei específica, a assinatura de compromisso de aporte para o BRB – Banco de Brasília S.A.;\n3. seja decretado pelo BACEN o regime de administração especial temporária ou intervenção do BRB – Banco de Brasília S.A.; ou\n4. seja determinado pelo BACEN, segundo critérios estabelecidos em regulamento específico editado pelo Conselho Monetário Nacional,a extinção do instrumento.","Totalmente","Permanente","Contratual","Não","Não","Não se aplica"]
[null,161,"BRB - BANCO DE BRASILIA S/A","LFSN25001E2","Lei 12.249/2010 - Resolução 4.955/2021 do CMN","Nível II","Nível II","Conglomerado","Letra financeira",{"v":3396014.31,"d":"R$ 3,396,014.31"},{"v":3300000,"d":"R$ 3,300,000.00"},"passivo - custo amortizado","2025-02-07","Com vencimento","2032-02-06","Não","(1) Não há uma data específica, apenas quando for solicitado ao Bacen","(2) Não há vinculação regulatória ou fiscal para resgate ou recompra","(3) O valor pode ser parcial ou total, conforme autorização do Bacen","Não se aplica","Fixo","125,5% CDI","Não","Mandatório","Não","Cumulativo","Não conversível","Não se aplica","Não se aplica","Não se aplica","Não se aplica","Não se aplica","Não se aplica","Sim","Os títulos serão extintos, permanente e em valor no mínimo correspondente ao saldo computado no Nível II do Patrimônio de Referência do BRB – Banco de Brasília S.A nas seguintes condições:         1. seja verificada a divulgação pelo BRB – Banco de Brasília S.A. de que seu Capital Principal está em patamar inferior a 4,5% (quatro inteiros e cinco décimos por cento) do montante RWA, estabelecida pela regulamentação vigente; ou\n2. seja verificada, em lei específica, a assinatura de compromisso de aporte para o BRB – Banco de Brasília S.A.;\n3. seja decretado pelo BACEN o regime de administração especial temporária ou intervenção do BRB – Banco de Brasília S.A.; ou\n4. seja determinado pelo BACEN, segundo critérios estabelecidos em regulamento específico editado pelo Conselho Monetário Nacional,a extinção do instrumento.","Totalmente","Permanente","Contratual","Não","Não","Não se aplica"]
[null,162,"BRB - BANCO DE BRASILIA S/A","LFSN25001E3","Lei 12.249/2010 - Resolução 4.955/2021 do CMN","Nível II","Nível II","Conglomerado","Letra financeira",{"v":9073370.99,"d":"R$ 9,073,370.99"},{"v":8700000,"d":"R$ 8,700,000.00"},"passivo - custo amortizado","2025-02-07","Com vencimento","2032-02-06","Não","(1) Não há uma data específica, apenas quando for solicitado ao Bacen","(2) Não há vinculação regulatória ou fiscal para resgate ou recompra","(3) O valor pode ser parcial ou total, conforme autorização do Bacen","Não se aplica","Fixo","127% CDI","Não","Mandatório","Não","Cumulativo","Não conversível","Não se aplica","Não se aplica","Não se aplica","Não se aplica","Não se aplica","Não se aplica","Sim","Os títulos serão extintos, permanente e em valor no mínimo correspondente ao saldo computado no Nível II do Patrimônio de Referência do BRB – Banco de Brasília S.A nas seguintes condições:         1. seja verificada a divulgação pelo BRB – Banco de Brasília S.A. de que seu Capital Principal está em patamar inferior a 4,5% (quatro inteiros e cinco décimos por cento) do montante RWA, estabelecida pela regulamentação vigente; ou\n2. seja verificada, em lei específica, a assinatura de compromisso de aporte para o BRB – Banco de Brasília S.A.;\n3. seja decretado pelo BACEN o regime de administração especial temporária ou intervenção do BRB – Banco de Brasília S.A.; ou\n4. seja determinado pelo BACEN, segundo critérios estabelecidos em regulamento específico editado pelo Conselho Monetário Nacional,a extinção do instrumento.","Totalmente","Permanente","Contratual","Não","Não","Não se aplica"]
[null,163,"BRB - BANCO DE BRASILIA S/A","LFSN25001JN","Lei 12.249/2010 - Resolução 4.955/2021 do CMN","Nível II","Nível II","Conglomerado","Letra financeira",{"v":1117054.38,"d":"R$ 1,117,054.38"},{"v":1050000,"d":"R$ 1,050,000.00"},"passivo - custo amortizado","2025-02-10","Com vencimento","2032-02-11","Não","(1) Não há uma data específica, apenas quando for solicitado ao Bacen","(2) Não há vinculação regulatória ou fiscal para resgate ou recompra","(3) O valor pode ser parcial ou total, conforme autorização do Bacen","Não se aplica","Fixo","126% CDI","Não","Mandatório","Não","Cumulativo","Não conversível","Não se aplica","Não se aplica","Não se aplica","Não se aplica","Não se aplica","Não se aplica","Sim","Os títulos serão extintos, permanente e em valor no mínimo correspondente ao saldo computado no Nível II do Patrimônio de Referência do BRB – Banco de Brasília S.A nas seguintes condições:         1. seja verificada a divulgação pelo BRB – Banco de Brasília S.A. de que seu Capital Principal está em patamar inferior a 4,5% (quatro inteiros e cinco décimos por cento) do montante RWA, estabelecida pela regulamentação vigente; ou\n2. seja verificada, em lei específica, a assinatura de compromisso de aporte para o BRB – Banco de Brasília S.A.;\n3. seja decretado pelo BACEN o regime de administração especial temporária ou intervenção do BRB – Banco de Brasília S.A.; ou\n4. seja determinado pelo BACEN, segundo critérios estabelecidos em regulamento específico editado pelo Conselho Monetário Nacional,a extinção do instrumento.","Totalmente","Permanente","Contratual","Não","Não","Não se aplica"]
[null,164,"BRB - BANCO DE BRASILIA S/A","LFSN25001P8","Lei 12.249/2010 - Resolução 4.955/2021 do CMN","Nível II","Nível II","Conglomerado","Letra financeira",{"v":2213711.81,"d":"R$ 2,213,711.81"},{"v":2100000,"d":"R$ 2,100,000.00"},"passivo - custo amortizado","2025-02-11","Com vencimento","2032-02-11","Não","(1) Não há uma data específica, apenas quando for solicitado ao Bacen","(2) Não há vinculação regulatória ou fiscal para resgate ou recompra","(3) O valor pode ser parcial ou total, conforme autorização do Bacen","Não se aplica","Fixo","126% CDI","Não","Mandatório","Não","Cumulativo","Não conversível","Não se aplica","Não se aplica","Não se aplica","Não se aplica","Não se aplica","Não se aplica","Sim","Os títulos serão extintos, permanente e em valor no mínimo correspondente ao saldo computado no Nível II do Patrimônio de Referência do BRB – Banco de Brasília S.A nas seguintes condições:         1. seja verificada a divulgação pelo BRB – Banco de Brasília S.A. de que seu Capital Principal está em patamar inferior a 4,5% (quatro inteiros e cinco décimos por cento) do montante RWA, estabelecida pela regulamentação vigente; ou\n2. seja verificada, em lei específica, a assinatura de compromisso de aporte para o BRB – Banco de Brasília S.A.;\n3. seja decretado pelo BACEN o regime de administração especial temporária ou intervenção do BRB – Banco de Brasília S.A.; ou\n4. seja determinado pelo BACEN, segundo critérios estabelecidos em regulamento específico editado pelo Conselho Monetário Nacional,a extinção do instrumento.","Totalmente","Permanente","Contratual","Não","Não","Não se aplica"]
[null,165,"BRB - BANCO DE BRASILIA S/A","LFSN25001UP","Lei 12.249/2010 - Resolução 4.955/2021 do CMN","Nível II","Nível II","Conglomerado","Letra financeira",{"v":11852421.67,"d":"R$ 11,852,421.67"},{"v":11700000,"d":"R$ 11,700,000.00"},"passivo - custo amortizado","2025-02-12","Com vencimento","2032-02-11","Não","(1) Não há uma data específica, apenas quando for solicitado ao Bacen","(2) Não há vinculação regulatória ou fiscal para resgate ou recompra","(3) O valor pode ser parcial ou total, conforme autorização do Bacen","Não se aplica","Fixo","124% CDI","Não","Mandatório","Não","Cumulativo","Não conversível","Não se aplica","Não se aplica","Não se aplica","Não se aplica","Não se aplica","Não se aplica","Sim","Os títulos serão extintos, permanente e em valor no mínimo correspondente ao saldo computado no Nível II do Patrimônio de Referência do BRB – Banco de Brasília S.A nas seguintes condições:         1. seja verificada a divulgação pelo BRB – Banco de Brasília S.A. de que seu Capital Principal está em patamar inferior a 4,5% (quatro inteiros e cinco décimos por cento) do montante RWA, estabelecida pela regulamentação vigente; ou\n2. seja verificada, em lei específica, a assinatura de compromisso de aporte para o BRB – Banco de Brasília S.A.;\n3. seja decretado pelo BACEN o regime de administração especial temporária ou intervenção do BRB – Banco de Brasília S.A.; ou\n4. seja determinado pelo BACEN, segundo critérios estabelecidos em regulamento específico editado pelo Conselho Monetário Nacional,a extinção do instrumento.","Totalmente","Permanente","Contratual","Não","Não","Não se aplica"]
[null,166,"BRB - BANCO DE BRASILIA S/A","LFSN25001UQ","Lei 12.249/2010 - Resolução 4.955/2021 do CMN","Nível II","Nível II","Conglomerado","Letra financeira",{"v":6468644.43,"d":"R$ 6,468,644.43"},{"v":6300000,"d":"R$ 6,300,000.00"},"passivo - custo amortizado","2025-02-12","Com vencimento","2032-02-11","Não","(1) Não há uma data específica, apenas quando for solicitado ao Bacen","(2) Não há vinculação regulatória ou fiscal para resgate ou recompra","(3) O valor pode ser parcial ou total, conforme autorização do Bacen","Não se aplica","Fixo","125,5% CDI","Não","Mandatório","Não","Cumulativo","Não conversível","Não se aplica","Não se aplica","Não se aplica","Não se aplica","Não se aplica","Não se aplica","Sim","Os títulos serão extintos, permanente e em valor no mínimo correspondente ao saldo computado no Nível II do Patrimônio de Referência do BRB – Banco de Brasília S.A nas seguintes condições:         1. seja verificada a divulgação pelo BRB – Banco de Brasília S.A. de que seu Capital Principal está em patamar inferior a 4,5% (quatro inteiros e cinco décimos por cento) do montante RWA, estabelecida pela regulamentação vigente; ou\n2. seja verificada, em lei específica, a assinatura de compromisso de aporte para o BRB – Banco de Brasília S.A.;\n3. seja decretado pelo BACEN o regime de administração especial temporária ou intervenção do BRB – Banco de Brasília S.A.; ou\n4. seja determinado pelo BACEN, segundo critérios estabelecidos em regulamento específico editado pelo Conselho Monetário Nacional,a extinção do instrumento.","Totalmente","Permanente","Contratual","Não","Não","Não se aplica"]
[null,167,"BRB - BANCO DE BRASILIA S/A","LFSN25001UR","Lei 12.249/2010 - Resolução 4.955/2021 do CMN","Nível II","Nível II","Conglomerado","Letra financeira",{"v":11863962.2,"d":"R$ 11,863,962.20"},{"v":11400000,"d":"R$ 11,400,000.00"},"passivo - custo amortizado","2025-02-12","Com vencimento","2032-02-11","Não","(1) Não há uma data específica, apenas quando for solicitado ao Bacen","(2) Não há vinculação regulatória ou fiscal para resgate ou recompra","(3) O valor pode ser parcial ou total, conforme autorização do Bacen","Não se aplica","Fixo","127% CDI","Não","Mandatório","Não","Cumulativo","Não conversível","Não se aplica","Não se aplica","Não se aplica","Não se aplica","Não se aplica","Não se aplica","Sim","Os títulos serão extintos, permanente e em valor no mínimo correspondente ao saldo computado no Nível II do Patrimônio de Referência do BRB – Banco de Brasília S.A nas seguintes condições:         1. seja verificada a divulgação pelo BRB – Banco de Brasília S.A. de que seu Capital Principal está em patamar inferior a 4,5% (quatro inteiros e cinco décimos por cento) do montante RWA, estabelecida pela regulamentação vigente; ou\n2. seja verificada, em lei específica, a assinatura de compromisso de aporte para o BRB – Banco de Brasília S.A.;\n3. seja decretado pelo BACEN o regime de administração especial temporária ou intervenção do BRB – Banco de Brasília S.A.; ou\n4. seja determinado pelo BACEN, segundo critérios estabelecidos em regulamento específico editado pelo Conselho Monetário Nacional,a extinção do instrumento.","Totalmente","Permanente","Contratual","Não","Não","Não se aplica"]
[null,168,"BRB - BANCO DE BRASILIA S/A","LFSN25001US","Lei 12.249/2010 - Resolução 4.955/2021 do CMN","Nível II","Nível II","Conglomerado","Letra financeira",{"v":737476.61,"d":"R$ 737,476.61"},{"v":700000,"d":"R$ 700,000.00"},"passivo - custo amortizado","2025-02-12","Com vencimento","2032-02-11","Não","(1) Não há uma data específica, apenas quando for solicitado ao Bacen","(2) Não há vinculação regulatória ou fiscal para resgate ou recompra","(3) O valor pode ser parcial ou total, conforme autorização do Bacen","Não se aplica","Fixo","126% CDI","Não","Mandatório","Não","Cumulativo","Não conversível","Não se aplica","Não se aplica","Não se aplica","Não se aplica","Não se aplica","Não se aplica","Sim","Os títulos serão extintos, permanente e em valor no mínimo correspondente ao saldo computado no Nível II do Patrimônio de Referência do BRB – Banco de Brasília S.A nas seguintes condições:         1. seja verificada a divulgação pelo BRB – Banco de Brasília S.A. de que seu Capital Principal está em patamar inferior a 4,5% (quatro inteiros e cinco décimos por cento) do montante RWA, estabelecida pela regulamentação vigente; ou\n2. seja verificada, em lei específica, a assinatura de compromisso de aporte para o BRB – Banco de Brasília S.A.;\n3. seja decretado pelo BACEN o regime de administração especial temporária ou intervenção do BRB – Banco de Brasília S.A.; ou\n4. seja determinado pelo BACEN, segundo critérios estabelecidos em regulamento específico editado pelo Conselho Monetário Nacional,a extinção do instrumento.","Totalmente","Permanente","Contratual","Não","Não","Não se aplica"]
[null,169,"BRB - BANCO DE BRASILIA S/A","LFSN250025T","Lei 12.249/2010 - Resolução 4.955/2021 do CMN","Nível II","Nível II","Conglomerado","Letra financeira",{"v":10620943.93,"d":"R$ 10,620,943.93"},{"v":10500000,"d":"R$ 10,500,000.00"},"passivo - custo amortizado","2025-02-14","Com vencimento","2032-02-13","Não","(1) Não há uma data específica, apenas quando for solicitado ao Bacen","(2) Não há vinculação regulatória ou fiscal para resgate ou recompra","(3) O valor pode ser parcial ou total, conforme autorização do Bacen","Não se aplica","Fixo","124% CDI","Não","Mandatório","Não","Cumulativo","Não conversível","Não se aplica","Não se aplica","Não se aplica","Não se aplica","Não se aplica","Não se aplica","Sim","Os títulos serão extintos, permanente e em valor no mínimo correspondente ao saldo computado no Nível II do Patrimônio de Referência do BRB – Banco de Brasília S.A nas seguintes condições:         1. seja verificada a divulgação pelo BRB – Banco de Brasília S.A. de que seu Capital Principal está em patamar inferior a 4,5% (quatro inteiros e cinco décimos por cento) do montante RWA, estabelecida pela regulamentação vigente; ou\n2. seja verificada, em lei específica, a assinatura de compromisso de aporte para o BRB – Banco de Brasília S.A.;\n3. seja decretado pelo BACEN o regime de administração especial temporária ou intervenção do BRB – Banco de Brasília S.A.; ou\n4. seja determinado pelo BACEN, segundo critérios estabelecidos em regulamento específico editado pelo Conselho Monetário Nacional,a extinção do instrumento.","Totalmente","Permanente","Contratual","Não","Não","Não se aplica"]
[null,170,"BRB - BANCO DE BRASILIA S/A","LFSN250025U","Lei 12.249/2010 - Resolução 4.955/2021 do CMN","Nível II","Nível II","Conglomerado","Letra financeira",{"v":5229035.5,"d":"R$ 5,229,035.50"},{"v":5100000,"d":"R$ 5,100,000.00"},"passivo - custo amortizado","2025-02-14","Com vencimento","2032-02-13","Não","(1) Não há uma data específica, apenas quando for solicitado ao Bacen","(2) Não há vinculação regulatória ou fiscal para resgate ou recompra","(3) O valor pode ser parcial ou total, conforme autorização do Bacen","Não se aplica","Fixo","125,5% CDI","Não","Mandatório","Não","Cumulativo","Não conversível","Não se aplica","Não se aplica","Não se aplica","Não se aplica","Não se aplica","Não se aplica","Sim","Os títulos serão extintos, permanente e em valor no mínimo correspondente ao saldo computado no Nível II do Patrimônio de Referência do BRB – Banco de Brasília S.A nas seguintes condições:         1. seja verificada a divulgação pelo BRB – Banco de Brasília S.A. de que seu Capital Principal está em patamar inferior a 4,5% (quatro inteiros e cinco décimos por cento) do montante RWA, estabelecida pela regulamentação vigente; ou\n2. seja verificada, em lei específica, a assinatura de compromisso de aporte para o BRB – Banco de Brasília S.A.;\n3. seja decretado pelo BACEN o regime de administração especial temporária ou intervenção do BRB – Banco de Brasília S.A.; ou\n4. seja determinado pelo BACEN, segundo critérios estabelecidos em regulamento específico editado pelo Conselho Monetário Nacional,a extinção do instrumento.","Totalmente","Permanente","Contratual","Não","Não","Não se aplica"]
[null,171,"BRB - BANCO DE BRASILIA S/A","LFSN250025V","Lei 12.249/2010 - Resolução 4.955/2021 do CMN","Nível II","Nível II","Conglomerado","Letra financeira",{"v":9041677.58,"d":"R$ 9,041,677.58"},{"v":8700000,"d":"R$ 8,700,000.00"},"passivo - custo amortizado","2025-02-14","Com vencimento","2032-02-13","Não","(1) Não há uma data específica, apenas quando for solicitado ao Bacen","(2) Não há vinculação regulatória ou fiscal para resgate ou recompra","(3) O valor pode ser parcial ou total, conforme autorização do Bacen","Não se aplica","Fixo","127% CDI","Não","Mandatório","Não","Cumulativo","Não conversível","Não se aplica","Não se aplica","Não se aplica","Não se aplica","Não se aplica","Não se aplica","Sim","Os títulos serão extintos, permanente e em valor no mínimo correspondente ao saldo computado no Nível II do Patrimônio de Referência do BRB – Banco de Brasília S.A nas seguintes condições:         1. seja verificada a divulgação pelo BRB – Banco de Brasília S.A. de que seu Capital Principal está em patamar inferior a 4,5% (quatro inteiros e cinco décimos por cento) do montante RWA, estabelecida pela regulamentação vigente; ou\n2. seja verificada, em lei específica, a assinatura de compromisso de aporte para o BRB – Banco de Brasília S.A.;\n3. seja decretado pelo BACEN o regime de administração especial temporária ou intervenção do BRB – Banco de Brasília S.A.; ou\n4. seja determinado pelo BACEN, segundo critérios estabelecidos em regulamento específico editado pelo Conselho Monetário Nacional,a extinção do instrumento.","Totalmente","Permanente","Contratual","Não","Não","Não se aplica"]
[null,172,"BRB - BANCO DE BRASILIA S/A","LFSN250025W","Lei 12.249/2010 - Resolução 4.955/2021 do CMN","Nível II","Nível II","Conglomerado","Letra financeira",{"v":736533.54,"d":"R$ 736,533.54"},{"v":700000,"d":"R$ 700,000.00"},"passivo - custo amortizado","2025-02-14","Com vencimento","2032-02-13","Não","(1) Não há uma data específica, apenas quando for solicitado ao Bacen","(2) Não há vinculação regulatória ou fiscal para resgate ou recompra","(3) O valor pode ser parcial ou total, conforme autorização do Bacen","Não se aplica","Fixo","126% CDI","Não","Mandatório","Não","Cumulativo","Não conversível","Não se aplica","Não se aplica","Não se aplica","Não se aplica","Não se aplica","Não se aplica","Sim","Os títulos serão extintos, permanente e em valor no mínimo correspondente ao saldo computado no Nível II do Patrimônio de Referência do BRB – Banco de Brasília S.A nas seguintes condições:         1. seja verificada a divulgação pelo BRB – Banco de Brasília S.A. de que seu Capital Principal está em patamar inferior a 4,5% (quatro inteiros e cinco décimos por cento) do montante RWA, estabelecida pela regulamentação vigente; ou\n2. seja verificada, em lei específica, a assinatura de compromisso de aporte para o BRB – Banco de Brasília S.A.;\n3. seja decretado pelo BACEN o regime de administração especial temporária ou intervenção do BRB – Banco de Brasília S.A.; ou\n4. seja determinado pelo BACEN, segundo critérios estabelecidos em regulamento específico editado pelo Conselho Monetário Nacional,a extinção do instrumento.","Totalmente","Permanente","Contratual","Não","Não","Não se aplica"]
[null,173,"BRB - BANCO DE BRASILIA S/A","LFSN250025X","Lei 12.249/2010 - Resolução 4.955/2021 do CMN","Nível II","Nível II","Conglomerado","Letra financeira",{"v":1578286.66,"d":"R$ 1,578,286.66"},{"v":1500000,"d":"R$ 1,500,000.00"},"passivo - custo amortizado","2025-02-14","Com vencimento","2032-02-13","Não","(1) Não há uma data específica, apenas quando for solicitado ao Bacen","(2) Não há vinculação regulatória ou fiscal para resgate ou recompra","(3) O valor pode ser parcial ou total, conforme autorização do Bacen","Não se aplica","Fixo","126% CDI","Não","Mandatório","Não","Cumulativo","Não conversível","Não se aplica","Não se aplica","Não se aplica","Não se aplica","Não se aplica","Não se aplica","Sim","Os títulos serão extintos, permanente e em valor no mínimo correspondente ao saldo computado no Nível II do Patrimônio de Referência do BRB – Banco de Brasília S.A nas seguintes condições:         1. seja verificada a divulgação pelo BRB – Banco de Brasília S.A. de que seu Capital Principal está em patamar inferior a 4,5% (quatro inteiros e cinco décimos por cento) do montante RWA, estabelecida pela regulamentação vigente; ou\n2. seja verificada, em lei específica, a assinatura de compromisso de aporte para o BRB – Banco de Brasília S.A.;\n3. seja decretado pelo BACEN o regime de administração especial temporária ou intervenção do BRB – Banco de Brasília S.A.; ou\n4. seja determinado pelo BACEN, segundo critérios estabelecidos em regulamento específico editado pelo Conselho Monetário Nacional,a extinção do instrumento.","Totalmente","Permanente","Contratual","Não","Não","Não se aplica"]
[null,174,"BRB - BANCO DE BRASILIA S/A","LFSN250025Y","Lei 12.249/2010 - Resolução 4.955/2021 do CMN","Nível II","Nível II","Conglomerado","Letra financeira",{"v":910366.15,"d":"R$ 910,366.15"},{"v":900000,"d":"R$ 900,000.00"},"passivo - custo amortizado","2025-02-14","Com vencimento","2032-02-13","Não","(1) Não há uma data específica, apenas quando for solicitado ao Bacen","(2) Não há vinculação regulatória ou fiscal para resgate ou recompra","(3) O valor pode ser parcial ou total, conforme autorização do Bacen","Não se aplica","Fixo","124% CDI","Não","Mandatório","Não","Cumulativo","Não conversível","Não se aplica","Não se aplica","Não se aplica","Não se aplica","Não se aplica","Não se aplica","Sim","Os títulos serão extintos, permanente e em valor no mínimo correspondente ao saldo computado no Nível II do Patrimônio de Referência do BRB – Banco de Brasília S.A nas seguintes condições:         1. seja verificada a divulgação pelo BRB – Banco de Brasília S.A. de que seu Capital Principal está em patamar inferior a 4,5% (quatro inteiros e cinco décimos por cento) do montante RWA, estabelecida pela regulamentação vigente; ou\n2. seja verificada, em lei específica, a assinatura de compromisso de aporte para o BRB – Banco de Brasília S.A.;\n3. seja decretado pelo BACEN o regime de administração especial temporária ou intervenção do BRB – Banco de Brasília S.A.; ou\n4. seja determinado pelo BACEN, segundo critérios estabelecidos em regulamento específico editado pelo Conselho Monetário Nacional,a extinção do instrumento.","Totalmente","Permanente","Contratual","Não","Não","Não se aplica"]
[null,175,"BRB - BANCO DE BRASILIA S/A","LFSN25002BD","Lei 12.249/2010 - Resolução 4.955/2021 do CMN","Nível II","Nível II","Conglomerado","Letra financeira",{"v":1104420.69,"d":"R$ 1,104,420.69"},{"v":1050000,"d":"R$ 1,050,000.00"},"passivo - custo amortizado","2025-02-17","Com vencimento","2032-02-17","Não","(1) Não há uma data específica, apenas quando for solicitado ao Bacen","(2) Não há vinculação regulatória ou fiscal para resgate ou recompra","(3) O valor pode ser parcial ou total, conforme autorização do Bacen","Não se aplica","Fixo","126% CDI","Não","Mandatório","Não","Cumulativo","Não conversível","Não se aplica","Não se aplica","Não se aplica","Não se aplica","Não se aplica","Não se aplica","Sim","Os títulos serão extintos, permanente e em valor no mínimo correspondente ao saldo computado no Nível II do Patrimônio de Referência do BRB – Banco de Brasília S.A nas seguintes condições:         1. seja verificada a divulgação pelo BRB – Banco de Brasília S.A. de que seu Capital Principal está em patamar inferior a 4,5% (quatro inteiros e cinco décimos por cento) do montante RWA, estabelecida pela regulamentação vigente; ou\n2. seja verificada, em lei específica, a assinatura de compromisso de aporte para o BRB – Banco de Brasília S.A.;\n3. seja decretado pelo BACEN o regime de administração especial temporária ou intervenção do BRB – Banco de Brasília S.A.; ou\n4. seja determinado pelo BACEN, segundo critérios estabelecidos em regulamento específico editado pelo Conselho Monetário Nacional,a extinção do instrumento.","Totalmente","Permanente","Contratual","Não","Não","Não se aplica"]
[null,176,"BRB - BANCO DE BRASILIA S/A","LFSN25002GX","Lei 12.249/2010 - Resolução 4.955/2021 do CMN","Nível II","Nível II","Conglomerado","Letra financeira",{"v":1103732.82,"d":"R$ 1,103,732.82"},{"v":1050000,"d":"R$ 1,050,000.00"},"passivo - custo amortizado","2025-02-18","Com vencimento","2032-02-18","Não","(1) Não há uma data específica, apenas quando for solicitado ao Bacen","(2) Não há vinculação regulatória ou fiscal para resgate ou recompra","(3) O valor pode ser parcial ou total, conforme autorização do Bacen","Não se aplica","Fixo","126% CDI","Não","Mandatório","Não","Cumulativo","Não conversível","Não se aplica","Não se aplica","Não se aplica","Não se aplica","Não se aplica","Não se aplica","Sim","Os títulos serão extintos, permanente e em valor no mínimo correspondente ao saldo computado no Nível II do Patrimônio de Referência do BRB – Banco de Brasília S.A nas seguintes condições:         1. seja verificada a divulgação pelo BRB – Banco de Brasília S.A. de que seu Capital Principal está em patamar inferior a 4,5% (quatro inteiros e cinco décimos por cento) do montante RWA, estabelecida pela regulamentação vigente; ou\n2. seja verificada, em lei específica, a assinatura de compromisso de aporte para o BRB – Banco de Brasília S.A.;\n3. seja decretado pelo BACEN o regime de administração especial temporária ou intervenção do BRB – Banco de Brasília S.A.; ou\n4. seja determinado pelo BACEN, segundo critérios estabelecidos em regulamento específico editado pelo Conselho Monetário Nacional,a extinção do instrumento.","Totalmente","Permanente","Contratual","Não","Não","Não se aplica"]
[null,177,"BRB - BANCO DE BRASILIA S/A","LFSN25002MH","Lei 12.249/2010 - Resolução 4.955/2021 do CMN","Nível II","Nível II","Conglomerado","Letra financeira",{"v":2123385.96,"d":"R$ 2,123,385.96"},{"v":2100000,"d":"R$ 2,100,000.00"},"passivo - custo amortizado","2025-02-19","Com vencimento","2032-02-18","Não","(1) Não há uma data específica, apenas quando for solicitado ao Bacen","(2) Não há vinculação regulatória ou fiscal para resgate ou recompra","(3) O valor pode ser parcial ou total, conforme autorização do Bacen","Não se aplica","Fixo","124% CDI","Não","Mandatório","Não","Cumulativo","Não conversível","Não se aplica","Não se aplica","Não se aplica","Não se aplica","Não se aplica","Não se aplica","Sim","Os títulos serão extintos, permanente e em valor no mínimo correspondente ao saldo computado no Nível II do Patrimônio de Referência do BRB – Banco de Brasília S.A nas seguintes condições:         1. seja verificada a divulgação pelo BRB – Banco de Brasília S.A. de que seu Capital Principal está em patamar inferior a 4,5% (quatro inteiros e cinco décimos por cento) do montante RWA, estabelecida pela regulamentação vigente; ou\n2. seja verificada, em lei específica, a assinatura de compromisso de aporte para o BRB – Banco de Brasília S.A.;\n3. seja decretado pelo BACEN o regime de administração especial temporária ou intervenção do BRB – Banco de Brasília S.A.; ou\n4. seja determinado pelo BACEN, segundo critérios estabelecidos em regulamento específico editado pelo Conselho Monetário Nacional,a extinção do instrumento.","Totalmente","Permanente","Contratual","Não","Não","Não se aplica"]
[null,178,"BRB - BANCO DE BRASILIA S/A","LFSN25002MI","Lei 12.249/2010 - Resolução 4.955/2021 do CMN","Nível II","Nível II","Conglomerado","Letra financeira",{"v":614692.48,"d":"R$ 614,692.48"},{"v":600000,"d":"R$ 600,000.00"},"passivo - custo amortizado","2025-02-19","Com vencimento","2032-02-18","Não","(1) Não há uma data específica, apenas quando for solicitado ao Bacen","(2) Não há vinculação regulatória ou fiscal para resgate ou recompra","(3) O valor pode ser parcial ou total, conforme autorização do Bacen","Não se aplica","Fixo","125,5% CDI","Não","Mandatório","Não","Cumulativo","Não conversível","Não se aplica","Não se aplica","Não se aplica","Não se aplica","Não se aplica","Não se aplica","Sim","Os títulos serão extintos, permanente e em valor no mínimo correspondente ao saldo computado no Nível II do Patrimônio de Referência do BRB – Banco de Brasília S.A nas seguintes condições:         1. seja verificada a divulgação pelo BRB – Banco de Brasília S.A. de que seu Capital Principal está em patamar inferior a 4,5% (quatro inteiros e cinco décimos por cento) do montante RWA, estabelecida pela regulamentação vigente; ou\n2. seja verificada, em lei específica, a assinatura de compromisso de aporte para o BRB – Banco de Brasília S.A.;\n3. seja decretado pelo BACEN o regime de administração especial temporária ou intervenção do BRB – Banco de Brasília S.A.; ou\n4. seja determinado pelo BACEN, segundo critérios estabelecidos em regulamento específico editado pelo Conselho Monetário Nacional,a extinção do instrumento.","Totalmente","Permanente","Contratual","Não","Não","Não se aplica"]
[null,179,"BRB - BANCO DE BRASILIA S/A","LFSN25002S1","Lei 12.249/2010 - Resolução 4.955/2021 do CMN","Nível II","Nível II","Conglomerado","Letra financeira",{"v":87833746.68,"d":"R$ 87,833,746.68"},{"v":82910250,"d":"R$ 82,910,250.00"},"passivo - custo amortizado","2025-02-21","Com vencimento","2035-02-21","Não","(1) Não há uma data específica, apenas quando for solicitado ao Bacen","(2) Não há vinculação regulatória ou fiscal para resgate ou recompra","(3) O valor pode ser parcial ou total, conforme autorização do Bacen","Não se aplica","Fixo","129% CDI","Não","Mandatório","Não","Cumulativo","Não conversível","Não se aplica","Não se aplica","Não se aplica","Não se aplica","Não se aplica","Não se aplica","Sim","Os títulos serão extintos, permanente e em valor no mínimo correspondente ao saldo computado no Nível II do Patrimônio de Referência do BRB – Banco de Brasília S.A nas seguintes condições:         1. seja verificada a divulgação pelo BRB – Banco de Brasília S.A. de que seu Capital Principal está em patamar inferior a 4,5% (quatro inteiros e cinco décimos por cento) do montante RWA, estabelecida pela regulamentação vigente; ou\n2. seja verificada, em lei específica, a assinatura de compromisso de aporte para o BRB – Banco de Brasília S.A.;\n3. seja decretado pelo BACEN o regime de administração especial temporária ou intervenção do BRB – Banco de Brasília S.A.; ou\n4. seja determinado pelo BACEN, segundo critérios estabelecidos em regulamento específico editado pelo Conselho Monetário Nacional,a extinção do instrumento.","Totalmente","Permanente","Contratual","Não","Não","Não se aplica"]
[null,180,"BRB - BANCO DE BRASILIA S/A","LFSN25002S2","Lei 12.249/2010 - Resolução 4.955/2021 do CMN","Nível II","Nível II","Conglomerado","Letra financeira",{"v":131750620.02,"d":"R$ 131,750,620.02"},{"v":124365375,"d":"R$ 124,365,375.00"},"passivo - custo amortizado","2025-02-21","Com vencimento","2035-02-21","Não","(1) Não há uma data específica, apenas quando for solicitado ao Bacen","(2) Não há vinculação regulatória ou fiscal para resgate ou recompra","(3) O valor pode ser parcial ou total, conforme autorização do Bacen","Não se aplica","Fixo","129% CDI","Não","Mandatório","Não","Cumulativo","Não conversível","Não se aplica","Não se aplica","Não se aplica","Não se aplica","Não se aplica","Não se aplica","Sim","Os títulos serão extintos, permanente e em valor no mínimo correspondente ao saldo computado no Nível II do Patrimônio de Referência do BRB – Banco de Brasília S.A nas seguintes condições:         1. seja verificada a divulgação pelo BRB – Banco de Brasília S.A. de que seu Capital Principal está em patamar inferior a 4,5% (quatro inteiros e cinco décimos por cento) do montante RWA, estabelecida pela regulamentação vigente; ou\n2. seja verificada, em lei específica, a assinatura de compromisso de aporte para o BRB – Banco de Brasília S.A.;\n3. seja decretado pelo BACEN o regime de administração especial temporária ou intervenção do BRB – Banco de Brasília S.A.; ou\n4. seja determinado pelo BACEN, segundo critérios estabelecidos em regulamento específico editado pelo Conselho Monetário Nacional,a extinção do instrumento.","Totalmente","Permanente","Contratual","Não","Não","Não se aplica"]
[null,181,"BRB - BANCO DE BRASILIA S/A","LFSN25002XL","Lei 12.249/2010 - Resolução 4.955/2021 do CMN","Nível II","Nível II","Conglomerado","Letra financeira",{"v":20239631.74,"d":"R$ 20,239,631.74"},{"v":20100000,"d":"R$ 20,100,000.00"},"passivo - custo amortizado","2025-02-26","Com vencimento","2032-02-26","Não","(1) Não há uma data específica, apenas quando for solicitado ao Bacen","(2) Não há vinculação regulatória ou fiscal para resgate ou recompra","(3) O valor pode ser parcial ou total, conforme autorização do Bacen","Não se aplica","Fixo","124% CDI","Não","Mandatório","Não","Cumulativo","Não conversível","Não se aplica","Não se aplica","Não se aplica","Não se aplica","Não se aplica","Não se aplica","Sim","Os títulos serão extintos, permanente e em valor no mínimo correspondente ao saldo computado no Nível II do Patrimônio de Referência do BRB – Banco de Brasília S.A nas seguintes condições:         1. seja verificada a divulgação pelo BRB – Banco de Brasília S.A. de que seu Capital Principal está em patamar inferior a 4,5% (quatro inteiros e cinco décimos por cento) do montante RWA, estabelecida pela regulamentação vigente; ou\n2. seja verificada, em lei específica, a assinatura de compromisso de aporte para o BRB – Banco de Brasília S.A.;\n3. seja decretado pelo BACEN o regime de administração especial temporária ou intervenção do BRB – Banco de Brasília S.A.; ou\n4. seja determinado pelo BACEN, segundo critérios estabelecidos em regulamento específico editado pelo Conselho Monetário Nacional,a extinção do instrumento.","Totalmente","Permanente","Contratual","Não","Não","Não se aplica"]
[null,182,"BRB - BANCO DE BRASILIA S/A","LFSN25002XM","Lei 12.249/2010 - Resolução 4.955/2021 do CMN","Nível II","Nível II","Conglomerado","Letra financeira",{"v":4286162.9,"d":"R$ 4,286,162.90"},{"v":4200000,"d":"R$ 4,200,000.00"},"passivo - custo amortizado","2025-02-26","Com vencimento","2032-02-26","Não","(1) Não há uma data específica, apenas quando for solicitado ao Bacen","(2) Não há vinculação regulatória ou fiscal para resgate ou recompra","(3) O valor pode ser parcial ou total, conforme autorização do Bacen","Não se aplica","Fixo","125,5% CDI","Não","Mandatório","Não","Cumulativo","Não conversível","Não se aplica","Não se aplica","Não se aplica","Não se aplica","Não se aplica","Não se aplica","Sim","Os títulos serão extintos, permanente e em valor no mínimo correspondente ao saldo computado no Nível II do Patrimônio de Referência do BRB – Banco de Brasília S.A nas seguintes condições:         1. seja verificada a divulgação pelo BRB – Banco de Brasília S.A. de que seu Capital Principal está em patamar inferior a 4,5% (quatro inteiros e cinco décimos por cento) do montante RWA, estabelecida pela regulamentação vigente; ou\n2. seja verificada, em lei específica, a assinatura de compromisso de aporte para o BRB – Banco de Brasília S.A.;\n3. seja decretado pelo BACEN o regime de administração especial temporária ou intervenção do BRB – Banco de Brasília S.A.; ou\n4. seja determinado pelo BACEN, segundo critérios estabelecidos em regulamento específico editado pelo Conselho Monetário Nacional,a extinção do instrumento.","Totalmente","Permanente","Contratual","Não","Não","Não se aplica"]
[null,183,"BRB - BANCO DE BRASILIA S/A","LFSN25002XN","Lei 12.249/2010 - Resolução 4.955/2021 do CMN","Nível II","Nível II","Conglomerado","Letra financeira",{"v":8687845.8,"d":"R$ 8,687,845.80"},{"v":8400000,"d":"R$ 8,400,000.00"},"passivo - custo amortizado","2025-02-26","Com vencimento","2032-02-26","Não","(1) Não há uma data específica, apenas quando for solicitado ao Bacen","(2) Não há vinculação regulatória ou fiscal para resgate ou recompra","(3) O valor pode ser parcial ou total, conforme autorização do Bacen","Não se aplica","Fixo","127% CDI","Não","Mandatório","Não","Cumulativo","Não conversível","Não se aplica","Não se aplica","Não se aplica","Não se aplica","Não se aplica","Não se aplica","Sim","Os títulos serão extintos, permanente e em valor no mínimo correspondente ao saldo computado no Nível II do Patrimônio de Referência do BRB – Banco de Brasília S.A nas seguintes condições:         1. seja verificada a divulgação pelo BRB – Banco de Brasília S.A. de que seu Capital Principal está em patamar inferior a 4,5% (quatro inteiros e cinco décimos por cento) do montante RWA, estabelecida pela regulamentação vigente; ou\n2. seja verificada, em lei específica, a assinatura de compromisso de aporte para o BRB – Banco de Brasília S.A.;\n3. seja decretado pelo BACEN o regime de administração especial temporária ou intervenção do BRB – Banco de Brasília S.A.; ou\n4. seja determinado pelo BACEN, segundo critérios estabelecidos em regulamento específico editado pelo Conselho Monetário Nacional,a extinção do instrumento.","Totalmente","Permanente","Contratual","Não","Não","Não se aplica"]
[null,184,"BRB - BANCO DE BRASILIA S/A","LFSN250038R","Lei 12.249/2010 - Resolução 4.955/2021 do CMN","Nível II","Nível II","Conglomerado","Letra financeira",{"v":13564951.16,"d":"R$ 13,564,951.16"},{"v":13500000,"d":"R$ 13,500,000.00"},"passivo - custo amortizado","2025-02-28","Com vencimento","2032-02-27","Não","(1) Não há uma data específica, apenas quando for solicitado ao Bacen","(2) Não há vinculação regulatória ou fiscal para resgate ou recompra","(3) O valor pode ser parcial ou total, conforme autorização do Bacen","Não se aplica","Fixo","124% CDI","Não","Mandatório","Não","Cumulativo","Não conversível","Não se aplica","Não se aplica","Não se aplica","Não se aplica","Não se aplica","Não se aplica","Sim","Os títulos serão extintos, permanente e em valor no mínimo correspondente ao saldo computado no Nível II do Patrimônio de Referência do BRB – Banco de Brasília S.A nas seguintes condições:         1. seja verificada a divulgação pelo BRB – Banco de Brasília S.A. de que seu Capital Principal está em patamar inferior a 4,5% (quatro inteiros e cinco décimos por cento) do montante RWA, estabelecida pela regulamentação vigente; ou\n2. seja verificada, em lei específica, a assinatura de compromisso de aporte para o BRB – Banco de Brasília S.A.;\n3. seja decretado pelo BACEN o regime de administração especial temporária ou intervenção do BRB – Banco de Brasília S.A.; ou\n4. seja determinado pelo BACEN, segundo critérios estabelecidos em regulamento específico editado pelo Conselho Monetário Nacional,a extinção do instrumento.","Totalmente","Permanente","Contratual","Não","Não","Não se aplica"]
[null,185,"BRB - BANCO DE BRASILIA S/A","LFSN250038S","Lei 12.249/2010 - Resolução 4.955/2021 do CMN","Nível II","Nível II","Conglomerado","Letra financeira",{"v":6111523.18,"d":"R$ 6,111,523.18"},{"v":6000000,"d":"R$ 6,000,000.00"},"passivo - custo amortizado","2025-02-28","Com vencimento","2032-02-27","Não","(1) Não há uma data específica, apenas quando for solicitado ao Bacen","(2) Não há vinculação regulatória ou fiscal para resgate ou recompra","(3) O valor pode ser parcial ou total, conforme autorização do Bacen","Não se aplica","Fixo","125,5% CDI","Não","Mandatório","Não","Cumulativo","Não conversível","Não se aplica","Não se aplica","Não se aplica","Não se aplica","Não se aplica","Não se aplica","Sim","Os títulos serão extintos, permanente e em valor no mínimo correspondente ao saldo computado no Nível II do Patrimônio de Referência do BRB – Banco de Brasília S.A nas seguintes condições:         1. seja verificada a divulgação pelo BRB – Banco de Brasília S.A. de que seu Capital Principal está em patamar inferior a 4,5% (quatro inteiros e cinco décimos por cento) do montante RWA, estabelecida pela regulamentação vigente; ou\n2. seja verificada, em lei específica, a assinatura de compromisso de aporte para o BRB – Banco de Brasília S.A.;\n3. seja decretado pelo BACEN o regime de administração especial temporária ou intervenção do BRB – Banco de Brasília S.A.; ou\n4. seja determinado pelo BACEN, segundo critérios estabelecidos em regulamento específico editado pelo Conselho Monetário Nacional,a extinção do instrumento.","Totalmente","Permanente","Contratual","Não","Não","Não se aplica"]
[null,186,"BRB - BANCO DE BRASILIA S/A","LFSN250038T","Lei 12.249/2010 - Resolução 4.955/2021 do CMN","Nível II","Nível II","Conglomerado","Letra financeira",{"v":7124620.55,"d":"R$ 7,124,620.55"},{"v":6900000,"d":"R$ 6,900,000.00"},"passivo - custo amortizado","2025-02-28","Com vencimento","2032-02-27","Não","(1) Não há uma data específica, apenas quando for solicitado ao Bacen","(2) Não há vinculação regulatória ou fiscal para resgate ou recompra","(3) O valor pode ser parcial ou total, conforme autorização do Bacen","Não se aplica","Fixo","127% CDI","Não","Mandatório","Não","Cumulativo","Não conversível","Não se aplica","Não se aplica","Não se aplica","Não se aplica","Não se aplica","Não se aplica","Sim","Os títulos serão extintos, permanente e em valor no mínimo correspondente ao saldo computado no Nível II do Patrimônio de Referência do BRB – Banco de Brasília S.A nas seguintes condições:         1. seja verificada a divulgação pelo BRB – Banco de Brasília S.A. de que seu Capital Principal está em patamar inferior a 4,5% (quatro inteiros e cinco décimos por cento) do montante RWA, estabelecida pela regulamentação vigente; ou\n2. seja verificada, em lei específica, a assinatura de compromisso de aporte para o BRB – Banco de Brasília S.A.;\n3. seja decretado pelo BACEN o regime de administração especial temporária ou intervenção do BRB – Banco de Brasília S.A.; ou\n4. seja determinado pelo BACEN, segundo critérios estabelecidos em regulamento específico editado pelo Conselho Monetário Nacional,a extinção do instrumento.","Totalmente","Permanente","Contratual","Não","Não","Não se aplica"]
[null,187,"BRB - BANCO DE BRASILIA S/A","LFSN25003UX","Lei 12.249/2010 - Resolução 4.955/2021 do CMN","Nível II","Nível II","Conglomerado","Letra financeira",{"v":5067036.15,"d":"R$ 5,067,036.15"},{"v":5100000,"d":"R$ 5,100,000.00"},"passivo - custo amortizado","2025-03-19","Com vencimento","2032-03-17","Não","(1) Não há uma data específica, apenas quando for solicitado ao Bacen","(2) Não há vinculação regulatória ou fiscal para resgate ou recompra","(3) O valor pode ser parcial ou total, conforme autorização do Bacen","Não se aplica","Fixo","121,5% CDI","Não","Mandatório","Não","Cumulativo","Não conversível","Não se aplica","Não se aplica","Não se aplica","Não se aplica","Não se aplica","Não se aplica","Sim","Os títulos serão extintos, permanente e em valor no mínimo correspondente ao saldo computado no Nível II do Patrimônio de Referência do BRB – Banco de Brasília S.A nas seguintes condições:         1. seja verificada a divulgação pelo BRB – Banco de Brasília S.A. de que seu Capital Principal está em patamar inferior a 4,5% (quatro inteiros e cinco décimos por cento) do montante RWA, estabelecida pela regulamentação vigente; ou\n2. seja verificada, em lei específica, a assinatura de compromisso de aporte para o BRB – Banco de Brasília S.A.;\n3. seja decretado pelo BACEN o regime de administração especial temporária ou intervenção do BRB – Banco de Brasília S.A.; ou\n4. seja determinado pelo BACEN, segundo critérios estabelecidos em regulamento específico editado pelo Conselho Monetário Nacional,a extinção do instrumento.","Totalmente","Permanente","Contratual","Não","Não","Não se aplica"]
[null,188,"BRB - BANCO DE BRASILIA S/A","LFSN25004BS","Lei 12.249/2010 - Resolução 4.955/2021 do CMN","Nível II","Nível II","Conglomerado","Letra financeira",{"v":518877.82,"d":"R$ 518,877.82"},{"v":500000,"d":"R$ 500,000.00"},"passivo - custo amortizado","2025-04-10","Com vencimento","2035-04-09","Não","(1) Não há uma data específica, apenas quando for solicitado ao Bacen","(2) Não há vinculação regulatória ou fiscal para resgate ou recompra","(3) O valor pode ser parcial ou total, conforme autorização do Bacen","Não se aplica","Fixo","130% CDI","Não","Mandatório","Não","Cumulativo","Não conversível","Não se aplica","Não se aplica","Não se aplica","Não se aplica","Não se aplica","Não se aplica","Sim","Os títulos serão extintos, permanente e em valor no mínimo correspondente ao saldo computado no Nível II do Patrimônio de Referência do BRB – Banco de Brasília S.A nas seguintes condições:         1. seja verificada a divulgação pelo BRB – Banco de Brasília S.A. de que seu Capital Principal está em patamar inferior a 4,5% (quatro inteiros e cinco décimos por cento) do montante RWA, estabelecida pela regulamentação vigente; ou\n2. seja verificada, em lei específica, a assinatura de compromisso de aporte para o BRB – Banco de Brasília S.A.;\n3. seja decretado pelo BACEN o regime de administração especial temporária ou intervenção do BRB – Banco de Brasília S.A.; ou\n4. seja determinado pelo BACEN, segundo critérios estabelecidos em regulamento específico editado pelo Conselho Monetário Nacional,a extinção do instrumento.","Totalmente","Permanente","Contratual","Não","Não","Não se aplica"]

{"sheet":"CC1","index":6,"n_rows":97,"n_cols":6,"rows_kept":97,"merged":[[0,0,1,0],[5,2,5,3],[6,2,6,3],[88,3,88,5],[92,3,92,5]]}
[]
[]
[]
[]
[]
[null,null," Composição do Patrimônio de Referência (PR) ",null,null,"2025-06-01"]
[null,null,"Em R$ milhões",null,"a","b"]
[{"$nulls":3},"Capital Principal: instrumentos de reservas","Valor (R$ mil)","Referência no Balanço do Conglomerado"]
[null,null,1,"Instrumentos Elegíveis ao Capital Principal",{"v":2344.021,"d":"2,344"},"a"]
[null,null,2,"Reservas de lucros",{"v":1483.048,"d":"1,483"},"b"]
[null,null,3,"Outras receitas e outras reservas",{"v":294.42058488,"d":"294"},"c/d"]
[null,null,5,"Participação de não controladores nos instrumentos emitidos por subsidiárias e elegíveis ao Capital Principal do conglomerado",{"v":224.088,"d":"224"},"e"]
[null,null,6,"Capital Principal antes dos ajustes prudenciais",{"v":4345.57758488,"d":"4,346"}]
[{"$nulls":3},"Capital Principal: ajustes prudenciais"]
[null,null,7,"Ajustes prudenciais relativos a apreçamentos de instrumentos financeiros (PVA)",0]
[null,null,8,"Ágios pagos na aquisição de investimentos com fundamento em expectativa de rentabilidade futura",0]
[null,null,9,"Ativos intangíveis",{"v":507.277,"d":"507"},"f/g"]
[null,null,10,"Créditos tributários decorrentes de prejuízos fiscais e de base negativa de Contribuição Social sobre o Lucro Líquido e os originados dessa contribuição relativos a períodos de apuração encerrados até 31 de dezembro de 1998",{"v":52.99,"d":"53"},"h"]
[null,null,11,"Ajustes relativos ao valor de mercado dos instrumentos financeiros derivativos utilizados para hedge de fluxo de caixa de itens protegidos que não tenham seus ajustes de marcação a mercado registrados contabilmente",0]
[null,null,15,"Ativos atuariais relacionados a fundos de pensão de benefícios definidos",0]
[null,null,16,"Ações ou outros instrumentos de emissão própria autorizados a compor o Capital Principal adquiridos diretamente, indiretamente ou de forma sintética",{"v":0.12398452,"d":"0"}]
[null,null,17,"Valor total das deduções relativas às aquisições recíprocas de Capital Principal",0]
[null,null,18,"Valor total das deduções relativas às participações líquidas não significativas em Capital Principal de instituições autorizadas a funcionar pelo Banco Central do Brasil e de instituições financeiras no exterior não consolidadas e em capital social de empresas assemelhadas a instituições financeiras não consolidadas, sociedades seguradoras, resseguradoras, de capitalização e entidades abertas de previdência complementar",0]
[null,null,19,"Valor total das deduções relativas às participações líquidas significativas em Capital Principal de instituições autorizadas a funcionar pelo Banco Central do Brasil e de instituições financeiras no exterior não consolidadas e em capital social de empresas assemelhadas a instituições financeiras não consolidadas, sociedades seguradoras, resseguradoras, de capitalização e entidades abertas de previdência complementar, que exceda 10% do valor do Capital Principal da própria instituição ou conglomerado, desconsiderando deduções específicas",{"v":223.97695013999999,"d":"224"}]
[null,null,21,"Créditos tributários decorrentes de diferenças temporárias que dependam de geração de lucros ou receitas tributáveis futuras para sua realização, acima do limite de 10% do Capital Principal, desconsiderando deduções específicas",0]
[null,null,22,"Valor que excede a 15% do Capital Principal",0]
[null,null,23,"do qual: oriundo de participações líquidas significativas em Capital Principal de instituições autorizadas a funcionar pelo Banco Central do Brasil e de instituições financeiras no exterior não consolidadas e em capital social de empresas assemelhadas a instituições financeiras não consolidadas, de sociedades seguradoras, resseguradoras, de capitalização e de entidades abertas de previdência complementar",0]
[null,null,25,"do qual: oriundo de créditos tributários decorrentes de diferenças temporárias que dependam de geração de lucros ou receitas tributáveis futuras para sua realização",0]
[null,null,26,"Ativos regulatórios nacionais",0]
[null,null,"26a","Ativos permanentes diferidos",0]
[null,null,"26b","Investimentos em dependência, instituição financeira controlada no exterior ou entidade não financeira que componha o conglomerado, em relação às quais o Banco Central do Brasil não tenha acesso a informações, dados e documentos",0]
[null,null,"26d","Aumento de capital social não autorizado",0]
[null,null,"26e","Excedente ao valor ajustado de Capital Principal",0]
[null,null,"26f","Depósito para suprir deficiência de capital",0]
[null,null,"26g","Montante dos ativos intangíveis constituídos antes da entrada em vigor da Resolução nº 4.192, de 2013",0]
[null,null,"26h","Excesso dos recursos aplicados no Ativo Permanente",0]
[null,null,"26i","Destaque do PR",0]
[null,null,"26j","Outras diferenças residuais relativas à metodologia de apuração do Capital Principal para fins regulatórios",0]
[null,null,27,"Ajustes regulatórios aplicados ao capital Principal em função de insuficiência do capital Complementar e de Nível II para cobrir deduções",0]
[null,null,28,"Total das deduções regulatórias ao Capital Principal",{"v":784.36793466,"d":"784"}]
[null,null,29,"Capital Principal",{"v":3561.20965022,"d":"3,561"}]
[{"$nulls":3},"Capital complementar: instrumentos"]
[null,null,30,"Instrumentos Elegíveis ao Capital Complementar",{"v":603.5150344900001,"d":"604"}]
[null,null,31,"dos quais: classificados como capital social conforme as regras contábeis",0]
[null,null,32,"dos quais: classificados como passivo conforme as regras contábeis",{"v":603.5150344900001,"d":"604"}]
[null,null,33,"Instrumentos autorizados a compor o Capital Complementar antes da entrada em vigor da Resolução nº 4.192, de 2013",0]
[null,null,34,"Participação de não controladores em subsidiárias integrantes do conglomerado, não dedutível do Capital Complementar",0]
[null,null,35,"dos quais: instrumentos emitidos por subsidiárias antes da entrada em vigor da Resolução nº 4.192, de 2013",0]
[null,null,36,"Capital Complementar antes das deduções regulatórias",{"v":603.5150344900001,"d":"604"}]
[{"$nulls":3},"Capital Complementar: deduções regulatórias"]
[null,null,37,"Ações ou outros instrumentos de emissão própria autorizados a compor o Capital Complementar adquiridos diretamente, indiretamente ou de forma sintética",0]
[null,null,38,"Valor total das deduções relativas às aquisições recíprocas de Capital Complementar",0]
[null,null,39,"Valor total das deduções relativas aos investimentos líquidos não significativos em Capital Complementar de instituições autorizadas a funcionar pelo Banco Central do Brasil e de instituições financeiras no exterior não consolidadas",0]
[null,null,40,"Valor total das deduções relativas aos investimentos líquidos significativos em Capital Complementar de instituições autorizadas a funcionar pelo Banco Central do Brasil e de instituições financeiras no exterior não consolidadas",0]
[null,null,41,"Ajustes regulatórios nacionais",0]
[null,null,"41b","Participação de não controladores no Capital Complementar",0]
[null,null,"41c","Outras diferenças residuais relativas à metodologia de apuração do Capital Complementar para fins regulatórios",0]
[null,null,42,"Ajustes regulatórios aplicados ao Capital Complementar em função de insuficiência do Nível II para cobrir deduções",0]
[null,null,43,"Total de deduções regulatórias ao Capital Complementar",0]
[null,null,44,"Capital Complementar",{"v":603.5150344900001,"d":"604"}]
[null,null,45,"Nível I",{"v":4164.7246847100005,"d":"4,165"}]
[{"$nulls":3},"Nível II: instrumentos "]
[null,null,46,"Instrumentos elegíveis ao Nível II",{"v":1975.14180478,"d":"1,975"}]
[null,null,47,"Instrumentos autorizados a compor o Nível II antes da Resolução nº 4.192, de 2013",0]
[null,null,48,"Participação de não controladores nos instrumentos emitidos por subsidiárias do conglomerado e elegíveis ao seu Nível II",0]
[null,null,49,"dos quais: instrumentos emitidos por subsidiárias antes da entrada em vigor da Resolução nº 4.192, de 2013",0]
[null,null,51,"Nível II antes das deduções regulatórias",{"v":1975.14180478,"d":"1,975"}]
[{"$nulls":3},"Nível II: deduções regulatórias"]
[null,null,52,"Ações ou outros instrumentos de emissão própria, autorizados a compor o Nível II, adquiridos diretamente, indiretamente ou de forma sintética",0]
[null,null,53,"Valor total das deduções relativas às aquisições recíprocas de Nível II",0]
[null,null,54,"Valor total das deduções relativas aos investimentos líquidos não significativos em instrumentos de Nível II e em instrumentos reconhecidos como TLAC emitidos por instituições autorizadas a funcionar pelo Banco Central do Brasil ou por instituições financeiras no exterior não consolidadas",0]
[null,null,55,"Valor total das deduções relativas aos investimentos líquidos significativos em instrumentos de Nível II e em instrumentos reconhecidos como TLAC emitidos por instituições autorizadas a funcionar pelo Banco Central do Brasil ou por instituições financeiras no exterior não consolidadas",0]
[null,null,56,"Ajustes regulatórios nacionais",0]
[null,null,"56b","Participação de não controladores no Nível II",0]
[null,null,"56c","Outras diferenças residuais relativas à metodologia de apuração do Nível II para fins regulatórios",0]
[null,null,57,"Total de deduções regulatórias ao Nível II",0]
[null,null,58,"Nível II",{"v":1975.14180478,"d":"1,975"}]
[null,null,59,"Patrimônio de Referência (Nível I + Nível II)",{"v":6139.86648949,"d":"6,140"}]
[null,null,60,"Total de ativos ponderados pelo risco",{"v":44123.408209040004,"d":"44,123"}]
[{"$nulls":3},"Índices de Basileia e Adicional de Capital Principal"]
[null,null,61,"Índices de Capital Principal (ICP)",{"v":0.08070768124277404,"d":"8.07%"}]
[null,null,62,"Índice de Nível I (INI)",{"v":0.09438556921622283,"d":"9.44%"}]
[null,null,63,"Índice de Basileia (IB)",{"v":0.13914960456504552,"d":"13.91%"}]
[null,null,64,"Percentual do adicional de Capital Principal (em relação ao RWA) ",{"v":0.02500000000000001,"d":"2.50%"}]
[null,null,65,"do qual: adicional para conservação de capital – ACPConservação",{"v":0.02500000000000001,"d":"2.50%"}]
[null,null,66,"do qual: adicional contracíclico – ACPContracíclico",{"v":0,"d":"0%"}]
[null,null,67,"do qual: Adicional de Importância Sistêmica de Capital Principal – ACPSistêmico",{"v":0,"d":"0%"}]
[null,null,68,"Capital Principal excedente ao montante utilizado para cumprimento dos requerimentos de capital, como proporção do RWA (%)",{"v":0.010707681242774034,"d":"1.07%"}]
[{"$nulls":3},"Valores abaixo do limite de dedução antes da aplicação de fator de ponderação de risco "]
[null,null,72,"Valor total, sujeito à ponderação de risco, das participações não significativas em Capital Principal de instituições autorizadas a funcionar pelo Banco Central do Brasil e de instituições financeiras no exterior não consolidas e em capital social de empresas assemelhadas a instituições financeiras não consolidadas, sociedades seguradoras, resseguradoras, de capitalização e entidades abertas de previdência complementar, bem como dos investimentos não significativos em Capital Complementar, em instrumentos de Nível II e em instrumentos reconhecidos como TLAC emitidos por instituições financeiras autorizadas a funcionar pelo Banco Central do Brasil ou por instituições financeiras no exterior não consolidadas",0]
[null,null,73,"Valor total, sujeito à ponderação de risco, das participações significativas em Capital Principal de instituições autorizadas a funcionar pelo Banco Central do Brasil e de instituições financeiras no exterior não consolidas e em capital social de empresas assemelhadas a instituições financeiras não consolidadas, sociedades seguradoras, resseguradoras, de capitalização e entidades abertas de previdência complementar",0]
[null,null,75,"Créditos tributários decorrentes de diferenças temporárias que dependam de geração de lucros ou receitas tributáveis futuras para sua realização, não deduzidos do Capital Principal",0]
[{"$nulls":3},"Instrumentos autorizados a compor o PR antes da entrada em vigor da Resolução 4.192, de 2013 (aplicável entre 1º de outubro de 2013 e 1º de janeiro de 2022"]
[null,null,82,"Limite atual para os instrumentos autorizados a compor o Capital Complementar antes da entrada em vigor da Resolução nº 4.192, de 2013",0]
[null,null,83,"Valor excluído do Capital Complementar devido ao limite da linha 82",0]
[null,null,84,"Instrumentos autorizados a compor o Nível II antes da entrada em vigor da Resolução nº 4.192, de 2013",0]
[null,null,85,"Valor excluído do Nível II devido ao limite da linha 84",0]

{"sheet":"CC2","index":7,"n_rows":39,"n_cols":6,"rows_kept":39,"merged":[[0,0,1,0],[4,2,4,3],[6,2,8,2],[6,3,8,3]]}
[]
[]
[]
[]
[null,null,"Conciliação do Patrimônio de Referência (PR) com o Balanço Patrimonial - (CC2)",null,null,"2025-06-01"]
[null,null," Em R$ milhares "," a "," b ","c"]
[null,null,"Balanço Patrimonial Consolidado","Valores do balanço patrimonial no final do período"]
[{"$nulls":4},"Valores considerados para fins da regulamentação prudencial no final do período","Referência no balanço do conglomerado"]
[]
[null,null,"ATIVOS",{"v":76176446,"d":"76,176,446"},{"v":76146496,"d":"76,146,496"}]
[null,null,"Disponibilidades",{"v":914839,"d":"914,839"},{"v":914815,"d":"914,815"}]
[null,null,"Instrumentos Financeiros ",{"v":70694472,"d":"70,694,472"},{"v":70623347,"d":"70,623,347"}]
[null,null,"Provisão Para Perda Esperada Associada ao Risco de Credito",{"v":-1179539,"d":"-1,179,539"},{"v":-1179539,"d":"-1,179,539"}]
[null,null,"Outros Ativos",{"v":3035078,"d":"3,035,078"},{"v":3024015,"d":"3,024,015"}]
[null,null,"Provisão para Redução ao Valor Recuperável de Ativos","-","-"]
[null,null,"Créditos Tributários",{"v":1556621,"d":"1,556,621"},{"v":1549360,"d":"1,549,360"}]
[null,null,"Créditos Tributários Decorrentes de Diferenças Temporárias",{"v":879208,"d":"879,208"},{"v":879208,"d":"879,208"}]
[null,null,"Créditos Tributários de Prejuízo Fiscal e Relacionados à CSLL",{"v":52990,"d":"52,990"},{"v":52990,"d":"52,990"},"h"]
[null,null,"Outros Créditos Tributários",{"v":624423,"d":"624,423"},{"v":624423,"d":"624,423"}]
[null,null,"Investimentos em Coligadas e Controladas",{"v":276718,"d":"276,718"},{"v":343947,"d":"343,947"}]
[null,null,"Imobilizado de Uso",{"v":580466,"d":"580,466"},{"v":573363,"d":"573,363"}]
[null,null,"Intangível ",{"v":741273,"d":"741,273"},{"v":740670,"d":"740,670"},"f"]
[null,null,"Depreciação e Amortização",{"v":-446444,"d":"-446,444"},{"v":-446444,"d":"-446,444"}]
[null,null,"Imobilizado",{"v":-213051,"d":"-213,051"},{"v":-213051,"d":"-213,051"}]
[null,null,"Intangível ",{"v":-233393,"d":"-233,393"},{"v":-233393,"d":"-233,393"},"g"]
[null,null,"PASSIVO",{"v":71967398,"d":"71,967,398"},{"v":71937448,"d":"71,937,448"}]
[null,null,"Depósitos e Demais Instrumentos Financeiros",{"v":66683755,"d":"66,683,755"},{"v":66864351,"d":"66,864,351"}]
[null,null,"Outras Obrigações ",{"v":3659316,"d":"3,659,316"},{"v":3642429,"d":"3,642,429"}]
[null,null,"Passivo Atuarial",{"v":97489,"d":"97,489"},{"v":97489,"d":"97,489"}]
[null,null,"Provisões",{"v":828431,"d":"828,431"},{"v":826356,"d":"826,356"}]
[null,null,"Obrigações Fiscais Diferidas",{"v":698407,"d":"698,407"},{"v":506823,"d":"506,823"}]
[null,null,"PATRIMÔNIO LÍQUIDO",{"v":3984960,"d":"3,984,960"},{"v":3984960,"d":"3,984,960"}]
[null,null,"Capital",{"v":2344021,"d":"2,344,021"},{"v":2344021,"d":"2,344,021"},"a"]
[null,null,"Reserva de Capital",0,0,"d"]
[null,null,"Reservas de Lucros",{"v":1483048,"d":"1,483,048"},{"v":1483048,"d":"1,483,048"},"b"]
[null,null,"Outros Resultados Abrangentes",{"v":157891,"d":"157,891"},{"v":157891,"d":"157,891"},"c"]
[null,null,"Participação de Não Controladores",224088,{"v":224088,"d":"224,088"},"e"]
[null,null,"PATRIMÔNIO LÍQUIDO ADMINISTRADO PELA CONTROLADORA",{"v":4209048,"d":"4,209,048"},{"v":4209048,"d":"4,209,048"}]
[null,null,"TOTAL",{"v":76176446,"d":"76,176,446"},{"v":76146496,"d":"76,146,496"}]

{"sheet":"CR1","index":8,"n_rows":16,"n_cols":10,"rows_kept":16,"merged":[[0,0,1,0],[5,2,5,3],[6,2,6,3],[7,4,7,5]]}
[]
[]
[]
[]
[]
[null,null,"Qualidade creditícia das exposições - (CR1)",{"$nulls":6},"2025-06-01"]
[null,null,"Em R$ milhões"]
[{"$nulls":4},"valor bruto"]
[{"$nulls":4},"Exposições caracterizadas como ativos problemáticos","Exposições não caracterizadas como ativos não problemáticos","Provisões, adiantamentos e rendas a apropriar","Provisões, adiantamentos e rendas a apropriar                    Dos quais: RWACPAD      ","Provisões, adiantamentos e rendas a apropriar                    Dos quais: RWACIRB   ","Valor Líquido (a+b-c)"]
[{"$nulls":4},"a","b","c","d","f","g"]
[null,null,1,"Concessão de crédito",{"v":1582,"d":"1,582"},{"v":57774,"d":"57,774"},{"v":1185,"d":"1,185"},{"v":1185,"d":"1,185"},"-",{"v":58171,"d":"58,171"}]
[null,null,2,"Títulos de dívida",0,{"v":9989,"d":"9,989"},48,48,"-",{"v":9940,"d":"9,940"}]
[null,null,"2a","dos quais: títulos soberanos nacionais",0,{"v":7589,"d":"7,589"},"-","-","-",{"v":7589,"d":"7,589"}]
[null,null,"2b","dos quais: outros títulos",0,{"v":2400,"d":"2,400"},48,48,"-",{"v":2352,"d":"2,352"}]
[null,null,3,"Operações não contabilizadas no balanço patrimonial",0,{"v":8368,"d":"8,368"},"-","-","-",{"v":8368,"d":"8,368"}]
[null,null,4,"Total",{"v":1582,"d":"1,582"},{"v":76131,"d":"76,131"},{"v":1234,"d":"1,234"},{"v":1234,"d":"1,234"},"-",{"v":76479,"d":"76,479"}]

{"sheet":"CR2","index":9,"n_rows":13,"n_cols":5,"rows_kept":13,"merged":[[0,0,1,0],[4,2,4,3],[5,2,5,3]]}
[]
[]
[]
[]
[null,null,"Mudanças no estoque de operações em curso anormal - (CR2)",null,"2025-06-01"]
[null,null,"Em R$ milhões"]
[{"$nulls":4},"Saldo"]
[null,null,1,"Valor das exposições classificadas como ativos problemáticos ao final do período anterior",{"v":1379,"d":"1,379"}]
[null,null,2,"Valor das exposições que passaram a ser classificadas como ativos problemáticos no período corrente",{"v":1216,"d":"1,216"}]
[null,null,3,"Valor das exposições que deixaram de ser caracterizadas como ativos problemáticos no período corrente",-711]
[null,null,4,"Valor da baixa contábil por prejuízo",-296]
[null,null,5,"Outros ajustes",-6]
[null,null,6,"Valor das exposições classificadas como ativos problemáticos no final do período corrente (1+2+3+4+5)",{"v":1582,"d":"1,582"}]